Workbook

Sheet AER only (hidden)
B1: Data in these columns used for data validation and database purposes.
B2: Date last modified: | C2: 2016-08-08 | D2: added new business names, improved column heading formatting
AC4: FOR ELECTRICITY BUSINESSES ONLY
AC5: Feeder Types | AG5: TasNetworks (D) | AH5: MAIFI flag | AI5: Feeder Names
AC6: CBD | AD6: Urban | AE6: Short rural | AF6: long rural | AG6: EXTRA
B7: dms_TradingName_List | C7: dms_TradingNameFull_List | D7: dms_ABN_List | E7: dms_JurisdictionList | F7: dms_Sector_List | G7: dms_Segment_List | H7: dms_FormControl_List | I7: dms_RPT_List | J7: dms_RPTMonth_List | K7: dms_CRCPlength_List | L7: dms_FRCPlength_List | M7: dms_663_List | N7: dms_DeterminationRef_List | O7: dms_Addr1_List | P7: dms_Addr2_List | Q7: dms_Suburb_List | R7: dms_State_List | S7: dms_PostCode_List | T7: dms_PAddr1_List | U7: dms_PAddr2_List | V7: dms_PSuburb_List | W7: dms_PState_List | X7: dms_PPostCode_List | Y7: dms_ContactName1_List | Z7: dms_ContactPh1_List | AA7: dms_ContactEmail_List | AC7: dms_CBD_flag | AD7: dms_Urban_flag | AE7: dms_ShortRural_flag | AF7: dms_LongRural_flag | AG7: dms_FeederType_5_flag | AH7: dms_MAIFI_flag_List | AI7: dms_FeederName_1 | AJ7: dms_FeederName_2 | AK7: dms_FeederName_3 | AL7: dms_FeederName_4 | AM7: dms_FeederName_5
B8: ActewAGL Distribution | C8: ActewAGL Distribution | D8: 76670568688 | E8: ACT | F8: Electricity | G8: Distribution | H8: Revenue cap | I8: Financial | J8: June | K8: 5 | L8: 5 | M8: 5 | N8: 2014-19 Distribution Determination | O8: 40 Bunda Street | Q8: CANBERRA | R8: ACT | S8: 2600 | T8: GPO BOX 366 | V8: CANBERRA | W8: ACT | X8: 2601 | Y8: Robert Walker | Z8: 02 6248 3847 | AA8: robert.walker@actewagle.com.au | AC8: NO | AD8: YES | AE8: YES | AF8: NO | AG8: NO | AI8: CBD | AJ8: Urban | AK8: Short rural | AL8: Long rural | AN8: ActewAGL Distribution
B9: ActewAGL Distribution (Tx Assets) | C9: ActewAGL Distribution (Tx Assets) | D9: 76670568688 | E9: ACT | F9: Electricity | G9: Distribution | H9: Revenue cap | I9: Financial | J9: June | K9: 5 | L9: 5 | M9: 5 | N9: distribution determination | O9: 40 Bunda Street | Q9: CANBERRA | R9: ACT | S9: 2600 | T9: GPO BOX 366 | V9: CANBERRA | W9: ACT | X9: 2601 | Y9: Robert Walker | Z9: 02 6248 3847 | AA9: robert.walker@actewagle.com.au | AI9: CBD | AJ9: Urban | AK9: Short rural | AL9: Long rural | AN9: ActewAGL Distribution (Tx Assets)
B10: ActewAGL Gas | C10: ActewAGL Gas | D10: 76670568688 | E10: ACT | F10: Gas | G10: Distribution | H10: Weighted average price cap | I10: Financial | J10: June | K10: 5 | L10: 5 | M10: x | O10: 40 Bunda Street | Q10: CANBERRA | R10: ACT | S10: 2600 | T10: GPO BOX 366 | V10: CANBERRA | W10: ACT | X10: 2601 | Y10: Philip Deamer | Z10: 02 6248 3438 | AA10: GasAAReview@actewagl.com.au | AN10: ActewAGL Gas
B11: AGN (Albury) | C11: Australian Gas Networks Limited (reporting data for Albury) | D11: 19078551685 | E11: Vic | F11: Gas | G11: Distribution | H11: Weighted average price cap | I11: Calendar | J11: December | K11: 5 | L11: 5 | M11: x | O11: Level 10 | P11: 81 Flinders Street | Q11: ADELAIDE | R11: SA | S11: 5000 | Z11: 08 8227 1500 | AI11: CBD | AJ11: Urban | AK11: Short rural | AL11: Long rural | AN11: AGN (SA)
B12: AGN (SA) | C12: AGN (SA) | D12: 78551685 | E12: SA | F12: Gas | G12: Distribution | H12: Revenue cap | I12: Financial | J12: June | K12: 5 | L12: 5 | M12: 5 | N12: distribution determination | R12: SA | AN12: AGN (Victoria)
B13: AGN (Victoria) | C13: Australian Gas Networks Limited (reporting data for Victoria) | D13: 19078551685 | E13: Vic | F13: Gas | G13: Distribution | H13: Weighted average price cap | I13: Calendar | J13: December | K13: 5 | L13: 5 | M13: x | O13: Level 10 | P13: 81 Flinders Street | Q13: ADELAIDE | R13: SA | S13: 5000 | Z13: 08 8227 1500 | AN13: AGN (Albury)
B14: Amadeus | C14: APT Pipelines (NT) Pty Ltd | D14: 39009737393 | E14: NT | F14: Gas | G14: Transmission | H14: Weighted average price cap | I14: Financial | J14: June | K14: 5 | L14: 5 | M14: x | N14: n/a | O14: Level 19, HSBC Building | P14: 580 George Street | Q14: SYDNEY | R14: NSW | S14: 2000 | T14: Level 19, HSBC Building | U14: 580 George Street | V14: SYDNEY | W14: NSW | X14: 2000 | Y14: Alexandra Curran | Z14: 02 9275 0020 | AA14: alexandra.curran@apa.com.au | AN14: Amadeus
B15: APA GasNet | C15: APA VTS Australia Limited | D15: 79096457868 | E15: Vic | F15: Gas | G15: Transmission | H15: Weighted average price cap | I15: Calendar | J15: December | K15: 5 | L15: 5 | M15: x | O15: Level 19, HSBC Building | P15: 580 George Street | Q15: SYDNEY | R15: NSW | S15: 2000 | T15: PO Box R41 | V15: ROYAL EXCHANGE | W15: NSW | X15: 1225 | Z15: 02 9693 0000 | AN15: APA GasNet
B16: Ausgrid | C16: Ausgrid | D16: 67505337385 | E16: NSW | F16: Electricity | G16: Distribution | H16: Revenue cap | I16: Financial | J16: June | K16: 5 | L16: 5 | M16: 5 | N16: 2014-19 Distribution Determination | O16: 570 George St | Q16: SYDNEY | R16: NSW | S16: 2000 | Y16: John Thomson | Z16: (02) 9269 2312 | AA16: john.thomson@ausgrid.com.au | AC16: YES | AD16: YES | AE16: YES | AF16: YES | AG16: NO | AI16: CBD | AJ16: Urban | AK16: Short rural | AL16: Long rural | AN16: Ausgrid
B17: Ausgrid (Tx Assets) | C17: Ausgrid (Tx Assets) | D17: 67505337385 | E17: NSW | F17: Electricity | G17: Distribution | H17: Revenue cap | I17: Financial | J17: June | K17: 5 | L17: 5 | M17: 5 | N17: distribution determination | R17: NSW | AI17: CBD | AJ17: Urban | AK17: Short rural | AL17: Long rural | AN17: Ausgrid (Tx Assets)
B18: AusNet (D) | C18: AusNet Services (D) | D18: 91064651118 | E18: Vic | F18: Electricity | G18: Distribution | H18: Revenue cap | I18: Calendar | J18: December | K18: 5 | L18: 5 | M18: 2 | N18: 2016-20 Distribution Determination | O18: Level 32 | P18: 2 Southbank Boulevard | Q18: SOUTHBANK | R18: Vic | S18: 3006 | T18: Locked Bag 14051 | V18: MELBOURNE CITY MAIL CENTRE | W18: VIC | X18: 8001 | Y18: Hannah Williams | Z18: 03 9683 4088 | AA18: hwilliams@powercor.com.au | AD18: YES | AE18: YES | AF18: YES | AG18: NO | AI18: CBD | AJ18: Urban | AK18: Short rural | AL18: Long rural | AN18: AusNet (D)
B19: AusNet (Gas) | C19: AusNet Gas Services | D19: 86015036 | E19: Vic | F19: Gas | G19: Distribution | H19: Weighted average price cap | I19: Calendar | J19: December | K19: 5 | L19: 5 | M19: X | AN19: AusNet (Gas)
B20: AusNet (T) | C20: AusNet (T) | D20: 78079798173 | E20: Vic | F20: Electricity | G20: Transmission | H20: Revenue cap | I20: Financial | J20: March | K20: 5 | L20: 5 | M20: 2 | N20: transmission determination | O20: Level 32 | P20: 2 Southbank Boulevard | Q20: SOUTHBANK | R20: Vic | S20: 3006 | T20: Locked Bag 14051 | V20: MELBOURNE CITY MAIL CENTRE | W20: Vic | X20: 8001 | Y20: Clare Thompson | Z20: 03 9695 6670 | AA20: clare.e.thompson@ausnetservices.com.au | AI20: CBD | AJ20: Urban | AK20: Short rural | AL20: Long rural | AN20: AusNet (T)
B21: Australian Distribution Co. | C21: Australian Distribution Co. | D21: 11222333444 | E21: - | F21: Electricity | G21: Distribution | H21: Revenue cap | I21: Financial | J21: June | K21: 5 | L21: 5 | M21: 2 | N21: distribution determination | O21: 123 Straight Street | Q21: SYDNEY | R21: NSW | S21: 2000 | T21: PO Box 123 | V21: SYDNEY | W21: NSW | X21: 2000 | Y21: Bob Smith | Z21: 02 1234 5678 | AA21: bob@auselec.net.au | AI21: CBD | AJ21: Urban | AK21: Short rural | AL21: Long rural | AN21: Australian Distribution Co.
B22: Australian Transmission Co. | C22: Australian Transmission Co. | D22: 11222333444 | E22: - | F22: Electricity | G22: Transmission | H22: Revenue cap | I22: Financial | J22: June | K22: 5 | L22: 5 | M22: 5 | N22: transmission determination | O22: 123 Straight Street | Q22: SYDNEY | R22: NSW | S22: 2000 | T22: PO Box 123 | V22: SYDNEY | W22: NSW | X22: 2000 | Y22: Bob Smith | Z22: 02 1234 5678 | AA22: bob@auselec.net.au | AI22: CBD | AJ22: Urban | AK22: Short rural | AL22: Long rural | AN22: Australian Transmission Co.
B23: CitiPower | C23: CitiPower | D23: 76064651056 | E23: Vic | F23: Electricity | G23: Distribution | H23: Revenue cap | I23: Calendar | J23: December | K23: 5 | L23: 5 | M23: 2 | N23: 2016-20 Distribution Determination | O23: 40 Market Street | Q23: MELBOURNE | R23: Vic | S23: 3000 | T23: Locked Bag 14090 | V23: MELBOURNE | W23: VIC | X23: 8001 | Y23: Hannah Williams | Z23: 03 9683 4088 | AA23: hwilliams@powercor.com.au | AC23: YES | AD23: YES | AE23: NO | AF23: NO | AG23: NO | AI23: CBD | AJ23: Urban | AK23: Short rural | AL23: Long rural | AN23: CitiPower
B24: Directlink | C24: Directlink | D24: 16779340889 | E24: Qld | F24: Electricity | G24: Transmission | H24: Revenue cap | I24: Financial | J24: June | K24: 9 | L24: 5 | M24: 5 | N24: transmission determination | R24: NSW | AI24: CBD | AJ24: Urban | AK24: Short rural | AL24: Long rural | AN24: Directlink
B25: ElectraNet | C25: ElectraNet | D25: 41094482416 | E25: SA | F25: Electricity | G25: Transmission | H25: Revenue cap | I25: Financial | J25: June | K25: 5 | L25: 5 | M25: 5 | N25: transmission determination | O25: 52-55 East Terrace | P25: Rymill Park | Q25: ADELAIDE | R25: SA | S25: 5000 | T25: PO Box 7096 | U25: Hutt Street Post Office | V25: ADELAIDE | W25: SA | X25: 5000 | Y25: Bill Jackson | Z25: 08 8404 7969 | AA25: jackson.bill@electranet.com.au | AI25: CBD | AJ25: Urban | AK25: Short rural | AL25: Long rural | AN25: ElectraNet
B26: Endeavour Energy | C26: Endeavour Energy | D26: 59253130878 | E26: NSW | F26: Electricity | G26: Distribution | H26: Revenue cap | I26: Financial | J26: June | K26: 5 | L26: 5 | M26: 5 | N26: 2014-19 Distribution Determination | O26: 51 Huntingwood Drive | Q26: HUNTINGWOOD | R26: NSW | S26: 2148 | T26: PO Box 811 | V26: SEVEN HILLS | W26: NSW | X26: 1730 | Y26: Jon Hocking | Z26: 02 9853 4386 / 0407 348 156 | AA26: Jon.Hocking@Endeavourenergy.com.au | AC26: NO | AD26: YES | AE26: YES | AF26: YES | AG26: NO | AI26: CBD | AJ26: Urban | AK26: Short rural | AL26: Long rural | AN26: Endeavour Energy
B27: Energex | C27: Energex | D27: 40078849055 | E27: Qld | F27: Electricity | G27: Distribution | H27: Revenue cap | I27: Financial | J27: June | K27: 5 | L27: 5 | M27: 5 | N27: 2015-20 Distribution Determination | O27: 26 Reddacliff Street | Q27: NEWSTEAD | R27: Qld | S27: 4006 | T27: 26 Reddacliff Street | V27: NEWSTEAD | W27: QLD | X27: 4006 | Y27: Nicola Roscoe | Z27: 07 3664 5891 | AA27: nicolaroscoe@energex.com.au | AC27: YES | AD27: YES | AE27: YES | AF27: NO | AG27: NO | AI27: CBD | AJ27: Urban | AK27: Short rural | AL27: Long rural | AN27: Energex
B28: Ergon Energy | C28: Ergon Energy | D28: 50087646062 | E28: Qld | F28: Electricity | G28: Distribution | H28: Revenue cap | I28: Financial | J28: June | K28: 5 | L28: 5 | M28: 5 | N28: 2015-20 Distribution Determination | O28: 22 Walker Street | Q28: TOWNSVILLE | R28: Qld | S28: 4810 | T28: Po Box 264 | V28: FORTITUDE VALLEY | W28: QLD | X28: 4006 | Y28: Jenny Doyle, Group Manager Regulatory Affairs | Z28: (07) 3851 6416 | AA28: jenny.doyle@ergon.com.au | AC28: NO | AD28: YES | AE28: YES | AF28: YES | AG28: NO | AI28: CBD | AJ28: Urban | AK28: Short rural | AL28: Long rural | AN28: Ergon Energy
B29: Essential Energy | C29: Essential Energy | D29: 37428185226 | E29: NSW | F29: Electricity | G29: Distribution | H29: Revenue cap | I29: Financial | J29: June | K29: 5 | L29: 5 | M29: 5 | N29: 2014-19 Distribution Determination | O29: 8 Buller Street | Q29: PORT MACQUARIE | R29: NSW | S29: 2444 | T29: PO Box 5730 | V29: PORT MACQUARIE | W29: NSW | X29: 2444 | Y29: Catherine Waddell | Z29: 02 6338 3553 | AA29: catherine.waddell@essentialenergy.com.au | AE29: YES | AF29: YES | AG29: NO | AI29: CBD | AJ29: Urban | AK29: Short rural | AL29: Long rural | AN29: Essential Energy
B30: Jemena Electricity | C30: Jemena Electricity | D30: 82064651083 | E30: Vic | F30: Electricity | G30: Distribution | H30: Revenue cap | I30: Calendar | J30: December | K30: 5 | L30: 5 | M30: 2 | N30: 2016-20 Distribution Determination | O30: Level 16 | P30: 567 Collins Street | Q30: MELBOURNE | R30: VIC | S30: 3000 | T30: PO Box 16182 | V30: MELBOURNE | W30: VIC | X30: 8001 | Y30: Robert McMillan | Z30: 03 9173 7000 | AA30: robert.mcmillan@jemena.com.au | AE30: YES | AF30: NO | AG30: NO | AI30: CBD | AJ30: Urban | AK30: Short rural | AL30: Long rural | AN30: Jemena Electricity
B31: JGN | C31: Jemena Gas Networks | E31: NSW | F31: Gas | G31: Distribution | H31: Weighted average price cap | I31: Financial | J31: June | K31: 5 | L31: 5 | AN31: JGN
B32: Multinet Gas | C32: Multinet Gas (DB No.1) Pty Ltd (ACN 086 026 986), Multinet Gas (DB No.2) Pty Ltd (ACN 086 230 122) | D32: 86026986 | E32: Vic | F32: Gas | G32: Distribution | H32: Weighted average price cap | I32: Calendar | J32: December | K32: 5 | L32: 5 | M32: x | AN32: Multinet Gas
B33: Murraylink | C33: Murraylink | D33: 79181207909 | E33: SA | F33: Electricity | G33: Transmission | H33: Revenue cap | I33: Financial | J33: June | K33: 5 | L33: 5 | M33: 5 | N33: transmission determination | AI33: CBD | AJ33: Urban | AK33: Short rural | AL33: Long rural | AN33: Murraylink
B34: Powercor Australia | C34: Powercor Australia | D34: 89064651109 | E34: Vic | F34: Electricity | G34: Distribution | H34: Revenue cap | I34: Calendar | J34: December | K34: 5 | L34: 5 | M34: 2 | N34: 2016-20 Distribution Determination | O34: 40 Market Street | Q34: MELBOURNE | R34: Vic | S34: 3000 | T34: Locked bag 14090 | V34: MELBOURNE | W34: VIC | X34: 8001 | Y34: Hannah Williams | Z34: 03 9683 4088 | AA34: hwilliams@powercor.com.au | AE34: YES | AF34: YES | AG34: NO | AI34: CBD | AJ34: Urban | AK34: Short rural | AL34: Long rural | AN34: Powercor Australia
B35: Powerlink | C35: Queensland Electricity Transmission Corporation Limited trading as Powerlink Queensland | D35: 82078849233 | E35: Qld | F35: Electricity | G35: Transmission | H35: Revenue cap | I35: Financial | J35: June | K35: 5 | L35: 5 | M35: 5 | N35: transmission determination | O35: 33 Harold St | Q35: VIRGINIA | R35: Qld | S35: 4014 | T35: PO Box 1193 | V35: VIRGINIA | W35: QLD | X35: 4014 | Y35: Jennifer Harris | Z35: 07 3860 2667 | AA35: jharris@powerlink.com.au | AI35: CBD | AJ35: Urban | AK35: Short rural | AL35: Long rural | AN35: Powerlink
B36: Roma to Brisbane Pipeline | C36: APT Petroleum Pipelines Limited t/a Roma to Brisbane Pipeline | D36: 009 737 393 | E36: Qld | F36: Gas | G36: Transmission | H36: Revenue cap | I36: Financial | J36: June | K36: 5 | L36: 5 | M36: x | N36: n/a | AI36: CBD | AJ36: Urban | AK36: Short rural | AL36: Long rural | AN36: Roma to Brisbane Pipeline
B37: SA Power Networks | C37: SA Power Networks | D37: 13332330749 | E37: SA | F37: Electricity | G37: Distribution | H37: Revenue cap | I37: Financial | J37: June | K37: 5 | L37: 5 | M37: 5 | N37: 2015-20 Distribution Determination | O37: 1 Anzac Highway | Q37: KESWICK | R37: SA | S37: 5035 | T37: GPO Box 77 | V37: ADELAIDE | W37: SA | X37: 5000 | Y37: Damien O'Connor | Z37: 08 8404 5066 | AA37: damien.oconnor@sapowernetworks.com.au | AE37: YES | AF37: YES | AG37: NO | AI37: CBD | AJ37: Urban | AK37: Short rural | AL37: Long rural | AN37: SA Power Networks
B38: TasNetworks (D) | C38: TasNetworks (D) | D38: 24167357299 | E38: Tas | F38: Electricity | G38: Distribution | H38: Revenue cap | I38: Financial | J38: June | K38: 5 | L38: 5 | M38: 5 | N38: distribution determination | O38: 21 Kirksway Place | Q38: HOBART | R38: Tas | S38: 7000 | T38: GPO Box 191 | V38: HOBART | W38: Tas | X38: 7000 | Y38: Leigh Mayne | Z38: 03 6270 3691 | AA38: rrp2012@auroraenergy.com.au | AE38: YES | AF38: YES | AG38: YES | AI38: Critical Infrastructure | AJ38: High density commercial | AK38: Urban | AL38: High density rural | AM38: Low density rural | AN38: TasNetworks (D)
B39: TasNetworks (T) | C39: TasNetworks (T) | D39: 24167357299 | E39: Tas | F39: Electricity | G39: Transmission | H39: Revenue cap | I39: Financial | J39: March | K39: 5 | L39: 5 | M39: 5 | N39: transmission determination | O39: 1-7 Maria Street | Q39: LENAH VALLEY | R39: Tas | S39: 7008 | T39: PO Box 606 | V39: MOONAH | W39: Tas | X39: 7009 | Y39: Heath Dillon | Z39: 03 6274 3664 | AA39: heath.dillon@transend.com.au | AI39: CBD | AJ39: Urban | AK39: Short rural | AL39: Long rural | AN39: TasNetworks (T)
B40: TransGrid | C40: TransGrid | D40: 19622755774 | E40: NSW | F40: Electricity | G40: Transmission | H40: Revenue cap | I40: Financial | J40: June | K40: 5 | L40: 4 | M40: 5 | N40: transmission determination | O40: 180 Thomas Street | Q40: HAYMARKET | R40: NSW | S40: 2000 | T40: PO Box A1000 | V40: SYDNEY SOUTH | W40: NSW | X40: 1235 | Y40: Andrew Kingsmill | Z40: 02 9284 3149 | AA40: andrew.kingsmill@transgrid.com.au | AI40: CBD | AJ40: Urban | AK40: Short rural | AL40: Long rural | AN40: TransGrid
B41: United Energy | C41: United Energy | D41: 70064651029 | E41: Vic | F41: Electricity | G41: Distribution | H41: Revenue cap | I41: Calendar | J41: December | K41: 5 | L41: 5 | M41: 2 | N41: 2016-20 Distribution Determination | O41: Level 3 | P41: 6 Nexus Court | Q41: MULGRAVE | R41: Vic | S41: 3149 | T41: PO Box 449 | V41: MOUNT WAVERLEY | W41: VIC | X41: 3170 | Y41: Mathew Abraham | Z41: 03 8846 9758 | AA41: mathew.abraham@ue.com.au | AE41: YES | AF41: NO | AG41: NO | AI41: CBD | AJ41: Urban | AK41: Short rural | AL41: Long rural | AN41: United Energy
B42: Western Power (D) | C42: Western Power (D) | D42: 18540492861 | E42: WA | F42: Electricity | G42: Distribution | H42: Revenue cap | I42: Financial | J42: June | K42: 12 | L42: 4 | M42: x | N42: distribution determination | O42: 363 Wellington Street | Q42: PERTH | R42: WA | S42: 6000 | T42: GPO Box L921 | V42: PERTH | W42: WA | X42: 6842 | Y42: Judy Hunter | Z42: 08 9326 6239 | AA42: judy.hunter@westernpower.com.au | AE42: YES | AF42: YES | AG42: NO | AH42: NO | AI42: CBD | AJ42: Urban | AK42: Short rural | AL42: Long rural | AN42: Western Power (D)
B43: Western Power (T) | C43: Western Power (T) | D43: 18540492861 | E43: WA | F43: Electricity | G43: Transmission | H43: Revenue cap | I43: Financial | J43: June | K43: 12 | L43: 4 | M43: x | N43: transmission determination | O43: 363 Wellington Street | Q43: PERTH | R43: WA | S43: 6000 | T43: GPO Box L921 | V43: PERTH | W43: WA | X43: 6842 | Y43: Judy Hunter | Z43: 08 9326 6239 | AA43: judy.hunter@westernpower.com.au | AE43: YES | AF43: YES | AG43: NO | AI43: CBD | AJ43: Urban | AK43: Short rural | AL43: Long rural | AN43: Western Power (T)
W46: For EB & Reset RINs only
B47: The Reg Year Ending (dms_RYE) must be set to the last year of the regulatory period. For forecast data is is usually (FRCP_y5) for actual it is a single year (CRY). For historical actual data the RYE will need to be set manually in the business details sheet by setting the dms_Multiyear_flag to 1 and putting the correct value in 'dms_Specified_FinalYear. See cells C67:C68 | G47: =IF(dms_RPT="financial",VALUE(LEFT(CRCP_y1,4)-1)&"-"&TEXT(VALUE(RIGHT(CRCP_y1,2)-1),"00"),VALUE(LEFT(CRCP_y1,4)-1)) -> 2012 | N47: Drop down selector box for CA & Reset RINs. | O47: For CA & Reset RINs only | W47: for DNSP only | AI47: Reason for interruption | AJ47: dms_Reason_Interruption_Detailed | AK47: dms_Reason_Interruption
B48: dms_Model_List | C48: DELETE NR 'CRY' IF NOT AN ANNUAL RIN (EB, CA , ARR) | E48: dms_RYE_Formula_Result | N48: dms_0203_ProjectType | O48: dms_020303_01_UOM | P48: dms_020501_01_UOM | Q48: dms_020501_02_UOM | R48: dms_020501_03_UOM | S48: dms_020501_04_UOM | T48: dms_020603_01_UOM | U48: dms_040102_01_UOM | V48: dms_040102_04_UOM | W48: dms_030601_01_UOM | X48: dms_030601_02_UOM | Y48: dms_030701_01_UOM | Z48: dms_030702_01_UOM | AA48: dms_030703_01_UOM | AI48: Animal | AJ48: Animal impact | AK48: Animal
B49: ARR | C49: ANNUAL REPORTING STATEMENT | E49: =LEFT(dms_SingleYear_FinalYear_Result,2)&RIGHT(dms_SingleYear_FinalYear_Result,2) ->  | F49: =LEFT(dms_SingleYear_FinalYear_Result,2)&RIGHT(dms_SingleYear_FinalYear_Result,2) | H49: Formula errors are OK | N49: New line on new route - single circuit | O49: Circuit line length in km | P49: 0's | Q49: 0's | R49: 0's | S49: 0's | T49: 0's | U49: 0's | V49: days | W49: minutes/customer | X49: minutes/customer | Y49: Customer / km | Z49: % | AA49: km | AJ49: Animal nesting/burrowing, etc and other | AK49: Asset failure
B50: CA | C50: CATEGORY ANALYSIS | E50: =LEFT(dms_SingleYear_FinalYear_Result,2)&RIGHT(dms_SingleYear_FinalYear_Result,2) ->  | F50: =LEFT(dms_SingleYear_FinalYear_Result,2)&RIGHT(dms_SingleYear_FinalYear_Result,2) | H50: Formula errors are OK | N50: New line on new route - dual circuit | O50: Circuit line length in km | P50: 0's | Q50: 0's | R50: 0's | S50: 0's | T50: 0's | U50: 0's | V50: 0's | W50: minutes/customer | X50: minutes/customer | Y50: MWh/customer | Z50: Number of spans | AJ50: Other | AK50: Other
B51: CPI | C51: CPI | N51: New line on new route - other | O51: Circuit line length in km | P51: MVA added | Q51: MVA added | R51: MVA added | S51: MVA added | T51: 0's | U51: 0's | V51: $0s | W51: interruptions/customer | X51: interruptions/customer | Y51: kVA / customer | Z51: Number of spans | AI51: Asset failure | AJ51: LV | AK51: Overloads
B52: EB | C52: ECONOMIC BENCHMARKING | E52: =LEFT(dms_SingleYear_FinalYear_Result,2)&RIGHT(dms_SingleYear_FinalYear_Result,2) ->  | F52: =LEFT(dms_SingleYear_FinalYear_Result,2)&RIGHT(dms_SingleYear_FinalYear_Result,2) | H52: Formula errors are OK | N52: Line rebuild over existing route - single circuit | O52: Circuit line length in km | P52: 0's | Q52: 0's | R52: 0's | S52: 0's | T52: 0's | U52: $0s | V52: 0's | W52: interruptions/customer | X52: interruptions/customer | Z52: Number of spans | AJ52: Distribution substation | AK52: Planned
B53: PTRM | C53: POST TAX REVENUE MODEL | E53: =LEFT(dms_MultiYear_FinalYear_Result,2)&RIGHT(dms_MultiYear_FinalYear_Result,2) -> 2022 | F53: =LEFT(dms_MultiYear_FinalYear_Result,2)&RIGHT(dms_MultiYear_FinalYear_Result,2) | N53: Line rebuild over existing route - dual circuit | O53: Number | P53: total spend $0s | Q53: total spend $0s | R53: total spend $0s | S53: total spend $0s | T53: (per cent) | Z53: Number of spans | AJ53: HV | AK53: Network business
B54: Reset | C54: REGULATORY REPORTING STATEMENT | E54: =LEFT(dms_MultiYear_FinalYear_Result,2)&RIGHT(dms_MultiYear_FinalYear_Result,2) -> 2022 | F54: =LEFT(dms_MultiYear_FinalYear_Result,2)&RIGHT(dms_MultiYear_FinalYear_Result,2) | H54: Formula errors are OK | N54: Reconductor - Single circuit | O54: Number | P54: net circuit km added | Q54: net circuit km added | R54: net circuit km added | S54: net circuit km added | Z54: Years | AJ54: Zone substation | AK54: Third party
B55: RFM | C55: ROLL FORWARD MODEL | E55: =LEFT(dms_CRCP_FinalYear_Result,2)&RIGHT(dms_CRCP_FinalYear_Result,2) -> 2017 | F55: =LEFT(dms_CRCP_FinalYear_Result,2)&RIGHT(dms_CRCP_FinalYear_Result,2) | N55: Reconductor - Dual circuit | O55: Number | P55: total spend $0s | Q55: total spend $0s | R55: total spend $0s | S55: total spend $0s | Z55: Years | AJ55: Subtransmission | AK55: Unknown
B56: WACC | C56: WEIGHTED AVERAGE COST OF CAPITAL | E56: =LEFT(dms_MultiYear_FinalYear_Result,2)&RIGHT(dms_MultiYear_FinalYear_Result,2) -> 2022 | F56: =LEFT(dms_MultiYear_FinalYear_Result,2)&RIGHT(dms_MultiYear_FinalYear_Result,2) | N56: Other | P56: net circuit km added | Q56: net circuit km added | R56: net circuit km added | S56: net circuit km added | Z56: Trees | AI56: Other | AJ56: insert description of 'other' | AK56: Vegetation
P57: total spend $0s | Q57: total spend $0s | R57: total spend $0s | S57: total spend $0s | Z57: Trees | AI57: Overloads | AJ57: - | AK57: Weather
P58: 0's | R58: $0s | Z58: Defects | AI58: Planned | AJ58: - | AK58: 2 - STPIS Exclusion (3.3)(a)
P59: 0's | Z59: Defects | AI59: Network business | AJ59: Network error | AK59: 3 - STPIS Exclusion (3.3)(a)
P60: 0's | Z60: Spans | AJ60: Switching and protection error | AK60: 4 - STPIS Exclusion (3.3)(a)
P61: $0s | Z61: km | AI61: Third party | AJ61: Fire | AK61: 5 - STPIS Exclusion (3.3)(a)
Z62: Spans | AJ62: Other | AK62: 6 - STPIS Exclusion (3.3)(a)
AJ63: Dig-in | AK63: 7 - STPIS Exclusion (3.3)(a)
AJ64: Unauthorised access
B65: For all files either AER or business needs to be able to specify the type of submission | C65: For PTRM & RFM templates we must provide a choice in case they change their form of control - otherwise it is drawn from the business specific lookup table above. | E65: These are indeces and lookup values for various dates. All step from the value placed in FRCP_y1 on the business and other details worksheet | W65: for TNSP only | AJ65: Vehicle impact
B66: dms_SourceList | C66: dms_FormControl_Choices | E66: dms_FRCPlength_Num_List | F66: dms_FinalYear_List | G66: dms_CRCPlength_Num_List | H66: dms_CFinalYear_List | I66: dms_FRCP_years | K66: dms_CRCP_years | M66: dms_CRCP_index | W66: dms_030601_01_UOM | Y66: dms_030701_01_UOM | Z66: dms_030702_01_UOM | AI66: Unknown | AJ66: Unknown
B67: After appeal | C67: Revenue cap | E67: 1 | F67: dms_FRCP_y1 | G67: 1 | H67: CRCP_y1 | I67: =FRCP_y1 -> 2018 | J67: dms_FRCP_y1 | K67: =IF(dms_RPT="financial",VALUE(LEFT(dms_FRCP_y1,4)-1)&"-"&TEXT(VALUE(MID(dms_FRCP_y1,3,2)),"00"),VALUE(LEFT(dms_FRCP_y1,4)-1)) -> 2017 | L67: dms_CRCP_yZ | M67: 1 | W67: % | Y67: Number of spans | Z67: km | AI67: Vegetation | AJ67: Blow-in/Fall-in - NSP responsibility
B68: Draft decision | C68: Revenue yield | E68: 2 | F68: dms_FRCP_y2 | G68: 2 | H68: CRCP_y2 | I68: =IF(dms_RPT="financial",VALUE(LEFT(dms_FRCP_y1,4)+1)&"-"&TEXT(VALUE(RIGHT(dms_FRCP_y1,2)+1),"00"),VALUE(LEFT(dms_FRCP_y1,4)+1)) -> 2019 | J68: dms_FRCP_y2 | K68: =IF(dms_RPT="financial",VALUE(LEFT(dms_CRCP_yZ,4)-1)&"-"&TEXT(VALUE(MID(dms_CRCP_yZ,3,2)),"00"),VALUE(LEFT(dms_CRCP_yZ,4)-1)) -> 2016 | L68: dms_CRCP_yY | M68: 2 | W68: number | Y68: Years | Z68: % | AJ68: Grow-in - NSP responsibility
B69: Final decision | C69: Weighted average price cap | E69: 3 | F69: dms_FRCP_y3 | G69: 3 | H69: CRCP_y3 | I69: =IF(dms_RPT="financial",VALUE(LEFT(dms_FRCP_y2,4)+1)&"-"&TEXT(VALUE(RIGHT(dms_FRCP_y2,2)+1),"00"),VALUE(LEFT(dms_FRCP_y2,4)+1)) -> 2020 | J69: dms_FRCP_y3 | K69: =IF(dms_RPT="financial",VALUE(LEFT(dms_CRCP_yY,4)-1)&"-"&TEXT(VALUE(MID(dms_CRCP_yY,3,2)),"00"),VALUE(LEFT(dms_CRCP_yY,4)-1)) -> 2015 | L69: dms_CRCP_yX | M69: 3 | W69: number | Y69: Trees | Z69: km | AJ69: Blow-in/Fall-in - Other responsible party
B70: PTRM update 1 | E70: 4 | F70: dms_FRCP_y4 | G70: 4 | H70: CRCP_y4 | I70: =IF(dms_RPT="financial",VALUE(LEFT(dms_FRCP_y3,4)+1)&"-"&TEXT(VALUE(RIGHT(dms_FRCP_y3,2)+1),"00"),VALUE(LEFT(dms_FRCP_y3,4)+1)) -> 2021 | J70: dms_FRCP_y4 | K70: =IF(dms_RPT="financial",VALUE(LEFT(dms_CRCP_yX,4)-1)&"-"&TEXT(VALUE(MID(dms_CRCP_yX,3,2)),"00"),VALUE(LEFT(dms_CRCP_yX,4)-1)) -> 2014 | L70: dms_CRCP_yW | M70: 4 | W70: % | Y70: Defects | Z70: number | AJ70: Grow-in - Other responsible party
B71: PTRM update 2 | E71: 5 | F71: dms_FRCP_y5 | G71: 5 | H71: CRCP_y5 | I71: =IF(dms_RPT="financial",VALUE(LEFT(dms_FRCP_y4,4)+1)&"-"&TEXT(VALUE(RIGHT(dms_FRCP_y4,2)+1),"00"),VALUE(LEFT(dms_FRCP_y4,4)+1)) -> 2022 | J71: dms_FRCP_y5 | K71: =IF(dms_RPT="financial",VALUE(LEFT(dms_CRCP_yW,4)-1)&"-"&TEXT(VALUE(MID(dms_CRCP_yW,3,2)),"00"),VALUE(LEFT(dms_CRCP_yW,4)-1)) -> 2013 | L71: dms_CRCP_yV | M71: 5 | W71: number | Y71: Number of spans | AI71: Weather
B72: PTRM update 3 | E72: 6 | F72: dms_FRCP_y6 | G72: 6 | H72: CRCP_y6 | I72: =IF(dms_RPT="financial",VALUE(LEFT(dms_FRCP_y5,4)+1)&"-"&TEXT(VALUE(RIGHT(dms_FRCP_y5,2)+1),"00"),VALUE(LEFT(dms_FRCP_y5,4)+1)) -> 2023 | J72: dms_FRCP_y6 | K72: =IF(dms_RPT="financial",VALUE(LEFT(dms_CRCP_yV,4)-1)&"-"&TEXT(VALUE(MID(dms_CRCP_yV,3,2)),"00"),VALUE(LEFT(dms_CRCP_yV,4)-1)) -> 2012 | L72: dms_CRCP_yU | M72: 6 | W72: number | Y72: km | AI72: 2 - STPIS Exclusion (3.3)(a)
B73: PTRM update 4 | E73: 7 | F73: dms_FRCP_y7 | G73: 7 | H73: CRCP_y7 | I73: =IF(dms_RPT="financial",VALUE(LEFT(dms_FRCP_y6,4)+1)&"-"&TEXT(VALUE(RIGHT(dms_FRCP_y6,2)+1),"00"),VALUE(LEFT(dms_FRCP_y6,4)+1)) -> 2024 | J73: dms_FRCP_y7 | K73: =IF(dms_RPT="financial",VALUE(LEFT(dms_CRCP_yU,4)-1)&"-"&TEXT(VALUE(MID(dms_CRCP_yU,3,2)),"00"),VALUE(LEFT(dms_CRCP_yU,4)-1)) -> 2011 | L73: dms_CRCP_yT | M73: 7 | W73: % | Y73: km | AI73: 3 - STPIS Exclusion (3.3)(a)
B74: PTRM update 5 | E74: 8 | F74: dms_FRCP_y8 | G74: 8 | H74: CRCP_y8 | I74: =IF(dms_RPT="financial",VALUE(LEFT(dms_FRCP_y7,4)+1)&"-"&TEXT(VALUE(RIGHT(dms_FRCP_y7,2)+1),"00"),VALUE(LEFT(dms_FRCP_y7,4)+1)) -> 2025 | J74: dms_FRCP_y8 | K74: =IF(dms_RPT="financial",VALUE(LEFT(dms_CRCP_yT,4)-1)&"-"&TEXT(VALUE(MID(dms_CRCP_yT,3,2)),"00"),VALUE(LEFT(dms_CRCP_yT,4)-1)) -> 2010 | L74: dms_CRCP_yS | M74: 8 | W74: number | Y74: Number of spans | AI74: 4 - STPIS Exclusion (3.3)(a)
B75: PTRM update 6 | E75: 9 | F75: dms_FRCP_y9 | G75: 9 | H75: CRCP_y9 | I75: =IF(dms_RPT="financial",VALUE(LEFT(dms_FRCP_y8,4)+1)&"-"&TEXT(VALUE(RIGHT(dms_FRCP_y8,2)+1),"00"),VALUE(LEFT(dms_FRCP_y8,4)+1)) -> 2026 | J75: dms_FRCP_y9 | K75: =IF(dms_RPT="financial",VALUE(LEFT(dms_CRCP_yS,4)-1)&"-"&TEXT(VALUE(MID(dms_CRCP_yS,3,2)),"00"),VALUE(LEFT(dms_CRCP_yS,4)-1)) -> 2009 | L75: dms_CRCP_yR | M75: 9 | W75: number | AI75: 5 - STPIS Exclusion (3.3)(a)
B76: PTRM update 7 | E76: 10 | F76: dms_FRCP_y10 | G76: 10 | H76: CRCP_y10 | I76: =IF(dms_RPT="financial",VALUE(LEFT(dms_FRCP_y9,4)+1)&"-"&TEXT(VALUE(RIGHT(dms_FRCP_y9,2)+1),"00"),VALUE(LEFT(dms_FRCP_y9,4)+1)) -> 2027 | J76: dms_FRCP_y10 | K76: =IF(dms_RPT="financial",VALUE(LEFT(dms_CRCP_yR,4)-1)&"-"&TEXT(VALUE(MID(dms_CRCP_yR,3,2)),"00"),VALUE(LEFT(dms_CRCP_yR,4)-1)) -> 2008 | L76: dms_CRCP_yQ | M76: 10 | W76: % | AI76: 6 - STPIS Exclusion (3.3)(a)
B77: Regulatory proposal | E77: 11 | F77: dms_FRCP_y11 | G77: 11 | H77: CRCP_y11 | I77: =IF(dms_RPT="financial",VALUE(LEFT(dms_FRCP_y10,4)+1)&"-"&TEXT(VALUE(RIGHT(dms_FRCP_y10,2)+1),"00"),VALUE(LEFT(dms_FRCP_y10,4)+1)) -> 2028 | J77: dms_FRCP_y11 | K77: =IF(dms_RPT="financial",VALUE(LEFT(dms_CRCP_yQ,4)-1)&"-"&TEXT(VALUE(MID(dms_CRCP_yQ,3,2)),"00"),VALUE(LEFT(dms_CRCP_yQ,4)-1)) -> 2007 | L77: dms_CRCP_yP | M77: 11 | W77: number | AI77: 7 - STPIS Exclusion (3.3)(a)
B78: Reporting | E78: 12 | F78: dms_FRCP_y12 | G78: 12 | H78: CRCP_y12 | I78: =IF(dms_RPT="financial",VALUE(LEFT(dms_FRCP_y11,4)+1)&"-"&TEXT(VALUE(RIGHT(dms_FRCP_y11,2)+1),"00"),VALUE(LEFT(dms_FRCP_y11,4)+1)) -> 2029 | J78: dms_FRCP_y12 | K78: =IF(dms_RPT="financial",VALUE(LEFT(dms_CRCP_yP,4)-1)&"-"&TEXT(VALUE(MID(dms_CRCP_yP,3,2)),"00"),VALUE(LEFT(dms_CRCP_yP,4)-1)) -> 2006 | L78: dms_CRCP_yO | M78: 12 | W78: %
B79: Revised regulatory proposal | E79: 13 | F79: dms_FRCP_y13 | G79: 13 | H79: CRCP_y13 | I79: =IF(dms_RPT="financial",VALUE(LEFT(dms_FRCP_y12,4)+1)&"-"&TEXT(VALUE(RIGHT(dms_FRCP_y12,2)+1),"00"),VALUE(LEFT(dms_FRCP_y12,4)+1)) -> 2030 | J79: dms_FRCP_y13 | K79: =IF(dms_RPT="financial",VALUE(LEFT(dms_CRCP_yO,4)-1)&"-"&TEXT(VALUE(MID(dms_CRCP_yO,3,2)),"00"),VALUE(LEFT(dms_CRCP_yO,4)-1)) -> 2005 | L79: dms_CRCP_yN | M79: 13 | W79: number
E80: 14 | F80: dms_FRCP_y14 | G80: 14 | H80: CRCP_y14 | I80: =IF(dms_RPT="financial",VALUE(LEFT(dms_FRCP_y13,4)+1)&"-"&TEXT(VALUE(RIGHT(dms_FRCP_y13,2)+1),"00"),VALUE(LEFT(dms_FRCP_y13,4)+1)) -> 2031 | J80: dms_FRCP_y14 | K80: =IF(dms_RPT="financial",VALUE(LEFT(dms_CRCP_yN,4)-1)&"-"&TEXT(VALUE(MID(dms_CRCP_yN,3,2)),"00"),VALUE(LEFT(dms_CRCP_yN,4)-1)) -> 2004 | L80: dms_CRCP_yM | M80: 14 | W80: %
E81: 15 | F81: dms_FRCP_y15 | G81: 15 | H81: CRCP_y15 | I81: =IF(dms_RPT="financial",VALUE(LEFT(dms_FRCP_y14,4)+1)&"-"&TEXT(VALUE(RIGHT(dms_FRCP_y14,2)+1),"00"),VALUE(LEFT(dms_FRCP_y14,4)+1)) -> 2032 | J81: dms_FRCP_y15 | K81: =IF(dms_RPT="financial",VALUE(LEFT(dms_CRCP_yM,4)-1)&"-"&TEXT(VALUE(MID(dms_CRCP_yM,3,2)),"00"),VALUE(LEFT(dms_CRCP_yM,4)-1)) -> 2003 | L81: dms_CRCP_yL | M81: 15 | W81: number
E83: These are drop down lists for businesses to select the correct FRCP_y1 on the business and other details worksheet. This also populates the column headings in the worksheets
B84: dms_DataQuality_List | E84: dms_RCP_fyear_list | F84: dms_CRY_ListF | G84: dms_CRY_ListC | H84: dms_RCP_cyear_list | I84: dms_FRCP_fyear_list | J84: dms_FRCP_ListF | K84: dms_FRCP_ListC | L84: dms_FRCP_cyear_list
B85: Actual | E85: dms_fy1 | F85: 2006-07 | G85: 2007 | H85: dms_cy1 | I85: dms_frcp_fy1 | J85: 2016-17 | K85: 2017 | L85: dms_crcp_cy1
B86: Estimate | E86: dms_fy2 | F86: 2007-08 | G86: 2008 | H86: dms_cy2 | I86: dms_frcp_fy2 | J86: 2017-18 | K86: 2018 | L86: dms_crcp_cy2
B87: Consolidated | E87: dms_fy3 | F87: 2008-09 | G87: 2009 | H87: dms_cy3 | I87: dms_frcp_fy3 | J87: 2018-19 | K87: 2019 | L87: dms_crcp_cy3
B88: Recast | E88: dms_fy4 | F88: 2009-10 | G88: 2010 | H88: dms_cy4 | I88: dms_frcp_fy4 | J88: 2019-20 | K88: 2020 | L88: dms_crcp_cy4
B89: Public | E89: dms_fy5 | F89: 2010-11 | G89: 2011 | H89: dms_cy5 | I89: dms_frcp_fy5 | J89: 2020-21 | K89: 2021 | L89: dms_crcp_cy5
E90: dms_fy6 | F90: 2011-12 | G90: 2012 | H90: dms_cy6 | I90: dms_frcp_fy6 | J90: 2021-22 | K90: 2022 | L90: dms_crcp_cy6
E91: dms_fy7 | F91: 2012-13 | G91: 2013 | H91: dms_cy7 | I91: dms_frcp_fy7 | J91: 2022-23 | K91: 2023 | L91: dms_crcp_cy7
E92: dms_fy8 | F92: 2013-14 | G92: 2014 | H92: dms_cy8 | I92: dms_frcp_fy8 | J92: 2023-24 | K92: 2024 | L92: dms_crcp_cy8
E93: dms_fy9 | F93: 2014-15 | G93: 2015 | H93: dms_cy9 | I93: dms_frcp_fy9 | J93: 2024-25 | K93: 2025 | L93: dms_crcp_cy9
E94: dms_fy10 | F94: 2015-16 | G94: 2016 | H94: dms_cy10 | I94: dms_frcp_fy10 | J94: 2025-26 | K94: 2026 | L94: dms_crcp_cy10
E95: dms_fy11 | F95: 2016-17 | G95: 2017 | H95: dms_cy11 | I95: dms_frcp_fy11 | J95: 2026-27 | K95: 2027 | L95: dms_crcp_cy11
E96: dms_fy12 | F96: 2017-18 | G96: 2018 | H96: dms_cy12 | I96: dms_frcp_fy12 | J96: 2027-28 | K96: 2028 | L96: dms_crcp_cy12
E97: dms_fy13 | F97: 2018-19 | G97: 2019 | H97: dms_cy13 | I97: dms_frcp_fy13 | J97: 2028-29 | K97: 2029 | L97: dms_crcp_cy13
E98: dms_fy14 | F98: 2019-20 | G98: 2020 | H98: dms_cy14 | I98: dms_frcp_fy14 | J98: 2029-30 | K98: 2030 | L98: dms_crcp_cy14
E99: dms_fy15 | F99: 2020-21 | G99: 2021 | H99: dms_cy15 | I99: dms_frcp_fy15 | J99: 2030-31 | K99: 2031 | L99: dms_crcp_cy15

Sheet Cover

Sheet Contents
A1: .
H4: Gas Distribution Regulatory Information Notice
H5: Regulatory templates
H7: =CONCATENATE("For ",dms_TradingName) -> For AGN (Albury)
H8: for access arrangement period
H9: =CONCATENATE(FRCP_y1," to ",FRCP_y5) -> 2018 to 2022
H10: Table of Contents

Sheet Instructions
D7: INSTRUCTIONS
D10: The pro formas in this spreadsheet must be filled out as part of an access arrangement proposal
D12: Please follow the instructions below when completing the pro formas in this spreadsheet:
D13: 1 | E13: Complete the Business Details pro forma first.
D14: 2 | E14: Only input data into the yellow input cells.
D15: 3 | E15: Check all pre-entered formulas to ensure they are operating correctly and as intended.
D16: 4 | E16: Ensure all links within each worksheet and between worksheets are correct.
D17: 5 | E17: As stated in the notice, further information must be provided in the accompanying proposal.
D18: 6 | E18: The service provider is encouraged to add extra rows in a regulatory template if it considers that this is necessary to fully complete the regulatory template in question.

Sheet Business & other details
B1: =IF(dms_DataQuality="backcast",INDEX(dms_Worksheet_List,MATCH(dms_Model,dms_Model_List))&" BACKCAST",INDEX(dms_Worksheet_List,MATCH(dms_Model,dms_Model_List))) -> REGULATORY REPORTING STATEMENT
B2: =INDEX(dms_TradingNameFull_List,MATCH(dms_TradingName,dms_TradingName_List)) -> Australian Gas Networks Limited (reporting data for Albury)
B3: =IF(SUM(dms_SingleYear_Model)>0,CRY,CONCATENATE(FRCP_y1," to ",dms_MultiYear_FinalYear_Result)) -> 2018 to 2022
B4: BUSINESS & OTHER DETAILS
B7: Instructions
B8: Complete the following business details regulatory template before entering data or values in any other regulatory template. This regulatory template is linked to other cells within the spreadsheet and automatically generates column headings and conditional formatting to distinguish business specific input and non-input cells.
B10: SUBMISSION PARTICULARS INPUT SHEETS
B12: ENTITY DETAILS
B14: Short name | C14: AGN (Albury) | F14: Select business name from drop down list first
B15: ACN / ABN | C15: =INDEX(dms_ABN_List,MATCH(dms_TradingName,dms_TradingName_List)) -> 19078551685
B18: Business address | C18: Address 1 | E18: Level 6, 400 King William St
D19: Address 2
C20: Suburb | E20: =INDEX(dms_Suburb_List,MATCH(dms_TradingName,dms_TradingName_List)) -> ADELAIDE
D21: State | E21: =INDEX(dms_State_List,MATCH(dms_TradingName,dms_TradingName_List)) -> SA | F21: p/code | G21: =INDEX(dms_PostCode_List,MATCH(dms_TradingName,dms_TradingName_List)) -> 5000
B23: Postal address | C23: Address 1
D24: Address 2
C25: Suburb
D26: State | F26: p/code | G26: =INDEX(dms_PPostCode_List,MATCH(dms_TradingName,dms_TradingName_List)) -> 0
B29: Contact name/s | C29: Craig de Laine
B30: Contact phone/s | C30: 08 8418 1129
B31: Contact email address/s | C31: craig.delaine@agnl.com.au
B33: REGULATORY CONTROL PERIODS
B35: Forthcoming regulatory control period | C35: 2018 | D35: =dms_FRCP_y2 -> 2019 | E35: =dms_FRCP_y3 -> 2020 | F35: =dms_FRCP_y4 -> 2021 | G35: =dms_FRCP_y5 -> 2022 | H35: =dms_FRCP_y6 -> 2023 | I35: =dms_FRCP_y7 -> 2024 | J35: =dms_FRCP_y8 -> 2025 | K35: =dms_FRCP_y9 -> 2026 | L35: =dms_FRCP_y10 -> 2027
B38: Current regulatory control period | C38: =dms_CRCP_FirstYear_Result -> 2013 | D38: =IF(dms_RPT="financial",VALUE(LEFT(CRCP_y1,4)+1)&"-"&TEXT(MID(CRCP_y1,3,2)+2,"00"),VALUE(LEFT(CRCP_y1,4)+1)) -> 2014 | E38: =IF(dms_RPT="financial",VALUE(LEFT(CRCP_y2,4)+1)&"-"&TEXT(VALUE(MID(CRCP_y2,3,2)+2),"00"),VALUE(LEFT(CRCP_y2,4)+1)) -> 2015 | F38: =IF(dms_RPT="financial",VALUE(LEFT(CRCP_y3,4)+1)&"-"&TEXT(VALUE(MID(CRCP_y3,3,2)+2),"00"),VALUE(LEFT(CRCP_y3,4)+1)) -> 2016 | G38: =IF(dms_RPT="financial",VALUE(LEFT(CRCP_y4,4)+1)&"-"&TEXT(VALUE(MID(CRCP_y4,3,2)+2),"00"),VALUE(LEFT(CRCP_y4,4)+1)) -> 2017 | H38: =IF(dms_RPT="financial",VALUE(LEFT(CRCP_y5,4)+1)&"-"&TEXT(VALUE(MID(CRCP_y5,3,2)+2),"00"),VALUE(LEFT(CRCP_y5,4)+1)) -> 2018 | I38: =IF(dms_RPT="financial",VALUE(LEFT(CRCP_y6,4)+1)&"-"&TEXT(VALUE(MID(CRCP_y6,3,2)+2),"00"),VALUE(LEFT(CRCP_y6,4)+1)) -> 2019 | J38: =IF(dms_RPT="financial",VALUE(LEFT(CRCP_y7,4)+1)&"-"&TEXT(VALUE(MID(CRCP_y7,3,2)+2),"00"),VALUE(LEFT(CRCP_y7,4)+1)) -> 2020 | K38: =IF(dms_RPT="financial",VALUE(LEFT(CRCP_y8,4)+1)&"-"&TEXT(VALUE(MID(CRCP_y8,3,2)+2),"00"),VALUE(LEFT(CRCP_y8,4)+1)) -> 2021 | L38: =IF(dms_RPT="financial",VALUE(LEFT(CRCP_y9,4)+1)&"-"&TEXT(VALUE(MID(CRCP_y9,3,2)+2),"00"),VALUE(LEFT(CRCP_y9,4)+1)) -> 2022
B41: Previous regulatory control period | C41: =IF(dms_RPT="financial",VALUE(LEFT(PRCP_y2,4)-1)&"-"&TEXT(VALUE(MID(PRCP_y2,3,2)),"00"),VALUE(LEFT(PRCP_y2,4)-1)) -> 2008 | D41: =IF(dms_RPT="financial",VALUE(LEFT(PRCP_y3,4)-1)&"-"&TEXT(VALUE(MID(PRCP_y3,3,2)),"00"),VALUE(LEFT(PRCP_y3,4)-1)) -> 2009 | E41: =IF(dms_RPT="financial",VALUE(LEFT(PRCP_y4,4)-1)&"-"&TEXT(VALUE(MID(PRCP_y4,3,2)),"00"),VALUE(LEFT(PRCP_y4,4)-1)) -> 2010 | F41: =IF(dms_RPT="financial",VALUE(LEFT(PRCP_y5,4)-1)&"-"&TEXT(VALUE(RIGHT(PRCP_y5,2)-1),"00"),VALUE(LEFT(PRCP_y5,4)-1)) -> 2011 | G41: =IF(dms_RPT="financial",VALUE(LEFT(CRCP_y1,4)-1)&"-"&TEXT(VALUE(RIGHT(CRCP_y1,2)-1),"00"),VALUE(LEFT(CRCP_y1,4)-1)) -> 2012
B44: Current regulatory year | C44: 2016-17 | D44: CRY
C47: DELETE NR 'CRY' IF NOT AN ANNUAL RIN (EB, CA , ARR)
C48: APPLY NR 'CRY' IF AN ANNUAL RIN (EB, CA , ARR) - including multi year annual RINs eg. Recast CA. EB
B50: Source | C50: Regulatory proposal | E50: Please select the correct submission type from the dropdown list.
B51: Data quality (actual, estimate, public, consolidated) | C51: Consolidated
B52: Amended RIN submission - amendment reason
B53: Submission Date | C53: 2016-12-22 | D53: dms_SubmissionDate | E53: Please enter date this file submitted to AER (dd/mm/yyyy)
B54: EBSS - First application of scheme in forthcoming period? | C54: Yes
B55: Sector | C55: =INDEX(dms_Sector_List,MATCH(dms_TradingName,dms_TradingName_List)) -> Gas | D55: dms_Sector | E55: =INDEX(dms_Sector_List,MATCH(dms_TradingName,dms_TradingName_List))
B56: Segment | C56: =INDEX(dms_Segment_List,MATCH(dms_TradingName,dms_TradingName_List)) -> Distribution | D56: dms_Segment | E56: =INDEX(dms_Segment_List,MATCH(dms_TradingName,dms_TradingName_List))
B57: Regulatory Year Ending | C57: =IF(dms_MultiYear_Flag=1,LEFT(dms_Specified_FinalYear,2)&RIGHT(dms_Specified_FinalYear,2),INDEX(dms_RYE_Formula_Result,MATCH(dms_Model,dms_Model_List))) -> 2022 | D57: dms_RYE | E57: =IF(dms_MultiYear_Flag=1,LEFT(dms_Specified_FinalYear,2)&RIGHT(dms_Specified_FinalYear,2),INDEX(dms_RYE_Formula_Result,MATCH(dms_Model,dms_Model_List)))
B58: Reporting Period Type | C58: =INDEX(dms_RPT_List,MATCH(dms_TradingName,dms_TradingName_List)) -> Calendar | D58: dms_RPT | E58: =INDEX(dms_RPT_List,MATCH(dms_TradingName,dms_TradingName_List))
B59: Model or RIN Type | C59: Reset | D59: dms_Model | E59: Drop down selection
B60: Security Classification | C60: Public | D60: dms_Classification | E60: Always Public
B61: Template - version no. | C61: 5 | D61: dms_TemplateNumber
B62: Dollar $ real month | C62: =INDEX(dms_RPTMonth_List,MATCH(dms_TradingName,dms_TradingName_List)) -> December | D62: dms_RPTMonth | E62: =INDEX(dms_RPTMonth_List,MATCH(dms_TradingName,dms_TradingName_List))
B63: Dollar $ real (the last month before the FRCP_y1) | C63: =CONCATENATE(dms_RPTMonth)&" "&VALUE((LEFT(dms_CRCP_FinalYear_Result,2)&RIGHT(dms_CRCP_FinalYear_Result,2))) -> December 2017 | D63: dms_DollarReal | E63: =IF(SUM(dms_SingleYear_Model)>0,CONCATENATE(dms_RPTMonth)&" "&VALUE((LEFT(CRY,2))&RIGHT(CRY,2)),CONCATENATE(dms_RPTMonth)&" "&VALUE((LEFT(dms_CRCP_FinalYear_Result,2)&RIGHT(dms_CRCP_FinalYear_Result,2))))
B64: Form of control | C64: =INDEX(dms_FormControl_List,MATCH(dms_TradingName,dms_TradingName_List)) -> Weighted average price cap | D64: dms_FormControl | E64: =INDEX(dms_FormControl_List,MATCH(dms_TradingName,dms_TradingName_List))
B65: RIN response - version no. | C65: 1 | D65: dms_RINversion
B66: Jurisdiction | C66: =INDEX(dms_JurisdictionList,MATCH(dms_TradingName,dms_TradingName_List)) -> Vic | D66: dms_Jurisdiction | E66: =INDEX(dms_JurisdictionList,MATCH(dms_TradingName,dms_TradingName_List))
B67: Backcast Multiyear EB, CA or ARR? | C67: 0 | D67: dms_MultiYear_Flag | E67: 1=y, 0-n
C68: 2013 | D68: dms_Specified_FinalYear | E68: The result here is returned to dms_CRCP_FinalYear_Result if dms_MultiYear_Flag is set to 1
B69: Single Year Model T/F | C69: =IF(dms_Model="EB",1,0) -> 0 | D69: dms_EB
C70: =IF(dms_Model="CA",1,0) -> 0 | D70: dms_CA | E70: =dms_SingleYear_Model
C71: =IF(dms_Model="ARR",1,0) -> 0 | D71: dms_ARR
B72: Single Year Final Year Reference | C72: CRY | D72: dms_SingleYear_FinalYear_Ref | E72: This is the reference for EB, CA & ARR RINs
B73: Single Year Final Year Result | C73: =INDIRECT(dms_SingleYear_FinalYear_Ref) ->  | D73: dms_SingleYear_FinalYear_Result | E73: =INDIRECT(dms_SingleYear_FinalYear_Ref) | I73: Formula errors OK
B74: FRCP length in years | C74: =INDEX(dms_FRCPlength_List,MATCH(dms_TradingName,dms_TradingName_List)) -> 5 | D74: dms_FRCPlength_Num | E74: =INDEX(dms_FRCPlength_List,MATCH(dms_TradingName,dms_TradingName_List))
B75: Multi Year Final Year Reference | C75: =INDEX(dms_FinalYear_List,MATCH(dms_FRCPlength_Num,dms_FRCPlength_Num_List)) -> dms_FRCP_y5 | D75: dms_MultiYear_FinalYear_Ref | E75: =INDEX(dms_FinalYear_List,MATCH(dms_FRCPlength_Num,dms_FRCPlength_Num_List))
B76: Multi Year Final Year Result | C76: =IF(dms_MultiYear_Flag=0,INDIRECT(dms_MultiYear_FinalYear_Ref),dms_Specified_FinalYear) -> 2022 | D76: dms_MultiYear_FinalYear_Result | E76: =IF(dms_MultiYear_Flag=0,INDIRECT(dms_MultiYear_FinalYear_Ref),dms_Specified_FinalYear) | I76: Formula errors OK
B77: CRCP length in years | C77: =INDEX(dms_CRCPlength_List,MATCH(dms_TradingName,dms_TradingName_List)) -> 5 | D77: dms_CRCPlength_Num | E77: =INDEX(dms_CRCPlength_List,MATCH(dms_TradingName,dms_TradingName_List))
B78: CRCP Final Year Reference | C78: =INDEX(dms_CFinalYear_List,MATCH(dms_CRCPlength_Num,dms_CRCPlength_Num_List)) -> CRCP_y5 | D78: dms_CRCP_FinalYear_Ref | E78: =INDEX(dms_CFinalYear_List,MATCH(dms_CRCPlength_Num,dms_CRCPlength_Num_List))
B79: CRCP First Year Result | C79: =INDEX(dms_CRCP_years,MATCH(dms_CRCPlength_Num,dms_CRCP_index)) -> 2013 | D79: dms_CRCP_FirstYear_Result | E79: =INDEX(dms_CRCP_years,MATCH(dms_CRCPlength_Num,dms_CRCP_index))
B80: CRCP Final Year Result | C80: =IF(dms_MultiYear_Flag=0,(IF(SUM(dms_SingleYear_Model)>0,CRY,dms_CRCP_yZ)),dms_Specified_FinalYear) -> 2017 | D80: dms_CRCP_FinalYear_Result | E80: =IF(dms_MultiYear_Flag=0,(IF(SUM(dms_SingleYear_Model)>0,CRY,dms_CRCP_yZ)),dms_Specified_FinalYear)
B81: Table 6.6.3 - Public lighting repair - no. business days | C81: =INDEX(dms_663_List,MATCH(dms_TradingName,dms_TradingName_List)) -> x | D81: dms_663
B82: Distribution Determination Reference | C82: =INDEX(dms_DeterminationRef_List,MATCH(dms_TradingName,dms_TradingName_List)) -> 0
B83: Backcast templates only - unit of measure | C83: $0s | D83: dms_Backcast_UOM | E83: If the cover sheet is for Backcast data ensure to apply dms_Backcast_UOM named range to this field. Otherwise, do not apply this named range.
B84: EB/CA Unit of Measure for Monetary Values | C84: $0s | D84: dms_dollar_nom_UOM | E84: If the cover sheet is attached to an EB files make sure this field is set
B86: discard this record? | C86: NO | D86: dms_DISCARD | E86: If record is to be discarded from DB set this flag to YES
B88: USES NAMED RANGES FLAG | C88: yes | D88: dms_Defined_Names_Used

Sheet 1. CPI
C1: =IF(dms_DataQuality="backcast",INDEX(dms_Worksheet_List,MATCH(dms_Model,dms_Model_List))&" BACKCAST",INDEX(dms_Worksheet_List,MATCH(dms_Model,dms_Model_List))) -> REGULATORY REPORTING STATEMENT
C2: =INDEX(dms_TradingNameFull_List,MATCH(dms_TradingName,dms_TradingName_List)) -> Australian Gas Networks Limited (reporting data for Albury)
C3: =IF(SUM(dms_SingleYear_Model)>0,CRY,CONCATENATE(FRCP_y1," to ",dms_MultiYear_FinalYear_Result)) -> 2018 to 2022
C4: 1. CPI ESCALATION
C7: Instructions
C8: SERVICE PROVIDERS ARE NOT TO MAKE ANY CHANGES TO THIS TEMPLATE EXCEPT AS INDICATED
C10: Service providers should insert inflation forecasts (yellow cells)
C12: Table 1.1 provides CPI index figures used to calculate CPI escalators to be used in the RIN
C14: Tables 1.2 provide the CPI escalators for converting nominal values to real values.
C17: Table 1 - CPI ESCALATION
C18: Table 1.1 - CPI (actual/estimated)
D21: CPI Index | E21: ABS series ID A2325846C, 25/1/12 release | F21: ABS series ID A2325846C, 22/1/14 release | G21: Annual CPI
C22: Actual | D22: 1997-12-01 | E22: 120 | F22: 66.8
C23: Actual | D23: 1998-12-01 | E23: 121.9 | F23: 67.8 | G23: =E23/E22-1 -> 0.01583333333
C24: Actual | D24: 1999-12-01 | E24: 124.1 | F24: 69.1 | G24: 0.01804757998
C25: Actual | D25: 2000-12-01 | E25: 131.3 | F25: 73.1 | G25: 0.05801772764
C26: Actual | D26: 2001-12-01 | E26: 135.4 | F26: 75.4 | G26: 0.03122619954
C27: Actual | D27: 2002-12-01 | E27: 139.5 | F27: 77.6 | G27: 0.03028064993
C28: Actual | D28: 2003-12-01 | E28: 142.8 | F28: 79.5 | G28: 0.02365591398
C29: Actual | D29: 2004-12-01 | E29: 146.5 | F29: 81.5 | G29: 0.02591036415
C30: Actual | D30: 2005-12-01 | E30: 150.6 | F30: 83.8 | G30: 0.02798634812
C31: Actual | D31: 2006-12-01 | E31: 155.5 | F31: 86.6 | G31: 0.03253652058
C32: Actual | D32: 2007-12-01 | E32: 160.1 | F32: 89.1 | G32: 0.02958199357
C33: Actual | D33: 2008-12-01 | E33: 166 | F33: 92.4 | G33: 0.03685196752
C34: Actual | D34: 2009-12-01 | E34: 169.5 | F34: 94.3 | G34: 0.02108433735
C35: Actual | D35: 2010-12-01 | E35: 174 | F35: 96.9 | G35: 0.02654867257
C36: Actual | D36: 2011-12-01 | E36: 179.4 | F36: 99.8 | G36: 0.03103448276
C37: Actual | D37: 2012-12-01 | F37: 102 | G37: =F37/F36-1 -> 0.02204408818
C38: Actual | D38: 2013-12-01 | F38: 104.8 | G38: =F38/F37-1 -> 0.02745098039
C39: Actual | D39: 2014-12-01 | F39: 106.6 | G39: =F39/F38-1 -> 0.01717557252
C40: Actual | D40: 2015-12-01 | F40: 108.4 | G40: =F40/F39-1 -> 0.01688555347
C41: Estimated | D41: 2016-12-01
C42: Estimated | D42: 2017-12-01
C43: Estimated | D43: 2018-12-01
C44: Estimated | D44: 2019-12-01
C45: Estimated | D45: 2020-12-01
C47: Table 1.2 - CPI p.a.
E48: 1999-00 | F48: 2000-01 | G48: 2001-02 | H48: 2002-03 | I48: 2003-04 | J48: 2004-05 | K48: 2005-06 | L48: 2006-07 | M48: 2007-08 | N48: 2008-09 | O48: 2009-10 | P48: 2010-11 | Q48: 2011-12 | R48: 2012-13 | S48: 2013-14 | T48: 2014-15 | U48: 2015-16 | V48: 2016-17 | W48: 2017-18 | X48: 2018-19 | Y48: 2019-20
E49: =$G24 -> 0.01804757998 | F49: =$G25 -> 0.05801772764 | G49: =$G26 -> 0.03122619954 | H49: =$G27 -> 0.03028064993 | I49: =$G28 -> 0.02365591398 | J49: =$G29 -> 0.02591036415 | K49: =$G30 -> 0.02798634812 | L49: =$G31 -> 0.03253652058 | M49: =$G32 -> 0.02958199357 | N49: =$G33 -> 0.03685196752 | O49: =$G34 -> 0.02108433735 | P49: =$G35 -> 0.02654867257 | Q49: =$G36 -> 0.03103448276 | R49: =$G37 -> 0.02204408818 | S49: =$G38 -> 0.02745098039 | T49: =$G39 -> 0.01717557252 | U49: =$G40 -> 0.01688555347 | V49: =$G41 -> 0 | W49: =$G42 -> 0 | X49: =$G43 -> 0 | Y49: =$G44 -> 0
C50: =CONCATENATE("Escalator : Nominal $ to Real $ ", dms_DollarReal) -> Escalator : Nominal $ to Real $ December 2017 | E50: =F50*(1+E49) -> 1.545430484 | F50: =G50*(1+F49) -> 1.51803365 | G50: 1.434790373 | H50: 1.391343988 | I50: 1.350451441 | J50: 1.319243529 | K50: 1.285924751 | L50: 1.250916175 | M50: 1.211498238 | N50: 1.176689419 | O50: 1.134867325 | P50: 1.111433486 | Q50: 1.082689517 | R50: 1.0501002 | S50: =T50*(1+S49) -> 1.02745098 | T50: 1 | U50: =T50/(1+T49) -> 0.9831144465 | V50: =U50/(1+U49) -> 0.9667896679 | W50: =V50/(1+V49) -> 0.9667896679 | X50: =W50/(1+W49) -> 0.9667896679 | Y50: =X50/(1+X49) -> 0.9667896679
C52: Example
C53: Costs ($nominal) | E53: 75 | F53: 76 | G53: 77 | H53: 78 | I53: 79 | J53: 80 | K53: 80 | L53: 80 | M53: 80 | N53: 80 | O53: 80 | P53: 80 | Q53: 123 | R53: 70 | S53: 120 | T53: 200 | U53: 145 | V53: 150 | W53: 100 | X53: 55 | Y53: 135
C54: Costs (real $2015) | E54: =E53*E$50 -> 115.9072863 | F54: =F53*F$50 -> 115.3705574 | G54: 110.4788587 | H54: 108.5248311 | I54: 106.6856638 | J54: 105.5394823 | K54: 102.87398 | L54: 100.073294 | M54: 96.91985901 | N54: 94.13515351 | O54: 90.789386 | P54: 88.91467892 | Q54: 133.1708106 | R54: 73.50701403 | S54: 123.2941176 | T54: 200 | U54: 142.5515947 | V54: 145.0184502 | W54: 96.67896679 | X54: 53.17343173 | Y54: 130.5166052

Sheet 2. Escalators
B1: =IF(dms_DataQuality="backcast",INDEX(dms_Worksheet_List,MATCH(dms_Model,dms_Model_List))&" BACKCAST",INDEX(dms_Worksheet_List,MATCH(dms_Model,dms_Model_List))) -> REGULATORY REPORTING STATEMENT
B2: =INDEX(dms_TradingNameFull_List,MATCH(dms_TradingName,dms_TradingName_List)) -> Australian Gas Networks Limited (reporting data for Albury)
B3: =IF(SUM(dms_SingleYear_Model)>0,CRY,CONCATENATE(FRCP_y1," to ",dms_MultiYear_FinalYear_Result)) -> 2018 to 2022 | C3: 2016-2021
B4: 2. REAL COST ESCALATORS
B7: Instructions This template asks for real cost escalators used to escalate unit costs. Please identify the unit used in this sheet.
B8: =CONCATENATE("In Tables 2.1 and 2.2 enter the current access arrangement period data and, subject to cl.6.1 of the ", dms_TradingName, ", enter the next access arrangement period data via link from the ", dms_TradingName, " capex model.") -> In Tables 2.1 and 2.2 enter the current access arrangement period data and, subject to cl.6.1 of the AGN (Albury), enter the next access arrangement period data via link from the AGN (Albury) capex model.
B9: =CONCATENATE("If linked/adjustable escalation is not provided in the ", dms_TradingName, " capex model, ensure the escalation in table 2.2 is linked through to all capex categories/subcategories and projects.") -> If linked/adjustable escalation is not provided in the AGN (Albury) capex model, ensure the escalation in table 2.2 is linked through to all capex categories/subcategories and projects.
B11: Table 2.1 - Real cost escalators ( % )
C12: Current access arrangement | H12: Next access arrangement
C13: 0
C14: Approved | H14: Forecast
C15: =CRCP_y1 -> 2013 | D15: =CRCP_y2 -> 2014 | E15: =CRCP_y3 -> 2015 | F15: =CRCP_y4 -> 2016 | G15: =CRCP_y5 -> 2017 | H15: =FRCP_y1 -> 2018 | I15: =FRCP_y2 -> 2019 | J15: =FRCP_y3 -> 2020 | K15: =FRCP_y4 -> 2021 | L15: =FRCP_y5 -> 2022
B16: Labour (Cumulative) | H16: 0.008049579634 | I16: 0.009181179485 | J16: 0.01130619052 | K16: 0.01382402704 | L16: 0.01540429647
B17: Materials (Cumulative) | H17: 0 | I17: 0 | J17: 0 | K17: 0 | L17: 0
B18: EGW Labour | C18: 0.009 | D18: 0.005 | E18: 0.01 | F18: 0.01 | G18: 0.009
B19: General Labour | C19: 0.009 | D19: 0.005 | E19: 0.01 | F19: 0.01 | G19: 0.009
B20: Network Materials | C20: 0 | D20: 0 | E20: 0 | F20: 0 | G20: 0
B21: General Materials | C21: 0 | D21: 0 | E21: 0 | F21: 0 | G21: 0 | X21: Variance (actual vs approved) % | AD21: Variance (actual vs approved) %
C25: =SUM(C16:C24) -> 0.018 | D25: 0.01 | E25: 0.02 | F25: 0.02 | G25: 0.018 | H25: 0.008049579634 | I25: 0.009181179485 | J25: 0.01130619052 | K25: 0.01382402704 | L25: 0.01540429647
B26: Source(s) of data:
B28: Table 2.2 - Input / Cost Mix (Weights)
C29: Forecast | L29: Forecast
C30: 0 | L30: Cumulative Factor
C31: Labour | E31: Materials
L32: 2012-13 | M32: 2013-14 | N32: 2014-15 | O32: 2016-17 | P32: 2017-18 | Q32: 2018-19 | R32: 2019-20 | S32: 2020-21
B33: All Opex & Capex Categories | C33: 0.62 | E33: 0.38 | L33: 1 | M33: 1 | N33: 1.001727278 | O33: 1.006731921 | P33: 1.012486059 | Q33: 1.019637067 | R33: 1.028479427 | S33: 1.038468796
L34: 1
L35: 1
L36: 1
L37: 1
L38: 1
L39: 1
L40: 1
L41: 1
L42: 1
L43: 1
L44: 1
L45: 1
L46: 1
L47: 1
L48: 1
L49: 1
L50: 1
L51: 1
L52: 1
L53: 1
L54: 1
L55: 1
L56: 1
B58: Source(s) of data:

Sheet 4. Connections market expansn
B1: =IF(dms_DataQuality="backcast",INDEX(dms_Worksheet_List,MATCH(dms_Model,dms_Model_List))&" BACKCAST",INDEX(dms_Worksheet_List,MATCH(dms_Model,dms_Model_List))) -> REGULATORY REPORTING STATEMENT
B2: =INDEX(dms_TradingNameFull_List,MATCH(dms_TradingName,dms_TradingName_List)) -> Australian Gas Networks Limited (reporting data for Albury)
B3: =IF(SUM(dms_SingleYear_Model)>0,CRY,CONCATENATE(FRCP_y1," to ",dms_MultiYear_FinalYear_Result)) -> 2018 to 2022 | C3: =CONCATENATE(LEFT(FRCP_y1,4),"-",LEFT(FRCP_y5,2),RIGHT(FRCP_y5,2)) -> 2018-2022
B4: 4. NEW CUSTOMER CONNECTIONS / GROWTH CAPTIAL EXPENDITURE
B7: Instructions This template asks for information relating to new connections/ market growth capital expenditure. This does not include expenditure relating to network capacity expansion, which should be included at tab 5 relating to augmentation.
B8: In table 4.1.1 AGN is to insert each residential and industrial and commerical type of new connection. This may require the insertion of new lines in the table.
B9: =CONCATENATE("As set out in cl.6.1 of the ",dms_TradingName," RIN, for tables 4.1 to 4.3, where the requested data is captured in the ", dms_TradingName," capex model it is not required to be reentered in the RIN template tables. If the requested data has not been provided in the ",dms_TradingName," RIN please enter into the tables. This may require the insertion of new lines in each table.") -> As set out in cl.6.1 of the AGN (Albury) RIN, for tables 4.1 to 4.3, where the requested data is captured in the AGN (Albury) capex model it is not required to be reentered in the RIN template tables. If the requested data has not been provided in the AGN (Albury) RIN please enter into the tables. This may require the insertion of new lines in each table.
B10: Reported expenditure is to be entered EXCLUSIVE of any profit margins or management fees paid pursuant to arrangements or contracts with any related parties. Include any related party margins or management fees in the separate 'Related party margin' line item.
B11: =CONCATENATE("Subject to cl.6.1 of the ", dms_TradingName, " RIN, where linked/adjustable overhead expenditure and related party margin expenditure is not provided in the ", dms_TradingName, " capex model, overhead expenditure and related party margin expenditure should be linked to allocations derived in tabs '14. Overheads' and '15. Related party transactions'.") -> Subject to cl.6.1 of the AGN (Albury) RIN, where linked/adjustable overhead expenditure and related party margin expenditure is not provided in the AGN (Albury) capex model, overhead expenditure and related party margin expenditure should be linked to allocations derived in tabs '14. Overheads' and '15. Related party transactions'.
B12: Capital expenditure amounts entered should be GROSS of customer contributions. There is a separate line item for customer contributions from which net capital expenditure is derived.
B13: If the expenditure for the connection is not split by the line items specified, provide assumptions on how the expenditure is split between line items. This can be provided as a note to this template or in the written RIN submission.
B16: TABLE 4 - NEW CUSTOMER CONNECTIONS / MARKET EXPANSION CAPITAL EXPENDITURE
B17: TABLE 4.1 - NEW CUSTOMER CONNECTIONS
C18: Previous access arrangement period | H18: Current access arrangement period | M18: Next access arrangement period | S18: Previous access arrangement period | Y18: Current access arrangement period
C19: 0's | S19: 0's
C20: Actual | K20: Forecast | S20: Approved
C21: =PRCP -> 2008 | D21: 2009 | E21: 2010 | F21: 2011 | G21: 2012 | H21: =CRCP_y1 -> 2013 | I21: =CRCP_y2 -> 2014 | J21: =CRCP_y3 -> 2015 | K21: =CRCP_y4 -> 2016 | L21: =CRCP_y5 -> 2017 | M21: =FRCP -> 2018 | N21: 2019 | O21: 2020 | P21: 2021 | Q21: 2022 | S21: =PRCP -> 2008 | T21: 2009 | U21: 2010 | V21: 2011 | W21: 2012 | X21: Variance (actual vs approved) % | Y21: =CRCP_y1 -> 2013 | Z21: =CRCP_y2 -> 2014 | AA21: =CRCP_y3 -> 2015 | AB21: =CRCP_y4 -> 2016 | AC21: =CRCP_y5 -> 2017 | AD21: Variance (actual vs approved) %
B23: Table 4.1.1 - Number of new customer connections
B24: Electricity to gas | C24: 532 | D24: 270 | E24: 612 | F24: 353 | G24: 1580 | H24: 27 | I24: 29 | J24: 21 | K24: 28.57345295 | L24: 29.1033172 | M24: 29.77773652 | N24: 30.32743452 | O24: 30.88732608 | P24: 31.45760023 | Q24: 32.03844951 | Y24: 19.64450335 | Z24: 23.18927784 | AA24: 23.56689171 | AB24: 23.95065464 | AC24: 24.34066676 | AD24: =SUM(H24:L24)/SUM(Y24:AC24)-1 -> 0.174247348
B25: New homes | H25: 274 | I25: 420 | J25: 412 | K25: 356.8918236 | L25: 363.5100024 | M25: 371.9337215 | N25: 378.7996302 | O25: 385.7928599 | P25: 392.9157717 | Q25: 400.1707702 | X25: =SUM(C25:G25)/SUM(S25:W25)-1 ->  | Y25: 241.3990565 | Z25: 284.9585807 | AA25: 289.5988421 | AB25: 294.3146655 | AC25: 299.1072813 | AD25: =SUM(H25:L25)/SUM(Y25:AC25)-1 -> 0.2958917151
B26: New medium density | H26: 18 | I26: 42 | J26: 109 | K26: 48.12668388 | L26: 49.01914198 | M26: 50.15507629 | N26: 51.08094065 | O26: 52.02397417 | P26: 52.98449526 | Q26: 53.96282818 | X26: =SUM(C26:G26)/SUM(S26:W26)-1 ->  | Y26: 53.06200367 | Z26: 62.63683658 | AA26: 63.65681393 | AB26: 64.69340058 | AC26: 65.74686698 | AD26: -0.1408995174
B27: I&C tariff | C27: 26 | D27: 14 | E27: 26 | F27: 18 | G27: 14 | H27: 19 | I27: 9 | J27: 6 | K27: 24.54240377 | L27: 24.68463573 | M27: 24.82769198 | N27: 24.97157728 | O27: 25.11629645 | P27: 25.26185433 | Q27: 25.40825576 | Y27: 18.71052558 | Z27: 18.71879548 | AA27: 18.72709062 | AB27: 18.73541106 | AC27: 18.74375688 | AD27: =SUM(H27:L27)/SUM(Y27:AC27)-1 -> -0.111160097
B28: I&C contract
B29: Total number of new connections | C29: =SUM(C24:C28) -> 558 | D29: =SUM(D24:D28) -> 284 | E29: 638 | F29: 371 | G29: 1594 | H29: 338 | I29: 500 | J29: 548 | K29: 458.1343642 | L29: 466.3170973 | M29: =SUM(M24:M28) -> 476.6942263 | N29: 485.1795827 | O29: =SUM(O24:O28) -> 493.8204567 | P29: 502.6197215 | Q29: 511.5803036 | S29: 370 | T29: 393 | U29: 404 | V29: 404 | W29: 404 | X29: 0.7443037975 | Y29: =SUM(Y24:Y28) -> 332.8160891 | Z29: =SUM(Z24:Z28) -> 389.5034906 | AA29: =SUM(AA24:AA28) -> 395.5496384 | AB29: =SUM(AB24:AB28) -> 401.6941318 | AC29: =SUM(AC24:AC28) -> 407.9385719 | AD29: 0.1986766059
B30: Total number of new connections (from tab 27 - Customer numbers)
B31: Difference | C31: =C29-C30 -> 558 | D31: 284 | E31: 638 | F31: 371 | G31: 1594 | H31: 338 | I31: 500 | J31: 548 | K31: 458.1343642 | L31: 466.3170973 | M31: =M29-M30 -> 476.6942263 | N31: 485.1795827 | O31: 493.8204567 | P31: 502.6197215 | Q31: 511.5803036 | S31: 370 | T31: 393 | U31: 404 | V31: 404 | W31: 404 | X31: 0.7443037975 | Y31: =Y29-Y30 -> 332.8160891 | Z31: =Z29-Z30 -> 389.5034906 | AA31: =AA29-AA30 -> 395.5496384 | AB31: =AB29-AB30 -> 401.6941318 | AC31: =AC29-AC30 -> 407.9385719 | AD31: 0.1986766059
B32: Source(s) of data: | C32: 2008-2012 ESC Regulatory Accounting Statements - Statement 4b "Residential Connections and Commercial/industrial connections" - Quantity | H32: 2013-2015 AER Annual Reporting Templates - Template 2.2 Connections - Residential Tariff V | K32: Historic data sourced from Oracle Financials BM17 report. Forecast data sourced from capex model submitted as Attachment 8.8 to the AAI. | S32: Review of Gas Access Arrangements 2008 - 2012 - Variations to the Access Arrangements of Envestra (Victoria) and Envestra (Albury): ESC Appeal Panel Decisions E1 and E2 of 2008 - 25 March 2009 | Y32: Envestra final submission capex file 2013 - 2017 'AER Final Decision ENA - sent to DNSP'
B34: Table 4.1.2 - Volume of mains / services / meters per connection
B35: Number of mains metres per connection | C35: [C-I-C] | D35: [C-I-C] | E35: [C-I-C] | F35: [C-I-C] | G35: [C-I-C] | H35: [C-I-C] | I35: [C-I-C] | J35: [C-I-C] | K35: [C-I-C] | L35: [C-I-C] | M35: [C-I-C] | N35: [C-I-C] | O35: [C-I-C] | P35: [C-I-C] | Q35: [C-I-C]
B36: =B24 -> Electricity to gas | C36: [C-I-C] | D36: [C-I-C] | E36: [C-I-C] | F36: [C-I-C] | G36: [C-I-C] | H36: [C-I-C] | I36: [C-I-C] | J36: [C-I-C] | K36: [C-I-C] | L36: [C-I-C] | M36: [C-I-C] | N36: [C-I-C] | O36: [C-I-C] | P36: [C-I-C] | Q36: [C-I-C] | X36: =SUM(C36:G36)/SUM(S36:W36)-1 ->  | AD36: =SUM(H36:L36)/SUM(Y36:AC36)-1 -> 
B37: =B25 -> New homes | C37: [C-I-C] | D37: [C-I-C] | E37: [C-I-C] | F37: [C-I-C] | G37: [C-I-C] | H37: [C-I-C] | I37: [C-I-C] | J37: [C-I-C] | K37: [C-I-C] | L37: [C-I-C] | M37: [C-I-C] | N37: [C-I-C] | O37: [C-I-C] | P37: [C-I-C] | Q37: [C-I-C] | S37: 0 | T37: 0 | U37: 0 | V37: 0 | W37: 0 | X37: =SUM(C37:G37)/SUM(S37:W37)-1 ->  | Y37: 22.9846697 | Z37: 19.47117215 | AA37: 19.15918426 | AB37: 18.85219538 | AC37: 18.55012541 | AD37: =SUM(H37:L37)/SUM(Y37:AC37)-1 -> -1
B38: =B26 -> New medium density | C38: [C-I-C] | D38: [C-I-C] | E38: [C-I-C] | F38: [C-I-C] | G38: [C-I-C] | H38: [C-I-C] | I38: [C-I-C] | J38: [C-I-C] | K38: [C-I-C] | L38: [C-I-C] | M38: [C-I-C] | N38: [C-I-C] | O38: [C-I-C] | P38: [C-I-C] | Q38: [C-I-C] | X38: =SUM(C38:G38)/SUM(S38:W38)-1 ->  | AD38: =SUM(H38:L38)/SUM(Y38:AC38)-1 -> 
B39: =B27 -> I&C tariff | C39: [C-I-C] | D39: [C-I-C] | E39: [C-I-C] | F39: [C-I-C] | G39: [C-I-C] | H39: [C-I-C] | I39: [C-I-C] | J39: [C-I-C] | K39: [C-I-C] | L39: [C-I-C] | M39: [C-I-C] | N39: [C-I-C] | O39: [C-I-C] | P39: [C-I-C] | Q39: [C-I-C] | X39: =SUM(C39:G39)/SUM(S39:W39)-1 ->  | AD39: =SUM(H39:L39)/SUM(Y39:AC39)-1 -> 
B40: =B28 -> I&C contract | C40: [C-I-C] | D40: [C-I-C] | E40: [C-I-C] | F40: [C-I-C] | G40: [C-I-C] | H40: [C-I-C] | I40: [C-I-C] | J40: [C-I-C] | K40: [C-I-C] | L40: [C-I-C] | M40: [C-I-C] | N40: [C-I-C] | O40: [C-I-C] | P40: [C-I-C] | Q40: [C-I-C] | X40: =SUM(C40:G40)/SUM(S40:W40)-1 ->  | AD40: =SUM(H40:L40)/SUM(Y40:AC40)-1 -> 
B41: Number of inlets/services per connection | C41: [C-I-C] | D41: [C-I-C] | E41: [C-I-C] | F41: [C-I-C] | G41: [C-I-C] | H41: [C-I-C] | I41: [C-I-C] | J41: [C-I-C] | K41: [C-I-C] | L41: [C-I-C] | M41: [C-I-C] | N41: [C-I-C] | O41: [C-I-C] | P41: [C-I-C] | Q41: [C-I-C]
B42: =B24 -> Electricity to gas | C42: [C-I-C] | D42: [C-I-C] | E42: [C-I-C] | F42: [C-I-C] | G42: [C-I-C] | H42: [C-I-C] | I42: [C-I-C] | J42: [C-I-C] | K42: [C-I-C] | L42: [C-I-C] | M42: [C-I-C] | N42: [C-I-C] | O42: [C-I-C] | P42: [C-I-C] | Q42: [C-I-C] | X42: =SUM(C42:G42)/SUM(S42:W42)-1 ->  | AD42: =SUM(H42:L42)/SUM(Y42:AC42)-1 -> 
B43: =B25 -> New homes | C43: [C-I-C] | D43: [C-I-C] | E43: [C-I-C] | F43: [C-I-C] | G43: [C-I-C] | H43: [C-I-C] | I43: [C-I-C] | J43: [C-I-C] | K43: [C-I-C] | L43: [C-I-C] | M43: [C-I-C] | N43: [C-I-C] | O43: [C-I-C] | P43: [C-I-C] | Q43: [C-I-C] | X43: =SUM(C43:G43)/SUM(S43:W43)-1 ->  | AD43: =SUM(H43:L43)/SUM(Y43:AC43)-1 -> 
B44: =B26 -> New medium density | C44: [C-I-C] | D44: [C-I-C] | E44: [C-I-C] | F44: [C-I-C] | G44: [C-I-C] | H44: [C-I-C] | I44: [C-I-C] | J44: [C-I-C] | K44: [C-I-C] | L44: [C-I-C] | M44: [C-I-C] | N44: [C-I-C] | O44: [C-I-C] | P44: [C-I-C] | Q44: [C-I-C] | X44: =SUM(C44:G44)/SUM(S44:W44)-1 ->  | AD44: =SUM(H44:L44)/SUM(Y44:AC44)-1 -> 
B45: =B27 -> I&C tariff | C45: [C-I-C] | D45: [C-I-C] | E45: [C-I-C] | F45: [C-I-C] | G45: [C-I-C] | H45: [C-I-C] | I45: [C-I-C] | J45: [C-I-C] | K45: [C-I-C] | L45: [C-I-C] | M45: [C-I-C] | N45: [C-I-C] | O45: [C-I-C] | P45: [C-I-C] | Q45: [C-I-C] | X45: =SUM(C45:G45)/SUM(S45:W45)-1 ->  | AD45: =SUM(H45:L45)/SUM(Y45:AC45)-1 -> 
B46: =B28 -> I&C contract | C46: [C-I-C] | D46: [C-I-C] | E46: [C-I-C] | F46: [C-I-C] | G46: [C-I-C] | H46: [C-I-C] | I46: [C-I-C] | J46: [C-I-C] | K46: [C-I-C] | L46: [C-I-C] | M46: [C-I-C] | N46: [C-I-C] | O46: [C-I-C] | P46: [C-I-C] | Q46: [C-I-C] | X46: =SUM(C46:G46)/SUM(S46:W46)-1 ->  | AD46: =SUM(H46:L46)/SUM(Y46:AC46)-1 -> 
B47: Number of meters per connection | C47: [C-I-C] | D47: [C-I-C] | E47: [C-I-C] | F47: [C-I-C] | G47: [C-I-C] | H47: [C-I-C] | I47: [C-I-C] | J47: [C-I-C] | K47: [C-I-C] | L47: [C-I-C] | M47: [C-I-C] | N47: [C-I-C] | O47: [C-I-C] | P47: [C-I-C] | Q47: [C-I-C]
B48: =B24 -> Electricity to gas | C48: [C-I-C] | D48: [C-I-C] | E48: [C-I-C] | F48: [C-I-C] | G48: [C-I-C] | H48: [C-I-C] | I48: [C-I-C] | J48: [C-I-C] | K48: [C-I-C] | L48: [C-I-C] | M48: [C-I-C] | N48: [C-I-C] | O48: [C-I-C] | P48: [C-I-C] | Q48: [C-I-C] | X48: =SUM(C48:G48)/SUM(S48:W48)-1 ->  | AD48: =SUM(H48:L48)/SUM(Y48:AC48)-1 -> 
B49: =B25 -> New homes | C49: [C-I-C] | D49: [C-I-C] | E49: [C-I-C] | F49: [C-I-C] | G49: [C-I-C] | H49: [C-I-C] | I49: [C-I-C] | J49: [C-I-C] | K49: [C-I-C] | L49: [C-I-C] | M49: [C-I-C] | N49: [C-I-C] | O49: [C-I-C] | P49: [C-I-C] | Q49: [C-I-C] | X49: =SUM(C49:G49)/SUM(S49:W49)-1 ->  | AD49: =SUM(H49:L49)/SUM(Y49:AC49)-1 -> 
B50: =B26 -> New medium density | C50: [C-I-C] | D50: [C-I-C] | E50: [C-I-C] | F50: [C-I-C] | G50: [C-I-C] | H50: [C-I-C] | I50: [C-I-C] | J50: [C-I-C] | K50: [C-I-C] | L50: [C-I-C] | M50: [C-I-C] | N50: [C-I-C] | O50: [C-I-C] | P50: [C-I-C] | Q50: [C-I-C] | X50: =SUM(C50:G50)/SUM(S50:W50)-1 ->  | AD50: =SUM(H50:L50)/SUM(Y50:AC50)-1 -> 
B51: =B27 -> I&C tariff | C51: [C-I-C] | D51: [C-I-C] | E51: [C-I-C] | F51: [C-I-C] | G51: [C-I-C] | H51: [C-I-C] | I51: [C-I-C] | J51: [C-I-C] | K51: [C-I-C] | L51: [C-I-C] | M51: [C-I-C] | N51: [C-I-C] | O51: [C-I-C] | P51: [C-I-C] | Q51: [C-I-C] | X51: =SUM(C51:G51)/SUM(S51:W51)-1 ->  | AD51: =SUM(H51:L51)/SUM(Y51:AC51)-1 -> 
B52: =B28 -> I&C contract | C52: [C-I-C] | D52: [C-I-C] | E52: [C-I-C] | F52: [C-I-C] | G52: [C-I-C] | H52: [C-I-C] | I52: [C-I-C] | J52: [C-I-C] | K52: [C-I-C] | L52: [C-I-C] | M52: [C-I-C] | N52: [C-I-C] | O52: [C-I-C] | P52: [C-I-C] | Q52: [C-I-C] | X52: =SUM(C52:G52)/SUM(S52:W52)-1 ->  | AD52: =SUM(H52:L52)/SUM(Y52:AC52)-1 -> 
B53: Source(s) of data: | H53: 2013-2015 AER Annual Reporting Templates - Template 2.2 Connections - Residential Tariff V | K53: Historic data sourced from Oracle Financials BM17 report. Forecast data sourced from capex model submitted as Attachment 8.8 to the AAI. | Y53: Envestra final submission capex file 2013 - 2017 'AER Final Decision ENA - sent to DNSP'
B55: TABLE 4.2 - NEW CUSTOMER CONNECTION EXPENDITURE | AH55: REAL $ CONVERSION OF HISTORICAL DATA
C56: Previous access arrangement period | H56: Current access arrangement period | M56: Next access arrangement period | S56: Previous access arrangement period | Y56: Current access arrangement period | AH56: Previous access arrangement period | AM56: Current access arrangement period
C57: $0's, nominal | K57: =CONCATENATE("$0's, real ",dms_DollarReal) -> $0's, real December 2017 | S57: =CONCATENATE("$0's, real ",dms_DollarReal) -> $0's, real December 2017 | X57: Variance | Y57: =CONCATENATE("$0's, real ",dms_DollarReal) -> $0's, real December 2017 | AD57: Variance | AH57: =CONCATENATE("$0's, real ",dms_DollarReal) -> $0's, real December 2017
C58: Actual | K58: Forecast | S58: Approved | X58: Actual vs Approved | Y58: Approved | AD58: Actual vs Approved | AH58: Actual
C59: =PRCP -> 2008 | D59: 2009 | E59: 2010 | F59: 2011 | G59: 2012 | H59: =CRCP_y1 -> 2013 | I59: =CRCP_y2 -> 2014 | J59: =CRCP_y3 -> 2015 | K59: =CRCP_y4 -> 2016 | L59: =CRCP_y5 -> 2017 | M59: =FRCP -> 2018 | N59: 2019 | O59: 2020 | P59: 2021 | Q59: 2022 | S59: =PRCP -> 2008 | T59: 2009 | U59: 2010 | V59: 2011 | W59: 2012 | X59: % | Y59: =CRCP_y1 -> 2013 | Z59: =CRCP_y2 -> 2014 | AA59: =CRCP_y3 -> 2015 | AB59: =CRCP_y4 -> 2016 | AC59: =CRCP_y5 -> 2017 | AD59: % | AH59: =PRCP -> 2008 | AI59: 2009 | AJ59: 2010 | AK59: 2011 | AL59: 2012 | AM59: =CRCP_y1 -> 2013 | AN59: =CRCP_y2 -> 2014 | AO59: =CRCP_y3 -> 2015
B61: Table 4.2.1 - Unit rates - mains / services / meters
B62: Unit rates per metre of mains per connection | C62: [C-I-C] | D62: [C-I-C] | E62: [C-I-C] | F62: [C-I-C] | G62: [C-I-C] | H62: [C-I-C] | I62: [C-I-C] | J62: [C-I-C] | K62: [C-I-C] | L62: [C-I-C] | M62: [C-I-C] | N62: [C-I-C] | O62: [C-I-C] | P62: [C-I-C] | Q62: [C-I-C]
B63: =B24 -> Electricity to gas | C63: [C-I-C] | D63: [C-I-C] | E63: [C-I-C] | F63: [C-I-C] | G63: [C-I-C] | H63: [C-I-C] | I63: [C-I-C] | J63: [C-I-C] | K63: [C-I-C] | L63: [C-I-C] | M63: [C-I-C] | N63: [C-I-C] | O63: [C-I-C] | P63: [C-I-C] | Q63: [C-I-C] | X63: =SUM(C63:G63)/SUM(S63:W63)-1 ->  | AD63: =SUM(H63:L63)/SUM(Y63:AC63)-1 -> 
B64: =B25 -> New homes | C64: [C-I-C] | D64: [C-I-C] | E64: [C-I-C] | F64: [C-I-C] | G64: [C-I-C] | H64: [C-I-C] | I64: [C-I-C] | J64: [C-I-C] | K64: [C-I-C] | L64: [C-I-C] | M64: [C-I-C] | N64: [C-I-C] | O64: [C-I-C] | P64: [C-I-C] | Q64: [C-I-C] | X64: =SUM(C64:G64)/SUM(S64:W64)-1 ->  | AD64: =SUM(H64:L64)/SUM(Y64:AC64)-1 -> 
B65: =B26 -> New medium density | C65: [C-I-C] | D65: [C-I-C] | E65: [C-I-C] | F65: [C-I-C] | G65: [C-I-C] | H65: [C-I-C] | I65: [C-I-C] | J65: [C-I-C] | K65: [C-I-C] | L65: [C-I-C] | M65: [C-I-C] | N65: [C-I-C] | O65: [C-I-C] | P65: [C-I-C] | Q65: [C-I-C] | X65: =SUM(C65:G65)/SUM(S65:W65)-1 ->  | AD65: =SUM(H65:L65)/SUM(Y65:AC65)-1 -> 
B66: =B27 -> I&C tariff | C66: [C-I-C] | D66: [C-I-C] | E66: [C-I-C] | F66: [C-I-C] | G66: [C-I-C] | H66: [C-I-C] | I66: [C-I-C] | J66: [C-I-C] | K66: [C-I-C] | L66: [C-I-C] | M66: [C-I-C] | N66: [C-I-C] | O66: [C-I-C] | P66: [C-I-C] | Q66: [C-I-C] | X66: =SUM(C66:G66)/SUM(S66:W66)-1 ->  | AD66: =SUM(H66:L66)/SUM(Y66:AC66)-1 -> 
B67: =B28 -> I&C contract | C67: [C-I-C] | D67: [C-I-C] | E67: [C-I-C] | F67: [C-I-C] | G67: [C-I-C] | H67: [C-I-C] | I67: [C-I-C] | J67: [C-I-C] | K67: [C-I-C] | L67: [C-I-C] | M67: [C-I-C] | N67: [C-I-C] | O67: [C-I-C] | P67: [C-I-C] | Q67: [C-I-C] | X67: =SUM(C67:G67)/SUM(S67:W67)-1 ->  | AD67: =SUM(H67:L67)/SUM(Y67:AC67)-1 -> 
B68: Unit rates per service per connection | C68: [C-I-C] | D68: [C-I-C] | E68: [C-I-C] | F68: [C-I-C] | G68: [C-I-C] | H68: [C-I-C] | I68: [C-I-C] | J68: [C-I-C] | K68: [C-I-C] | L68: [C-I-C] | M68: [C-I-C] | N68: [C-I-C] | O68: [C-I-C] | P68: [C-I-C] | Q68: [C-I-C]
B69: =B24 -> Electricity to gas | C69: [C-I-C] | D69: [C-I-C] | E69: [C-I-C] | F69: [C-I-C] | G69: [C-I-C] | H69: [C-I-C] | I69: [C-I-C] | J69: [C-I-C] | K69: [C-I-C] | L69: [C-I-C] | M69: [C-I-C] | N69: [C-I-C] | O69: [C-I-C] | P69: [C-I-C] | Q69: [C-I-C] | S69: =1174 -> 1174 | T69: =1198 -> 1198 | U69: =1222 -> 1222 | V69: =1246 -> 1246 | W69: =1271 -> 1271 | X69: =SUM(C69:G69)/SUM(S69:W69)-1 -> -1 | Y69: 1625.559433 | Z69: 1625.214679 | AA69: 1634.62057 | AB69: 1637.351549 | AC69: 1643.520831 | AD69: =SUM(H69:L69)/SUM(Y69:AC69)-1 -> -1
B70: =B25 -> New homes | C70: [C-I-C] | D70: [C-I-C] | E70: [C-I-C] | F70: [C-I-C] | G70: [C-I-C] | H70: [C-I-C] | I70: [C-I-C] | J70: [C-I-C] | K70: [C-I-C] | L70: [C-I-C] | M70: [C-I-C] | N70: [C-I-C] | O70: [C-I-C] | P70: [C-I-C] | Q70: [C-I-C] | X70: =SUM(C70:G70)/SUM(S70:W70)-1 ->  | AD70: =SUM(H70:L70)/SUM(Y70:AC70)-1 -> 
B71: =B26 -> New medium density | C71: [C-I-C] | D71: [C-I-C] | E71: [C-I-C] | F71: [C-I-C] | G71: [C-I-C] | H71: [C-I-C] | I71: [C-I-C] | J71: [C-I-C] | K71: [C-I-C] | L71: [C-I-C] | M71: [C-I-C] | N71: [C-I-C] | O71: [C-I-C] | P71: [C-I-C] | Q71: [C-I-C] | X71: =SUM(C71:G71)/SUM(S71:W71)-1 ->  | AD71: =SUM(H71:L71)/SUM(Y71:AC71)-1 -> 
B72: =B27 -> I&C tariff | C72: [C-I-C] | D72: [C-I-C] | E72: [C-I-C] | F72: [C-I-C] | G72: [C-I-C] | H72: [C-I-C] | I72: [C-I-C] | J72: [C-I-C] | K72: [C-I-C] | L72: [C-I-C] | M72: [C-I-C] | N72: [C-I-C] | O72: [C-I-C] | P72: [C-I-C] | Q72: [C-I-C] | X72: =SUM(C72:G72)/SUM(S72:W72)-1 ->  | Y72: 6463.787358 | Z72: 6483.514996 | AA72: 6508.371821 | AB72: 6518.413978 | AC72: 6541.099211 | AD72: =SUM(H72:L72)/SUM(Y72:AC72)-1 -> -1
B73: =B28 -> I&C contract | C73: [C-I-C] | D73: [C-I-C] | E73: [C-I-C] | F73: [C-I-C] | G73: [C-I-C] | H73: [C-I-C] | I73: [C-I-C] | J73: [C-I-C] | K73: [C-I-C] | L73: [C-I-C] | M73: [C-I-C] | N73: [C-I-C] | O73: [C-I-C] | P73: [C-I-C] | Q73: [C-I-C] | X73: =SUM(C73:G73)/SUM(S73:W73)-1 ->  | AD73: =SUM(H73:L73)/SUM(Y73:AC73)-1 -> 
B74: Number of meters per connection | C74: [C-I-C] | D74: [C-I-C] | E74: [C-I-C] | F74: [C-I-C] | G74: [C-I-C] | H74: [C-I-C] | I74: [C-I-C] | J74: [C-I-C] | K74: [C-I-C] | L74: [C-I-C] | M74: [C-I-C] | N74: [C-I-C] | O74: [C-I-C] | P74: [C-I-C] | Q74: [C-I-C]
B75: =B24 -> Electricity to gas | C75: [C-I-C] | D75: [C-I-C] | E75: [C-I-C] | F75: [C-I-C] | G75: [C-I-C] | H75: [C-I-C] | I75: [C-I-C] | J75: [C-I-C] | K75: [C-I-C] | L75: [C-I-C] | M75: [C-I-C] | N75: [C-I-C] | O75: [C-I-C] | P75: [C-I-C] | Q75: [C-I-C] | X75: =SUM(C75:G75)/SUM(S75:W75)-1 ->  | AD75: =SUM(H75:L75)/SUM(Y75:AC75)-1 -> 
B76: =B25 -> New homes | C76: [C-I-C] | D76: [C-I-C] | E76: [C-I-C] | F76: [C-I-C] | G76: [C-I-C] | H76: [C-I-C] | I76: [C-I-C] | J76: [C-I-C] | K76: [C-I-C] | L76: [C-I-C] | M76: [C-I-C] | N76: [C-I-C] | O76: [C-I-C] | P76: [C-I-C] | Q76: [C-I-C] | X76: =SUM(C76:G76)/SUM(S76:W76)-1 ->  | AD76: =SUM(H76:L76)/SUM(Y76:AC76)-1 -> 
B77: =B26 -> New medium density | C77: [C-I-C] | D77: [C-I-C] | E77: [C-I-C] | F77: [C-I-C] | G77: [C-I-C] | H77: [C-I-C] | I77: [C-I-C] | J77: [C-I-C] | K77: [C-I-C] | L77: [C-I-C] | M77: [C-I-C] | N77: [C-I-C] | O77: [C-I-C] | P77: [C-I-C] | Q77: [C-I-C] | X77: =SUM(C77:G77)/SUM(S77:W77)-1 ->  | AD77: =SUM(H77:L77)/SUM(Y77:AC77)-1 -> 
B78: =B27 -> I&C tariff | C78: [C-I-C] | D78: [C-I-C] | E78: [C-I-C] | F78: [C-I-C] | G78: [C-I-C] | H78: [C-I-C] | I78: [C-I-C] | J78: [C-I-C] | K78: [C-I-C] | L78: [C-I-C] | M78: [C-I-C] | N78: [C-I-C] | O78: [C-I-C] | P78: [C-I-C] | Q78: [C-I-C] | X78: =SUM(C78:G78)/SUM(S78:W78)-1 ->  | AD78: =SUM(H78:L78)/SUM(Y78:AC78)-1 -> 
B79: =B28 -> I&C contract | C79: [C-I-C] | D79: [C-I-C] | E79: [C-I-C] | F79: [C-I-C] | G79: [C-I-C] | H79: [C-I-C] | I79: [C-I-C] | J79: [C-I-C] | K79: [C-I-C] | L79: [C-I-C] | M79: [C-I-C] | N79: [C-I-C] | O79: [C-I-C] | P79: [C-I-C] | Q79: [C-I-C] | X79: =SUM(C79:G79)/SUM(S79:W79)-1 ->  | AD79: =SUM(H79:L79)/SUM(Y79:AC79)-1 -> 
B80: Source(s) of data: | H80: 2013-2015 AER Annual Reporting Templates - Template 2.2 Connections - Residential Tariff V | K80: Historic data sourced from Oracle Financials BM17 report. Forecast data sourced from capex model submitted as Attachment 8.8 to the AAI. | Y80: Envestra final submission capex file 2013 - 2017 'AER Final Decision ENA - sent to DNSP'
B82: =CONCATENATE("Table 4.2.2 - ", B24) -> Table 4.2.2 - Electricity to gas
B83: =CONCATENATE("Number of new ", B24, " connections") -> Number of new Electricity to gas connections | C83: =C24 -> 532 | D83: 270 | E83: 612 | F83: 353 | G83: 1580 | H83: 27 | I83: 29 | J83: 21 | K83: 28.57345295 | L83: 29.1033172 | M83: 29.77773652 | N83: 30.32743452 | O83: 30.88732608 | P83: 31.45760023 | Q83: 32.03844951 | S83: =S24 -> 0 | T83: =T24 -> 0 | U83: 0 | V83: 0 | W83: 0 | Y83: =Y24 -> 19.64450335 | Z83: 23.18927784 | AA83: 23.56689171 | AB83: 23.95065464 | AC83: 24.34066676 | AD83: =SUM(H83:L83)/SUM(Y83:AC83)-1 -> 0.174247348 | AH83: =AH24 -> 0 | AI83: 0 | AJ83: 0 | AK83: 0 | AL83: 0 | AM83: 0 | AN83: 0 | AO83: 0
B84: Direct contractor expenditure
B85: Distribution mains | H85: 435.59 | I85: 0 | J85: 1005.55814 | K85: 1553.51643 | L85: 1582.324738 | M85: 1816.55903 | N85: 1850.09277 | O85: 1884.248357 | P85: 1919.037323 | Q85: 1954.471413 | X85: =SUM(C85:G85)/SUM(S85:W85)-1 ->  | AD85: =SUM(H85:L85)/SUM(Y85:AC85)-1 -> 
B86: Inlet / service pipes | H86: 28921.7 | I86: 31840.43 | J86: 36807.05 | K86: 35934.5884 | L86: 36600.95706 | M86: 36763.79906 | N86: 37442.46 | O86: 38133.70599 | P86: 38837.7704 | Q86: 39554.89093 | X86: =SUM(C86:G86)/SUM(S86:W86)-1 ->  | AD86: =SUM(H86:L86)/SUM(Y86:AC86)-1 -> 
B87: Meters | H87: 1782.947116 | I87: 1782.595153 | J87: 1206.917269 | K87: 1771.033193 | L87: 1803.875117 | M87: 1845.67682 | N87: 1879.748075 | O87: 1914.451145 | P87: 1949.797747 | Q87: 1985.799813 | X87: =SUM(C87:G87)/SUM(S87:W87)-1 ->  | AD87: =SUM(H87:L87)/SUM(Y87:AC87)-1 -> 
B88: Total contractor expenditure | C88: =SUM(C85:C87) -> 0 | D88: =SUM(D85:D87) -> 0 | E88: 0 | F88: 0 | G88: 0 | H88: =SUM(H85:H87) -> 31140.23712 | I88: 33623.02515 | J88: 39019.52541 | K88: 39259.13802 | L88: 39987.15692 | M88: 40426.03491 | N88: 41172.30085 | O88: 41932.40549 | P88: 42706.60547 | Q88: 43495.16215 | S88: 0 | T88: 0 | U88: 0 | V88: 0 | W88: 0 | X88: =SUM(C88:G88)/SUM(S88:W88)-1 ->  | Y88: =SUM(Y85:Y87) -> 0 | Z88: =SUM(Z85:Z87) -> 0 | AA88: =SUM(AA85:AA87) -> 0 | AB88: =SUM(AB85:AB87) -> 0 | AC88: =SUM(AC85:AC87) -> 0 | AD88: =SUM(H88:L88)/SUM(Y88:AC88)-1 ->  | AH88: =SUM(AH85:AH87) -> 0 | AI88: =SUM(AI85:AI87) -> 0 | AJ88: 0 | AK88: 0 | AL88: 0 | AM88: 0 | AN88: 0 | AO88: 0
B89: Direct internal labour expenditure
B90: Distribution mains | H90: 0 | I90: 0 | J90: 0 | K90: 63.11542007 | L90: 64.28582831 | M90: 99.16932019 | N90: 100.9999891 | O90: 102.8646058 | P90: 104.7637999 | Q90: 106.6982125 | X90: =SUM(C90:G90)/SUM(S90:W90)-1 ->  | AD90: =SUM(H90:L90)/SUM(Y90:AC90)-1 -> 
B91: Inlet / service pipes | H91: 0 | I91: 0 | J91: 0 | K91: 1806.059792 | L91: 1839.551248 | M91: 1347.89787 | N91: 1372.780109 | O91: 1398.123763 | P91: 1423.937388 | Q91: 1450.229698 | X91: =SUM(C91:G91)/SUM(S91:W91)-1 ->  | AD91: =SUM(H91:L91)/SUM(Y91:AC91)-1 -> 
B92: Meters | H92: 0 | I92: 0 | J92: 0 | K92: 347.4834136 | L92: 353.9271234 | M92: 376.4357997 | N92: 383.3848169 | O92: 390.4626963 | P92: 397.6718274 | Q92: 405.0146442 | X92: =SUM(C92:G92)/SUM(S92:W92)-1 ->  | AD92: =SUM(H92:L92)/SUM(Y92:AC92)-1 -> 
B93: Total labour expenditure | C93: =SUM(C90:C92) -> 0 | D93: =SUM(D90:D92) -> 0 | E93: 0 | F93: 0 | G93: 0 | H93: 0 | I93: 0 | J93: 0 | K93: 2216.658626 | L93: 2257.764199 | M93: 1823.50299 | N93: 1857.164915 | O93: 1891.451065 | P93: 1926.373015 | Q93: 1961.942555 | S93: 0 | T93: 0 | U93: 0 | V93: 0 | W93: 0 | X93: =SUM(C93:G93)/SUM(S93:W93)-1 ->  | Y93: =SUM(Y90:Y92) -> 0 | Z93: =SUM(Z90:Z92) -> 0 | AA93: =SUM(AA90:AA92) -> 0 | AB93: =SUM(AB90:AB92) -> 0 | AC93: =SUM(AC90:AC92) -> 0 | AD93: =SUM(H93:L93)/SUM(Y93:AC93)-1 ->  | AH93: =SUM(AH90:AH92) -> 0 | AI93: =SUM(AI90:AI92) -> 0 | AJ93: 0 | AK93: 0 | AL93: 0 | AM93: 0 | AN93: 0 | AO93: 0
B94: Other internal direct expenditure
B95: Distribution mains | H95: 2.69 | I95: 1.26 | J95: 403.5369767 | K95: 187.4916735 | L95: 190.9685069 | M95: 164.1133678 | N95: 167.142906 | O95: 170.2286238 | P95: 173.3715628 | Q95: 176.5727844 | X95: =SUM(C95:G95)/SUM(S95:W95)-1 ->  | AD95: =SUM(H95:L95)/SUM(Y95:AC95)-1 -> 
B96: Inlet / service pipes | H96: 15775.6 | I96: 6569.37 | J96: 1655.79 | K96: 14896.64293 | L96: 15172.88531 | M96: 7566.026662 | N96: 7705.695764 | O96: 7847.95488 | P96: 7992.85204 | Q96: 8140.436163 | X96: =SUM(C96:G96)/SUM(S96:W96)-1 ->  | AD96: =SUM(H96:L96)/SUM(Y96:AC96)-1 -> 
B97: Meters | H97: -2395.057429 | I97: 3877.8989 | J97: 1896.84476 | K97: 4626.290721 | L97: 4712.080355 | M97: 4806.96769 | N97: 4895.704472 | O97: 4986.086783 | P97: 5078.145137 | Q97: 5171.910616 | X97: =SUM(C97:G97)/SUM(S97:W97)-1 ->  | AD97: =SUM(H97:L97)/SUM(Y97:AC97)-1 -> 
B98: Total other direct expenditure | C98: =SUM(C95:C97) -> 0 | D98: =SUM(D95:D97) -> 0 | E98: 0 | F98: 0 | G98: 0 | H98: =SUM(H95:H97) -> 13383.23257 | I98: 10448.5289 | J98: 3956.171737 | K98: 19710.42533 | L98: 20075.93417 | M98: 12537.10772 | N98: 12768.54314 | O98: 13004.27029 | P98: 13244.36874 | Q98: 13488.91956 | S98: 0 | T98: 0 | U98: 0 | V98: 0 | W98: 0 | X98: =SUM(C98:G98)/SUM(S98:W98)-1 ->  | Y98: =SUM(Y95:Y97) -> 0 | Z98: =SUM(Z95:Z97) -> 0 | AA98: =SUM(AA95:AA97) -> 0 | AB98: =SUM(AB95:AB97) -> 0 | AC98: =SUM(AC95:AC97) -> 0 | AD98: =SUM(H98:L98)/SUM(Y98:AC98)-1 ->  | AH98: =SUM(AH95:AH97) -> 0 | AI98: =SUM(AI95:AI97) -> 0 | AJ98: 0 | AK98: 0 | AL98: 0 | AM98: 0 | AN98: 0 | AO98: 0
B99: Total direct expenditure
B100: Distribution mains | C100: =C90+C85+C95 -> 0 | D100: 0 | E100: 0 | F100: 0 | G100: 0 | H100: =H90+H85+H95 -> 438.28 | I100: 1.26 | J100: 1409.095116 | K100: =K90+K85+K95 -> 1804.123524 | L100: 1837.579073 | M100: 2079.841718 | N100: 2118.235665 | O100: =O90+O85+O95 -> 2157.341587 | P100: 2197.172686 | Q100: 2237.74241 | S100: =S90+S85+S95 -> 0 | T100: 0 | U100: 0 | V100: 0 | W100: 0 | X100: =SUM(C100:G100)/SUM(S100:W100)-1 ->  | Y100: =Y90+Y85+Y95 -> 0 | Z100: 0 | AA100: 0 | AB100: 0 | AC100: 0 | AD100: =SUM(H100:L100)/SUM(Y100:AC100)-1 ->  | AH100: =AH90+AH85+AH95 -> 0 | AI100: 0 | AJ100: 0 | AK100: 0 | AL100: 0 | AM100: 0 | AN100: 0 | AO100: 0
B101: Inlet / service pipes | C101: 0 | D101: 0 | E101: 0 | F101: 0 | G101: 0 | H101: =H91+H86+H96 -> 44697.3 | I101: 38409.8 | J101: 38462.84 | K101: =K91+K86+K96 -> 52637.29112 | L101: 53613.39362 | M101: 45677.72359 | N101: 46520.93588 | O101: =O91+O86+O96 -> 47379.78463 | P101: 48254.55982 | Q101: 49145.55679 | S101: 0 | T101: 0 | U101: 0 | V101: 0 | W101: 0 | Y101: 0 | Z101: 0 | AA101: 0 | AB101: 0 | AC101: 0 | AH101: =AH91+AH86+AH96 -> 0 | AI101: 0 | AJ101: 0 | AK101: 0 | AL101: 0 | AM101: 0 | AN101: 0 | AO101: 0
B102: Meters | C102: 0 | D102: 0 | E102: 0 | F102: 0 | G102: 0 | H102: -612.1103135 | I102: 5660.494053 | J102: 3103.76203 | K102: =K92+K87+K97 -> 6744.807328 | L102: 6869.882596 | M102: 7029.08031 | N102: 7158.837364 | O102: =O92+O87+O97 -> 7291.000624 | P102: 7425.614712 | Q102: 7562.725074 | S102: 0 | T102: 0 | U102: 0 | V102: 0 | W102: 0 | Y102: 0 | Z102: 0 | AA102: 0 | AB102: 0 | AC102: 0 | AH102: =AH92+AH87+AH97 -> 0 | AI102: 0 | AJ102: 0 | AK102: 0 | AL102: 0 | AM102: 0 | AN102: 0 | AO102: 0
B103: Total direct expenditure | C103: =SUM(C100:C102) -> 0 | D103: =SUM(D100:D102) -> 0 | E103: 0 | F103: 0 | G103: 0 | H103: =SUM(H100:H102) -> 44523.46969 | I103: 44071.55405 | J103: =SUM(J100:J102) -> 42975.69715 | K103: =SUM(K100:K102) -> 61186.22197 | L103: 62320.85529 | M103: 54786.64562 | N103: 55798.0089 | O103: 56828.12684 | P103: 57877.34722 | Q103: 58946.02427 | Y103: 28536.9829 | Z103: 31682.59822 | AA103: 33340.69037 | AB103: 33943.17845 | AC103: 34632.66576 | AD103: 0.5732324476 | AH103: =SUM(AH100:AH102) -> 0 | AI103: =SUM(AI100:AI102) -> 0 | AJ103: 0 | AK103: 0 | AL103: 0 | AM103: 0 | AN103: 0 | AO103: 0
B104: Total overhead cost | H104: 687.1629863 | I104: 218.0808823 | J104: -335.9660384 | K104: 431.8861648 | L104: 376.1827922 | M104: 607.7313717 | N104: 691.956955 | O104: 678.9610132 | P104: 632.1353015 | Q104: 629.4410534 | Y104: 5707.39658 | Z104: 6336.519644 | AA104: 6668.138074 | AB104: 6788.63569 | AC104: 6926.533152 | AD104: -0.9575249851
B105: Related party margin | H105: 3804.021809 | I105: 4073.273969 | J105: 3868.624925 | K105: 3886.975483 | L105: 3385.645129 | M105: 2547.783799 | N105: 2128.029561 | O105: 2383.456278 | P105: 2919.895745 | Q105: 3143.458344
B106: =CONCATENATE("Total gross expenditure on new ", B24, " connections") -> Total gross expenditure on new Electricity to gas connections | C106: 604626.8 | D106: 295318.01 | E106: 462297 | F106: 456720 | G106: 552210 | H106: =SUM(H103,H104,H105) -> 49014.65448 | I106: =SUM(I103,I104,I105) -> 48362.9089 | J106: 46508.35603 | K106: =SUM(K103,K104,K105) -> 65505.08362 | L106: 66082.68321 | M106: =SUM(M103,M104,M105) -> 57942.16079 | N106: 58617.99542 | O106: =SUM(O103,O104,O105) -> 59890.54413 | P106: 61429.37827 | Q106: 62718.92367 | S106: =SUM(S103,S104,S105) -> 0 | T106: =SUM(T103,T104,T105) -> 0 | U106: =SUM(U103,U104,U105) -> 0 | V106: =SUM(V103,V104,V105) -> 0 | W106: =SUM(W103,W104,W105) -> 0 | Y106: =SUM(Y103,Y104,Y105) -> 34244.37948 | Z106: =SUM(Z103,Z104,Z105) -> 38019.11787 | AA106: =SUM(AA103,AA104,AA105) -> 40008.82844 | AB106: =SUM(AB103,AB104,AB105) -> 40731.81414 | AC106: =SUM(AC103,AC104,AC105) -> 41559.19891 | AD106: 0.41585608 | AH106: =SUM(AH103,AH104,AH105) -> 0 | AI106: =SUM(AI103,AI104,AI105) -> 0 | AJ106: 0 | AK106: 0 | AL106: 0 | AM106: 0 | AN106: 0 | AO106: 0
B107: Less customer contributions
B108: =CONCATENATE("Total net expenditure on new ", B24, " connections") -> Total net expenditure on new Electricity to gas connections | C108: =C106-C107 -> 604626.8 | D108: =D106-D107 -> 295318.01 | E108: 462297 | F108: 456720 | G108: 552210 | H108: 49014.65448 | I108: 48362.9089 | J108: 46508.35603 | K108: 65505.08362 | L108: 66082.68321 | M108: 57942.16079 | N108: 58617.99542 | O108: 59890.54413 | P108: 61429.37827 | Q108: 62718.92367 | S108: 0 | T108: 0 | U108: 0 | V108: 0 | W108: =W106-W107 -> 0 | X108: =SUM(C108:G108)/SUM(S108:W108)-1 ->  | Y108: =Y106-Y107 -> 34244.37948 | Z108: =Z106-Z107 -> 38019.11787 | AA108: =AA106-AA107 -> 40008.82844 | AB108: =AB106-AB107 -> 40731.81414 | AC108: =AC106-AC107 -> 41559.19891 | AD108: =SUM(H108:L108)/SUM(Y108:AC108)-1 -> 0.41585608 | AH108: =AH106-AH107 -> 0 | AI108: =AI106-AI107 -> 0 | AJ108: 0 | AK108: 0 | AL108: 0 | AM108: 0 | AN108: 0 | AO108: 0
B109: Source(s) of data: | C109: 2008-2012 ESC Regulatory Accounting Statements - Statement 4b "Residential Connections" - Total Cost | H109: 2013-2015 AER Annual Reporting Templates - Template 2.2 Connections - Residential Tariff V | K109: Historic data sourced from Oracle Financials BM17 report. Forecast data sourced from capex model submitted as Attachment 8.8 to the AAI. | Y109: Envestra final submission capex file 2013 - 2017 'AER Final Decision ENA - sent to DNSP'
B111: =CONCATENATE("Table 4.2.3 - ", B25) -> Table 4.2.3 - New homes
B112: =CONCATENATE("Number of new ", B25, " connections") -> Number of new New homes connections | C112: =C25 -> 0 | D112: 0 | E112: 0 | F112: 0 | G112: 0 | H112: 274 | I112: 420 | J112: 412 | K112: 356.8918236 | L112: 363.5100024 | M112: 371.9337215 | N112: 378.7996302 | O112: 385.7928599 | P112: 392.9157717 | Q112: 400.1707702 | S112: =S25 -> 0 | T112: =T25 -> 0 | U112: =U25 -> 0 | V112: =V25 -> 0 | W112: =W25 -> 0 | X112: =SUM(C112:G112)/SUM(S112:W112)-1 ->  | AD112: =SUM(H112:L112)/SUM(Y112:AC112)-1 ->  | AH112: =AH25 -> 0 | AI112: 0 | AJ112: 0 | AK112: 0 | AL112: 0 | AM112: 0 | AN112: 0 | AO112: 0
B113: Direct contractor expenditure
B114: Distribution mains | H114: 317605.64 | I114: 161886.04 | J114: 174813.8 | K114: 202590.0186 | L114: 206346.8347 | M114: 211515.6604 | N114: 215420.2465 | O114: 219397.239 | P114: 223447.9805 | Q114: 227573.8387 | X114: =SUM(C114:G114)/SUM(S114:W114)-1 ->  | AD114: =SUM(H114:L114)/SUM(Y114:AC114)-1 -> 
B115: Inlet / service pipes | H115: 210722.1 | I115: 323724.7 | J115: 423390.96 | K115: 271184.4428 | L115: 276213.2694 | M115: 302228.7237 | N115: 307807.8759 | O115: 313490.4875 | P115: 319278.4772 | Q115: 325173.7989 | X115: =SUM(C115:G115)/SUM(S115:W115)-1 ->  | AD115: =SUM(H115:L115)/SUM(Y115:AC115)-1 -> 
B116: Meters | H116: 18093.61147 | I116: 25816.89532 | J116: 23678.56738 | K116: 22120.78698 | L116: 22530.99341 | M116: 23053.11043 | N116: 23478.67161 | O116: 23912.12437 | P116: 24353.61505 | Q116: 24803.2927 | X116: =SUM(C116:G116)/SUM(S116:W116)-1 ->  | AD116: =SUM(H116:L116)/SUM(Y116:AC116)-1 -> 
B117: Total contractor expenditure | C117: =SUM(C114:C116) -> 0 | D117: 0 | E117: 0 | F117: 0 | G117: 0 | H117: 546421.3515 | I117: 511427.6353 | J117: 621883.3274 | K117: 495895.2483 | L117: 505091.0976 | M117: 536797.4946 | N117: 546706.794 | O117: 556799.8509 | P117: 567080.0727 | Q117: 577550.9303 | S117: 0 | T117: 0 | U117: 0 | V117: 0 | W117: 0 | X117: =SUM(C117:G117)/SUM(S117:W117)-1 ->  | Y117: =SUM(Y114:Y116) -> 0 | Z117: =SUM(Z114:Z116) -> 0 | AA117: =SUM(AA114:AA116) -> 0 | AB117: =SUM(AB114:AB116) -> 0 | AC117: =SUM(AC114:AC116) -> 0 | AD117: =SUM(H117:L117)/SUM(Y117:AC117)-1 ->  | AH117: =SUM(AH114:AH116) -> 0 | AI117: 0 | AJ117: 0 | AK117: 0 | AL117: 0 | AM117: 0 | AN117: 0 | AO117: 0
B118: Direct internal labour expenditure
B119: Distribution mains | H119: 0 | I119: 0 | J119: 0 | K119: 12346.06723 | L119: 12575.0119 | M119: 15870.79658 | N119: 16163.772 | O119: 16462.18035 | P119: 16766.12236 | Q119: 17075.70065 | X119: =SUM(C119:G119)/SUM(S119:W119)-1 ->  | AD119: =SUM(H119:L119)/SUM(Y119:AC119)-1 -> 
B120: Inlet / service pipes | H120: 0 | I120: 0 | J120: 0 | K120: 14284.11538 | L120: 14548.99909 | M120: 13455.42385 | N120: 13703.81141 | O120: 13956.80506 | P120: 14214.49021 | Q120: 14476.95386 | X120: =SUM(C120:G120)/SUM(S120:W120)-1 ->  | AD120: =SUM(H120:L120)/SUM(Y120:AC120)-1 -> 
B121: Meters | H121: 0 | I121: 0 | J121: 0 | K121: 4340.182105 | L121: 4420.66616 | M121: 4701.806928 | N121: 4788.602439 | O121: 4877.00748 | P121: 4967.051898 | Q121: 5058.766094 | X121: =SUM(C121:G121)/SUM(S121:W121)-1 ->  | AD121: =SUM(H121:L121)/SUM(Y121:AC121)-1 -> 
B122: Total labour expenditure | C122: =SUM(C119:C121) -> 0 | D122: 0 | E122: 0 | F122: 0 | G122: 0 | H122: 0 | I122: 0 | J122: 0 | K122: 30970.36471 | L122: 31544.67714 | M122: 34028.02735 | N122: 34656.18586 | O122: 35295.99289 | P122: 35947.66447 | Q122: 36611.4206 | S122: 0 | T122: 0 | U122: 0 | V122: 0 | W122: 0 | X122: =SUM(C122:G122)/SUM(S122:W122)-1 ->  | Y122: =SUM(Y119:Y121) -> 0 | Z122: =SUM(Z119:Z121) -> 0 | AA122: =SUM(AA119:AA121) -> 0 | AB122: =SUM(AB119:AB121) -> 0 | AC122: =SUM(AC119:AC121) -> 0 | AD122: =SUM(H122:L122)/SUM(Y122:AC122)-1 ->  | AH122: =SUM(AH119:AH121) -> 0 | AI122: 0 | AJ122: 0 | AK122: 0 | AL122: 0 | AM122: 0 | AN122: 0 | AO122: 0
B123: Other internal direct expenditure
B124: Distribution mains | H124: 61729.42 | I124: 37442.85 | J124: 18083.11 | K124: 37400.51395 | L124: 38094.06665 | M124: 43017.38919 | N124: 43811.49161 | O124: 44620.31982 | P124: 45444.14688 | Q124: 46283.25094 | X124: =SUM(C124:G124)/SUM(S124:W124)-1 ->  | AD124: =SUM(H124:L124)/SUM(Y124:AC124)-1 -> 
B125: Inlet / service pipes | H125: 69332.72 | I125: 156342.43 | J125: 59754.09 | K125: 40936.35057 | L125: 41695.47159 | M125: 61417.14235 | N125: 62550.90482 | O125: 63705.69171 | P125: 64881.89289 | Q125: 66079.90547 | X125: =SUM(C125:G125)/SUM(S125:W125)-1 ->  | AD125: =SUM(H125:L125)/SUM(Y125:AC125)-1 -> 
B126: Meters | H126: -24305.39762 | I126: 56162.67373 | J126: 37214.28768 | K126: 57783.89246 | L126: 58855.4332 | M126: 60040.60721 | N126: 61148.95879 | O126: 62277.86358 | P126: 63427.7027 | Q126: 64598.86437 | X126: =SUM(C126:G126)/SUM(S126:W126)-1 ->  | AD126: =SUM(H126:L126)/SUM(Y126:AC126)-1 -> 
B127: Total other direct expenditure | C127: =SUM(C124:C126) -> 0 | D127: 0 | E127: 0 | F127: 0 | G127: 0 | H127: 106756.7424 | I127: 249947.9537 | J127: 115051.4877 | K127: 136120.757 | L127: 138644.9714 | M127: 164475.1387 | N127: 167511.3552 | O127: 170603.8751 | P127: 173753.7425 | Q127: 176962.0208 | S127: 0 | T127: 0 | U127: 0 | V127: 0 | W127: 0 | X127: =SUM(C127:G127)/SUM(S127:W127)-1 ->  | Y127: =SUM(Y124:Y126) -> 0 | Z127: =SUM(Z124:Z126) -> 0 | AA127: =SUM(AA124:AA126) -> 0 | AB127: =SUM(AB124:AB126) -> 0 | AC127: =SUM(AC124:AC126) -> 0 | AD127: =SUM(H127:L127)/SUM(Y127:AC127)-1 ->  | AH127: =SUM(AH124:AH126) -> 0 | AI127: 0 | AJ127: 0 | AK127: 0 | AL127: 0 | AM127: 0 | AN127: 0 | AO127: 0
B128: Total direct expenditure
B129: Distribution mains | C129: =C119+C114+C124 -> 0 | D129: 0 | E129: 0 | F129: 0 | G129: 0 | H129: 379335.06 | I129: 199328.89 | J129: 192896.91 | K129: 252336.5998 | L129: 257015.9133 | M129: 270403.8462 | N129: 275395.5101 | O129: 280479.7391 | P129: 285658.2497 | Q129: 290932.7903 | S129: 0 | T129: 0 | U129: 0 | V129: 0 | W129: 0 | X129: =SUM(C129:G129)/SUM(S129:W129)-1 ->  | Y129: =Y119+Y114+Y124 -> 0 | Z129: 0 | AA129: 0 | AB129: 0 | AC129: 0 | AD129: =SUM(H129:L129)/SUM(Y129:AC129)-1 ->  | AH129: =AH119+AH114+AH124 -> 0 | AI129: 0 | AJ129: 0 | AK129: 0 | AL129: 0 | AM129: 0 | AN129: 0 | AO129: 0
B130: Inlet / service pipes | C130: 0 | D130: 0 | E130: 0 | F130: 0 | G130: 0 | H130: 280054.82 | I130: 480067.13 | J130: 483145.05 | K130: 326404.9087 | L130: 332457.7401 | M130: 377101.2899 | N130: 384062.5922 | O130: 391152.9843 | P130: 398374.8603 | Q130: 405730.6582 | S130: 0 | T130: 0 | U130: 0 | V130: 0 | W130: 0 | Y130: 0 | Z130: 0 | AA130: 0 | AB130: 0 | AC130: 0 | AH130: =AH120+AH115+AH125 -> 0 | AI130: 0 | AJ130: 0 | AK130: 0 | AL130: 0 | AM130: 0 | AN130: 0 | AO130: 0
B131: Meters | C131: 0 | D131: 0 | E131: 0 | F131: 0 | G131: 0 | H131: =H121+H116+H126 -> -6211.786144 | I131: =I121+I116+I126 -> 81979.56904 | J131: 60892.85506 | K131: 84244.86154 | L131: 85807.09277 | M131: 87795.52457 | N131: 89416.23284 | O131: 91066.99543 | P131: 92748.36965 | Q131: 94460.92316 | S131: 0 | T131: 0 | U131: 0 | V131: 0 | W131: 0 | Y131: 0 | Z131: 0 | AA131: 0 | AB131: 0 | AC131: 0 | AH131: =AH121+AH116+AH126 -> 0 | AI131: 0 | AJ131: 0 | AK131: 0 | AL131: 0 | AM131: 0 | AN131: 0 | AO131: 0
B132: Total direct expenditure | C132: =SUM(C129:C131) -> 0 | D132: =SUM(D129:D131) -> 0 | E132: 0 | F132: 0 | G132: 0 | H132: 653178.0939 | I132: 761375.589 | J132: =SUM(J129:J131) -> 736934.8151 | K132: 662986.37 | L132: =SUM(L129:L131) -> 675280.7461 | M132: 735300.6607 | N132: 748874.3351 | O132: 762699.7189 | P132: =SUM(P129:P131) -> 776781.4796 | Q132: 791124.3717 | Y132: 435318.0909 | Z132: 515549.102 | AA132: 526094.9883 | AB132: 535544.9399 | AC132: 546292.9899 | AD132: 0.3638250206 | AH132: =SUM(AH129:AH131) -> 0 | AI132: =SUM(AI129:AI131) -> 0 | AJ132: 0 | AK132: 0 | AL132: 0 | AM132: 0 | AN132: 0 | AO132: 0
B133: Total overhead cost | H133: 10080.97106 | I133: 3767.11528 | J133: -5761.048378 | K133: 4679.724151 | L133: 4076.147469 | M133: 8156.46357 | N133: 9286.869098 | O133: 9112.448406 | P133: 8483.99276 | Q133: 8447.83281 | Y133: 49138.90466 | Z133: 57787.55921 | AA133: 59190.67987 | AB133: 60262.39548 | AC133: 61491.32038 | AD133: -0.9414914396
B134: Related party margin | H134: 55806.60563 | I134: 70361.47526 | J134: 66338.06041 | K134: 42117.51736 | L134: 36685.32722 | M134: 34194.22907 | N134: 28560.6378 | O134: 31988.76215 | P134: 39188.40524 | Q134: 42188.87598
B135: =CONCATENATE("Tottal Gross expenditure on new ", B25, " connections") -> Tottal Gross expenditure on new New homes connections | C135: =SUM(C132,C133,C134) -> 0 | D135: =SUM(D132,D133,D134) -> 0 | E135: 0 | F135: 0 | G135: 0 | H135: 719065.6705 | I135: 835504.1796 | J135: 797511.8271 | K135: 709783.6115 | L135: 716042.2208 | M135: 777651.3533 | N135: =SUM(N132,N133,N134) -> 786721.842 | O135: 803800.9294 | P135: =SUM(P132,P133,P134) -> 824453.8776 | Q135: 841761.0805 | S135: =SUM(S132,S133,S134) -> 0 | T135: =SUM(T132,T133,T134) -> 0 | U135: =SUM(U132,U133,U134) -> 0 | V135: =SUM(V132,V133,V134) -> 0 | W135: =SUM(W132,W133,W134) -> 0 | Y135: =SUM(Y132,Y133,Y134) -> 484456.9956 | Z135: =SUM(Z132,Z133,Z134) -> 573336.6612 | AA135: =SUM(AA132,AA133,AA134) -> 585285.6681 | AB135: =SUM(AB132,AB133,AB134) -> 595807.3354 | AC135: =SUM(AC132,AC133,AC134) -> 607784.3103 | AD135: 0.327131779 | AH135: =SUM(AH132,AH133,AH134) -> 0 | AI135: =SUM(AI132,AI133,AI134) -> 0 | AJ135: 0 | AK135: 0 | AL135: 0 | AM135: 0 | AN135: 0 | AO135: 0
B136: Less customer contributions | S136: 0 | T136: 0 | U136: 0 | V136: 0 | W136: 0
B137: =CONCATENATE("Total Net expenditure on new ", B25, " connections") -> Total Net expenditure on new New homes connections | C137: =C135-C136 -> 0 | D137: =D135-D136 -> 0 | E137: 0 | F137: 0 | G137: 0 | H137: 719065.6705 | I137: 835504.1796 | J137: 797511.8271 | K137: 709783.6115 | L137: 716042.2208 | M137: 777651.3533 | N137: 786721.842 | O137: =O135-O136 -> 803800.9294 | P137: 824453.8776 | Q137: 841761.0805 | S137: 0 | T137: 0 | U137: 0 | V137: 0 | W137: =W135-W136 -> 0 | X137: =SUM(C137:G137)/SUM(S137:W137)-1 ->  | Y137: =Y135-Y136 -> 484456.9956 | Z137: =Z135-Z136 -> 573336.6612 | AA137: =AA135-AA136 -> 585285.6681 | AB137: =AB135-AB136 -> 595807.3354 | AC137: =AC135-AC136 -> 607784.3103 | AD137: =SUM(H137:L137)/SUM(Y137:AC137)-1 -> 0.327131779 | AH137: =AH135-AH136 -> 0 | AI137: =AI135-AI136 -> 0 | AJ137: 0 | AK137: 0 | AL137: 0 | AM137: 0 | AN137: 0 | AO137: 0
B138: Source(s) of data: | H138: 2013-2015 AER Annual Reporting Templates - Template 2.2 Connections - Residential Tariff V | K138: Historic data sourced from Oracle Financials BM17 report. Forecast data sourced from capex model submitted as Attachment 8.8 to the AAI. | S138: Review of Gas Access Arrangements 2008 - 2012 - Variations to the Access Arrangements of Envestra (Victoria) and Envestra (Albury): ESC Appeal Panel Decisions E1 and E2 of 2008 - 25 March 2009 | Y138: Envestra final submission capex file 2013 - 2017 'AER Final Decision ENA - sent to DNSP'
B140: =CONCATENATE("Table 4.2.4 - ", B26) -> Table 4.2.4 - New medium density
B141: =CONCATENATE("Number of new ", B26, " connections") -> Number of new New medium density connections | C141: =C26 -> 0 | D141: 0 | E141: 0 | F141: 0 | G141: 0 | H141: 18 | I141: 42 | J141: 109 | K141: 48.12668388 | L141: 49.01914198 | M141: 50.15507629 | N141: 51.08094065 | O141: 52.02397417 | P141: 52.98449526 | Q141: 53.96282818 | S141: =S26 -> 0 | T141: 0 | U141: 0 | V141: 0 | W141: 0 | AD141: =SUM(H141:L141)/SUM(Y141:AC141)-1 ->  | AH141: =AH26 -> 0 | AI141: 0 | AJ141: 0 | AK141: 0 | AL141: 0 | AM141: 0 | AN141: 0 | AO141: 0
B142: Direct contractor expenditure
B143: Distribution mains | H143: 0 | I143: 0 | J143: 1053.44186 | K143: 654.1525999 | L143: 666.2831632 | M143: 764.9142228 | N143: 779.0345646 | O143: 793.416753 | P143: 808.0656438 | Q143: 822.9861827 | X143: =SUM(C143:G143)/SUM(S143:W143)-1 ->  | AD143: =SUM(H143:L143)/SUM(Y143:AC143)-1 -> 
B144: Inlet / service pipes | H144: 32945.84 | I144: 23343.49 | J144: 61085.4 | K144: 45449.24914 | L144: 46292.05706 | M144: 50928.49096 | N144: 51868.63258 | O144: 52826.20812 | P144: 53801.54089 | Q144: 54794.96016 | X144: =SUM(C144:G144)/SUM(S144:W144)-1 ->  | AD144: =SUM(H144:L144)/SUM(Y144:AC144)-1 -> 
B145: Meters | H145: 1188.631411 | I145: 2581.689532 | J145: 6264.475351 | K145: 2982.977058 | L145: 3038.293191 | M145: 3108.70041 | N145: 3166.087122 | O145: 3224.538009 | P145: 3284.072806 | Q145: 3344.711613 | X145: =SUM(C145:G145)/SUM(S145:W145)-1 ->  | AD145: =SUM(H145:L145)/SUM(Y145:AC145)-1 -> 
B146: Total contractor expenditure | C146: =SUM(C143:C145) -> 0 | D146: 0 | E146: 0 | F146: 0 | G146: 0 | H146: 34134.47141 | I146: 25925.17953 | J146: 68403.31721 | K146: 49086.3788 | L146: 49996.63341 | M146: 54802.10559 | N146: 55813.75426 | O146: 56844.16289 | P146: 57893.67934 | Q146: 58962.65795 | S146: 0 | T146: 0 | U146: 0 | V146: 0 | W146: 0 | X146: =SUM(C146:G146)/SUM(S146:W146)-1 ->  | Y146: =SUM(Y143:Y145) -> 0 | Z146: =SUM(Z143:Z145) -> 0 | AA146: =SUM(AA143:AA145) -> 0 | AB146: =SUM(AB143:AB145) -> 0 | AC146: =SUM(AC143:AC145) -> 0 | AD146: =SUM(H146:L146)/SUM(Y146:AC146)-1 ->  | AH146: =SUM(AH143:AH145) -> 0 | AI146: 0 | AJ146: 0 | AK146: 0 | AL146: 0 | AM146: 0 | AN146: 0 | AO146: 0
B147: Direct internal labour expenditure
B148: Distribution mains | H148: 0 | I148: 0 | J148: 0 | K148: 26.57655583 | L148: 27.06938975 | M148: 41.75808339 | N148: 42.52893899 | O148: 43.31408928 | P148: 44.11379935 | Q148: 44.92833919 | X148: =SUM(C148:G148)/SUM(S148:W148)-1 ->  | AD148: =SUM(H148:L148)/SUM(Y148:AC148)-1 -> 
B149: Inlet / service pipes | H149: 0 | I149: 0 | J149: 0 | K149: 3498.498798 | L149: 3563.374732 | M149: 4289.803613 | N149: 4368.993529 | O149: 4449.651938 | P149: 4531.806071 | Q149: 4615.483665 | X149: =SUM(C149:G149)/SUM(S149:W149)-1 ->  | AD149: =SUM(H149:L149)/SUM(Y149:AC149)-1 -> 
B150: Meters | H150: 0 | I150: 0 | J150: 0 | K150: 585.2713858 | L150: 596.1246203 | M150: 634.0363122 | N150: 645.7406434 | O150: 657.662019 | P150: 669.8044638 | Q150: 682.1720772 | X150: =SUM(C150:G150)/SUM(S150:W150)-1 ->  | AD150: =SUM(H150:L150)/SUM(Y150:AC150)-1 -> 
B151: Total labour expenditure | C151: =SUM(C148:C150) -> 0 | D151: 0 | E151: 0 | F151: 0 | G151: 0 | H151: 0 | I151: 0 | J151: 0 | K151: 4110.34674 | L151: 4186.568742 | M151: 4965.598009 | N151: 5057.263112 | O151: 5150.628046 | P151: 5245.724334 | Q151: 5342.584081 | S151: 0 | T151: 0 | U151: 0 | V151: 0 | W151: 0 | X151: =SUM(C151:G151)/SUM(S151:W151)-1 ->  | Y151: =SUM(Y148:Y150) -> 0 | Z151: =SUM(Z148:Z150) -> 0 | AA151: =SUM(AA148:AA150) -> 0 | AB151: =SUM(AB148:AB150) -> 0 | AC151: =SUM(AC148:AC150) -> 0 | AD151: =SUM(H151:L151)/SUM(Y151:AC151)-1 ->  | AH151: =SUM(AH148:AH150) -> 0 | AI151: 0 | AJ151: 0 | AK151: 0 | AL151: 0 | AM151: 0 | AN151: 0 | AO151: 0
B152: Other internal direct expenditure
B153: Distribution mains | H153: 0 | I153: 0 | J153: 422.7530233 | K153: 78.94874063 | L153: 80.41276094 | M153: 69.10463525 | N153: 70.3803091 | O153: 71.67963895 | P153: 73.0030635 | Q153: 74.35102954 | X153: =SUM(C153:G153)/SUM(S153:W153)-1 ->  | AD153: =SUM(H153:L153)/SUM(Y153:AC153)-1 -> 
B154: Inlet / service pipes | H154: 7012.54 | I154: 128.43 | J154: 65512.21 | K154: 14402.42953 | L154: 14669.50724 | M154: 7998.101263 | N154: 8145.746476 | O154: 8296.129612 | P154: 8449.301443 | Q154: 8605.313683 | X154: =SUM(C154:G154)/SUM(S154:W154)-1 ->  | AD154: =SUM(H154:L154)/SUM(Y154:AC154)-1 -> 
B155: Meters | H155: -1596.704953 | I155: 5616.267373 | J155: 9845.527565 | K155: 7792.128992 | L155: 7936.625725 | M155: 8096.445847 | N155: 8245.906504 | O155: 8398.13875 | P155: 8553.19398 | Q155: 8711.124545 | X155: =SUM(C155:G155)/SUM(S155:W155)-1 ->  | AD155: =SUM(H155:L155)/SUM(Y155:AC155)-1 -> 
B156: Total material expenditure | C156: =SUM(C153:C155) -> 0 | D156: 0 | E156: 0 | F156: 0 | G156: 0 | H156: 5415.835047 | I156: 5744.697373 | J156: 75780.49059 | K156: 22273.50726 | L156: 22686.54573 | M156: 16163.65175 | N156: 16462.03329 | O156: 16765.948 | P156: 17075.49849 | Q156: 17390.78926 | S156: 0 | T156: 0 | U156: 0 | V156: 0 | W156: 0 | X156: =SUM(C156:G156)/SUM(S156:W156)-1 ->  | Y156: =SUM(Y153:Y155) -> 0 | Z156: =SUM(Z153:Z155) -> 0 | AA156: =SUM(AA153:AA155) -> 0 | AB156: =SUM(AB153:AB155) -> 0 | AC156: =SUM(AC153:AC155) -> 0 | AD156: =SUM(H156:L156)/SUM(Y156:AC156)-1 ->  | AH156: =SUM(AH153:AH155) -> 0 | AI156: 0 | AJ156: 0 | AK156: 0 | AL156: 0 | AM156: 0 | AN156: 0 | AO156: 0
B157: Total direct expenditure
B158: Distribution mains | C158: =C148+C143+C153 -> 0 | D158: 0 | E158: 0 | F158: 0 | G158: 0 | H158: 0 | I158: 0 | J158: 1476.194884 | K158: 759.6778964 | L158: 773.7653139 | M158: 875.7769414 | N158: 891.9438126 | O158: 908.4104812 | P158: 925.1825067 | Q158: 942.2655514 | S158: 0 | T158: 0 | U158: 0 | V158: 0 | W158: 0 | X158: =SUM(C158:G158)/SUM(S158:W158)-1 ->  | Y158: =Y148+Y143+Y153 -> 0 | Z158: 0 | AA158: 0 | AB158: 0 | AC158: 0 | AD158: =SUM(H158:L158)/SUM(Y158:AC158)-1 ->  | AH158: =AH148+AH143+AH153 -> 0 | AI158: 0 | AJ158: 0 | AK158: 0 | AL158: 0 | AM158: 0 | AN158: 0 | AO158: 0
B159: Inlet / service pipes | C159: 0 | D159: 0 | E159: 0 | F159: 0 | G159: 0 | H159: 39958.38 | I159: 23471.92 | J159: 126597.61 | K159: 63350.17747 | L159: 64524.93904 | M159: 63216.39583 | N159: 64383.37258 | O159: 65571.98967 | P159: 66782.6484 | Q159: 68015.75751 | S159: 0 | T159: 0 | U159: 0 | V159: 0 | W159: 0 | Y159: 0 | Z159: 0 | AA159: 0 | AB159: 0 | AC159: 0 | AH159: =AH149+AH144+AH154 -> 0 | AI159: 0 | AJ159: 0 | AK159: 0 | AL159: 0 | AM159: 0 | AN159: 0 | AO159: 0
B160: Meters | C160: 0 | D160: 0 | E160: 0 | F160: 0 | G160: 0 | H160: -408.0735423 | I160: 8197.956904 | J160: 16110.00292 | K160: 11360.37744 | L160: 11571.04354 | M160: 11839.18257 | N160: 12057.73427 | O160: 12280.33878 | P160: 12507.07125 | Q160: 12738.00824 | S160: 0 | T160: 0 | U160: 0 | V160: 0 | W160: 0 | Y160: 0 | Z160: 0 | AA160: 0 | AB160: 0 | AC160: 0 | AH160: =AH150+AH145+AH155 -> 0 | AI160: 0 | AJ160: 0 | AK160: 0 | AL160: 0 | AM160: 0 | AN160: 0 | AO160: 0
B161: Total direct expenditure | C161: =SUM(C158:C160) -> 0 | D161: =SUM(D158:D160) -> 0 | E161: 0 | F161: 0 | G161: 0 | H161: 39550.30646 | I161: 31669.8769 | J161: 144183.8078 | K161: 75470.2328 | L161: 76869.74789 | M161: 75931.35534 | N161: 77333.05067 | O161: 78760.73893 | P161: 80214.90216 | Q161: 81696.03129 | S161: 0 | T161: 0 | U161: 0 | V161: 0 | W161: =SUM(W158:W160) -> 0 | Y161: 46742.18788 | Z161: 55373.02903 | AA161: 56526.20931 | AB161: 57549.93637 | AC161: 58724.13022 | AD161: 0.3376618687 | AH161: =SUM(AH158:AH160) -> 0 | AI161: =SUM(AI158:AI160) -> 0 | AJ161: 0 | AK161: 0 | AL161: 0 | AM161: 0 | AN161: 0 | AO161: 0
B162: Total overhead cost | H162: 610.4085527 | I162: 156.6954325 | J162: -1127.168747 | K162: 532.7106062 | L162: 464.0032018 | M162: 842.2831188 | N162: 959.0152644 | O162: 941.0035853 | P162: 876.1056578 | Q162: 872.3715743 | Y162: 9348.437575 | Z162: 11074.60581 | AA162: 11305.24186 | AB162: 11509.98727 | AC162: 11744.82604 | AD162: -0.9884210046
B163: Related party margin | H163: 3379.121829 | I163: 2926.728007 | J163: 12979.26758 | K163: 4794.395456 | L163: 4176.028816 | M163: 3531.091834 | N163: 2949.33495 | O163: 3303.342695 | P163: 4046.819054 | Q163: 4356.664838
B164: =CONCATENATE("Tottal Gross expenditure on new ", B26, " connections") -> Tottal Gross expenditure on new New medium density connections | C164: =SUM(C161,C162,C163) -> 0 | D164: =SUM(D161,D162,D163) -> 0 | E164: 0 | F164: 0 | G164: 0 | H164: =SUM(H161,H162,H163) -> 43539.83684 | I164: 34753.30034 | J164: 156035.9066 | K164: 80797.33886 | L164: 81509.7799 | M164: 80304.7303 | N164: 81241.40088 | O164: 83005.08521 | P164: =SUM(P161,P162,P163) -> 85137.82687 | Q164: 86925.06771 | S164: =SUM(S161,S162,S163) -> 0 | T164: =SUM(T161,T162,T163) -> 0 | U164: =SUM(U161,U162,U163) -> 0 | V164: =SUM(V161,V162,V163) -> 0 | W164: =SUM(W161,W162,W163) -> 0 | Y164: =SUM(Y161,Y162,Y163) -> 56090.62545 | Z164: =SUM(Z161,Z162,Z163) -> 66447.63484 | AA164: =SUM(AA161,AA162,AA163) -> 67831.45117 | AB164: =SUM(AB161,AB162,AB163) -> 69059.92365 | AC164: =SUM(AC161,AC162,AC163) -> 70468.95626 | AD164: 0.20229723 | AH164: =SUM(AH161,AH162,AH163) -> 0 | AI164: =SUM(AI161,AI162,AI163) -> 0 | AJ164: 0 | AK164: 0 | AL164: 0 | AM164: 0 | AN164: 0 | AO164: 0
B165: Less customer contributions
B166: =CONCATENATE("Total Net expenditure on new ", B26, " connections") -> Total Net expenditure on new New medium density connections | C166: =C164-C165 -> 0 | D166: =D164-D165 -> 0 | E166: 0 | F166: 0 | G166: 0 | H166: 43539.83684 | I166: 34753.30034 | J166: 156035.9066 | K166: 80797.33886 | L166: 81509.7799 | M166: 80304.7303 | N166: 81241.40088 | O166: 83005.08521 | P166: 85137.82687 | Q166: 86925.06771 | S166: 0 | T166: 0 | U166: 0 | V166: 0 | W166: =W164-W165 -> 0 | X166: =SUM(C166:G166)/SUM(S166:W166)-1 ->  | Y166: =Y164-Y165 -> 56090.62545 | Z166: =Z164-Z165 -> 66447.63484 | AA166: =AA164-AA165 -> 67831.45117 | AB166: =AB164-AB165 -> 69059.92365 | AC166: =AC164-AC165 -> 70468.95626 | AD166: =SUM(H166:L166)/SUM(Y166:AC166)-1 -> 0.20229723 | AH166: =AH164-AH165 -> 0 | AI166: =AI164-AI165 -> 0 | AJ166: 0 | AK166: 0 | AL166: 0 | AM166: 0 | AN166: 0 | AO166: 0
B167: Source(s) of data: | H167: 2013-2015 AER Annual Reporting Templates - Template 2.2 Connections - Residential Tariff V | K167: Historic data sourced from Oracle Financials BM17 report. Forecast data sourced from capex model submitted as Attachment 8.8 to the AAI. | Y167: Envestra final submission capex file 2013 - 2017 'AER Final Decision ENA - sent to DNSP'
B169: Table 4.2.5 - I&C volume
B170: Number of new I&C tariff connections | C170: =C27 -> 26 | D170: 14 | E170: 26 | F170: 18 | G170: 14 | H170: 19 | I170: 9 | J170: 6 | K170: 24.54240377 | L170: 24.68463573 | M170: 24.82769198 | N170: 24.97157728 | O170: 25.11629645 | P170: 25.26185433 | Q170: 25.40825576 | S170: =S27 -> 0 | T170: 0 | U170: 0 | V170: 0 | W170: 0 | Y170: 18.71052558 | Z170: 18.71879548 | AA170: 18.72709062 | AB170: 18.73541106 | AC170: 18.74375688 | AD170: =SUM(H170:L170)/SUM(Y170:AC170)-1 -> -0.111160097 | AH170: =AH27 -> 0 | AI170: 0 | AJ170: 0 | AK170: 0 | AL170: 0 | AM170: 0 | AN170: 0 | AO170: 0
B171: Direct contractor expenditure
B172: Distribution mains | H172: 14832.4 | I172: 0 | J172: 21804.04 | K172: 246294.3544 | L172: 247721.7178 | M172: 159710.3244 | N172: 160635.9025 | O172: 161566.8447 | P172: 162503.182 | Q172: 163444.9458 | X172: =SUM(C172:G172)/SUM(S172:W172)-1 ->  | AD172: =SUM(H172:L172)/SUM(Y172:AC172)-1 -> 
B173: Service Pipes | H173: 35020.65 | I173: 11076.3 | J173: 35605.79 | K173: 92827.12952 | L173: 93365.09576 | M173: 93524.67803 | N173: 94066.6868 | O173: 94611.83671 | P173: 95160.14595 | Q173: 95711.63284 | X173: =SUM(C173:G173)/SUM(S173:W173)-1 ->  | AD173: =SUM(H173:L173)/SUM(Y173:AC173)-1 -> 
B174: Meters | H174: 2323.73 | I174: 4701.41 | J174: 4030.5 | K174: 119868.4026 | L174: 120563.0826 | M174: 104485.7463 | N174: 105091.2783 | O174: 105700.3197 | P174: 106312.8906 | Q174: 106929.0116 | X174: =SUM(C174:G174)/SUM(S174:W174)-1 ->  | AD174: =SUM(H174:L174)/SUM(Y174:AC174)-1 -> 
B175: Total contractor expenditure | C175: =SUM(C172:C174) -> 0 | D175: 0 | E175: 0 | F175: 0 | G175: 0 | H175: 52176.78 | I175: 15777.71 | J175: 61440.33 | K175: 458989.8865 | L175: 461649.8961 | M175: 357720.7487 | N175: 359793.8677 | O175: 361879.0011 | P175: 363976.2186 | Q175: 366085.5902 | S175: 0 | T175: 0 | U175: 0 | V175: 0 | W175: 0 | X175: =SUM(C175:G175)/SUM(S175:W175)-1 ->  | Y175: =SUM(Y172:Y174) -> 0 | Z175: =SUM(Z172:Z174) -> 0 | AA175: =SUM(AA172:AA174) -> 0 | AB175: =SUM(AB172:AB174) -> 0 | AC175: =SUM(AC172:AC174) -> 0 | AD175: =SUM(H175:L175)/SUM(Y175:AC175)-1 ->  | AH175: =SUM(AH172:AH174) -> 0 | AI175: 0 | AJ175: 0 | AK175: 0 | AL175: 0 | AM175: 0 | AN175: 0 | AO175: 0
B176: Direct internal labour expenditure
B177: Distribution mains | H177: 0 | I177: 0 | J177: 0 | K177: 16156.50738 | L177: 16250.14009 | M177: 14271.94148 | N177: 14354.65246 | O177: 14437.84278 | P177: 14521.51521 | Q177: 14605.67255 | X177: =SUM(C177:G177)/SUM(S177:W177)-1 ->  | AD177: =SUM(H177:L177)/SUM(Y177:AC177)-1 -> 
B178: Service Pipes | H178: 0 | I178: 0 | J178: 0 | K178: 5653.443486 | L178: 5686.207201 | M178: 8263.421159 | N178: 8311.310624 | O178: 8359.477625 | P178: 8407.923771 | Q178: 8456.650679 | X178: =SUM(C178:G178)/SUM(S178:W178)-1 ->  | AD178: =SUM(H178:L178)/SUM(Y178:AC178)-1 -> 
B179: Meters | H179: 0 | I179: 0 | J179: 0 | K179: 9394.133084 | L179: 9448.575427 | M179: 11157.4852 | N179: 11222.14679 | O179: 11287.18312 | P179: 11352.59636 | Q179: 11418.3887 | X179: =SUM(C179:G179)/SUM(S179:W179)-1 ->  | AD179: =SUM(H179:L179)/SUM(Y179:AC179)-1 -> 
B180: Total labour expenditure | C180: =SUM(C177:C179) -> 0 | D180: 0 | E180: 0 | F180: 0 | G180: 0 | H180: 0 | I180: 0 | J180: 0 | K180: 31204.08395 | L180: 31384.92271 | M180: 33692.84784 | N180: 33888.10987 | O180: 34084.50352 | P180: 34282.03534 | Q180: 34480.71193 | S180: 0 | T180: 0 | U180: 0 | V180: 0 | W180: 0 | X180: =SUM(C180:G180)/SUM(S180:W180)-1 ->  | Y180: =SUM(Y177:Y179) -> 0 | Z180: =SUM(Z177:Z179) -> 0 | AA180: =SUM(AA177:AA179) -> 0 | AB180: =SUM(AB177:AB179) -> 0 | AC180: =SUM(AC177:AC179) -> 0 | AD180: =SUM(H180:L180)/SUM(Y180:AC180)-1 ->  | AH180: =SUM(AH177:AH179) -> 0 | AI180: 0 | AJ180: 0 | AK180: 0 | AL180: 0 | AM180: 0 | AN180: 0 | AO180: 0
B181: Other internal direct expenditure
B182: Distribution mains | H182: 2837.9 | I182: 53.45 | J182: 567.73 | K182: 23448.97736 | L182: 23584.87253 | M182: 12432.55628 | N182: 12504.60736 | O182: 12577.07601 | P182: 12649.96464 | Q182: 12723.27568 | X182: =SUM(C182:G182)/SUM(S182:W182)-1 ->  | AD182: =SUM(H182:L182)/SUM(Y182:AC182)-1 -> 
B183: Service Pipes | H183: 4487.33 | I183: 5523.25 | J183: 3261.8 | K183: 19188.63564 | L183: 19299.84061 | M183: 23950.26076 | N183: 24089.06104 | O183: 24228.66572 | P183: 24369.07945 | Q183: 24510.30694 | X183: =SUM(C183:G183)/SUM(S183:W183)-1 ->  | AD183: =SUM(H183:L183)/SUM(Y183:AC183)-1 -> 
B184: Meters | H184: 84727.88 | I184: 31214.19 | J184: 18194.61 | K184: 51267.66583 | L184: 51564.78019 | M184: 67930.72635 | N184: 68324.40907 | O184: 68720.37332 | P184: 69118.63232 | Q184: 69519.19938 | X184: =SUM(C184:G184)/SUM(S184:W184)-1 ->  | AD184: =SUM(H184:L184)/SUM(Y184:AC184)-1 -> 
B185: Total material expenditure | C185: =SUM(C182:C184) -> 0 | D185: 0 | E185: 0 | F185: 0 | G185: 0 | H185: 92053.11 | I185: 36790.89 | J185: 22024.14 | K185: 93905.27883 | L185: 94449.49332 | M185: 104313.5434 | N185: 104918.0775 | O185: 105526.115 | P185: 106137.6764 | Q185: 106752.782 | S185: 0 | T185: 0 | U185: 0 | V185: 0 | W185: 0 | X185: =SUM(C185:G185)/SUM(S185:W185)-1 ->  | Y185: =SUM(Y182:Y184) -> 0 | Z185: =SUM(Z182:Z184) -> 0 | AA185: =SUM(AA182:AA184) -> 0 | AB185: =SUM(AB182:AB184) -> 0 | AC185: =SUM(AC182:AC184) -> 0 | AD185: =SUM(H185:L185)/SUM(Y185:AC185)-1 ->  | AH185: =SUM(AH182:AH184) -> 0 | AI185: 0 | AJ185: 0 | AK185: 0 | AL185: 0 | AM185: 0 | AN185: 0 | AO185: 0
B186: Total direct expenditure
B187: Distribution mains | C187: =C177+C172+C182 -> 0 | D187: 0 | E187: 0 | F187: 0 | G187: 0 | H187: 17670.3 | I187: 53.45 | J187: 22371.77 | K187: 285899.8391 | L187: 287556.7304 | M187: 186414.8221 | N187: 187495.1623 | O187: 188581.7635 | P187: 189674.6619 | Q187: 190773.894 | S187: 0 | T187: 0 | U187: 0 | V187: 0 | W187: 0 | X187: =SUM(C187:G187)/SUM(S187:W187)-1 ->  | Y187: =Y177+Y172+Y182 -> 0 | Z187: 0 | AA187: 0 | AB187: 0 | AC187: 0 | AD187: =SUM(H187:L187)/SUM(Y187:AC187)-1 ->  | AH187: =AH177+AH172+AH182 -> 0 | AI187: 0 | AJ187: 0 | AK187: 0 | AL187: 0 | AM187: 0 | AN187: 0 | AO187: 0
B188: Service Pipes | C188: 0 | D188: 0 | E188: 0 | F188: 0 | G188: 0 | H188: 39507.98 | I188: 16599.55 | J188: 38867.59 | K188: 117669.2086 | L188: 118351.1436 | M188: 125738.3599 | N188: 126467.0585 | O188: 127199.98 | P188: 127937.1492 | Q188: 128678.5905 | S188: 0 | T188: 0 | U188: 0 | V188: 0 | W188: 0 | Y188: 0 | Z188: 0 | AA188: 0 | AB188: 0 | AC188: 0 | AH188: =AH178+AH173+AH183 -> 0 | AI188: 0 | AJ188: 0 | AK188: 0 | AL188: 0 | AM188: 0 | AN188: 0 | AO188: 0
B189: Meters | C189: 0 | D189: 0 | E189: 0 | F189: 0 | G189: 0 | H189: 87051.61 | I189: 35915.6 | J189: 22225.11 | K189: 180530.2015 | L189: 181576.4382 | M189: 183573.9578 | N189: 184637.8342 | O189: 185707.8761 | P189: 186784.1193 | Q189: 187866.5997 | S189: 0 | T189: 0 | U189: 0 | V189: 0 | W189: 0 | Y189: 0 | Z189: 0 | AA189: 0 | AB189: 0 | AC189: 0 | AH189: =AH179+AH174+AH184 -> 0 | AI189: 0 | AJ189: 0 | AK189: 0 | AL189: 0 | AM189: 0 | AN189: 0 | AO189: 0
B190: Total direct expenditure | C190: =SUM(C187:C189) -> 0 | D190: =SUM(D187:D189) -> 0 | E190: 0 | F190: 0 | G190: 0 | H190: =SUM(H187:H189) -> 144229.89 | I190: 52568.6 | J190: 83464.47 | K190: =SUM(K187:K189) -> 584099.2493 | L190: 587484.3122 | M190: 495727.1399 | N190: 498600.055 | O190: 501489.6196 | P190: 504395.9304 | Q190: 507319.0842 | Y190: 120940.8587 | Z190: 121363.5912 | AA190: 121882.8689 | AB190: 122125.1653 | AC190: 122604.7734 | AD190: 1.384308383 | AH190: =SUM(AH187:AH189) -> 0 | AI190: =SUM(AI187:AI189) -> 0 | AJ190: 0 | AK190: 0 | AL190: 0 | AM190: 0 | AN190: 0 | AO190: 0
B191: Total overhead cost | H191: 2017.881614 | I191: 451.2335858 | J191: -674.0933841 | K191: 4122.895261 | L191: 3546.188316 | M191: 5498.948354 | N191: 6183.191526 | O191: 5991.608719 | P191: 5509.002897 | Q191: 5417.285774 | Y191: 26969.54862 | Z191: 26050.81668 | AA191: 26518.68577 | AB191: 31045.13795 | AC191: 28566.75373 | AD191: -0.9319867677
B192: Related party margin | H192: 12605.4559 | I192: 4875.631288 | J192: 7511.419659 | K192: 37106.05735 | L192: 31915.69485 | M192: 23053.1649 | N192: 19015.65444 | O192: 21033.22155 | P192: 25446.63157 | Q192: 27054.18097
B193: Total gross expenditure on I&C volume connections | C193: 55000 | D193: 89118 | E193: 57180 | F193: 164560 | G193: 31730 | H193: =SUM(H190,H191,H192) -> 158853.2275 | I193: 57895.46487 | J193: 90301.79628 | K193: =SUM(K190,K191,K192) -> 625328.2019 | L193: 622946.1953 | M193: 524279.2532 | N193: 523798.901 | O193: 528514.4499 | P193: 535351.5648 | Q193: 539790.5509 | S193: =SUM(S190,S191,S192) -> 0 | T193: =SUM(T190,T191,T192) -> 0 | U193: =SUM(U190,U191,U192) -> 0 | V193: =SUM(V190,V191,V192) -> 0 | W193: =SUM(W190,W191,W192) -> 0 | Y193: =SUM(Y190,Y191,Y192) -> 147910.4074 | Z193: =SUM(Z190,Z191,Z192) -> 147414.4079 | AA193: =SUM(AA190,AA191,AA192) -> 148401.5546 | AB193: =SUM(AB190,AB191,AB192) -> 153170.3033 | AC193: =SUM(AC190,AC191,AC192) -> 151171.5271 | AD193: 1.079121777 | AH193: =SUM(AH190,AH191,AH192) -> 0 | AI193: =SUM(AI190,AI191,AI192) -> 0 | AJ193: 0 | AK193: 0 | AL193: 0 | AM193: 0 | AN193: 0 | AO193: 0
B194: Less customer contributions
B195: Total Net expenditure on I&C volume connections | C195: =C193-C194 -> 55000 | D195: =D193-D194 -> 89118 | E195: 57180 | F195: 164560 | G195: 31730 | H195: 158853.2275 | I195: 57895.46487 | J195: 90301.79628 | K195: 625328.2019 | L195: 622946.1953 | M195: 524279.2532 | N195: 523798.901 | O195: 528514.4499 | P195: 535351.5648 | Q195: 539790.5509 | S195: 0 | T195: 0 | U195: 0 | V195: 0 | W195: =W193-W194 -> 0 | X195: =SUM(C195:G195)/SUM(S195:W195)-1 ->  | Y195: =Y193-Y194 -> 147910.4074 | Z195: =Z193-Z194 -> 147414.4079 | AA195: =AA193-AA194 -> 148401.5546 | AB195: =AB193-AB194 -> 153170.3033 | AC195: =AC193-AC194 -> 151171.5271 | AD195: =SUM(H195:L195)/SUM(Y195:AC195)-1 -> 1.079121777 | AH195: =AH193-AH194 -> 0 | AI195: =AI193-AI194 -> 0 | AJ195: 0 | AK195: 0 | AL195: 0 | AM195: 0 | AN195: 0 | AO195: 0
B196: Source(s) of data: | C196: 2008-2012 ESC Regulatory Accounting Statements - Statement 4b "Commercial/industrial Connections" - Total Cost | H196: 2013-2015 AER Annual Reporting Templates - Template 2.2 Connections - I&C Tariff V | K196: Historic data sourced from Oracle Financials BM17 report. Forecast data sourced from capex model submitted as Attachment 8.8 to the AAI. | S196: Review of Gas Access Arrangements 2008 - 2012 - Variations to the Access Arrangements of Envestra (Victoria) and Envestra (Albury): ESC Appeal Panel Decisions E1 and E2 of 2008 - 25 March 2009 | Y196: Envestra final submission capex file 2013 - 2017 'AER Final Decision ENA - sent to DNSP'
H197: =SUM(H187:J188) -> 135070.64 | I197: =SUM(H189:J189) -> 145192.32 | J197: =SUM(H197:I197) -> 280262.96 | K197: =H197/J197 -> 0.48194253 | L197: =1-K197 -> 0.51805747
B198: Table 4.2.6 - Demand
B199: Number of new I&C contract connections | C199: =C28 -> 0 | D199: 0 | E199: 0 | F199: 0 | G199: 0 | H199: 0 | I199: 0 | J199: 0 | K199: 0 | L199: 0 | M199: 0 | N199: 0 | O199: 0 | P199: 0 | Q199: 0 | S199: =S28 -> 0 | T199: 0 | U199: 0 | V199: 0 | W199: 0 | Y199: 0 | Z199: 0 | AA199: 0 | AB199: 0 | AC199: 0 | AD199: =SUM(H199:L199)/SUM(Y199:AC199)-1 ->  | AH199: =AH28 -> 0 | AI199: 0 | AJ199: 0 | AK199: 0 | AL199: 0 | AM199: 0 | AN199: 0 | AO199: 0
B200: Direct contractor expenditure
B201: Distribution mains | H201: 3567.52 | I201: 0 | J201: 0 | K201: 0 | L201: 0 | M201: 0 | N201: 0 | O201: 0 | P201: 0 | Q201: 0 | X201: =SUM(C201:G201)/SUM(S201:W201)-1 ->  | AD201: =SUM(H201:L201)/SUM(Y201:AC201)-1 -> 
B202: Service Pipes | X202: =SUM(C202:G202)/SUM(S202:W202)-1 ->  | AD202: =SUM(H202:L202)/SUM(Y202:AC202)-1 -> 
B203: Meters | X203: =SUM(C203:G203)/SUM(S203:W203)-1 ->  | AD203: =SUM(H203:L203)/SUM(Y203:AC203)-1 -> 
B204: Total contractor expenditure | C204: =SUM(C201:C203) -> 0 | D204: 0 | E204: 0 | F204: 0 | G204: 0 | H204: 3567.52 | I204: 0 | J204: 0 | K204: 0 | L204: 0 | M204: 0 | N204: 0 | O204: 0 | P204: 0 | Q204: 0 | S204: 0 | T204: 0 | U204: 0 | V204: 0 | W204: 0 | X204: =SUM(C204:G204)/SUM(S204:W204)-1 ->  | Y204: =SUM(Y201:Y203) -> 0 | Z204: =SUM(Z201:Z203) -> 0 | AA204: =SUM(AA201:AA203) -> 0 | AB204: =SUM(AB201:AB203) -> 0 | AC204: =SUM(AC201:AC203) -> 0 | AD204: =SUM(H204:L204)/SUM(Y204:AC204)-1 ->  | AH204: =SUM(AH201:AH203) -> 0 | AI204: 0 | AJ204: 0 | AK204: 0 | AL204: 0 | AM204: 0 | AN204: 0 | AO204: 0
B205: Direct internal labour expenditure
B206: Distribution mains | X206: =SUM(C206:G206)/SUM(S206:W206)-1 ->  | AD206: =SUM(H206:L206)/SUM(Y206:AC206)-1 -> 
B207: Service Pipes | X207: =SUM(C207:G207)/SUM(S207:W207)-1 ->  | AD207: =SUM(H207:L207)/SUM(Y207:AC207)-1 -> 
B208: Meters | X208: =SUM(C208:G208)/SUM(S208:W208)-1 ->  | AD208: =SUM(H208:L208)/SUM(Y208:AC208)-1 -> 
B209: Total labour expenditure | C209: =SUM(C206:C208) -> 0 | D209: 0 | E209: 0 | F209: 0 | G209: 0 | H209: 0 | I209: 0 | J209: 0 | K209: 0 | L209: 0 | M209: 0 | N209: 0 | O209: 0 | P209: 0 | Q209: 0 | S209: 0 | T209: 0 | U209: 0 | V209: 0 | W209: 0 | X209: =SUM(C209:G209)/SUM(S209:W209)-1 ->  | Y209: =SUM(Y206:Y208) -> 0 | Z209: =SUM(Z206:Z208) -> 0 | AA209: =SUM(AA206:AA208) -> 0 | AB209: =SUM(AB206:AB208) -> 0 | AC209: =SUM(AC206:AC208) -> 0 | AD209: =SUM(H209:L209)/SUM(Y209:AC209)-1 ->  | AH209: =SUM(AH206:AH208) -> 0 | AI209: 0 | AJ209: 0 | AK209: 0 | AL209: 0 | AM209: 0 | AN209: 0 | AO209: 0
B210: Other internal direct expenditure
B211: Distribution mains | X211: =SUM(C211:G211)/SUM(S211:W211)-1 ->  | AD211: =SUM(H211:L211)/SUM(Y211:AC211)-1 -> 
B212: Service Pipes | X212: =SUM(C212:G212)/SUM(S212:W212)-1 ->  | AD212: =SUM(H212:L212)/SUM(Y212:AC212)-1 -> 
... 68 more rows

Sheet 5. Mains augmentation
E1: =IF(dms_DataQuality="backcast",INDEX(dms_Worksheet_List,MATCH(dms_Model,dms_Model_List))&" BACKCAST",INDEX(dms_Worksheet_List,MATCH(dms_Model,dms_Model_List))) -> REGULATORY REPORTING STATEMENT
E2: =INDEX(dms_TradingNameFull_List,MATCH(dms_TradingName,dms_TradingName_List)) -> Australian Gas Networks Limited (reporting data for Albury)
E3: =IF(SUM(dms_SingleYear_Model)>0,CRY,CONCATENATE(FRCP_y1," to ",dms_MultiYear_FinalYear_Result)) -> 2018 to 2022 | F3: =CONCATENATE(LEFT(FRCP_y1,4),"-",LEFT(FRCP_y5,2),RIGHT(FRCP_y5,2)) -> 2018-2022
E4: 5A. MAINS AUGMENTATION CAPITAL EXPENDITURE
A6: HPM | B6: HP mains | E6: Instructions
A7: HPS | B7: HP services | E7: This template asks for information relating to network augmentation capital expenditure
A8: MPS | B8: MP services | E8: =CONCATENATE("As set out in cl.6.1 of the ", dms_TradingName, " RIN, for tables 5.1 to 5.2, where the requested data is captured in the ", dms_TradingName, " capex model it is not required to be reentered in the RIN template tables. If the requested data has not been provided in the ", dms_TradingName, " RIN please enter into the tables. This may require the insertion of new lines in each table.") -> As set out in cl.6.1 of the AGN (Albury) RIN, for tables 5.1 to 5.2, where the requested data is captured in the AGN (Albury) capex model it is not required to be reentered in the RIN template tables. If the requested data has not been provided in the AGN (Albury) RIN please enter into the tables. This may require the insertion of new lines in each table.
A9: TRS | B9: TRS & DRS - valves & regulators | E9: Reported expenditure is to be entered EXCLUSIVE of any profit margins or management fees paid pursuant to arrangements or contracts with any related parties. Include any Related party margin expenditure or management fees in the separate 'Related party margin expenditure' line item.
A10: TM | B10: Tariff meters | E10: =CONCATENATE("Subject to cl.6.1 of the ", dms_TradingName, " RIN, where linked/adjustable overhead expenditure and Related party margin expenditure is not provided in the ", dms_TradingName, " capex model, overhead expenditure and Related party margin expenditure should be linked to allocations derived in tabs '14. Overheads' and '15. Related party transactions'.") -> Subject to cl.6.1 of the AGN (Albury) RIN, where linked/adjustable overhead expenditure and Related party margin expenditure is not provided in the AGN (Albury) capex model, overhead expenditure and Related party margin expenditure should be linked to allocations derived in tabs '14. Overheads' and '15. Related party transactions'.
A11: RC | B11: Regulatory costs | E11: Capital expenditure amounts entered should be GROSS of customer contributions. There is a separate line item for customer contributions from which net capital expenditure is derived.
A12: ERC | B12: Equity raising costs
E14: Table 5 - MAINS AUGMENTATION CAPITAL EXPENDITURE | AA14: REAL $ CONVERSION OF HISTORICAL DATA
E15: Table 5.1 - Mains augmentation expenditure (actual/forecast)
G16: Previous access arrangement period | L16: Current access arrangement period | Q16: Variance | R16: Next access arrangement period | W16: Supporting documentation (business case, costing spreadsheet, contracts) | AA16: Previous access arrangement period | AF16: Current access arrangement period
G17: $0's, nominal | O17: =CONCATENATE("$0's, real ",dms_DollarReal) -> $0's, real December 2017 | R17: =CONCATENATE("$0's, real ",dms_DollarReal) -> $0's, real December 2017 | AA17: =CONCATENATE("$0's, real ",dms_DollarReal) -> $0's, real December 2017
A18: Internal identification code | B18: Asset category | C18: Percent allocation | G18: Actual | O18: Forecast | Q18: Actual vs Approved | R18: Forecast | AA18: Actual
G19: =PRCP -> 2008 | H19: 2009 | I19: 2010 | J19: 2011 | K19: 2012 | L19: =CRCP_y1 -> 2013 | M19: =CRCP_y2 -> 2014 | N19: =CRCP_y3 -> 2015 | O19: =CRCP_y4 -> 2016 | P19: =CRCP_y5 -> 2017 | Q19: % | R19: =FRCP -> 2018 | S19: 2019 | T19: 2020 | U19: 2021 | V19: 2022 | AA19: =PRCP -> 2008 | AB19: 2009 | AC19: 2010 | AD19: 2011 | AE19: 2012 | AF19: =CRCP_y1 -> 2013 | AG19: =CRCP_y2 -> 2014 | AH19: =CRCP_y3 -> 2015
E20: General | F20: Direct internal labour expenditure | L20: 0 | M20: 0 | N20: 0 | O20: 0 | P20: 0 | Q20: 0
F21: Direct contractor expenditure | L21: 9650.77 | M21: 0 | N21: 0 | O21: 0 | P21: 0 | Q21: 0
F22: Other internal direct expenditure | L22: 80.48 | M22: 0 | N22: 0 | O22: 0 | P22: 0 | Q22: 0
F23: Total direct expenditure | L23: 9731.25 | M23: 0 | N23: 0 | O23: 0 | P23: 0 | Q23: 0 | R23: =SUM(R20:R22) -> 0 | S23: =SUM(S20:S22) -> 0 | T23: =SUM(T20:T22) -> 0 | U23: =SUM(U20:U22) -> 0 | V23: =SUM(V20:V22) -> 0
F24: Total overhead expenditure | L24: 150.7013163 | M24: 0 | N24: 0 | O24: 0 | P24: 0 | Q24: 0
F25: Related party margin expenditure | L25: 831.4672035 | M25: 0 | N25: 0 | O25: 0 | P25: 0 | Q25: 0
F26: Total gross expenditure | G26: 0 | H26: 39720 | I26: 360250 | J26: 0 | K26: 2250 | L26: 10713.41852 | M26: 0 | N26: 0 | O26: 0 | P26: 0 | Q26: 0 | R26: =SUM(R23:R25) -> 0 | S26: 0 | T26: 0 | U26: 0 | V26: 0 | AA26: =SUM(AA23:AA25) -> 0 | AB26: =SUM(AB23:AB25) -> 0 | AC26: 0 | AD26: 0 | AE26: 0 | AF26: 0 | AG26: 0 | AH26: 0
F27: Less customer contributions | L27: 0 | M27: 0 | N27: 0 | O27: 0 | P27: 0 | Q27: 0
F28: Total net expenditure | G28: =G26-G27 -> 0 | H28: =H26-H27 -> 39720 | I28: =I26-I27 -> 360250 | J28: =J26-J27 -> 0 | K28: =K26-K27 -> 2250 | L28: 10713.41852 | M28: 0 | N28: 0 | O28: 0 | P28: 0 | Q28: 0 | R28: =R26-R27 -> 0 | S28: =S26-S27 -> 0 | T28: 0 | U28: 0 | V28: 0 | AA28: =AA26-AA27 -> 0 | AB28: 0 | AC28: 0 | AD28: 0 | AE28: 0 | AF28: 0 | AG28: 0 | AH28: 0
E29: [insert project name] | F29: Direct internal labour expenditure
F30: Direct contractor expenditure
F31: Other internal direct expenditure
F32: Total direct expenditure | R32: =SUM(R29:R31) -> 0 | S32: =SUM(S29:S31) -> 0 | T32: =SUM(T29:T31) -> 0 | U32: =SUM(U29:U31) -> 0 | V32: =SUM(V29:V31) -> 0
F33: Total overhead expenditure
F34: Related party margin expenditure
F35: Total gross expenditure | G35: =SUM(G32:G34) -> 0 | H35: 0 | I35: 0 | J35: 0 | K35: 0 | L35: 0 | M35: 0 | N35: 0 | O35: 0 | P35: 0 | Q35: 0 | R35: 0 | S35: 0 | T35: 0 | U35: 0 | V35: 0 | AA35: =SUM(AA32:AA34) -> 0 | AB35: =SUM(AB32:AB34) -> 0 | AC35: 0 | AD35: 0 | AE35: 0 | AF35: 0 | AG35: 0 | AH35: 0
F36: Less customer contributions
F37: Total net expenditure | G37: =G35-G36 -> 0 | H37: 0 | I37: 0 | J37: 0 | K37: 0 | L37: 0 | M37: 0 | N37: =N35-N36 -> 0 | O37: 0 | P37: 0 | Q37: 0 | R37: 0 | S37: 0 | T37: 0 | U37: 0 | V37: 0 | AA37: =AA35-AA36 -> 0 | AB37: 0 | AC37: 0 | AD37: 0 | AE37: 0 | AF37: 0 | AG37: 0 | AH37: 0
E38: [insert project name] | F38: Direct internal labour expenditure
F39: Direct contractor expenditure
F40: Other internal direct expenditure
F41: Total direct expenditure | R41: =SUM(R38:R40) -> 0 | S41: =SUM(S38:S40) -> 0 | T41: =SUM(T38:T40) -> 0 | U41: =SUM(U38:U40) -> 0 | V41: =SUM(V38:V40) -> 0
F42: Total overhead expenditure
F43: Related party margin expenditure
F44: Total gross expenditure | G44: =SUM(G41:G43) -> 0 | H44: 0 | I44: 0 | J44: 0 | K44: 0 | L44: 0 | M44: 0 | N44: 0 | O44: 0 | P44: 0 | Q44: 0 | R44: 0 | S44: 0 | T44: 0 | U44: 0 | V44: 0 | AA44: =SUM(AA41:AA43) -> 0 | AB44: =SUM(AB41:AB43) -> 0 | AC44: 0 | AD44: 0 | AE44: 0 | AF44: 0 | AG44: 0 | AH44: 0
F45: Less customer contributions
F46: Total net expenditure | G46: =G44-G45 -> 0 | H46: 0 | I46: 0 | J46: 0 | K46: 0 | L46: 0 | M46: 0 | N46: =N44-N45 -> 0 | O46: 0 | P46: 0 | Q46: 0 | R46: 0 | S46: 0 | T46: 0 | U46: 0 | V46: 0 | AA46: =AA44-AA45 -> 0 | AB46: 0 | AC46: 0 | AD46: 0 | AE46: 0 | AF46: 0 | AG46: 0 | AH46: 0
E47: [insert project name] | F47: Direct internal labour expenditure
F48: Direct contractor expenditure
F49: Other internal direct expenditure
F50: Total direct expenditure | R50: =SUM(R47:R49) -> 0 | S50: =SUM(S47:S49) -> 0 | T50: =SUM(T47:T49) -> 0 | U50: =SUM(U47:U49) -> 0 | V50: =SUM(V47:V49) -> 0
F51: Total overhead expenditure
F52: Related party margin expenditure
F53: Total gross expenditure | G53: =SUM(G50:G52) -> 0 | H53: 0 | I53: 0 | J53: 0 | K53: 0 | L53: 0 | M53: 0 | N53: 0 | O53: 0 | P53: 0 | Q53: 0 | R53: 0 | S53: 0 | T53: 0 | U53: 0 | V53: 0 | AA53: =SUM(AA50:AA52) -> 0 | AB53: =SUM(AB50:AB52) -> 0 | AC53: 0 | AD53: 0 | AE53: 0 | AF53: 0 | AG53: 0 | AH53: 0
F54: Less customer contributions
F55: Total net expenditure | G55: =G53-G54 -> 0 | H55: 0 | I55: 0 | J55: 0 | K55: 0 | L55: 0 | M55: 0 | N55: =N53-N54 -> 0 | O55: 0 | P55: 0 | Q55: 0 | R55: 0 | S55: 0 | T55: 0 | U55: 0 | V55: 0 | AA55: =AA53-AA54 -> 0 | AB55: 0 | AC55: 0 | AD55: 0 | AE55: 0 | AF55: 0 | AG55: 0 | AH55: 0
E57: TOTALS | F57: Total Direct expenditure | G57: =SUMIF($F$20:$V$55,"Total direct expenditure",G$20:G$55) -> 0 | H57: 0 | I57: 0 | J57: 0 | K57: 0 | L57: =SUMIF($F$20:$V$55,"Total direct expenditure",L$20:L$55) -> 9731.25 | M57: =SUMIF($F$20:$V$55,"Total direct expenditure",M$20:M$55) -> 0 | N57: 0 | O57: 0 | P57: 0 | Q57: 0 | R57: 0 | S57: 0 | T57: 0 | U57: 0 | V57: 0
F58: Total Overhead cost | G58: =SUMIF($F$20:$V$55,"Total overhead expenditure",G$20:G$55) -> 0 | H58: 0 | I58: 0 | J58: 0 | K58: 0 | L58: =SUMIF($F$20:$V$55,"Total overhead expenditure",L$20:L$55) -> 150.7013163 | M58: =SUMIF($F$20:$V$55,"Total overhead expenditure",M$20:M$55) -> 0 | N58: 0 | O58: 0 | P58: 0 | Q58: 0 | R58: 0 | S58: 0 | T58: 0 | U58: 0 | V58: 0 | AA58: =SUMIF($F$20:$F$55,"Total overhead expenditure",AA20:AA55) -> 0 | AB58: =SUMIF($F$20:$F$55,"Total overhead expenditure",AB20:AB55) -> 0 | AC58: 0 | AD58: 0 | AE58: 0 | AF58: 0 | AG58: 0 | AH58: 0
F59: Related party margin expenditure | G59: =SUMIF($F$20:$V$55,"Related party margin expenditure",G$20:G$55) -> 0 | H59: 0 | I59: 0 | J59: 0 | K59: 0 | L59: =SUMIF($F$20:$V$55,"Related party margin expenditure",L$20:L$55) -> 831.4672035 | M59: =SUMIF($F$20:$V$55,"Related party margin expenditure",M$20:M$55) -> 0 | N59: 0 | O59: 0 | P59: 0 | Q59: 0 | R59: 0 | S59: 0 | T59: 0 | U59: 0 | V59: 0 | AA59: =SUMIF($F$20:$F$55,"Related party margin expenditure",AA20:AA55) -> 0 | AB59: =SUMIF($F$20:$F$55,"Related party margin expenditure",AB20:AB55) -> 0 | AC59: 0 | AD59: 0 | AE59: 0 | AF59: 0 | AG59: 0 | AH59: 0
F60: Total gross expenditure | G60: =SUMIF($F$20:$V$55,"Total gross expenditure",G$20:G$55) -> 0 | H60: 39720 | I60: 360250 | J60: 0 | K60: 2250 | L60: =SUMIF($F$20:$V$55,"Total gross expenditure",L$20:L$55) -> 10713.41852 | M60: =SUMIF($F$20:$V$55,"Total gross expenditure",M$20:M$55) -> 0 | N60: 0 | O60: 0 | P60: 0 | Q60: 0 | R60: 0 | S60: 0 | T60: 0 | U60: 0 | V60: 0 | AA60: =SUMIF($F$20:$F$55,"Total gross expenditure",AA20:AA55) -> 0 | AB60: =SUMIF($F$20:$F$55,"Total gross expenditure",AB20:AB55) -> 0 | AC60: 0 | AD60: 0 | AE60: 0 | AF60: 0 | AG60: 0 | AH60: 0
F61: Less customer contributions | G61: =SUMIF($F$20:$V$55,"Less customer contributions",G$20:G$55) -> 0 | H61: 0 | I61: 0 | J61: 0 | K61: 0 | L61: =SUMIF($F$20:$V$55,"Less customer contributions",L$20:L$55) -> 0 | M61: =SUMIF($F$20:$V$55,"Less customer contributions",M$20:M$55) -> 0 | N61: 0 | O61: 0 | P61: 0 | Q61: 0 | R61: 0 | S61: 0 | T61: 0 | U61: 0 | V61: 0 | AA61: =SUMIF($F$20:$F$55,"Less customer contributions",AA20:AA55) -> 0 | AB61: =SUMIF($F$20:$F$55,"Less customer contributions",AB20:AB55) -> 0 | AC61: 0 | AD61: 0 | AE61: 0 | AF61: 0 | AG61: 0 | AH61: 0
F62: Total net expenditure | G62: =SUMIF($F$20:$V$55,"Total net expenditure",G$20:G$55) -> 0 | H62: 39720 | I62: 360250 | J62: 0 | K62: 2250 | L62: =SUMIF($F$20:$V$55,"Total net expenditure",L$20:L$55) -> 10713.41852 | M62: =SUMIF($F$20:$V$55,"Total net expenditure",M$20:M$55) -> 0 | N62: 0 | O62: 0 | P62: 0 | Q62: 0 | R62: 0 | S62: 0 | T62: 0 | U62: 0 | V62: 0 | AA62: =SUMIF($F$20:$F$55,"Total net expenditure",AA20:AA55) -> 0 | AB62: =SUMIF($F$20:$F$55,"Total net expenditure",AB20:AB55) -> 0 | AC62: 0 | AD62: 0 | AE62: 0 | AF62: 0 | AG62: 0 | AH62: 0
E63: Source(s) of data: | G63: Regulatory Accounting Statements | L63: 2013-2015 AER Annual Reporting Templates - Template 2 Capex - Mains Augmentation. Forecast from Capex model at Attachment 8.8 to the AAI. | O63: Forecast data sourced from capex model submitted as Attachment 8.8 to the AAI.
L64: =+L62 -> 10713.41852 | M64: =+M62 -> 0 | N64: 0 | O64: 0 | P64: 0 | Q64: 0 | R64: 0 | S64: 0 | T64: 0 | U64: 0 | V64: 0
E65: Table 5.2 - Mains augmentation expenditure (approved)
G66: Previous access arrangement period | L66: Current access arrangement period | AA66: Previous access arrangement period | AF66: Current access arrangement period
G67: =CONCATENATE("$0's, real ",dms_DollarReal) -> $0's, real December 2017 | AA67: =CONCATENATE("$0's, real ",dms_DollarReal) -> $0's, real December 2017
G68: Approved | AA68: Approved
G69: =PRCP -> 2008 | H69: 2009 | I69: 2010 | J69: 2011 | K69: 2012 | L69: =CRCP_y1 -> 2013 | M69: =CRCP_y2 -> 2014 | N69: =CRCP_y3 -> 2015 | O69: =CRCP_y4 -> 2016 | P69: =CRCP_y5 -> 2017 | AA69: =PRCP -> 2008 | AB69: 2009 | AC69: 2010 | AD69: 2011 | AE69: 2012 | AF69: =CRCP_y1 -> 2013 | AG69: =CRCP_y2 -> 2014 | AH69: =CRCP_y3 -> 2015
E70: A64 | F70: Total direct expenditure | L70: 9127.46114 | M70: 0 | N70: 0 | O70: 0 | P70: 471205.1813
F71: Total overhead expenditure | L71: 1035.950037 | M71: 0 | N71: 0 | O71: 0 | P71: 57527.8109
F72: Related party margin expenditure
F73: Total gross expenditure | AA73: =SUM(AA71:AA72) -> 0 | AB73: 0 | AC73: 0 | AD73: 0 | AE73: 0 | AF73: 0 | AG73: 0 | AH73: 0
F74: Less customer contributions
F75: Total net expenditure | AA75: =AA73-AA74 -> 0 | AB75: 0 | AC75: 0 | AD75: 0 | AE75: 0 | AF75: 0 | AG75: 0 | AH75: 0
E76: TOTALS | F76: Total Direct expenditure | G76: 0 | H76: =0.14*H90*1000000 -> 181254.4379 | I76: =0.81*I90*1000000 -> 1048686.391 | J76: =SUMIF($F$70:$P$75,"Total direct expenditure",J70:J75) -> 0 | K76: 0 | L76: 9127.46114 | M76: 0 | N76: 0 | O76: 0 | P76: 471205.1813 | AA76: =SUMIF($F$70:$P$75,"Total direct expenditure",AA70:AA75) -> 0 | AB76: 0 | AC76: 0 | AD76: 0 | AE76: 0 | AF76: 0 | AG76: 0 | AH76: 0
F77: Total Overhead cost | G77: =SUMIF($F$70:$P$75,"Total overhead expenditure",G70:G75) -> 0 | H77: 0 | I77: 0 | J77: 0 | K77: 0 | L77: 1035.950037 | M77: 0 | N77: 0 | O77: 0 | P77: 57527.8109 | AA77: =SUMIF($F$70:$P$75,"Total overhead expenditure",AA70:AA75) -> 0 | AB77: 0 | AC77: 0 | AD77: 0 | AE77: 0 | AF77: 0 | AG77: 0 | AH77: 0
F78: Related party margin expenditure | G78: =SUMIF($F$70:$P$75,"Related party margin expenditure",G70:G75) -> 0 | H78: 0 | I78: 0 | J78: 0 | K78: 0 | L78: 0 | M78: 0 | N78: 0 | O78: 0 | P78: 0 | AA78: =SUMIF($F$70:$P$75,"Related party margin expenditure",AA70:AA75) -> 0 | AB78: 0 | AC78: 0 | AD78: 0 | AE78: 0 | AF78: 0 | AG78: 0 | AH78: 0
F79: Total gross expenditure | L79: =SUMIF($F$70:$P$75,"Total gross expenditure",L70:L75) -> 0 | M79: =SUMIF($F$70:$P$75,"Total gross expenditure",M70:M75) -> 0 | N79: =SUMIF($F$70:$P$75,"Total gross expenditure",N70:N75) -> 0 | O79: =SUMIF($F$70:$P$75,"Total gross expenditure",O70:O75) -> 0 | P79: =SUMIF($F$70:$P$75,"Total gross expenditure",P70:P75) -> 0 | AA79: =SUMIF($F$70:$P$75,"Total gross expenditure",AA70:AA75) -> 0 | AB79: 0 | AC79: 0 | AD79: 0 | AE79: 0 | AF79: 0 | AG79: 0 | AH79: 0
F80: Less customer contributions | G80: =SUMIF($F$70:$P$75,"Less customer contributions",G70:G75) -> 0 | H80: 0 | I80: 0 | J80: 0 | K80: 0 | L80: 0 | M80: 0 | N80: 0 | O80: 0 | P80: 0 | AA80: =SUMIF($F$70:$P$75,"Less customer contributions",AA70:AA75) -> 0 | AB80: 0 | AC80: 0 | AD80: 0 | AE80: 0 | AF80: 0 | AG80: 0 | AH80: 0
F81: Total net expenditure | G81: =SUMIF($F$70:$P$75,"Total net expenditure",G70:G75) -> 0 | H81: 0 | I81: 0 | J81: 0 | K81: 0 | L81: 0 | M81: 0 | N81: 0 | O81: 0 | P81: 0 | AA81: =SUMIF($F$70:$P$75,"Total net expenditure",AA70:AA75) -> 0 | AB81: 0 | AC81: 0 | AD81: 0 | AE81: 0 | AF81: 0 | AG81: 0 | AH81: 0
E82: Source(s) of data: | G82: Review of Gas Access Arrangements 2008 - 2012 - Variations to the Access Arrangements of Envestra (Victoria) and Envestra (Albury): ESC Appeal Panel Decisions E1 and E2 of 2008 - 25 March 2009 | L82: Envestra final submission capex file 2013 - 2017 'AER Final Decision ENA - sent to DNSP'
G89: Convert $1 July 2006 to $31 December 2017 | L89: Conversion $2011 to $2017
G90: 1.294674556 | H90: 1.294674556 | I90: 1.294674556 | J90: 1.294674556 | K90: 1.294674556 | L90: 2010-09-01 | M90: 96.5
L91: 2016-09-01 | M91: ='4. Connections market expansn'!Z286 -> 110.1
M92: =M91/M90 -> 1.140932642

Sheet 6. Mains replacement
E1: =IF(dms_DataQuality="backcast",INDEX(dms_Worksheet_List,MATCH(dms_Model,dms_Model_List))&" BACKCAST",INDEX(dms_Worksheet_List,MATCH(dms_Model,dms_Model_List))) -> REGULATORY REPORTING STATEMENT
E2: =INDEX(dms_TradingNameFull_List,MATCH(dms_TradingName,dms_TradingName_List)) -> Australian Gas Networks Limited (reporting data for Albury)
E3: =IF(SUM(dms_SingleYear_Model)>0,CRY,CONCATENATE(FRCP_y1," to ",dms_MultiYear_FinalYear_Result)) -> 2018 to 2022 | F3: =CONCATENATE(LEFT(FRCP_y1,4),"-",LEFT(FRCP_y5,2),RIGHT(FRCP_y5,2)) -> 2018-2022
E4: 6. MAINS REPLACEMENT CAPITAL EXPENDITURE
A6: Asset category | E6: Instructions
A7: HPM | B7: HP mains | E7: This template asks for information relating to mains replacement capital expenditure.
A8: TRS | B8: TRS & DRS - valves & regulators | E8: =CONCATENATE("As set out in cl.6.1 of the ", dms_TradingName, " RIN, for tables 6.1.1 to 6.1.3, where the requested data is captured in the ", dms_TradingName, " capex model it is not required to be reentered in the RIN template tables. If the requested data has not been provided in the ", dms_TradingName, " capex model please enter into the tables below. This may require the insertion of new lines in each table.") -> As set out in cl.6.1 of the AGN (Albury) RIN, for tables 6.1.1 to 6.1.3, where the requested data is captured in the AGN (Albury) capex model it is not required to be reentered in the RIN template tables. If the requested data has not been provided in the AGN (Albury) capex model please enter into the tables below. This may require the insertion of new lines in each table.
A9: CM | B9: Contract meters | E9: Reported expenditure is to be entered EXCLUSIVE of any profit margins or management fees paid pursuant to arrangements or contracts with any related parties. Include any related party margins or management fees in the separate 'Related party margin' line item.
A10: ITS | B10: IT System | E10: =CONCATENATE("Subject to cl.7.1 of the ", dms_TradingName, " RIN, where linked/adjustable overhead expenditure and related party margin expenditure is not provided in the ", dms_TradingName, " capex model, overhead expenditure and related party margin expenditure should be linked to allocations derived in tabs '14. Overheads' and '15. Related party transactions'.") -> Subject to cl.7.1 of the AGN (Albury) RIN, where linked/adjustable overhead expenditure and related party margin expenditure is not provided in the AGN (Albury) capex model, overhead expenditure and related party margin expenditure should be linked to allocations derived in tabs '14. Overheads' and '15. Related party transactions'.
A11: ERC | B11: Equity raising expenditure | E11: Capital expenditure amounts entered should be GROSS of customer contributions. There is a separate line item for customer contributions from which net capital expenditure is derived.
E15: Table 6 - MAINS REPLACEMENT CAPITAL EXPENDITURE | AL15: REAL $ CONVERSION OF HISTORICAL DATA
E16: Table 6.1 - Mains replacement expenditure (actual/forecast)
E17: Table 6.1.1 - Proactive mains replacement expenditure
G18: Previous access arrangement period | L18: Current access arrangement period | Q18: Next access arrangement period | W18: Previous access arrangement period | AC18: Current access arrangement period | AL18: Previous access arrangement period | AQ18: Current access arrangement period
G19: $0's, nominal | O19: =CONCATENATE("$0's, real ",dms_DollarReal) -> $0's, real December 2017 | W19: =CONCATENATE("$0's, real ",dms_DollarReal) -> $0's, real December 2017 | AB19: Variance | AC19: =CONCATENATE("$0's, real ",dms_DollarReal) -> $0's, real December 2017 | AH19: Variance | AL19: =CONCATENATE("$0's, real ",dms_DollarReal) -> $0's, real December 2017
G20: Actual | O20: Forecast | W20: Approved | AB20: Actual v approved | AC20: Approved | AH20: Actual v approved | AL20: Actual
G21: =PRCP -> 2008 | H21: 2009 | I21: 2010 | J21: 2011 | K21: 2012 | L21: =CRCP_y1 -> 2013 | M21: =CRCP_y2 -> 2014 | N21: =CRCP_y3 -> 2015 | O21: =CRCP_y4 -> 2016 | P21: =CRCP_y5 -> 2017 | Q21: =FRCP -> 2018 | R21: 2019 | S21: 2020 | T21: 2021 | U21: 2022 | W21: =PRCP -> 2008 | X21: 2009 | Y21: 2010 | Z21: 2011 | AA21: 2012 | AB21: % | AC21: =CRCP_y1 -> 2013 | AD21: =CRCP_y2 -> 2014 | AE21: =CRCP_y3 -> 2015 | AF21: =CRCP_y4 -> 2016 | AG21: =CRCP_y5 -> 2017 | AH21: % | AL21: =PRCP -> 2008 | AM21: 2009 | AN21: 2010 | AO21: 2011 | AP21: 2012 | AQ21: =CRCP_y1 -> 2013 | AR21: =CRCP_y2 -> 2014 | AS21: =CRCP_y3 -> 2015
E22: LP pipe replacement | F22: Length of mains replaced (metres) | G22: [C-I-C] | H22: [C-I-C] | I22: [C-I-C] | J22: [C-I-C] | K22: [C-I-C] | L22: [C-I-C] | M22: [C-I-C] | N22: [C-I-C] | O22: [C-I-C] | P22: [C-I-C] | Q22: [C-I-C] | R22: [C-I-C] | S22: [C-I-C] | T22: [C-I-C] | U22: [C-I-C] | W22: [C-I-C] | X22: [C-I-C] | Y22: [C-I-C] | Z22: [C-I-C] | AA22: [C-I-C] | AB22: [C-I-C] | AC22: [C-I-C] | AD22: [C-I-C] | AE22: [C-I-C] | AF22: [C-I-C] | AG22: [C-I-C] | AH22: [C-I-C]
F23: Low pressure - high pressure | G23: [C-I-C] | H23: [C-I-C] | I23: [C-I-C] | J23: [C-I-C] | K23: [C-I-C] | L23: [C-I-C] | M23: [C-I-C] | N23: [C-I-C] | O23: [C-I-C] | P23: [C-I-C] | Q23: [C-I-C] | R23: [C-I-C] | S23: [C-I-C] | T23: [C-I-C] | U23: [C-I-C] | W23: [C-I-C] | X23: [C-I-C] | Y23: [C-I-C] | Z23: [C-I-C] | AA23: [C-I-C] | AB23: [C-I-C] | AC23: [C-I-C] | AD23: [C-I-C] | AE23: [C-I-C] | AF23: [C-I-C] | AG23: [C-I-C] | AH23: [C-I-C]
F24: Low pressure - medium pressure | G24: [C-I-C] | H24: [C-I-C] | I24: [C-I-C] | J24: [C-I-C] | K24: [C-I-C] | L24: [C-I-C] | M24: [C-I-C] | N24: [C-I-C] | O24: [C-I-C] | P24: [C-I-C] | Q24: [C-I-C] | R24: [C-I-C] | S24: [C-I-C] | T24: [C-I-C] | U24: [C-I-C] | W24: [C-I-C] | X24: [C-I-C] | Y24: [C-I-C] | Z24: [C-I-C] | AA24: [C-I-C] | AB24: [C-I-C] | AC24: [C-I-C] | AD24: [C-I-C] | AE24: [C-I-C] | AF24: [C-I-C] | AG24: [C-I-C] | AH24: [C-I-C]
F25: Low pressure - low pressure | G25: [C-I-C] | H25: [C-I-C] | I25: [C-I-C] | J25: [C-I-C] | K25: [C-I-C] | L25: [C-I-C] | M25: [C-I-C] | N25: [C-I-C] | O25: [C-I-C] | P25: [C-I-C] | Q25: [C-I-C] | R25: [C-I-C] | S25: [C-I-C] | T25: [C-I-C] | U25: [C-I-C] | W25: [C-I-C] | X25: [C-I-C] | Y25: [C-I-C] | Z25: [C-I-C] | AA25: [C-I-C] | AB25: [C-I-C] | AC25: [C-I-C] | AD25: [C-I-C] | AE25: [C-I-C] | AF25: [C-I-C] | AG25: [C-I-C] | AH25: [C-I-C]
F26: Medium pressure - medium pressure | G26: [C-I-C] | H26: [C-I-C] | I26: [C-I-C] | J26: [C-I-C] | K26: [C-I-C] | L26: [C-I-C] | M26: [C-I-C] | N26: [C-I-C] | O26: [C-I-C] | P26: [C-I-C] | Q26: [C-I-C] | R26: [C-I-C] | S26: [C-I-C] | T26: [C-I-C] | U26: [C-I-C] | W26: [C-I-C] | X26: [C-I-C] | Y26: [C-I-C] | Z26: [C-I-C] | AA26: [C-I-C] | AB26: [C-I-C] | AC26: [C-I-C] | AD26: [C-I-C] | AE26: [C-I-C] | AF26: [C-I-C] | AG26: [C-I-C] | AH26: [C-I-C]
F27: Medium pressure - high pressure | G27: [C-I-C] | H27: [C-I-C] | I27: [C-I-C] | J27: [C-I-C] | K27: [C-I-C] | L27: [C-I-C] | M27: [C-I-C] | N27: [C-I-C] | O27: [C-I-C] | P27: [C-I-C] | Q27: [C-I-C] | R27: [C-I-C] | S27: [C-I-C] | T27: [C-I-C] | U27: [C-I-C] | W27: [C-I-C] | X27: [C-I-C] | Y27: [C-I-C] | Z27: [C-I-C] | AA27: [C-I-C] | AB27: [C-I-C] | AC27: [C-I-C] | AD27: [C-I-C] | AE27: [C-I-C] | AF27: [C-I-C] | AG27: [C-I-C] | AH27: [C-I-C]
F28: Total volume | G28: [C-I-C] | H28: [C-I-C] | I28: [C-I-C] | J28: [C-I-C] | K28: [C-I-C] | L28: [C-I-C] | M28: [C-I-C] | N28: [C-I-C] | O28: [C-I-C] | P28: [C-I-C] | Q28: [C-I-C] | R28: [C-I-C] | S28: [C-I-C] | T28: [C-I-C] | U28: [C-I-C] | W28: [C-I-C] | X28: [C-I-C] | Y28: [C-I-C] | Z28: [C-I-C] | AA28: [C-I-C] | AB28: [C-I-C] | AC28: [C-I-C] | AD28: [C-I-C] | AE28: [C-I-C] | AF28: [C-I-C] | AG28: [C-I-C] | AH28: [C-I-C]
F29: Direct expenditure
F30: Direct contractor expenditure
F31: Direct internal labour expenditure
F32: Other internal direct expenditure
F33: Total direct expenditure | L33: =SUM(L30:L32) -> 0 | M33: 0 | N33: 0 | O33: 0 | P33: 0 | Q33: 0 | R33: 0 | S33: 0 | T33: 0 | U33: 0 | W33: =SUM(W30:W32) -> 0 | X33: 0 | Y33: 0 | Z33: 0 | AA33: 0 | AB33: =SUM(G33:K33)/SUM(W33:AA33)-1 ->  | AC33: =SUM(AC30:AC32) -> 0 | AD33: 0 | AE33: 0 | AF33: 0 | AG33: 0 | AH33: =SUM(L33:P33)/SUM(AC33:AG33)-1 -> 
F34: Total overhead expenditure | AB34: =SUM(G34:K34)/SUM(W34:AA34)-1 ->  | AH34: =SUM(L34:P34)/SUM(AC34:AG34)-1 -> 
F35: Related party margin expenditure
F36: Total gross expenditure | G36: 1000 | H36: 0 | I36: 1950 | J36: 0 | K36: 12750 | L36: =SUM(L34:L35) -> 0 | M36: =SUM(M34:M35) -> 0 | N36: =SUM(N34:N35) -> 0 | O36: =SUM(O34:O35) -> 0 | P36: =SUM(P34:P35) -> 0 | Q36: =SUM(Q34:Q35) -> 0 | R36: 0 | S36: 0 | T36: 0 | U36: 0 | W36: =SUM(W34:W35) -> 0 | X36: =SUM(X34:X35) -> 0 | Y36: =SUM(Y34:Y35) -> 0 | Z36: =SUM(Z34:Z35) -> 0 | AA36: =SUM(AA34:AA35) -> 0 | AB36: =SUM(G36:K36)/SUM(W36:AA36)-1 ->  | AC36: =SUM(AC33:AC35) -> 0 | AD36: =SUM(AD33:AD35) -> 0 | AE36: =SUM(AE33:AE35) -> 0 | AF36: =SUM(AF33:AF35) -> 0 | AG36: =SUM(AG33:AG35) -> 0 | AH36: =SUM(L36:P36)/SUM(AC36:AG36)-1 -> 
F37: Less customer contributions
F38: Total net expenditure | G38: =G36-G37 -> 1000 | H38: =H36-H37 -> 0 | I38: =I36-I37 -> 1950 | J38: =J36-J37 -> 0 | K38: =K36-K37 -> 12750 | L38: =M36-M37 -> 0 | M38: =N36-N37 -> 0 | N38: =N36-N37 -> 0 | O38: =O36-O37 -> 0 | P38: =P36-P37 -> 0 | Q38: =R36-R37 -> 0 | R38: =S36-S37 -> 0 | S38: =S36-S37 -> 0 | T38: 0 | U38: 0 | W38: =W36-W37 -> 0 | X38: 0 | Y38: 0 | Z38: 0 | AA38: 0 | AB38: =SUM(G38:K38)/SUM(W38:AA38)-1 ->  | AC38: =AC36-AC37 -> 0 | AD38: =AD36-AD37 -> 0 | AE38: =AE36-AE37 -> 0 | AF38: =AF36-AF37 -> 0 | AG38: =AG36-AG37 -> 0 | AH38: =SUM(L38:P38)/SUM(AC38:AG38)-1 -> 
E39: LP pipe replacement - adhoc | F39: Length of mains replaced (metres) | G39: [C-I-C] | H39: [C-I-C] | I39: [C-I-C] | J39: [C-I-C] | K39: [C-I-C] | L39: [C-I-C] | M39: [C-I-C] | N39: [C-I-C] | O39: [C-I-C] | P39: [C-I-C] | Q39: [C-I-C] | R39: [C-I-C] | S39: [C-I-C] | T39: [C-I-C] | U39: [C-I-C] | W39: [C-I-C] | X39: [C-I-C] | Y39: [C-I-C] | Z39: [C-I-C] | AA39: [C-I-C] | AB39: [C-I-C] | AC39: [C-I-C] | AD39: [C-I-C] | AE39: [C-I-C] | AF39: [C-I-C] | AG39: [C-I-C] | AH39: [C-I-C]
F40: Low pressure - high pressure | G40: [C-I-C] | H40: [C-I-C] | I40: [C-I-C] | J40: [C-I-C] | K40: [C-I-C] | L40: [C-I-C] | M40: [C-I-C] | N40: [C-I-C] | O40: [C-I-C] | P40: [C-I-C] | Q40: [C-I-C] | R40: [C-I-C] | S40: [C-I-C] | T40: [C-I-C] | U40: [C-I-C] | W40: [C-I-C] | X40: [C-I-C] | Y40: [C-I-C] | Z40: [C-I-C] | AA40: [C-I-C] | AB40: [C-I-C] | AC40: [C-I-C] | AD40: [C-I-C] | AE40: [C-I-C] | AF40: [C-I-C] | AG40: [C-I-C] | AH40: [C-I-C]
F41: Low pressure - medium pressure | G41: [C-I-C] | H41: [C-I-C] | I41: [C-I-C] | J41: [C-I-C] | K41: [C-I-C] | L41: [C-I-C] | M41: [C-I-C] | N41: [C-I-C] | O41: [C-I-C] | P41: [C-I-C] | Q41: [C-I-C] | R41: [C-I-C] | S41: [C-I-C] | T41: [C-I-C] | U41: [C-I-C] | W41: [C-I-C] | X41: [C-I-C] | Y41: [C-I-C] | Z41: [C-I-C] | AA41: [C-I-C] | AB41: [C-I-C] | AC41: [C-I-C] | AD41: [C-I-C] | AE41: [C-I-C] | AF41: [C-I-C] | AG41: [C-I-C] | AH41: [C-I-C]
F42: Low pressure - low pressure | G42: [C-I-C] | H42: [C-I-C] | I42: [C-I-C] | J42: [C-I-C] | K42: [C-I-C] | L42: [C-I-C] | M42: [C-I-C] | N42: [C-I-C] | O42: [C-I-C] | P42: [C-I-C] | Q42: [C-I-C] | R42: [C-I-C] | S42: [C-I-C] | T42: [C-I-C] | U42: [C-I-C] | W42: [C-I-C] | X42: [C-I-C] | Y42: [C-I-C] | Z42: [C-I-C] | AA42: [C-I-C] | AB42: [C-I-C] | AC42: [C-I-C] | AD42: [C-I-C] | AE42: [C-I-C] | AF42: [C-I-C] | AG42: [C-I-C] | AH42: [C-I-C]
F43: Medium pressure - medium pressure | G43: [C-I-C] | H43: [C-I-C] | I43: [C-I-C] | J43: [C-I-C] | K43: [C-I-C] | L43: [C-I-C] | M43: [C-I-C] | N43: [C-I-C] | O43: [C-I-C] | P43: [C-I-C] | Q43: [C-I-C] | R43: [C-I-C] | S43: [C-I-C] | T43: [C-I-C] | U43: [C-I-C] | W43: [C-I-C] | X43: [C-I-C] | Y43: [C-I-C] | Z43: [C-I-C] | AA43: [C-I-C] | AB43: [C-I-C] | AC43: [C-I-C] | AD43: [C-I-C] | AE43: [C-I-C] | AF43: [C-I-C] | AG43: [C-I-C] | AH43: [C-I-C]
F44: Medium pressure - high pressure | G44: [C-I-C] | H44: [C-I-C] | I44: [C-I-C] | J44: [C-I-C] | K44: [C-I-C] | L44: [C-I-C] | M44: [C-I-C] | N44: [C-I-C] | O44: [C-I-C] | P44: [C-I-C] | Q44: [C-I-C] | R44: [C-I-C] | S44: [C-I-C] | T44: [C-I-C] | U44: [C-I-C] | W44: [C-I-C] | X44: [C-I-C] | Y44: [C-I-C] | Z44: [C-I-C] | AA44: [C-I-C] | AB44: [C-I-C] | AC44: [C-I-C] | AD44: [C-I-C] | AE44: [C-I-C] | AF44: [C-I-C] | AG44: [C-I-C] | AH44: [C-I-C]
F45: Total volume | G45: [C-I-C] | H45: [C-I-C] | I45: [C-I-C] | J45: [C-I-C] | K45: [C-I-C] | L45: [C-I-C] | M45: [C-I-C] | N45: [C-I-C] | O45: [C-I-C] | P45: [C-I-C] | Q45: [C-I-C] | R45: [C-I-C] | S45: [C-I-C] | T45: [C-I-C] | U45: [C-I-C] | W45: [C-I-C] | X45: [C-I-C] | Y45: [C-I-C] | Z45: [C-I-C] | AA45: [C-I-C] | AB45: [C-I-C] | AC45: [C-I-C] | AD45: [C-I-C] | AE45: [C-I-C] | AF45: [C-I-C] | AG45: [C-I-C] | AH45: [C-I-C]
F46: Direct expenditure
F47: Direct contractor expenditure
F48: Direct internal labour expenditure
F49: Other internal direct expenditure
F50: Total direct expenditure | L50: =SUM(L47:L49) -> 0 | M50: 0 | N50: 0 | O50: 0 | P50: 0 | Q50: 0 | R50: =SUM(R47:R49) -> 0 | S50: 0 | T50: 0 | U50: 0 | W50: 0 | X50: =SUM(X47:X49) -> 0 | Y50: 0 | Z50: 0 | AA50: 0 | AB50: =SUM(G50:K50)/SUM(W50:AA50)-1 ->  | AC50: =SUM(AC47:AC49) -> 0 | AD50: 0 | AE50: 0 | AF50: 0 | AG50: 0 | AH50: =SUM(L50:P50)/SUM(AC50:AG50)-1 -> 
F51: Total overhead expenditure | AB51: =SUM(G51:K51)/SUM(W51:AA51)-1 ->  | AH51: =SUM(L51:P51)/SUM(AC51:AG51)-1 -> 
F52: Related party margin expenditure
F53: Total gross expenditure | G53: 3000 | H53: 10153 | I53: 34302 | J53: 46830 | K53: 63620 | L53: =SUM(L51:L52) -> 0 | M53: =SUM(M51:M52) -> 0 | N53: =SUM(N51:N52) -> 0 | O53: =SUM(O51:O52) -> 0 | P53: =SUM(P51:P52) -> 0 | Q53: =SUM(Q51:Q52) -> 0 | R53: 0 | S53: 0 | T53: 0 | U53: 0 | W53: =SUM(W51:W52) -> 0 | X53: =SUM(X51:X52) -> 0 | Y53: =SUM(Y51:Y52) -> 0 | Z53: =SUM(Z51:Z52) -> 0 | AA53: =SUM(AA51:AA52) -> 0 | AB53: =SUM(G53:K53)/SUM(W53:AA53)-1 ->  | AC53: =SUM(AC50:AC52) -> 0 | AD53: =SUM(AD50:AD52) -> 0 | AE53: =SUM(AE50:AE52) -> 0 | AF53: =SUM(AF50:AF52) -> 0 | AG53: =SUM(AG50:AG52) -> 0 | AH53: =SUM(L53:P53)/SUM(AC53:AG53)-1 -> 
F54: Less customer contributions
F55: Total net expenditure | G55: =G53-G54 -> 3000 | H55: =H53-H54 -> 10153 | I55: =I53-I54 -> 34302 | J55: =J53-J54 -> 46830 | K55: =K53-K54 -> 63620 | L55: =M53-M54 -> 0 | M55: =N53-N54 -> 0 | N55: =N53-N54 -> 0 | O55: =O53-O54 -> 0 | P55: =P53-P54 -> 0 | Q55: =R53-R54 -> 0 | R55: =S53-S54 -> 0 | S55: =S53-S54 -> 0 | T55: 0 | U55: 0 | W55: 0 | X55: 0 | Y55: 0 | Z55: 0 | AA55: 0 | AB55: =SUM(G55:K55)/SUM(W55:AA55)-1 ->  | AC55: =AC53-AC54 -> 0 | AD55: =AD53-AD54 -> 0 | AE55: =AE53-AE54 -> 0 | AF55: =AF53-AF54 -> 0 | AG55: =AG53-AG54 -> 0 | AH55: =SUM(L55:P55)/SUM(AC55:AG55)-1 -> 
E57: Total of all projects | F57: Length of mains replaced (metres) | G57: =SUMIF($F$56:$AH$56,"Length of mains replaced (metres)",H56:H56) -> 0 | H57: 0 | I57: 0 | J57: 0 | K57: 0 | L57: 0 | M57: =SUMIF($F$56:$AH$56,"Length of mains replaced (metres)",M56:M56) -> 0 | N57: 0 | O57: 0 | P57: 0 | Q57: 0 | R57: 0 | S57: 0 | T57: 0 | U57: 0 | W57: =SUMIF($F$56:$AH$56,"Length of mains replaced (metres)",W56:W56) -> 0 | X57: 0 | Y57: 0 | Z57: 0 | AA57: 0 | AB57: 0 | AC57: 0 | AD57: 0 | AE57: 0 | AF57: 0 | AG57: 0 | AH57: 0
F58: Direct expenditure
F59: Direct contractor expenditure | L59: =SUMIF($F$56:$AH$56,"Direct contractor expenditure (excl. escalation)",M56:M56) -> 0 | M59: =SUMIF($F$56:$AH$56,"Direct contractor expenditure (excl. escalation)",M56:M56) -> 0 | N59: 0 | O59: 0 | P59: 0 | Q59: 0 | R59: 0 | S59: 0 | T59: 0 | U59: 0 | W59: =SUMIF($F$56:$AH$56,"Direct contractor expenditure (excl. escalation)",W56:W56) -> 0 | X59: 0 | Y59: 0 | Z59: 0 | AA59: 0 | AB59: 0 | AC59: 0 | AD59: 0 | AE59: 0 | AF59: 0 | AG59: 0 | AH59: 0
F60: Direct internal labour expenditure | L60: =SUMIF($F$56:$AH$56,"Direct internal labour expenditure (excl. escalation)",M56:M56) -> 0 | M60: =SUMIF($F$56:$AH$56,"Direct internal labour expenditure (excl. escalation)",M56:M56) -> 0 | N60: 0 | O60: 0 | P60: 0 | Q60: 0 | R60: 0 | S60: 0 | T60: 0 | U60: 0 | W60: =SUMIF($F$56:$AH$56,"Direct internal labour expenditure (excl. escalation)",W56:W56) -> 0 | X60: 0 | Y60: 0 | Z60: 0 | AA60: 0 | AB60: 0 | AC60: 0 | AD60: 0 | AE60: 0 | AF60: 0 | AG60: 0 | AH60: 0
F61: Other internal direct expenditure | L61: =SUMIF($F$56:$AH$56,"Direct material expenditure (excl. escalation)",M56:M56) -> 0 | M61: =SUMIF($F$56:$AH$56,"Direct material expenditure (excl. escalation)",M56:M56) -> 0 | N61: 0 | O61: 0 | P61: 0 | Q61: 0 | R61: 0 | S61: 0 | T61: 0 | U61: 0 | W61: =SUMIF($F$56:$AH$56,"Direct material expenditure (excl. escalation)",W56:W56) -> 0 | X61: 0 | Y61: 0 | Z61: 0 | AA61: 0 | AB61: 0 | AC61: 0 | AD61: 0 | AE61: 0 | AF61: 0 | AG61: 0 | AH61: 0
F62: Total direct expenditure | L62: =SUMIF($F$56:$AH$56,"Total direct expenditure (excl. escalation)",M56:M56) -> 0 | M62: =SUMIF($F$56:$AH$56,"Total direct expenditure (excl. escalation)",M56:M56) -> 0 | N62: 0 | O62: 0 | P62: 0 | Q62: 0 | R62: 0 | S62: 0 | T62: 0 | U62: 0 | W62: =SUMIF($F$56:$AH$56,"Total direct expenditure (excl. escalation)",W56:W56) -> 0 | X62: 0 | Y62: 0 | Z62: 0 | AA62: 0 | AB62: 0 | AC62: 0 | AD62: 0 | AE62: 0 | AF62: 0 | AG62: 0 | AH62: 0
F63: Total overhead expenditure | G63: =SUMIF($F$56:$AH$56,"Total overhead expenditure",H56:H56) -> 0 | H63: 0 | I63: 0 | J63: 0 | K63: 0 | L63: 0 | M63: =SUMIF($F$56:$AH$56,"Total overhead expenditure",M56:M56) -> 0 | N63: 0 | O63: 0 | P63: 0 | Q63: 0 | R63: 0 | S63: 0 | T63: 0 | U63: 0 | W63: =SUMIF($F$56:$AH$56,"Total overhead expenditure",W56:W56) -> 0 | X63: 0 | Y63: 0 | Z63: 0 | AA63: 0 | AB63: 0 | AC63: 0 | AD63: 0 | AE63: 0 | AF63: 0 | AG63: 0 | AH63: 0
F64: Related party margin expenditure | G64: =SUMIF($F$56:$AH$56,"Related party margin",H56:H56) -> 0 | H64: 0 | I64: 0 | J64: 0 | K64: 0 | L64: 0 | M64: =SUMIF($F$56:$AH$56,"Related party margin",M56:M56) -> 0 | N64: 0 | O64: 0 | P64: 0 | Q64: 0 | R64: 0 | S64: 0 | T64: 0 | U64: 0 | W64: =SUMIF($F$56:$AH$56,"Related party margin",W56:W56) -> 0 | X64: 0 | Y64: 0 | Z64: 0 | AA64: 0 | AB64: 0 | AC64: 0 | AD64: 0 | AE64: 0 | AF64: 0 | AG64: 0 | AH64: 0
F65: Total gross expenditure | G65: =G36+G53 -> 4000 | H65: =H36+H53 -> 10153 | I65: 36252 | J65: 46830 | K65: 76370 | L65: =SUMIF($F$56:$AH$56,"Gross total expenditure (incl. escalation)",M56:M56) -> 0 | M65: =SUMIF($F$56:$AH$56,"Gross total expenditure (incl. escalation)",M56:M56) -> 0 | N65: 0 | O65: 0 | P65: 0 | Q65: 0 | R65: 0 | S65: 0 | T65: 0 | U65: 0 | W65: =SUM(W63:W64) -> 0 | X65: 0 | Y65: 0 | Z65: 0 | AA65: 0 | AB65: 0 | AC65: 0 | AD65: 0 | AE65: 0 | AF65: 0 | AG65: 0 | AH65: 0
F66: Less customer contributions | G66: =SUMIF($F$56:$AH$56,"Less customer contributions",H56:H56) -> 0 | H66: 0 | I66: 0 | J66: 0 | K66: 0 | L66: 0 | M66: =SUMIF($F$56:$AH$56,"Less customer contributions",M56:M56) -> 0 | N66: 0 | O66: 0 | P66: 0 | Q66: 0 | R66: 0 | S66: 0 | T66: 0 | U66: 0 | W66: =SUMIF($F$56:$AH$56,"Less customer contributions",W56:W56) -> 0 | X66: 0 | Y66: 0 | Z66: 0 | AA66: 0 | AB66: 0 | AC66: 0 | AD66: 0 | AE66: 0 | AF66: 0 | AG66: 0 | AH66: 0
F67: Total net expenditure | G67: =G65-G66 -> 4000 | H67: =H65-H66 -> 10153 | I67: 36252 | J67: 46830 | K67: 76370 | L67: =SUMIF($F$56:$AH$56,"Net total expenditure (incl. escalation)",M56:M56) -> 0 | M67: =SUMIF($F$56:$AH$56,"Net total expenditure (incl. escalation)",M56:M56) -> 0 | N67: 0 | O67: 0 | P67: 0 | Q67: 0 | R67: 0 | S67: 0 | T67: 0 | U67: 0 | W67: =SUMIF($F$56:$AH$56,"Net total expenditure (incl. escalation)",W56:W56) -> 0 | X67: 0 | Y67: 0 | Z67: 0 | AA67: 0 | AB67: 0 | AC67: 0 | AD67: 0 | AE67: 0 | AF67: 0 | AG67: 0 | AH67: 0
E68: Source(s) of data: | G68: 2008-2012 Regulatory Accounting Statements | L68: 2013-2015 AER Annual Reporting Templates - Template 2.1 Mains - Total mains replacement | Q68: APA Forecast | W68: Review of Gas Access Arrangements 2008 - 2012 - Variations to the Access Arrangements of Envestra (Victoria) and Envestra (Albury): ESC Appeal Panel Decisions E1 and E2 of 2008 - 25 March 2009 | AC68: Source: Envestra final submission capex file 2013 - 2017 'AER Final decision ENA - Sent to DNSP'
E70: Table 6.1.2 - Ad hoc/reactive mains replacement
G71: Previous access arrangement period | L71: Current access arrangement period | Q71: Next access arrangement period | W71: Previous access arrangement period | AC71: Current access arrangement period
G72: $0's, nominal | O72: =CONCATENATE("$0's, real ",dms_DollarReal) -> $0's, real December 2017 | W72: =CONCATENATE("$0's, real ",dms_DollarReal) -> $0's, real December 2017 | AB72: Variance | AC72: =CONCATENATE("$0's, real ",dms_DollarReal) -> $0's, real December 2017 | AH72: Variance
G73: Actual | O73: Forecast | W73: Approved | AB73: Actual v approved | AC73: Approved | AH73: Actual v approved
G74: =PRCP -> 2008 | H74: 2009 | I74: 2010 | J74: 2011 | K74: 2012 | L74: =CRCP_y1 -> 2013 | M74: =CRCP_y2 -> 2014 | N74: =CRCP_y3 -> 2015 | O74: =CRCP_y4 -> 2016 | P74: =CRCP_y5 -> 2017 | Q74: =FRCP -> 2018 | R74: 2019 | S74: 2020 | T74: 2021 | U74: 2022 | W74: =PRCP -> 2008 | X74: 2009 | Y74: 2010 | Z74: 2011 | AA74: 2012 | AB74: % | AC74: =CRCP_y1 -> 2013 | AD74: =CRCP_y2 -> 2014 | AE74: =CRCP_y3 -> 2015 | AF74: =CRCP_y4 -> 2016 | AG74: =CRCP_y5 -> 2017 | AH74: %
E75: Mains | F75: Length of mains replaced (metres) | G75: [C-I-C] | H75: [C-I-C] | I75: [C-I-C] | J75: [C-I-C] | K75: [C-I-C] | L75: [C-I-C] | M75: [C-I-C] | N75: [C-I-C] | O75: [C-I-C] | P75: [C-I-C] | Q75: [C-I-C] | R75: [C-I-C] | S75: [C-I-C] | T75: [C-I-C] | U75: [C-I-C] | W75: [C-I-C] | X75: [C-I-C] | Y75: [C-I-C] | Z75: [C-I-C] | AA75: [C-I-C] | AB75: [C-I-C] | AC75: [C-I-C] | AD75: [C-I-C] | AE75: [C-I-C] | AF75: [C-I-C] | AG75: [C-I-C] | AH75: [C-I-C]
F76: Direct expenditure | L76: 0 | M76: 0 | N76: 0 | O76: 0 | P76: 0 | Q76: 0 | R76: 0 | S76: 0 | T76: 0 | U76: 0
F77: Direct contractor expenditure | L77: 0 | M77: 26742.25 | N77: 3653.05 | O77: 0 | P77: 0 | Q77: 0 | R77: 0 | S77: 0 | T77: 0 | U77: 0
F78: Direct internal labour expenditure | L78: 0 | M78: 0 | N78: 0 | O78: 0 | P78: 0 | Q78: 0 | R78: 0 | S78: 0 | T78: 0 | U78: 0
F79: Other internal direct expenditure | L79: 0 | M79: 4346.89 | N79: 175.76 | O79: 0 | P79: 0 | Q79: 0 | R79: 0 | S79: 0 | T79: 0 | U79: 0
F80: Total direct expenditure | L80: 0 | M80: 31089.14 | N80: 3828.81 | O80: 0 | P80: 0 | Q80: 0 | R80: 0 | S80: 0 | T80: 0 | U80: 0 | W80: =0.01*1000000*W129 -> 12946.74556 | X80: =0.01*1000000*X129 -> 12946.74556 | Y80: 12946.74556 | Z80: 12946.74556 | AA80: 12946.74556 | AB80: =SUM(G80:K80)/SUM(W80:AA80)-1 -> -1 | AC80: 8054.000125 | AD80: 8111.111107 | AE80: 8183.070944 | AF80: 8212.142718 | AG80: 8277.815856 | AH80: =SUM(L80:P80)/SUM(AC80:AG80)-1 -> -0.1449671959
F81: Total overhead expenditure | L81: 0 | M81: 148.1374344 | N81: -7.110147419 | O81: 0 | P81: 0 | Q81: 0 | R81: 0 | S81: 0 | T81: 0 | U81: 0 | AB81: =SUM(G81:K81)/SUM(W81:AA81)-1 ->  | AC81: 1796.024522 | AD81: 1741.05814 | AE81: 1780.433042 | AF81: 2087.588605 | AG81: 1928.720396 | AH81: =SUM(L81:P81)/SUM(AC81:AG81)-1 -> -0.984890729
F82: Related party margin expenditure | L82: 0 | M82: 2743.58733 | N82: 51.52366493 | O82: 0 | P82: 0 | Q82: 0 | R82: 0 | S82: 0 | T82: 0 | U82: 0
F83: Total gross expenditure | G83: =SUM(G80:G82) -> 0 | H83: =SUM(H80:H82) -> 0 | I83: 0 | J83: 0 | K83: 0 | L83: =SUM(L80:L82) -> 0 | M83: =SUM(M80:M82) -> 33980.86476 | N83: 3873.223518 | O83: 0 | P83: 0 | Q83: =SUM(Q80:Q82) -> 0 | R83: 0 | S83: =SUM(S80:S82) -> 0 | T83: 0 | U83: 0 | W83: =SUM(W81:W82) -> 0 | X83: =SUM(X81:X82) -> 0 | Y83: =SUM(Y81:Y82) -> 0 | Z83: =SUM(Z81:Z82) -> 0 | AA83: =SUM(AA81:AA82) -> 0 | AC83: =SUM(AC80:AC82) -> 9850.024647 | AD83: =SUM(AD80:AD82) -> 9852.169248 | AE83: =SUM(AE80:AE82) -> 9963.503986 | AF83: =SUM(AF80:AF82) -> 10299.73132 | AG83: =SUM(AG80:AG82) -> 10206.53625 | AH83: -0.2455131479
F84: Less customer contributions | L84: 0 | M84: 0 | N84: 0 | O84: 0 | P84: 0 | Q84: 0 | R84: 0 | S84: 0 | T84: 0 | U84: 0
F85: Total net expenditure | G85: =G83-G84 -> 0 | H85: 0 | I85: 0 | J85: 0 | K85: 0 | L85: =L83-L84 -> 0 | M85: =M83-M84 -> 33980.86476 | N85: 3873.223518 | O85: 0 | P85: 0 | Q85: 0 | R85: 0 | S85: 0 | T85: 0 | U85: 0 | W85: =W83-W84 -> 0 | X85: =X83-X84 -> 0 | Y85: =Y83-Y84 -> 0 | Z85: =Z83-Z84 -> 0 | AA85: =AA83-AA84 -> 0 | AC85: =AC83-AC84 -> 9850.024647 | AD85: =AD83-AD84 -> 9852.169248 | AE85: =AE83-AE84 -> 9963.503986 | AF85: =AF83-AF84 -> 10299.73132 | AG85: =AG83-AG84 -> 10206.53625 | AH85: -0.2455131479
E86: Services | F86: Services replaced (number) | G86: [C-I-C] | H86: [C-I-C] | I86: [C-I-C] | J86: [C-I-C] | K86: [C-I-C] | L86: [C-I-C] | M86: [C-I-C] | N86: [C-I-C] | O86: [C-I-C] | P86: [C-I-C] | Q86: [C-I-C] | R86: [C-I-C] | S86: [C-I-C] | T86: [C-I-C] | U86: [C-I-C] | W86: [C-I-C] | X86: [C-I-C] | Y86: [C-I-C] | Z86: [C-I-C] | AA86: [C-I-C] | AB86: [C-I-C] | AC86: [C-I-C] | AD86: [C-I-C] | AE86: [C-I-C] | AF86: [C-I-C] | AG86: [C-I-C] | AH86: [C-I-C]
F87: Direct expenditure
F88: Direct contractor expenditure | L88: 10874.51 | M88: 8519.1 | N88: 0 | O88: 0 | P88: 0 | Q88: 0 | R88: 0 | S88: 0 | T88: 0 | U88: 0
F89: Direct internal labour expenditure | L89: 0 | M89: 0 | N89: 90.97 | O89: 0 | P89: 0 | Q89: 0 | R89: 0 | S89: 0 | T89: 0 | U89: 0
F90: Other internal direct expenditure | L90: 2058.39 | M90: 359.1 | N90: 7606.59 | O90: 0 | P90: 0 | Q90: 0 | R90: 0 | S90: 0 | T90: 0 | U90: 0
F91: Total direct expenditure | L91: 12932.9 | M91: 8878.2 | N91: 7697.56 | O91: 23953.38302 | P91: 23968.03799 | Q91: 17349.67142 | R91: 17349.67142 | S91: 17349.67142 | T91: 17349.67142 | U91: 17349.67142 | W91: =SUM(W88:W90) -> 0 | X91: 0 | Y91: 0 | Z91: 0 | AA91: 0 | AB91: =SUM(G91:K91)/SUM(W91:AA91)-1 ->  | AC91: 0 | AD91: 0 | AE91: 0 | AG91: 0 | AH91: =SUM(L91:P91)/SUM(AC91:AG91)-1 ->  | AQ91: =SUM(AQ88:AQ90) -> 0 | AR91: =SUM(AR88:AR90) -> 0 | AS91: =SUM(AS88:AS90) -> 0
F92: Total overhead expenditure | L92: 114.7603912 | M92: 46.70177592 | N92: -108.1816121 | O92: 169.0762135 | P92: 144.6765038 | Q92: 192.454557 | R92: 215.1550933 | S92: 207.2873266 | T92: 189.4927861 | U92: 185.264326
F93: Related party margin expenditure | L93: 1097.829907 | M93: 863.1674865 | N93: 737.4738287 | O93: 1521.685921 | P93: 1302.088534 | Q93: 806.8245695 | R93: 661.6833536 | S93: 727.6710596 | T93: 875.2860006 | U93: 925.2187926
F94: Total gross expenditure | G94: =SUM(G92:G93) -> 0 | H94: 0 | I94: 0 | J94: 0 | K94: 0 | L94: =SUM(L91:L93) -> 14145.4903 | M94: =SUM(M91:M93) -> 9788.069262 | N94: =SUM(N91:N93) -> 8326.852217 | O94: 25644.14516 | P94: 25414.80303 | Q94: =SUM(Q91:Q93) -> 18348.95055 | R94: =SUM(R91:R93) -> 18226.50987 | S94: =SUM(S91:S93) -> 18284.62981 | T94: =SUM(T91:T93) -> 18414.45021 | U94: 18460.15454 | W94: =SUM(W92:W93) -> 0 | X94: =SUM(X92:X93) -> 0 | Y94: =SUM(Y92:Y93) -> 0 | Z94: =SUM(Z92:Z93) -> 0 | AA94: =SUM(AA92:AA93) -> 0 | AC94: =SUM(AC92:AC93) -> 0 | AD94: =SUM(AD92:AD93) -> 0 | AE94: =SUM(AE92:AE93) -> 0 | AF94: =SUM(AF92:AF93) -> 0 | AG94: =SUM(AG92:AG93) -> 0 | AH94: =SUM(L94:P94)/SUM(AC94:AG94)-1 ->  | AL94: =SUM(AL92:AL93) -> 0 | AM94: =SUM(AM92:AM93) -> 0 | AN94: 0 | AO94: 0 | AP94: 0 | AQ94: 0 | AR94: 0 | AS94: 0
F95: Less customer contributions | L95: 0 | M95: 0 | N95: 0 | O95: 0 | P95: 0 | Q95: 0 | R95: 0 | S95: 0 | T95: 0 | U95: 0
F96: Total net expenditure | G96: =G94-G95 -> 0 | H96: 0 | I96: 0 | J96: 0 | K96: 0 | L96: =L94-L95 -> 14145.4903 | M96: =M94-M95 -> 9788.069262 | N96: 8326.852217 | O96: 25644.14516 | P96: 25414.80303 | Q96: 18348.95055 | R96: 18226.50987 | S96: 18284.62981 | T96: 18414.45021 | U96: 18460.15454 | W96: =W94-W95 -> 0 | X96: =X94-X95 -> 0 | Y96: =Y94-Y95 -> 0 | Z96: =Z94-Z95 -> 0 | AA96: =AA94-AA95 -> 0 | AC96: =AC94-AC95 -> 0 | AD96: =AD94-AD95 -> 0 | AE96: =AE94-AE95 -> 0 | AG96: =AG94-AG95 -> 0 | AL96: =AL94-AL95 -> 0 | AM96: 0 | AN96: 0 | AO96: 0 | AP96: 0 | AQ96: 0 | AR96: 0 | AS96: 0
E97: Total | F97: Total direct expenditure
F98: Total direct contractor expenditure | G98: =G77 -> 0 | H98: =H77 -> 0 | I98: 0 | J98: 0 | K98: 0 | L98: =L77+L88 -> 10874.51 | M98: =M77+M88 -> 35261.35 | N98: =N77+N88 -> 3653.05 | O98: 0 | P98: 0 | Q98: 0 | R98: 0 | S98: 0 | T98: 0 | U98: 0 | W98: =W77 -> 0 | X98: 0 | Y98: 0 | Z98: 0 | AA98: 0 | AB98: =SUM(G98:K98)/SUM(W98:AA98)-1 ->  | AC98: =AC77 -> 0 | AD98: 0 | AE98: 0 | AF98: 0 | AG98: 0 | AH98: =SUM(L98:P98)/SUM(AC98:AG98)-1 -> 
F99: Total direct internal labor expenditure | G99: 0 | H99: =H78 -> 0 | I99: 0 | J99: 0 | K99: 0 | L99: =L78+L89 -> 0 | M99: =M78+M89 -> 0 | N99: 90.97 | O99: 0 | P99: 0 | Q99: 0 | R99: 0 | S99: 0 | T99: 0 | U99: 0 | W99: 0 | X99: 0 | Y99: 0 | Z99: 0 | AA99: 0 | AC99: 0 | AD99: 0 | AE99: 0 | AF99: 0 | AG99: 0
F100: Total Other internal direct expenditure | G100: 0 | H100: 0 | I100: 0 | J100: 0 | K100: 0 | L100: =L79+L90 -> 2058.39 | M100: 4705.99 | N100: 7782.35 | O100: 0 | P100: 0 | Q100: 0 | R100: 0 | S100: 0 | T100: 0 | U100: 0 | W100: 0 | X100: 0 | Y100: 0 | Z100: 0 | AA100: 0 | AC100: 0 | AD100: 0 | AE100: 0 | AF100: 0 | AG100: 0
F101: Total direct expenditure | G101: 0 | H101: 0 | I101: 0 | J101: 0 | K101: 0 | L101: =L80+L91 -> 12932.9 | M101: 39967.34 | N101: 11526.37 | O101: 23953.38302 | P101: 23968.03799 | Q101: 17349.67142 | R101: 17349.67142 | S101: 17349.67142 | T101: 17349.67142 | U101: 17349.67142 | W101: 12946.74556 | X101: 12946.74556 | Y101: 12946.74556 | Z101: 12946.74556 | AA101: 12946.74556 | AB101: -1 | AC101: 8054.000125 | AD101: 8111.111107 | AE101: 8183.070944 | AF101: 8212.142718 | AG101: 8277.815856 | AH101: 1.751056462
F102: Total overhead expenditure | G102: 0 | H102: 0 | I102: 0 | J102: 0 | K102: 0 | L102: =L81+L92 -> 114.7603912 | M102: 194.8392103 | N102: -115.2917596 | O102: 169.0762135 | P102: 144.6765038 | Q102: 192.454557 | R102: 215.1550933 | S102: 207.2873266 | T102: 189.4927861 | U102: 185.264326 | W102: 0 | X102: 0 | Y102: 0 | Z102: 0 | AA102: 0 | AC102: 1796.024522 | AD102: 1741.05814 | AE102: 1780.433042 | AF102: 2087.588605 | AG102: 1928.720396 | AH102: -0.9455678058
F103: Related party margin expenditure | G103: 0 | H103: 0 | I103: 0 | J103: 0 | K103: 0 | L103: =L82+L93 -> 1097.829907 | M103: 3606.754816 | N103: 788.9974937 | O103: 1521.685921 | P103: 1302.088534 | Q103: 806.8245695 | R103: 661.6833536 | S103: 727.6710596 | T103: 875.2860006 | U103: 925.2187926 | W103: =SUMIF($F$56:$AH$56,"Related party margin",U57:U85) -> 0 | X103: =SUMIF($F$56:$AH$56,"Related party margin",V57:V85) -> 0 | Y103: =SUMIF($F$56:$AH$56,"Related party margin",W57:W85) -> 0 | Z103: =SUMIF($F$56:$AH$56,"Related party margin",X57:X85) -> 0 | AA103: =SUMIF($F$56:$AH$56,"Related party margin",Y57:Y85) -> 0 | AC103: =SUMIF($F$56:$AH$56,"Related party margin",AA57:AA85) -> 0 | AD103: =SUMIF($F$56:$AH$56,"Related party margin",AB57:AB85) -> 0 | AE103: =SUMIF($F$56:$AH$56,"Related party margin",AC57:AC85) -> 0 | AF103: =SUMIF($F$56:$AH$56,"Related party margin",AD57:AD85) -> 0 | AG103: =SUMIF($F$56:$AH$56,"Related party margin",AE57:AE85) -> 0
F104: Total gross expenditure | G104: 0 | H104: 0 | I104: 0 | J104: 0 | K104: 0 | L104: =L83+L94 -> 14145.4903 | M104: 43768.93403 | N104: 12200.07573 | O104: 25644.14516 | P104: 25414.80303 | Q104: 18348.95055 | R104: 18226.50987 | S104: 18284.62981 | T104: 18414.45021 | U104: 18460.15454 | W104: =W83 -> 0 | X104: 0 | Y104: 0 | Z104: 0 | AA104: 0 | AC104: =AC83 -> 9850.024647 | AD104: 9852.169248 | AE104: 9963.503986 | AF104: 10299.73132 | AG104: 10206.53625 | AH104: 1.415162475
F105: Less customer contributions | G105: 0 | H105: 0 | I105: 0 | J105: 0 | K105: 0 | L105: =L84+L95 -> 0 | M105: 0 | N105: 0 | O105: 0 | P105: 0 | Q105: 0 | R105: 0 | S105: 0 | T105: 0 | U105: 0 | W105: 0 | X105: 0 | Y105: 0 | Z105: 0 | AA105: 0 | AC105: 0 | AD105: 0 | AE105: 0 | AF105: 0 | AG105: 0
F106: Total net expenditure | G106: 0 | H106: =H85 -> 0 | I106: 0 | J106: 0 | K106: 0 | L106: =L85+L96 -> 14145.4903 | M106: 43768.93403 | N106: 12200.07573 | O106: 25644.14516 | P106: 25414.80303 | Q106: 18348.95055 | R106: 18226.50987 | S106: 18284.62981 | T106: 18414.45021 | U106: 18460.15454 | W106: 0 | X106: 0 | Y106: 0 | Z106: 0 | AA106: 0 | AC106: 9850.024647 | AD106: 9852.169248 | AE106: 9963.503986 | AF106: 10299.73132 | AG106: 10206.53625 | AH106: 1.415162475
E107: Source(s) of data: | L107: 2013-2015 AER Annual Reporting Templates - Template 2 Capex - Other | O107: APA Forecast | W107: Review of Gas Access Arrangements 2008 - 2012 - Variations to the Access Arrangements of Envestra (Victoria) and Envestra (Albury): ESC Appeal Panel Decisions E1 and E2 of 2008 - 25 March 2009, p13 | AC107: Source: Envestra final submission capex file 2013 - 2017 'AER Final decision ENA - Sent to DNSP'
L108: =+L106 -> 14145.4903 | M108: =+M106 -> 43768.93403 | N108: 12200.07573 | O108: 25644.14516 | P108: 25414.80303 | Q108: 18348.95055 | R108: 18226.50987 | S108: 18284.62981 | T108: 18414.45021 | U108: 18460.15454
E109: Table 6.1.3 - Total Mains replacement
F110: Total direct expenditure | G110: =SUM(G62,G101) -> 0 | H110: 0 | I110: 0 | J110: 0 | K110: 0 | L110: 12932.9 | M110: 39967.34 | N110: 11526.37 | O110: 23953.38302 | P110: 23968.03799 | Q110: 17349.67142 | R110: 17349.67142 | S110: 17349.67142 | T110: 17349.67142 | U110: 17349.67142 | W110: =SUM(W62,W101) -> 12946.74556 | X110: 12946.74556 | Y110: 12946.74556 | Z110: 12946.74556 | AA110: 12946.74556 | AB110: =SUM(G110:K110)/SUM(W110:AA110)-1 -> -1 | AC110: =SUM(AC62,AC101) -> 8054.000125 | AD110: =SUM(AD62,AD101) -> 8111.111107 | AE110: =SUM(AF62,AE101) -> 8183.070944 | AF110: =SUM(AG62,AF101) -> 8212.142718 | AG110: =SUM(AG62,AG101) -> 8277.815856 | AH110: =SUM(#REF!,AH103) -> 
F111: Total overhead expenditure | G111: =SUM(G63,G102) -> 0 | H111: 0 | I111: 0 | J111: 0 | K111: 0 | L111: 114.7603912 | M111: 194.8392103 | N111: -115.2917596 | O111: 169.0762135 | P111: 144.6765038 | Q111: 192.454557 | R111: 215.1550933 | S111: 207.2873266 | T111: 189.4927861 | U111: 185.264326 | W111: 0 | X111: 0 | Y111: 0 | Z111: 0 | AA111: 0 | AC111: =SUM(AC63,AC102) -> 1796.024522 | AD111: =SUM(AD63,AD102) -> 1741.05814 | AE111: =SUM(AF63,AE102) -> 1780.433042 | AF111: =SUM(AG63,AF102) -> 2087.588605 | AG111: =SUM(AG63,AG102) -> 1928.720396 | AH111: =SUM(#REF!,AH106) -> 
F112: Related party margin expenditure | G112: =SUM(G64,G103) -> 0 | H112: 0 | I112: 0 | J112: 0 | K112: 0 | L112: 1097.829907 | M112: 3606.754816 | N112: 788.9974937 | O112: 1521.685921 | P112: 1302.088534 | Q112: 806.8245695 | R112: 661.6833536 | S112: 727.6710596 | T112: 875.2860006 | U112: 925.2187926 | W112: =SUMIF($F$56:$AH$56,"Related party margin",U57:U109) -> 0 | X112: =SUMIF($F$56:$AH$56,"Related party margin",W57:W109) -> 0 | Y112: =SUMIF($F$56:$AH$56,"Related party margin",X57:X109) -> 0 | Z112: =SUMIF($F$56:$AH$56,"Related party margin",Y57:Y109) -> 0 | AA112: =SUMIF($F$56:$AH$56,"Related party margin",Z57:Z109) -> 0 | AC112: =SUMIF($F$56:$AH$56,"Related party margin",AB57:AB109) -> 0 | AD112: =SUMIF($F$56:$AH$56,"Related party margin",AC57:AC109) -> 0 | AE112: =SUMIF($F$56:$AH$56,"Related party margin",AD57:AD109) -> 0 | AF112: =SUMIF($F$56:$AH$56,"Related party margin",AE57:AE109) -> 0 | AG112: =SUMIF($F$56:$AH$56,"Related party margin",AF57:AF109) -> 0 | AH112: =SUM(#REF!,AH107) -> 
F113: Total gross expenditure | G113: =SUM(G65,G104) -> 4000 | H113: 10153 | I113: 36252 | J113: 46830 | K113: 76370 | L113: 14145.4903 | M113: 43768.93403 | N113: 12200.07573 | O113: 25644.14516 | P113: 25414.80303 | Q113: 18348.95055 | R113: 18226.50987 | S113: 18284.62981 | T113: 18414.45021 | U113: 18460.15454 | W113: =SUM(W65,W104) -> 0 | X113: =SUM(X65,X104) -> 0 | Y113: =SUM(Y65,Y104) -> 0 | Z113: =SUM(Z65,Z104) -> 0 | AA113: =SUM(AA65,AA104) -> 0 | AC113: =SUM(AC65,AC104) -> 9850.024647 | AD113: =SUM(AD65,AD104) -> 9852.169248 | AE113: =SUM(AF65,AE104) -> 9963.503986 | AF113: =SUM(AG65,AF104) -> 10299.73132 | AG113: =SUM(AG65,AG104) -> 10206.53625
F114: Less customer contributions | G114: =SUM(G66,G105) -> 0 | H114: 0 | I114: 0 | J114: 0 | K114: 0 | L114: 0 | M114: 0 | N114: 0 | O114: 0 | P114: 0 | Q114: 0 | R114: 0 | S114: 0 | T114: 0 | U114: 0 | W114: =SUMIF($F$56:$AH$56,"Less customer contributions",U57:U109) -> 0 | X114: =SUMIF($F$56:$AH$56,"Less customer contributions",W57:W109) -> 0 | Y114: =SUMIF($F$56:$AH$56,"Less customer contributions",X57:X109) -> 0 | Z114: =SUMIF($F$56:$AH$56,"Less customer contributions",Y57:Y109) -> 0 | AA114: =SUMIF($F$56:$AH$56,"Less customer contributions",Z57:Z109) -> 0 | AC114: =SUMIF($F$56:$AH$56,"Less customer contributions",AB57:AB109) -> 0 | AD114: =SUMIF($F$56:$AH$56,"Less customer contributions",AC57:AC109) -> 0 | AE114: =SUMIF($F$56:$AH$56,"Less customer contributions",AD57:AD109) -> 0 | AF114: =SUMIF($F$56:$AH$56,"Less customer contributions",AE57:AE109) -> 0 | AG114: =SUMIF($F$56:$AH$56,"Less customer contributions",AF57:AF109) -> 0
F115: Total net expenditure | G115: =SUM(G67,G106) -> 4000 | H115: 10153 | I115: 36252 | J115: 46830 | K115: 76370 | L115: 14145.4903 | M115: 43768.93403 | N115: 12200.07573 | O115: 25644.14516 | P115: 25414.80303 | Q115: 18348.95055 | R115: 18226.50987 | S115: 18284.62981 | T115: 18414.45021 | U115: 18460.15454 | W115: =W113-W114 -> 0 | X115: 0 | Y115: 0 | Z115: 0 | AA115: 0 | AC115: =AC113-AC114 -> 9850.024647 | AD115: =AD113-AD114 -> 9852.169248 | AE115: =AE113-AE114 -> 9963.503986 | AF115: =AF113-AF114 -> 10299.73132 | AG115: =AG113-AG114 -> 10206.53625
E116: Source(s) of data: | W116: Review of Gas Access Arrangements 2008 - 2012 - Variations to the Access Arrangements of Envestra (Victoria) and Envestra (Albury): ESC Appeal Panel Decisions E1 and E2 of 2008 - 25 March 2009 | AC116: Source: Envestra final submission capex file 2013 - 2017 'AER Final decision ENA - Sent to DNSP'
W128: Convert $1 July 2006 to $31 December 2017 | AC128: Conversion $2011 to $2017
W129: 1.294674556 | X129: 1.294674556 | Y129: 1.294674556 | Z129: 1.294674556 | AA129: 1.294674556 | AC129: 2010-09-01 | AD129: 96.5
AC130: 2016-09-01 | AD130: ='4. Connections market expansn'!Z286 -> 110.1
AD131: =AD130/AD129 -> 1.140932642

Sheet 7. Telemetry
E1: =IF(dms_DataQuality="backcast",INDEX(dms_Worksheet_List,MATCH(dms_Model,dms_Model_List))&" BACKCAST",INDEX(dms_Worksheet_List,MATCH(dms_Model,dms_Model_List))) -> REGULATORY REPORTING STATEMENT
E2: =INDEX(dms_TradingNameFull_List,MATCH(dms_TradingName,dms_TradingName_List)) -> Australian Gas Networks Limited (reporting data for Albury)
E3: =IF(SUM(dms_SingleYear_Model)>0,CRY,CONCATENATE(FRCP_y1," to ",dms_MultiYear_FinalYear_Result)) -> 2018 to 2022
E4: 7. TELEMETRY CAPITAL EXPENDITURE
A6: HPM | B6: HP mains | E6: Instructions
A7: HPS | B7: HP services | E7: This template asks for information relating to telemetry capital expenditure
A8: MPM | B8: MP mains | E8: =CONCATENATE("As set out in cl.6.1 of the ", dms_TradingName, " RIN, for tables 7.1 to 7.2, where the requested data is captured in the ", dms_TradingName, " capex model it is not required to be reentered in the RIN template tables. If the requested data has not been provided in the ", dms_TradingName, " RIN please enter into the tables. This may require the insertion of new lines in each table.") -> As set out in cl.6.1 of the AGN (Albury) RIN, for tables 7.1 to 7.2, where the requested data is captured in the AGN (Albury) capex model it is not required to be reentered in the RIN template tables. If the requested data has not been provided in the AGN (Albury) RIN please enter into the tables. This may require the insertion of new lines in each table.
A9: MPS | B9: MP services | E9: Reported expenditure is to be entered EXCLUSIVE of any profit margins or management fees paid pursuant to arrangements or contracts with any related parties. Include any related party margins or management fees in the separate 'Related party margin' line item.
A10: CM | B10: Contract meters | E10: =CONCATENATE("Subject to cl.6.1 of the ", dms_TradingName, " RIN, where linked/adjustable overhead expenditure and related party margin expenditure is not provided in the ", dms_TradingName, " capex model, overhead expenditure and related party margin expenditure should be linked to allocations derived in tabs '14. Overheads' and '15. Related party transactions'.") -> Subject to cl.6.1 of the AGN (Albury) RIN, where linked/adjustable overhead expenditure and related party margin expenditure is not provided in the AGN (Albury) capex model, overhead expenditure and related party margin expenditure should be linked to allocations derived in tabs '14. Overheads' and '15. Related party transactions'.
A11: TM | B11: Tariff meters | E11: Capital expenditure amounts entered should be GROSS of customer contributions. There is a separate line item for customer contributions from which net capital expenditure is derived.
A12: ERC | B12: Equity raising expenditure
E14: Table 7 - TELEMETRY CAPITAL EXPENDITURE | AA14: REAL $ CONVERSION OF HISTORICAL DATA
E15: Table 7.1 - Telemetry expenditure (actual / forecast)
G16: Previous access arrangement period | L16: Current access arrangement period | Q16: Variance | R16: Next access arrangement period | W16: Supporting documentation (business case, costing spreadsheet, contracts) | AA16: Previous access arrangement period | AF16: Current access arrangement period
G17: $0's, nominal | O17: $0's, real June 2016 | R17: =CONCATENATE("$0's, real ",dms_DollarReal) -> $0's, real December 2017 | AA17: =CONCATENATE("$0's, real ",dms_DollarReal) -> $0's, real December 2017
A18: Internal identification code | B18: Asset category | C18: Percent allocation | G18: Actual | O18: Forecast | Q18: Actual vs Approved | R18: Forecast | AA18: Actual
G19: =PRCP -> 2008 | H19: 2009 | I19: 2010 | J19: 2011 | K19: 2012 | L19: =CRCP_y1 -> 2013 | M19: =CRCP_y2 -> 2014 | N19: =CRCP_y3 -> 2015 | O19: =CRCP_y4 -> 2016 | P19: =CRCP_y5 -> 2017 | Q19: % | R19: =FRCP -> 2018 | S19: 2019 | T19: 2020 | U19: 2021 | V19: 2022 | AA19: =PRCP -> 2008 | AB19: 2009 | AC19: 2010 | AD19: 2011 | AE19: 2012 | AF19: =CRCP_y1 -> 2013 | AG19: =CRCP_y2 -> 2014 | AH19: =CRCP_y3 -> 2015
E20: < insert sub-category >
E21: SCADA REGIONAL TOWNS & FRINGE POINTS | F21: Direct expenditure | L21: 0 | M21: 0 | N21: 0 | O21: 0 | P21: 0 | R21: 0 | S21: 0 | T21: 0 | U21: 0 | V21: 0
F22: Direct internal labour expenditure | L22: 0 | M22: 0 | N22: 0 | O22: 0 | P22: 0 | R22: 0 | S22: 0 | T22: 0 | U22: 0 | V22: 0
F23: Direct contractor expenditure | L23: 0 | M23: 0 | N23: 0 | O23: 0 | P23: 0 | R23: 0 | S23: 0 | T23: 0 | U23: 0 | V23: 0
F24: Other internal direct expenditure | L24: 0 | M24: 0 | N24: 0 | O24: 0 | P24: 0 | R24: 0 | S24: 0 | T24: 0 | U24: 0 | V24: 0
F25: Total direct expenditure | L25: 0 | M25: 0 | N25: 0 | O25: 0 | P25: 0 | R25: 0 | S25: 0 | T25: 0 | U25: 89140.74074 | V25: 0 | AF25: =SUM(AF22:AF24) -> 0 | AG25: =SUM(AG22:AG24) -> 0 | AH25: =SUM(AH22:AH24) -> 0
F26: Total overhead expenditure | L26: 0 | M26: 0 | N26: 0 | O26: 0 | P26: 0 | R26: 0 | S26: 0 | T26: 0 | U26: 973.5934995 | V26: 0 | AF26: 0 | AG26: 0 | AH26: 0
F27: Related party margin expenditure | L27: 0 | M27: 0 | N27: 0 | O27: 0 | P27: 0 | R27: 0 | S27: 0 | T27: 0 | U27: 4497.125078 | V27: 0 | AF27: 0 | AG27: 0 | AH27: 0
F28: Total gross expenditure | G28: =SUM(G25:G27) -> 0 | H28: 0 | I28: 0 | J28: 0 | K28: 0 | L28: =SUM(L25:L27) -> 0 | M28: =SUM(M25:M27) -> 0 | N28: 0 | O28: 0 | P28: 0 | Q28: 0 | R28: 0 | S28: 0 | T28: 0 | U28: 94611.45932 | V28: 0 | AA28: =SUM(AA26:AA27) -> 0 | AB28: =SUM(AB26:AB27) -> 0 | AC28: 0 | AD28: 0 | AE28: 0 | AF28: 0 | AG28: 0 | AH28: 0
F29: Less customer contributions | L29: 0 | M29: 0 | N29: 0 | O29: 0 | P29: 0 | R29: 0 | S29: 0 | T29: 0 | U29: 0 | V29: 0
F30: Total net expenditure | G30: =G28-G29 -> 0 | H30: 0 | I30: 0 | J30: 0 | K30: 0 | L30: 0 | M30: 0 | N30: 0 | O30: 0 | P30: 0 | Q30: 0 | R30: 0 | S30: 0 | T30: 0 | U30: =U28-U29 -> 94611.45932 | V30: =V28-V29 -> 0 | AA30: =AA28-AA29 -> 0 | AB30: 0 | AC30: 0 | AD30: 0 | AE30: 0 | AF30: 0 | AG30: 0 | AH30: 0
E31: TOTALS | F31: Total direct expenditure | G31: =G25 -> 0 | H31: =H25 -> 0 | I31: 0 | J31: 0 | K31: 0 | L31: 0 | M31: 0 | N31: 0 | O31: 0 | P31: 0 | Q31: 0 | R31: 0 | S31: 0 | T31: 0 | U31: 89140.74074 | V31: 0 | AA31: =SUM(#REF!,#REF!) ->  | AB31: =SUM(#REF!,#REF!) ->  | AC31: =SUM(#REF!,#REF!) ->  | AD31: =SUM(#REF!,#REF!) ->  | AE31: =SUM(#REF!,#REF!) ->  | AF31: =SUM(#REF!,#REF!) ->  | AG31: =SUM(#REF!,#REF!) ->  | AH31: =SUM(#REF!,#REF!) -> 
F32: Total overhead expenditure | G32: 0 | H32: =H26 -> 0 | I32: 0 | J32: 0 | K32: 0 | L32: 0 | M32: 0 | N32: 0 | O32: 0 | P32: 0 | Q32: 0 | R32: 0 | S32: 0 | T32: 0 | U32: 973.5934995 | V32: 0 | AA32: =SUM(#REF!,#REF!) ->  | AB32: =SUM(#REF!,#REF!) ->  | AC32: =SUM(#REF!,#REF!) ->  | AD32: =SUM(#REF!,#REF!) ->  | AE32: =SUM(#REF!,#REF!) ->  | AF32: =SUM(#REF!,#REF!) ->  | AG32: =SUM(#REF!,#REF!) ->  | AH32: =SUM(#REF!,#REF!) -> 
F33: Related party margin expenditure | G33: 0 | H33: =H27 -> 0 | I33: 0 | J33: 0 | K33: 0 | L33: 0 | M33: 0 | N33: 0 | O33: 0 | P33: 0 | Q33: 0 | R33: 0 | S33: 0 | T33: 0 | U33: 4497.125078 | V33: 0 | AA33: =SUM(#REF!,#REF!) ->  | AB33: =SUM(#REF!,#REF!) ->  | AC33: =SUM(#REF!,#REF!) ->  | AD33: =SUM(#REF!,#REF!) ->  | AE33: =SUM(#REF!,#REF!) ->  | AF33: =SUM(#REF!,#REF!) ->  | AG33: =SUM(#REF!,#REF!) ->  | AH33: =SUM(#REF!,#REF!) -> 
F34: Total gross expenditure | G34: 0 | H34: =H28 -> 0 | I34: 0 | J34: 0 | K34: 0 | L34: 0 | M34: 0 | N34: 0 | O34: 0 | P34: 0 | Q34: 0 | R34: 0 | S34: 0 | T34: 0 | U34: 94611.45932 | V34: 0 | AA34: =SUM(#REF!,#REF!) ->  | AB34: =SUM(#REF!,#REF!) ->  | AC34: =SUM(#REF!,#REF!) ->  | AD34: =SUM(#REF!,#REF!) ->  | AE34: =SUM(#REF!,#REF!) ->  | AF34: =SUM(#REF!,#REF!) ->  | AG34: =SUM(#REF!,#REF!) ->  | AH34: =SUM(#REF!,#REF!) -> 
F35: Less customer contributions | G35: 0 | H35: =H29 -> 0 | I35: 0 | J35: 0 | K35: 0 | L35: 0 | M35: 0 | N35: 0 | O35: 0 | P35: 0 | Q35: 0 | R35: 0 | S35: 0 | T35: 0 | U35: 0 | V35: 0 | AA35: =SUM(#REF!,#REF!) ->  | AB35: =SUM(#REF!,#REF!) ->  | AC35: =SUM(#REF!,#REF!) ->  | AD35: =SUM(#REF!,#REF!) ->  | AE35: =SUM(#REF!,#REF!) ->  | AF35: =SUM(#REF!,#REF!) ->  | AG35: =SUM(#REF!,#REF!) ->  | AH35: =SUM(#REF!,#REF!) -> 
F36: Total net expenditure | G36: 0 | H36: =H30 -> 0 | I36: 0 | J36: 0 | K36: 0 | L36: 0 | M36: 0 | N36: 0 | O36: 0 | P36: 0 | Q36: 0 | R36: 0 | S36: 0 | T36: 0 | U36: 94611.45932 | V36: 0 | AA36: =SUM(#REF!,#REF!) ->  | AB36: =SUM(#REF!,#REF!) ->  | AC36: =SUM(#REF!,#REF!) ->  | AD36: =SUM(#REF!,#REF!) ->  | AE36: =SUM(#REF!,#REF!) ->  | AF36: =SUM(#REF!,#REF!) ->  | AG36: =SUM(#REF!,#REF!) ->  | AH36: =SUM(#REF!,#REF!) -> 
E37: Source(s) of data: | L37: 2013-2015 AER Annual Reporting Templates | O37: Forecast data sourced from APA Data and capex model submitted as Attachment 8.8 to the AAI.
E39: Table 7.2 - Telemetry expenditure (approved)
G40: Previous access arrangement period | L40: Current access arrangement period
G41: =CONCATENATE("$0's, real ",dms_DollarReal) -> $0's, real December 2017
G42: Approved
G43: =PRCP -> 2008 | H43: 2009 | I43: 2010 | J43: 2011 | K43: 2012 | L43: =CRCP_y1 -> 2013 | M43: =CRCP_y2 -> 2014 | N43: =CRCP_y3 -> 2015 | O43: =CRCP_y4 -> 2016 | P43: =CRCP_y5 -> 2017
E44: < insert sub-category >
E45: Telemetry Expenditure | F45: Direct expenditure
F46: Direct internal labour expenditure
F47: Direct contractor expenditure
F48: Other internal direct expenditure
F49: Total direct expenditure | L49: 19458.3486 | M49: 21776.50414 | N49: 21810.76853 | O49: 21830.08854 | P49: 21861.72018
F50: Total overhead expenditure | G50: 0 | H50: 0 | I50: 0 | J50: 0 | K50: 0 | L50: 4339.169443 | M50: 4674.348471 | N50: 4745.481645 | O50: 5549.373123 | P50: 5093.752546
F51: Related party margin expenditure
F52: Total gross expenditure | G52: =SUM(G49:G51) -> 0 | H52: 0 | I52: 0 | J52: 0 | K52: 0 | L52: =SUM(L49:L51) -> 23797.51804 | M52: 26450.85261 | N52: 26556.25018 | O52: 27379.46166 | P52: 26955.47272
F53: Less customer contributions | L53: 0 | M53: 0 | N53: 0 | O53: 0 | P53: 0
F54: Total net expenditure | G54: =G52-G53 -> 0 | H54: 0 | I54: 0 | J54: 0 | K54: 0 | L54: 23797.51804 | M54: =M52-M53 -> 26450.85261 | N54: =N52-N53 -> 26556.25018 | O54: =O52-O53 -> 27379.46166 | P54: =P52-P53 -> 26955.47272
E55: TOTALS | F55: =CONCATENATE("Total direct expenditure - ",E44) -> Total direct expenditure - < insert sub-category > | G55: =G49 -> 0 | H55: 0 | I55: 0 | J55: 0 | K55: 0 | L55: =L49 -> 19458.3486 | M55: 21776.50414 | N55: 21810.76853 | O55: 21830.08854 | P55: 21861.72018
F56: =CONCATENATE("Total overhead expenditure - ",E44) -> Total overhead expenditure - < insert sub-category > | G56: =G50 -> 0 | H56: 0 | I56: 0 | J56: 0 | K56: 0 | L56: 4339.169443 | M56: 4674.348471 | N56: 4745.481645 | O56: 5549.373123 | P56: 5093.752546
F57: =CONCATENATE("Related party margin expenditure - ",E44) -> Related party margin expenditure - < insert sub-category > | G57: =G51 -> 0 | H57: 0 | I57: 0 | J57: 0 | K57: 0 | L57: 0 | M57: 0 | N57: 0 | O57: 0 | P57: 0
F58: =CONCATENATE("Total gross expenditure - ",E44) -> Total gross expenditure - < insert sub-category > | G58: =G52 -> 0 | H58: 0 | I58: 0 | J58: 0 | K58: 0 | L58: 23797.51804 | M58: 26450.85261 | N58: 26556.25018 | O58: 27379.46166 | P58: 26955.47272
F59: Less customer contributions | G59: =G53 -> 0 | H59: 0 | I59: 0 | J59: 0 | K59: 0 | L59: 0 | M59: 0 | N59: 0 | O59: 0 | P59: 0
F60: =CONCATENATE("Total net expenditure - ",E44) -> Total net expenditure - < insert sub-category > | G60: =G54 -> 0 | H60: 0 | I60: 0 | J60: 0 | K60: 0 | L60: 23797.51804 | M60: 26450.85261 | N60: 26556.25018 | O60: 27379.46166 | P60: =P54 -> 26955.47272
E61: Source(s) of data: | G61: Review of Gas Access Arrangements 2008 - 2012 - Variations to the Access Arrangements of Envestra (Victoria) and Envestra (Albury): ESC Appeal Panel Decisions E1 and E2 of 2008 - 25 March 2009, p23 | L61: Source: Envestra final submission capex file 2013 - 2017 'AER Final decision ENA - Sent to DNSP'
G65: Telemetry allowance = 0
G76: Convert $1 July 2006 to $31 December 2017 | L76: Conversion $2011 to $2017
G77: 1.294674556 | H77: 1.294674556 | I77: 1.294674556 | J77: 1.294674556 | K77: 1.294674556 | L77: 2010-09-01 | M77: 96.5
L78: 2016-09-01 | M78: ='4. Connections market expansn'!Z286 -> 110.1
M79: =M78/M77 -> 1.140932642

Sheet 8. Meter replacement
B1: =IF(dms_DataQuality="backcast",INDEX(dms_Worksheet_List,MATCH(dms_Model,dms_Model_List))&" BACKCAST",INDEX(dms_Worksheet_List,MATCH(dms_Model,dms_Model_List))) -> REGULATORY REPORTING STATEMENT
B2: =INDEX(dms_TradingNameFull_List,MATCH(dms_TradingName,dms_TradingName_List)) -> Australian Gas Networks Limited (reporting data for Albury)
B3: =IF(SUM(dms_SingleYear_Model)>0,CRY,CONCATENATE(FRCP_y1," to ",dms_MultiYear_FinalYear_Result)) -> 2018 to 2022 | F3: =CONCATENATE(LEFT(FRCP_y1,4),"-",LEFT(FRCP_y5,2),RIGHT(FRCP_y5,2)) -> 2018-2022
B4: 8. METER REPLACEMENT CAPITAL EXPENDITURE
B7: Instructions
B8: This template asks for information relating to meter replacement
B9: Record data on the meters removed from service as part of the service provider's meter replacement program in Table 8.1. The data should be INCLUSIVE of meters removed through providing ancillary services.
B10: Record data on the cost and volume of meters refurbished and procured for the service provider's meter replacement program in Table 8.6. These data are to be exclusive of meters procured for new connections.
B11: Record Other internal expenditure attributable to the service provider's meter replacement program in tables 8.8.
B12: =CONCATENATE("As set out in cl.6.1 of the ", dms_TradingName, " RIN, for tables 8.2 to 8.8, where the requested data is captured in the ", dms_TradingName, " capex model it is not required to be reentered in the RIN template tables. If the requested data has not been provided in the ",dms_TradingName," RIN please enter into the tables. This may require the insertion of new lines in each table.") -> As set out in cl.6.1 of the AGN (Albury) RIN, for tables 8.2 to 8.8, where the requested data is captured in the AGN (Albury) capex model it is not required to be reentered in the RIN template tables. If the requested data has not been provided in the AGN (Albury) RIN please enter into the tables. This may require the insertion of new lines in each table.
B13: Reported expenditure is to be entered EXCLUSIVE of any profit margins or management fees paid directly or indirectly to related party contractors (which is not an actual incurred cost of the related party contractor). Include any related party margins or management fees in the separate 'Related party margin' line item.
B14: =CONCATENATE("Subject to cl.6.1 of the ", dms_TradingName, " RIN, where linked/adjustable overhead expenditure and related party margin expenditure is not provided in the ", dms_TradingName, " capex model, overhead expenditure and related party margin expenditure should be linked to allocations derived in tabs '14. Overheads' and '15. Related party transactions'.") -> Subject to cl.6.1 of the AGN (Albury) RIN, where linked/adjustable overhead expenditure and related party margin expenditure is not provided in the AGN (Albury) capex model, overhead expenditure and related party margin expenditure should be linked to allocations derived in tabs '14. Overheads' and '15. Related party transactions'.
B15: Capital expenditure amounts entered should be GROSS of customer contributions. There is a separate line item for customer contributions from which net capital expenditure is derived.
B18: Table 8 - METER REPLACEMENT CAPITAL EXPENDITURE
B19: Table 8.1 - Number of meters removed (actual/forecast)
D20: Previous access arrangement period | I20: Current access arrangement period | N20: Next access arrangement period
D21: 0's
D22: Actual | L22: Forecast
D23: =PRCP -> 2008 | E23: 2009 | F23: 2010 | G23: 2011 | H23: 2012 | I23: =CRCP_y1 -> 2013 | J23: =CRCP_y2 -> 2014 | K23: =CRCP_y3 -> 2015 | L23: =CRCP_y4 -> 2016 | M23: =CRCP_y5 -> 2017 | N23: =FRCP -> 2018 | O23: 2019 | P23: 2020 | Q23: 2021 | R23: 2022
B24: <insert meter type> | C24: Refurbishable meters
C25: Meters decommissioned
C26: Total meters removed | D26: =D24+D25 -> 0 | E26: =E24+E25 -> 0 | F26: 0 | G26: 0 | H26: 0 | I26: 0 | J26: =J24+J25 -> 0 | K26: 0 | L26: 0 | M26: 0 | N26: 0 | O26: 0 | P26: 0 | Q26: 0 | R26: 0
B27: <insert meter type> | C27: Refurbishable meters
C28: Meters decommissioned
C29: Total meters removed | D29: =D27+D28 -> 0 | E29: =E27+E28 -> 0 | F29: 0 | G29: 0 | H29: 0 | I29: 0 | J29: =J27+J28 -> 0 | K29: 0 | L29: 0 | M29: 0 | N29: 0 | O29: 0 | P29: 0 | Q29: 0 | R29: 0
B30: <insert meter type> | C30: Refurbishable meters
C31: Meters decommissioned
C32: Total meters removed | D32: =D30+D31 -> 0 | E32: =E30+E31 -> 0 | F32: 0 | G32: 0 | H32: 0 | I32: 0 | J32: =J30+J31 -> 0 | K32: 0 | L32: 0 | M32: 0 | N32: 0 | O32: 0 | P32: 0 | Q32: 0 | R32: 0
B33: <insert meter type> | C33: Refurbishable meters
C34: Meters decommissioned
C35: Total meters removed | D35: =D33+D34 -> 0 | E35: =E33+E34 -> 0 | F35: 0 | G35: 0 | H35: 0 | I35: 0 | J35: =J33+J34 -> 0 | K35: 0 | L35: 0 | M35: 0 | N35: 0 | O35: 0 | P35: 0 | Q35: 0 | R35: 0
B36: <insert meter type> | C36: Refurbishable meters
C37: Meters decommissioned
C38: Total meters removed | D38: =D36+D37 -> 0 | E38: =E36+E37 -> 0 | F38: 0 | G38: 0 | H38: 0 | I38: 0 | J38: =J36+J37 -> 0 | K38: 0 | L38: 0 | M38: 0 | N38: 0 | O38: 0 | P38: 0 | Q38: 0 | R38: 0
B39: <insert meter type> | C39: Refurbishable meters
C40: Meters decommissioned
C41: Total meters removed | D41: =D39+D40 -> 0 | E41: =E39+E40 -> 0 | F41: 0 | G41: 0 | H41: 0 | I41: 0 | J41: =J39+J40 -> 0 | K41: 0 | L41: 0 | M41: 0 | N41: 0 | O41: 0 | P41: 0 | Q41: 0 | R41: 0
B42: Total meters removed | D42: =D41+D38+D35+D32+D29+D26 -> 0 | E42: 0 | F42: 0 | G42: 0 | H42: 0 | I42: 0 | J42: 0 | K42: 0 | L42: 0 | M42: 0 | N42: 0 | O42: 0 | P42: 0 | Q42: 0 | R42: 0
B43: Source(s) of data:
V45: REAL $ CONVERSION OF HISTORICAL DATA
B46: Table 8.2 - Meter replacement expenditure (actual/forecast)
D47: Previous access arrangement period | I47: Current access arrangement period | N47: Next access arrangement period | V47: Previous access arrangement period | AA47: Current access arrangement period
D48: $0's, nominal | L48: =CONCATENATE("$0's, real ",dms_DollarReal) -> $0's, real December 2017 | V48: =CONCATENATE("$0's, real ",dms_DollarReal) -> $0's, real December 2017
D49: Actual | L49: Forecast | V49: Actual
D50: =PRCP -> 2008 | E50: 2009 | F50: 2010 | G50: 2011 | H50: 2012 | I50: =CRCP_y1 -> 2013 | J50: =CRCP_y2 -> 2014 | K50: =CRCP_y3 -> 2015 | L50: =CRCP_y4 -> 2016 | M50: =CRCP_y5 -> 2017 | N50: =FRCP -> 2018 | O50: 2019 | P50: 2020 | Q50: 2021 | R50: 2022 | V50: =PRCP -> 2008 | W50: 2009 | X50: 2010 | Y50: 2011 | Z50: 2012 | AA50: =CRCP_y1 -> 2013 | AB50: =CRCP_y2 -> 2014 | AC50: =CRCP_y3 -> 2015
B51: Volume | D51: [C-I-C] | E51: [C-I-C] | F51: [C-I-C] | G51: [C-I-C] | H51: [C-I-C] | I51: [C-I-C] | J51: [C-I-C] | K51: [C-I-C] | L51: [C-I-C] | M51: [C-I-C] | N51: [C-I-C] | O51: [C-I-C] | P51: [C-I-C] | Q51: [C-I-C] | R51: [C-I-C]
B52: Direct internal labour expenditure | I52: 0 | J52: 0 | K52: 0 | L52: 13182.52125 | M52: 13098.41042 | N52: 23353.57607 | O52: 23353.57607 | P52: 23353.57607 | Q52: 17331.2597 | R52: 17331.2597
B53: Direct contractor expenditure | I53: 48960.59 | J53: 12233.72 | K53: 30184.83 | L53: 94920.08002 | M53: 95800.04031 | N53: 124244.043 | O53: 124244.043 | P53: 124244.043 | Q53: 71329.63587 | R53: 71329.63587
B54: Other internal direct expenditure | I54: 91857.39 | J54: 37605.65 | K54: 60789.13 | L54: 99249.2039 | M54: 99567.69052 | N54: 199717.832 | O54: 199717.832 | P54: 199717.832 | Q54: 131895.4493 | R54: 131895.4493
B55: Total direct expenditure | D55: =SUM(D52:D54) -> 0 | E55: 0 | F55: 0 | G55: 0 | H55: 0 | I55: =SUM(I52:I54) -> 140817.98 | J55: 49839.37 | K55: 90973.96 | L55: 207351.8052 | M55: 208466.1413 | N55: 347315.4511 | O55: 347315.4511 | P55: 347315.4511 | Q55: 220556.3449 | R55: 220556.3449 | V55: =SUM(V52:V54) -> 0 | W55: 0 | X55: 0 | Y55: 0 | Z55: 0 | AA55: 0 | AB55: 0 | AC55: 0
B56: Total overhead expenditure | I56: 4612.009761 | J56: 422.9556829 | K56: -734.7629608 | L56: 1463.603619 | M56: 1258.348826 | N56: 3852.663238 | O56: 4307.095301 | P56: 4149.593936 | Q56: 2408.912264 | R56: 2355.158295
B57: Related party margin expenditure | I57: 12236.47669 | J57: 4622.054638 | K57: 8187.237532 | L57: 13172.43257 | M57: 11325.13943 | N57: 16151.46664 | O57: 13245.9484 | P57: 14566.9273 | Q57: 11127.00502 | R57: 11761.77174
B58: Total gross expenditure | D58: =SUM(D55:D57) -> 0 | E58: =SUM(E55:E57) -> 0 | F58: 0 | G58: 0 | H58: 0 | I58: =SUM(I55:I57) -> 157666.4664 | J58: 54884.38032 | K58: 98426.43457 | L58: 221987.8414 | M58: 221049.6295 | N58: 367319.581 | O58: 364868.4948 | P58: 366031.9723 | Q58: 234092.2621 | R58: =SUM(R55:R57) -> 234673.2749 | V58: =SUM(V55:V57) -> 0 | W58: =SUM(W55:W57) -> 0 | X58: 0 | Y58: 0 | Z58: 0 | AA58: 0 | AB58: 0 | AC58: 0
B59: Less contributions | I59: 0 | J59: 0 | K59: 0 | L59: 0 | M59: 0 | N59: 0 | O59: 0 | P59: 0 | Q59: 0 | R59: 0
B60: Total net expenditure | D60: =D58-D59 -> 0 | E60: 0 | F60: 0 | G60: 0 | H60: 0 | I60: 157666.4664 | J60: =J58-J59 -> 54884.38032 | K60: 98426.43457 | L60: 221987.8414 | M60: 221049.6295 | N60: =N58-N59 -> 367319.581 | O60: =O58-O59 -> 364868.4948 | P60: =P58-P59 -> 366031.9723 | Q60: =Q58-Q59 -> 234092.2621 | R60: =R58-R59 -> 234673.2749 | V60: =V58-V59 -> 0 | W60: 0 | X60: 0 | Y60: 0 | Z60: 0 | AA60: 0 | AB60: 0 | AC60: 0
B61: Source(s) of data: | I61: 2013-2015 AER Annual Reporting Templates | L61: Forecast data sourced from APA Data and capex model submitted as Attachment 8.8 to the AAI.
B63: Table 8.3 - Replacement meter installation expenditure (actual/forecast)
D64: Previous access arrangement period | I64: Current access arrangement period | N64: Next access arrangement period | V64: Previous access arrangement period | AA64: Current access arrangement period
D65: $0's, nominal | L65: =CONCATENATE("$0's, real ",dms_DollarReal) -> $0's, real December 2017 | V65: =CONCATENATE("$0's, real ",dms_DollarReal) -> $0's, real December 2017
D66: Actual | L66: Forecast | V66: Actual
D67: =PRCP -> 2008 | E67: 2009 | F67: 2010 | G67: 2011 | H67: 2012 | I67: =CRCP_y1 -> 2013 | J67: =CRCP_y2 -> 2014 | K67: =CRCP_y3 -> 2015 | L67: =CRCP_y4 -> 2016 | M67: =CRCP_y5 -> 2017 | N67: =FRCP -> 2018 | O67: 2019 | P67: 2020 | Q67: 2021 | R67: 2022 | V67: =PRCP -> 2008 | W67: 2009 | X67: 2010 | Y67: 2011 | Z67: 2012 | AA67: =CRCP_y1 -> 2013 | AB67: =CRCP_y2 -> 2014 | AC67: =CRCP_y3 -> 2015
B68: Table 8.3.1 - Residential meter replacement installation expenditure
B69: Volume of meter replacements | D69: [C-I-C] | E69: [C-I-C] | F69: [C-I-C] | G69: [C-I-C] | H69: [C-I-C] | I69: [C-I-C] | J69: [C-I-C] | K69: [C-I-C] | L69: [C-I-C] | M69: [C-I-C] | N69: [C-I-C] | O69: [C-I-C] | P69: [C-I-C] | Q69: [C-I-C] | R69: [C-I-C]
B70: Direct internal labour expenditure | I70: 0 | J70: 0 | K70: 0 | L70: 4037.345834 | M70: 4173.436143 | N70: 12343.5191 | O70: 12343.5191 | P70: 12343.5191 | Q70: 6321.20274 | R70: 6321.20274
B71: Contractor expenditure | I71: 45745.79 | J71: 11644.84 | K71: 27866.39 | L71: 35473.68625 | M71: 36669.42848 | N71: 108454.9459 | O71: 108454.9459 | P71: 108454.9459 | Q71: 55540.53874 | R71: 55540.53874
B72: Other expenditure | I72: 57924.96 | J72: 25341.85 | K72: 45593.59 | L72: 45467.95581 | M72: 47000.58353 | N72: 139010.7769 | O72: 139010.7769 | P72: 139010.7769 | Q72: 71188.39421 | R72: 71188.39421
B73: Total direct expenditure | D73: =D70+D71+D72 -> 0 | E73: =E70+E71+E72 -> 0 | F73: 0 | G73: 0 | H73: 0 | I73: =SUM(I70:I72) -> 103670.75 | J73: =SUM(J70:J72) -> 36986.69 | K73: 73459.98 | L73: 84978.98789 | M73: 87843.44816 | N73: 259809.2419 | O73: 259809.2419 | P73: 259809.2419 | Q73: 133050.1357 | R73: 133050.1357 | V73: =V70+V71+V72 -> 0 | W73: =W70+W71+W72 -> 0 | X73: 0 | Y73: 0 | Z73: 0 | AA73: 0 | AB73: 0 | AC73: 0
B74: Total overhead expenditure | I74: 4155.7959 | J74: 305.62569 | K74: -593.293251 | L74: 599.828654 | M74: 530.2429411 | N74: 2881.983833 | O74: 3221.921632 | P74: 3104.102773 | Q74: 1453.171088 | R74: 1420.744123
B75: Related party margin expenditure | I75: 9072.523606 | J75: 3429.35028 | K75: 6611.061403 | L75: 5398.457886 | M75: 4772.18647 | N75: 12082.10084 | O75: 9908.6286 | P75: 10896.78656 | Q75: 6712.341594 | R75: 7095.263241
B76: Total gross expenditure | D76: 392000 | E76: 316000 | F76: 144938 | G76: 27590 | H76: 235700 | I76: =SUM(I73:I75) -> 116899.0695 | J76: =SUM(J73:J75) -> 40721.66597 | K76: =SUM(K73:K75) -> 79477.74815 | L76: =SUM(L73:L75) -> 90977.27443 | M76: 93145.87757 | N76: 274773.3266 | O76: 272939.7921 | P76: =SUM(P73:P75) -> 273810.1312 | Q76: 141215.6484 | R76: 141566.1431 | V76: =V73+V74+V75 -> 0 | W76: =W73+W74+W75 -> 0 | X76: 0 | Y76: 0 | Z76: 0 | AA76: 0 | AB76: 0 | AC76: 0
B77: Less contributions | I77: 0 | J77: 0 | K77: 0 | L77: 0 | M77: 0 | N77: 0 | O77: 0 | P77: 0 | Q77: 0 | R77: 0
B78: Total net expenditure | D78: =D76-D77 -> 392000 | E78: =E76-E77 -> 316000 | F78: 144938 | G78: 27590 | H78: 235700 | I78: 116899.0695 | J78: =J76-J77 -> 40721.66597 | K78: 79477.74815 | L78: 90977.27443 | M78: =M76-M77 -> 93145.87757 | N78: 274773.3266 | O78: 272939.7921 | P78: 273810.1312 | Q78: 141215.6484 | R78: 141566.1431 | V78: =V76-V77 -> 0 | W78: =W76-W77 -> 0 | X78: 0 | Y78: 0 | Z78: 0 | AA78: 0 | AB78: 0 | AC78: 0
B79: Table 8.3.2 - Industrial and commercial meter replacement installation expenditure
B80: Volume of meter replacements | D80: [C-I-C] | E80: [C-I-C] | F80: [C-I-C] | G80: [C-I-C] | H80: [C-I-C] | I80: [C-I-C] | J80: [C-I-C] | K80: [C-I-C] | L80: [C-I-C] | M80: [C-I-C] | N80: [C-I-C] | O80: [C-I-C] | P80: [C-I-C] | Q80: [C-I-C] | R80: [C-I-C]
B81: Direct internal labour expenditure | I81: 0 | J81: 0 | K81: 0 | L81: 3303.017089 | M81: 3082.815949 | N81: 11010.05696 | O81: 11010.05696 | P81: 11010.05696 | Q81: 11010.05696 | R81: 11010.05696
B82: Contractor expenditure | I82: 3214.8 | J82: 588.88 | K82: 2318.44 | L82: 4736.729141 | M82: 4420.947199 | N82: 15789.09714 | O82: 15789.09714 | P82: 15789.09714 | Q82: 15789.09714 | R82: 15789.09714
B83: Other expenditure | I83: 33932.43 | J83: 12263.8 | K83: 15195.54 | L83: 18212.11652 | M83: 16997.97542 | N83: 60707.05507 | O83: 60707.05507 | P83: 60707.05507 | Q83: 60707.05507 | R83: 60707.05507
B84: Total direct expenditure | D84: =D81+D82+D83 -> 0 | E84: =E81+E82+E83 -> 0 | F84: 0 | G84: 0 | H84: 0 | I84: =SUM(I81:I83) -> 37147.23 | J84: =SUM(J81:J83) -> 12852.68 | K84: 17513.98 | L84: 26251.86275 | M84: 24501.73857 | N84: 87506.20917 | O84: 87506.20917 | P84: 87506.20917 | Q84: 87506.20917 | R84: 87506.20917 | V84: =V81+V82+V83 -> 0 | W84: =W81+W82+W83 -> 0 | X84: 0 | Y84: 0 | Z84: 0 | AA84: 0 | AB84: 0 | AC84: 0
B85: Total overhead expenditure | I85: 456.2138611 | J85: 117.3299929 | K85: -141.4697097 | L85: 185.3001535 | M85: 147.8980413 | N85: 970.6794043 | O85: 1085.173669 | P85: 1045.491163 | Q85: 955.7411763 | R85: 934.4141723
B86: Related party margin expenditure | I86: 3163.953081 | J86: 1192.704357 | K86: 1576.176129 | L86: 1667.701381 | M86: 1331.082371 | N86: 4069.365801 | O86: 3337.319799 | P86: 3670.140742 | Q86: 4414.663424 | R86: 4666.508501
B87: Total gross expenditure | D87: 42000 | E87: 33210 | F87: 10140 | G87: 23820 | H87: 10090 | I87: =SUM(I84:I86) -> 40767.39694 | J87: 14162.71435 | K87: 18948.68642 | L87: =SUM(L84:L86) -> 28104.86429 | M87: 25980.71898 | N87: 92546.25438 | O87: =SUM(O84:O86) -> 91928.70264 | P87: 92221.84108 | Q87: 92876.61377 | R87: 93107.13185 | V87: =V84+V85+V86 -> 0 | W87: =W84+W85+W86 -> 0 | X87: 0 | Y87: 0 | Z87: 0 | AA87: 0 | AB87: 0 | AC87: 0
B88: Less contributions | I88: 0 | J88: 0 | K88: 0 | L88: 0 | M88: 0 | N88: 0 | O88: 0 | P88: 0 | Q88: 0 | R88: 0
B89: Total net expenditure | D89: =D87-D88 -> 42000 | E89: =E87-E88 -> 33210 | F89: 10140 | G89: 23820 | H89: 10090 | I89: 40767.39694 | J89: 14162.71435 | K89: 18948.68642 | L89: 28104.86429 | M89: =M87-M88 -> 25980.71898 | N89: 92546.25438 | O89: 91928.70264 | P89: 92221.84108 | Q89: 92876.61377 | R89: 93107.13185 | V89: =V87-V88 -> 0 | W89: =W87-W88 -> 0 | X89: 0 | Y89: 0 | Z89: 0 | AA89: 0 | AB89: 0 | AC89: 0
B90: Table 8.3.3 - Water meter replacement installation expenditure
B91: Volume of meter replacements | D91: [C-I-C] | E91: [C-I-C] | F91: [C-I-C] | G91: [C-I-C] | H91: [C-I-C] | I91: [C-I-C] | J91: [C-I-C] | K91: [C-I-C] | L91: [C-I-C] | M91: [C-I-C] | N91: [C-I-C] | O91: [C-I-C] | P91: [C-I-C] | Q91: [C-I-C] | R91: [C-I-C]
B92: Direct internal labour expenditure | I92: 0 | J92: 0 | K92: 0 | L92: 5842.158332 | M92: 5842.158332 | N92: 0 | O92: 0 | P92: 0 | Q92: 0 | R92: 0
B93: Contractor expenditure | I93: 0 | J93: 0 | K93: 0 | L93: 54709.66464 | M93: 54709.66464 | N93: 0 | O93: 0 | P93: 0 | Q93: 0 | R93: 0
B94: Other expenditure | I94: 0 | J94: 0 | K94: 0 | L94: 35569.13157 | M94: 35569.13157 | N94: 0 | O94: 0 | P94: 0 | Q94: 0 | R94: 0
B95: Total direct expenditure | D95: =D92+D93+D94 -> 0 | E95: =E92+E93+E94 -> 0 | F95: 0 | G95: 0 | H95: 0 | I95: 0 | J95: =J92+J93+J94 -> 0 | K95: 0 | L95: 96120.95454 | M95: 96120.95454 | N95: 0 | O95: 0 | P95: 0 | Q95: 0 | R95: 0 | V95: =V92+V93+V94 -> 0 | W95: =W92+W93+W94 -> 0 | X95: 0 | Y95: 0 | Z95: 0 | AA95: 0 | AB95: 0 | AC95: 0
B96: Total overhead expenditure | I96: 0 | J96: 0 | K96: 0 | L96: 678.4748114 | M96: 580.2078436 | N96: 0 | O96: 0 | P96: 0 | Q96: 0 | R96: 0
B97: Related party margin expenditure | I97: 0 | J97: 0 | K97: 0 | L97: 6106.273302 | M97: 5221.870593 | N97: 0 | O97: 0 | P97: 0 | Q97: 0 | R97: 0
B98: Total gross expenditure | D98: =D95+D96+D97 -> 0 | E98: 0 | F98: 0 | G98: 0 | H98: 0 | I98: 0 | J98: 0 | K98: 0 | L98: 102905.7026 | M98: 101923.033 | N98: 0 | O98: 0 | P98: 0 | Q98: 0 | R98: 0 | V98: =V95+V96+V97 -> 0 | W98: =W95+W96+W97 -> 0 | X98: 0 | Y98: 0 | Z98: 0 | AA98: 0 | AB98: 0 | AC98: 0
B99: Less contributions | I99: 0 | J99: 0 | K99: 0 | L99: 0 | M99: 0 | N99: 0 | O99: 0 | P99: 0 | Q99: 0 | R99: 0
B100: Total net expenditure | D100: =D98-D99 -> 0 | E100: =E98-E99 -> 0 | F100: 0 | G100: 0 | H100: 0 | I100: 0 | J100: =J98-J99 -> 0 | K100: 0 | L100: 102905.7026 | M100: 101923.033 | N100: 0 | O100: 0 | P100: 0 | Q100: 0 | R100: 0 | V100: =V98-V99 -> 0 | W100: =W98-W99 -> 0 | X100: 0 | Y100: 0 | Z100: 0 | AA100: 0 | AB100: 0 | AC100: 0
B101: Table 8.3.4 - Total meter replacement installation expenditure
B102: Volume of meter replacements | D102: [C-I-C] | E102: [C-I-C] | F102: [C-I-C] | G102: [C-I-C] | H102: [C-I-C] | I102: [C-I-C] | J102: [C-I-C] | K102: [C-I-C] | L102: [C-I-C] | M102: [C-I-C] | N102: [C-I-C] | O102: [C-I-C] | P102: [C-I-C] | Q102: [C-I-C] | R102: [C-I-C] | V102: =V69+V80+V91 -> 0 | W102: 0 | X102: 0 | Y102: 0 | Z102: 0 | AA102: 0 | AB102: 0 | AC102: 0
B103: Direct internal labour expenditure | D103: =D70+D81+D92 -> 0 | E103: 0 | F103: 0 | G103: 0 | H103: 0 | I103: =I70+I81+I92 -> 0 | J103: 0 | K103: 0 | L103: =L70+L81+L92 -> 13182.52125 | M103: 13098.41042 | N103: 23353.57607 | O103: 23353.57607 | P103: 23353.57607 | Q103: 17331.2597 | R103: 17331.2597 | V103: =V70+V81+V92 -> 0 | W103: 0 | X103: 0 | Y103: 0 | Z103: 0 | AA103: 0 | AB103: 0 | AC103: 0
B104: Contractor expenditure | D104: =D71+D82+D93 -> 0 | E104: 0 | F104: 0 | G104: 0 | H104: 0 | I104: =I71+I82+I93 -> 48960.59 | J104: 12233.72 | K104: 30184.83 | L104: 94920.08002 | M104: 95800.04031 | N104: 124244.043 | O104: 124244.043 | P104: 124244.043 | Q104: 71329.63587 | R104: 71329.63587 | V104: =V71+V82+V93 -> 0 | W104: 0 | X104: 0 | Y104: 0 | Z104: 0 | AA104: 0 | AB104: 0 | AC104: 0
B105: Other expenditure | D105: =D72+D83+D94 -> 0 | E105: 0 | F105: 0 | G105: 0 | H105: 0 | I105: =I72+I83+I94 -> 91857.39 | J105: 37605.65 | K105: 60789.13 | L105: 99249.2039 | M105: 99567.69052 | N105: 199717.832 | O105: 199717.832 | P105: 199717.832 | Q105: 131895.4493 | R105: 131895.4493 | V105: =V72+V83+V94 -> 0 | W105: 0 | X105: 0 | Y105: 0 | Z105: 0 | AA105: 0 | AB105: 0 | AC105: 0
B106: Total direct expenditure | D106: =D73+D84+D95 -> 0 | E106: 0 | F106: 0 | G106: 0 | H106: 0 | I106: =I73+I84+I95 -> 140817.98 | J106: 49839.37 | K106: 90973.96 | L106: =L73+L84+L95 -> 207351.8052 | M106: =M73+M84+M95 -> 208466.1413 | N106: 347315.4511 | O106: 347315.4511 | P106: 347315.4511 | Q106: 220556.3449 | R106: 220556.3449 | V106: =V73+V84+V95 -> 0 | W106: 0 | X106: 0 | Y106: 0 | Z106: 0 | AA106: 0 | AB106: 0 | AC106: 0
B107: Total overhead expenditure | D107: =D74+D85+D96 -> 0 | E107: 0 | F107: 0 | G107: 0 | H107: 0 | I107: 4612.009761 | J107: 422.9556829 | K107: -734.7629608 | L107: =L74+L85+L96 -> 1463.603619 | M107: 1258.348826 | N107: 3852.663238 | O107: 4307.095301 | P107: 4149.593936 | Q107: 2408.912264 | R107: 2355.158295 | V107: =V74+V85+V96 -> 0 | W107: 0 | X107: 0 | Y107: 0 | Z107: 0 | AA107: 0 | AB107: 0 | AC107: 0
B108: Related party margin expenditure | D108: =D75+D86+D97 -> 0 | E108: 0 | F108: 0 | G108: 0 | H108: 0 | I108: 12236.47669 | J108: 4622.054638 | K108: 8187.237532 | L108: 13172.43257 | M108: =M75+M86+M97 -> 11325.13943 | N108: 16151.46664 | O108: 13245.9484 | P108: 14566.9273 | Q108: 11127.00502 | R108: 11761.77174 | V108: =V75+V86+V97 -> 0 | W108: 0 | X108: 0 | Y108: 0 | Z108: 0 | AA108: 0 | AB108: 0 | AC108: 0
B109: Total gross expenditure | D109: =D76+D87+D98 -> 434000 | E109: 349210 | F109: 155078 | G109: 51410 | H109: 245790 | I109: 157666.4664 | J109: 54884.38032 | K109: 98426.43457 | L109: =L76+L87+L98 -> 221987.8414 | M109: 221049.6295 | N109: 367319.581 | O109: 364868.4948 | P109: 366031.9723 | Q109: 234092.2621 | R109: 234673.2749 | V109: =V76+V87+V98 -> 0 | W109: 0 | X109: 0 | Y109: 0 | Z109: 0 | AA109: 0 | AB109: 0 | AC109: 0
B110: Less contributions | D110: =D77+D88+D99 -> 0 | E110: 0 | F110: 0 | G110: 0 | H110: 0 | I110: 0 | J110: 0 | K110: 0 | L110: =L77+L88+L99 -> 0 | M110: 0 | N110: 0 | O110: 0 | P110: 0 | Q110: 0 | R110: 0 | V110: =V77+V88+V99 -> 0 | W110: 0 | X110: 0 | Y110: 0 | Z110: 0 | AA110: 0 | AB110: 0 | AC110: 0
B111: Total net expenditure | D111: =D78+D89+D100 -> 434000 | E111: 349210 | F111: 155078 | G111: 51410 | H111: 245790 | I111: 157666.4664 | J111: 54884.38032 | K111: 98426.43457 | L111: =L78+L89+L100 -> 221987.8414 | M111: 221049.6295 | N111: 367319.581 | O111: 364868.4948 | P111: 366031.9723 | Q111: 234092.2621 | R111: 234673.2749 | V111: =V78+V89+V100 -> 0 | W111: 0 | X111: 0 | Y111: 0 | Z111: 0 | AA111: 0 | AB111: 0 | AC111: 0
B112: Source(s) of data: | D112: 2008-2012 ESC Regulatory Accounting Statements - Statement 4b "Residential meter replacements and Commercial/industrial meter replacements" - Total Cost and Quantity | I112: 2013-2015 AER Annual Reporting Templates - Template 2.3 Meters | L112: Forecast data sourced from APA Data and capex model submitted as Attachment 8.8 to the AAI.
B114: Table 8.4 - Meter replacement expenditure by category / project (approved)
D115: Previous access arrangement period | I115: Current access arrangement period
D116: =CONCATENATE("$0's, real ",dms_DollarReal) -> $0's, real December 2017
D117: Approved
D118: =PRCP -> 2008 | E118: 2009 | F118: 2010 | G118: 2011 | H118: 2012 | I118: =CRCP_y1 -> 2013 | J118: =CRCP_y2 -> 2014 | K118: =CRCP_y3 -> 2015 | L118: =CRCP_y4 -> 2016 | M118: =CRCP_y5 -> 2017
B119: Residential Meter Replacement Expenditure | C119: Direct internal labour expenditure
C120: Direct contractor expenditure
C121: Other internal direct expenditure
C122: Total direct expenditure | D122: =0.45*1000000*D438 -> 582603.5503 | E122: =0.24*1000000*E438 -> 310721.8935 | F122: =0.25*1000000*F438 -> 323668.6391 | G122: =0.27*1000000*G438 -> 349562.1302 | H122: =0.33*1000000*H438 -> 427242.6036 | I122: 78128.42976 | J122: 68487.5159 | K122: 107599.5646 | L122: 60891.37221 | M122: 50550.14204
C123: Total overhead expenditure | I123: 17422.47002 | J123: 14700.91403 | K123: 23410.99344 | L123: 15479.04599 | M123: 11778.11776
C124: Related party margin expenditure
C125: Total gross expenditure | D125: =D122+D123+D124 -> 582603.5503 | E125: =E122+E123+E124 -> 310721.8935 | F125: 323668.6391 | G125: 349562.1302 | H125: 427242.6036 | I125: 95550.89978 | J125: 83188.42993 | K125: =K122+K123+K124 -> 131010.5581 | L125: 76370.4182 | M125: 62328.2598
C126: Less contributions
C127: Total net expenditure | D127: =D125-D126 -> 582603.5503 | E127: =E125-E126 -> 310721.8935 | F127: 323668.6391 | G127: 349562.1302 | H127: 427242.6036 | I127: 95550.89978 | J127: =J125-J126 -> 83188.42993 | K127: =K125-K126 -> 131010.5581 | L127: =L125-L126 -> 76370.4182 | M127: =M125-M126 -> 62328.2598
B128: Commercial Meter Replacement Expenditure | C128: Direct internal labour expenditure
C129: Direct contractor expenditure
C130: Other internal direct expenditure
C131: Total direct expenditure | D131: =0.03*1000000*D438 -> 38840.23669 | E131: =0.03*1000000*E438 -> 38840.23669 | F131: =0.03*1000000*F438 -> 38840.23669 | G131: =0.03*1000000*G438 -> 38840.23669 | H131: =0.03*1000000*H438 -> 38840.23669 | I131: 29057.97941 | J131: 28484.76846 | K131: 33635.51794 | L131: 24141.17154 | M131: 25471.53934
C132: Total overhead expenditure | I132: 6479.866248 | J132: 6114.284141 | K132: 7318.253494 | L132: 6136.867849 | M132: 5934.835745
C133: Related party margin expenditure
C134: Total gross expenditure | D134: =D131+D132+D133 -> 38840.23669 | E134: 38840.23669 | F134: 38840.23669 | G134: 38840.23669 | H134: 38840.23669 | I134: =I131+I132+I133 -> 35537.84566 | J134: 34599.0526 | K134: 40953.77143 | L134: 30278.03939 | M134: =M131+M132+M133 -> 31406.37508
C135: Less contributions
C136: Total net expenditure | D136: =D134-D135 -> 38840.23669 | E136: 38840.23669 | F136: 38840.23669 | G136: 38840.23669 | H136: 38840.23669 | I136: 35537.84566 | J136: 34599.0526 | K136: 40953.77143 | L136: 30278.03939 | M136: 31406.37508
B137: TOTALS | C137: Direct internal labour expenditure | D137: =D119+D128 -> 0 | E137: =E119+E128 -> 0 | F137: 0 | G137: 0 | H137: 0 | I137: 0 | J137: 0 | K137: 0 | L137: 0 | M137: 0
C138: Direct contractor expenditure | D138: =D120+D129 -> 0 | E138: 0 | F138: 0 | G138: 0 | H138: 0 | I138: 0 | J138: 0 | K138: 0 | L138: 0 | M138: 0
C139: Other internal direct expenditure | D139: 0 | E139: 0 | F139: 0 | G139: 0 | H139: 0 | I139: 0 | J139: 0 | K139: 0 | L139: 0 | M139: 0
C140: Total direct expenditure | D140: =D122+D131 -> 621443.787 | E140: =E122+E131 -> 349562.1302 | F140: 362508.8757 | G140: 388402.3669 | H140: 466082.8402 | I140: 107186.4092 | J140: 96972.28436 | K140: 141235.0826 | L140: 85032.54375 | M140: 76021.68138
C141: Total overhead expenditure | D141: 0 | E141: 0 | F141: 0 | G141: 0 | H141: 0 | I141: 23902.33627 | J141: 20815.19817 | K141: 30729.24693 | L141: 21615.91384 | M141: 17712.95351
C142: Related party margin expenditure | D142: 0 | E142: 0 | F142: 0 | G142: 0 | H142: 0 | I142: 0 | J142: 0 | K142: 0 | L142: 0 | M142: 0
C143: Total gross expenditure | D143: 621443.787 | E143: 349562.1302 | F143: 362508.8757 | G143: 388402.3669 | H143: 466082.8402 | I143: 131088.7454 | J143: 117787.4825 | K143: 171964.3295 | L143: 106648.4576 | M143: 93734.63489
C144: Less contributions | D144: 0 | E144: 0 | F144: 0 | G144: 0 | H144: 0 | I144: 0 | J144: 0 | K144: 0 | L144: 0 | M144: 0
C145: Total net expenditure | D145: 621443.787 | E145: 349562.1302 | F145: 362508.8757 | G145: 388402.3669 | H145: 466082.8402 | I145: 131088.7454 | J145: 117787.4825 | K145: 171964.3295 | L145: 106648.4576 | M145: 93734.63489
B146: Source(s) of data: | D146: Review of Gas Access Arrangements 2008 - 2012 - Variations to the Access Arrangements of Envestra (Victoria) and Envestra (Albury): ESC Appeal Panel Decisions E1 and E2 of 2008 - 25 March 2009, p23 | I146: Source: Envestra final submission capex file 2013 - 2017 'AER Final decision ENA - Sent to DNSP'
H148: check | I148: 0 | J148: 0 | K148: 0 | L148: 0 | M148: 0
B150: Table 8.5 - Meter replacement expenditure by meter type (actual/forecast)
D151: Previous access arrangement period | I151: Current access arrangement period | N151: Next access arrangement period | V151: Previous access arrangement period | AA151: Current access arrangement period
D152: $0's, nominal | L152: =CONCATENATE("$0's, real ",dms_DollarReal) -> $0's, real December 2017 | V152: =CONCATENATE("$0's, real ",dms_DollarReal) -> $0's, real December 2017
D153: Actual | L153: Forecast | V153: Actual
D154: =PRCP -> 2008 | E154: 2009 | F154: 2010 | G154: 2011 | H154: 2012 | I154: =CRCP_y1 -> 2013 | J154: =CRCP_y2 -> 2014 | K154: =CRCP_y3 -> 2015 | L154: =CRCP_y4 -> 2016 | M154: =CRCP_y5 -> 2017 | N154: =FRCP -> 2018 | O154: 2019 | P154: 2020 | Q154: 2021 | R154: 2022 | V154: =PRCP -> 2008 | W154: 2009 | X154: 2010 | Y154: 2011 | Z154: 2012 | AA154: =CRCP_y1 -> 2013 | AB154: =CRCP_y2 -> 2014 | AC154: =CRCP_y3 -> 2015
B155: Table 8.5.1 - New meters acquired
B156: 750 | C156: Volume | D156: [C-I-C] | E156: [C-I-C] | F156: [C-I-C] | G156: [C-I-C] | H156: [C-I-C] | I156: [C-I-C] | J156: [C-I-C] | K156: [C-I-C] | L156: [C-I-C] | M156: [C-I-C] | N156: [C-I-C] | O156: [C-I-C] | P156: [C-I-C] | Q156: [C-I-C] | R156: [C-I-C] | U156: 0.2617499017 | V156: 0.1739255331 | W156: 0.1638774508 | X156: 0.1262726353 | Y156: 0.06628269842 | Z156: 0.07539716627 | AA156: 0.07539716627 | AB156: 0.07539716627 | AC156: 0.07539716627 | AD156: 0.07492783263
C157: Total direct expenditure | I157: 27135.80862 | J157: 6432.929775 | K157: 12038.43426 | L157: 10730.52075 | M157: 5822.500782 | N157: 19588.88061 | O157: 19588.88061 | P157: 19588.88061 | Q157: 10031.6032 | R157: 9969.158299
C158: Total overhead expenditure | I158: 1087.779168 | J158: 53.15611106 | K158: -97.22738556 | L158: 75.7419449 | M158: 35.14593295 | N158: 217.2934143 | O158: 242.923761 | P158: 234.0405529 | Q158: 109.5649821 | R158: 106.4532779
C159: Related party margin expenditure | I159: 2374.732162 | J159: 596.4515757 | K159: 1083.40389 | L159: 681.6775041 | M159: 316.3133966 | N159: 910.9561662 | O159: 747.0825181 | P159: 821.5868279 | Q159: 506.0915352 | R159: 531.6326966
C160: Total gross expenditure | D160: 0 | E160: 0 | F160: 0 | G160: 0 | H160: 0 | I160: =SUM(I157:I159) -> 30598.31995 | J160: =SUM(J157:J159) -> 7082.537462 | K160: 13024.61076 | L160: 11487.9402 | M160: 6173.960112 | N160: 20717.13019 | O160: 20578.88689 | P160: 20644.50799 | Q160: 10647.25972 | R160: 10607.24427
C161: Less contributions | I161: 0 | J161: 0 | K161: 0 | L161: 0 | M161: 0 | N161: 0 | O161: 0 | P161: 0 | Q161: 0 | R161: 0
C162: Total net expenditure | D162: 0 | E162: 0 | F162: 0 | G162: 0 | H162: 0 | I162: =SUM(I160:I161) -> 30598.31995 | J162: =SUM(J160:J161) -> 7082.537462 | K162: 13024.61076 | L162: 11487.9402 | M162: 6173.960112 | N162: 20717.13019 | O162: 20578.88689 | P162: 20644.50799 | Q162: 10647.25972 | R162: 10607.24427
C163: Unit cost | I163: 72.69842631 | J163: 119.7696058 | K163: 105.8292252 | L163: 143.2485394 | M163: 141.8806269 | N163: 141.5105474 | O163: 140.5662619 | P163: 141.0144938 | Q163: 142.0156931 | R163: 142.3681734
B164: U8 | C164: Volume | D164: [C-I-C] | E164: [C-I-C] | F164: [C-I-C] | G164: [C-I-C] | H164: [C-I-C] | I164: [C-I-C] | J164: [C-I-C] | K164: [C-I-C] | L164: [C-I-C] | M164: [C-I-C] | N164: [C-I-C] | O164: [C-I-C] | P164: [C-I-C] | Q164: [C-I-C] | R164: [C-I-C] | U164: 0.0747856862 | V164: 0.08696276655 | W164: 0.1638774508 | X164: 0.2525452707 | Y164: 0.2319894445 | Z164: 0.263890082 | AA164: 0.263890082 | AB164: 0.263890082 | AC164: 0.263890082 | AD164: 0.2622474142
C165: Total direct expenditure | I165: 7753.088177 | J165: 3216.464888 | K165: 12038.43426 | L165: 21461.0415 | M165: 20378.75274 | N165: 68561.08214 | O165: 68561.08214 | P165: 68561.08214 | Q165: 35110.61121 | R165: 34892.05405
C166: Total overhead expenditure | I166: 310.7940481 | J166: 26.57805553 | K166: -97.22738556 | L166: 151.4838898 | M166: 123.0107653 | N166: 760.52695 | O166: 850.2331635 | P166: 819.1419351 | Q166: 383.4774375 | R166: 372.5864725
C167: Related party margin expenditure | I167: 678.4949034 | J167: 298.2257878 | K167: 1083.40389 | L167: 1363.355008 | M167: 1107.096888 | N167: 3188.346582 | O167: 2614.788813 | P167: 2875.553898 | Q167: 1771.320373 | R167: 1860.714438
C168: Total gross expenditure | D168: 0 | E168: 0 | F168: 0 | G168: 0 | H168: 0 | I168: =SUM(I165:I167) -> 8742.377129 | J168: =SUM(J165:J167) -> 3541.268731 | K168: 13024.61076 | L168: 22975.8804 | M168: 21608.86039 | N168: 72509.95567 | O168: 72026.10411 | P168: 72255.77797 | Q168: 37265.40902 | R168: 37125.35496
C169: Less contributions | I169: 0 | J169: 0 | K169: 0 | L169: 0 | M169: 0 | N169: 0 | O169: 0 | P169: 0 | Q169: 0 | R169: 0
C170: Total net expenditure | D170: 0 | E170: 0 | F170: 0 | G170: 0 | H170: 0 | I170: =SUM(I168:I169) -> 8742.377129 | J170: =SUM(J168:J169) -> 3541.268731 | K170: 13024.61076 | L170: 22975.8804 | M170: 21608.86039 | N170: 72509.95567 | O170: 72026.10411 | P170: 72255.77797 | Q170: 37265.40902 | R170: 37125.35496
C171: Unit cost | I171: 72.69842631 | J171: 119.7696058 | K171: 105.8292252 | L171: 143.2485394 | M171: 141.8806269 | N171: 141.5105474 | O171: 140.5662619 | P171: 141.0144938 | Q171: 142.0156931 | R171: 142.3681734
B172: U10 etc | C172: Volume | D172: [C-I-C] | E172: [C-I-C] | F172: [C-I-C] | G172: [C-I-C] | H172: [C-I-C] | I172: [C-I-C] | J172: [C-I-C] | K172: [C-I-C] | L172: [C-I-C] | M172: [C-I-C] | N172: [C-I-C] | O172: [C-I-C] | P172: [C-I-C] | Q172: [C-I-C] | R172: [C-I-C] | U172: 0.0373928431 | V172: 0.02898758885 | W172: 0.03641721129 | X172: 0.04209087845 | Y172: 0.03314134921 | Z172: 0.03769858314 | AA172: 0.03769858314 | AB172: 0.03769858314 | AC172: 0.03769858314 | AD172: 0.03746391632
C173: Total direct expenditure | I173: 3876.544089 | J173: 1072.154963 | K173: 2675.207613 | L173: 3576.84025 | M173: 2911.250391 | N173: 9794.440305 | O173: 9794.440305 | P173: 9794.440305 | Q173: 5015.801602 | R173: 4984.57915
C174: Total overhead expenditure | I174: 155.397024 | J174: 8.859351844 | K174: -21.60608568 | L174: 25.24731497 | M174: 17.57296648 | N174: 108.6467071 | O174: 121.4618805 | P174: 117.0202764 | Q174: 54.78249107 | R174: 53.22663894
C175: Related party margin expenditure | I175: 339.2474517 | J175: 99.40859595 | K175: 240.7564199 | L175: 227.2258347 | M175: 158.1566983 | N175: 455.4780831 | O175: 373.541259 | P175: 410.7934139 | Q175: 253.0457676 | R175: 265.8163483
C176: Total gross expenditure | D176: 0 | E176: 0 | F176: 0 | G176: 0 | H176: 0 | I176: =SUM(I173:I175) -> 4371.188564 | J176: =SUM(J173:J175) -> 1180.42291 | K176: 2894.357947 | L176: 3829.3134 | M176: 3086.980056 | N176: 10358.5651 | O176: 10289.44344 | P176: 10322.254 | Q176: 5323.62986 | R176: 5303.622137
C177: Less contributions | I177: 0 | J177: 0 | K177: 0 | L177: 0 | M177: 0 | N177: 0 | O177: 0 | P177: 0 | Q177: 0 | R177: 0
C178: Total net expenditure | D178: 0 | E178: 0 | F178: 0 | G178: 0 | H178: 0 | I178: =SUM(I176:I177) -> 4371.188564 | J178: =SUM(J176:J177) -> 1180.42291 | K178: 2894.357947 | L178: 3829.3134 | M178: 3086.980056 | N178: 10358.5651 | O178: 10289.44344 | P178: 10322.254 | Q178: 5323.62986 | R178: 5303.622137
C179: Unit cost | I179: 72.69842631 | J179: 119.7696058 | K179: 105.8292252 | L179: 143.2485394 | M179: 141.8806269 | N179: 141.5105474 | O179: 140.5662619 | P179: 141.0144938 | Q179: 142.0156931 | R179: 142.3681734
B180: AL425 etc | C180: Volume | D180: [C-I-C] | E180: [C-I-C] | F180: [C-I-C] | G180: [C-I-C] | H180: [C-I-C] | I180: [C-I-C] | J180: [C-I-C] | K180: [C-I-C] | L180: [C-I-C] | M180: [C-I-C] | N180: [C-I-C] | O180: [C-I-C] | P180: [C-I-C] | Q180: [C-I-C] | R180: [C-I-C] | U180: 0.052 | V180: 0.052 | W180: 0.052 | X180: 0.052 | Y180: 0.052 | Z180: 0.04188096988 | AA180: 0.04188096988 | AB180: 0.04188096988 | AC180: 0.04188096988 | AD180: 0.04188096988
C181: Total direct expenditure | I181: 1931.65596 | J181: 668.33936 | K181: 910.72696 | L181: 6363.386499 | M181: 6272.380041 | N181: 3664.84491 | O181: 3664.84491 | P181: 3664.84491 | Q181: 3664.84491 | R181: 3664.84491
C182: Total overhead expenditure | I182: 23.72312078 | J182: 6.101159629 | K182: -7.356424906 | L182: 44.91629817 | M182: 37.86150602 | N182: 40.65299489 | O182: 45.44812574 | P182: 43.78618391 | Q182: 40.02736741 | R182: 39.1341718
C183: Related party margin expenditure | I183: 23.72312078 | J183: 6.101159629 | K183: -7.356424906 | L183: 404.2466835 | M183: 340.7535541 | N183: 40.65299489 | O183: 45.44812574 | P183: 43.78618391 | Q183: 40.02736741 | R183: 39.1341718
C184: Total gross expenditure | D184: 0 | E184: 0 | F184: 0 | G184: 0 | H184: 0 | I184: =SUM(I181:I183) -> 1979.102202 | J184: =SUM(J181:J183) -> 680.5416793 | K184: 896.0141102 | L184: 6812.549481 | M184: 6650.995102 | N184: 3746.1509 | O184: 3755.741162 | P184: 3752.417278 | Q184: 3744.899645 | R184: 3743.113254
C185: Less contributions | I185: 0 | J185: 0 | K185: 0 | L185: 0 | M185: 0 | N185: 0 | O185: 0 | P185: 0 | Q185: 0 | R185: 0
C186: Total net expenditure | D186: 0 | E186: 0 | F186: 0 | G186: 0 | H186: 0 | I186: =SUM(I184:I185) -> 1979.102202 | J186: =SUM(J184:J185) -> 680.5416793 | K186: 896.0141102 | L186: 6812.549481 | M186: 6650.995102 | N186: 3746.1509 | O186: 3755.741162 | P186: 3752.417278 | Q186: 3744.899645 | R186: 3743.113254
C187: Unit cost | I187: 1654.767727 | J187: 2617.467997 | K187: 1723.104058 | L187: 4589.798525 | M187: 4646.916273 | N187: 1754.865597 | O187: 1759.358107 | P187: 1757.80105 | Q187: 1754.279453 | R187: 1753.442627
B188: AL1000 etc | C188: Volume | D188: [C-I-C] | E188: [C-I-C] | F188: [C-I-C] | G188: [C-I-C] | H188: [C-I-C] | I188: [C-I-C] | J188: [C-I-C] | K188: [C-I-C] | L188: [C-I-C] | M188: [C-I-C] | N188: [C-I-C] | O188: [C-I-C] | P188: [C-I-C] | Q188: [C-I-C] | R188: [C-I-C] | U188: 0.031 | V188: 0.031 | W188: 0.031 | X188: 0.031 | Y188: 0.031 | Z188: 0.04335047759 | AA188: 0.04335047759 | AB188: 0.04335047759 | AC188: 0.04335047759 | AD188: 0.04335047759
C189: Total direct expenditure | I189: 1151.56413 | J189: 398.43308 | K189: 542.93338 | L189: 3793.557336 | M189: 3739.303486 | N189: 3793.43596 | O189: 3793.43596 | P189: 3793.43596 | Q189: 3793.43596 | R189: 3793.43596
C190: Total overhead expenditure | I190: 14.14262969 | J190: 3.637229779 | K190: -4.385561001 | L190: 26.77702391 | M190: 22.57128243 | N190: 42.07941576 | O190: 47.04279682 | P190: 45.32254124 | Q190: 41.43183645 | R190: 40.50730064
C191: Related party margin expenditure | I191: 14.14262969 | J191: 3.637229779 | K191: -4.385561001 | L191: 240.9932152 | M191: 203.1415419 | N191: 42.07941576 | O191: 47.04279682 | P191: 45.32254124 | Q191: 41.43183645 | R191: 40.50730064
C192: Total gross expenditure | D192: 0 | E192: 0 | F192: 0 | G192: 0 | H192: 0 | I192: =SUM(I189:I191) -> 1179.849389 | J192: =SUM(J189:J191) -> 405.7075396 | K192: 534.162258 | L192: 4061.327575 | M192: 3965.016311 | N192: 3877.594791 | O192: 3887.521553 | P192: 3884.081042 | Q192: 3876.299633 | R192: 3874.450561
C193: Less contributions | I193: 0 | J193: 0 | K193: 0 | L193: 0 | M193: 0 | N193: 0 | O193: 0 | P193: 0 | Q193: 0 | R193: 0
C194: Total net expenditure | D194: 0 | E194: 0 | F194: 0 | G194: 0 | H194: 0 | I194: =SUM(I192:I193) -> 1179.849389 | J194: =SUM(J192:J193) -> 405.7075396 | K194: 534.162258 | L194: 4061.327575 | M194: 3965.016311 | N194: 3877.594791 | O194: 3887.521553 | P194: 3884.081042 | Q194: 3876.299633 | R194: 3874.450561
C195: Unit cost | I195: 1654.767727 | J195: 2617.467997 | K195: 1723.104058 | L195: 4589.798525 | M195: 4646.916273 | N195: 1754.865597 | O195: 1759.358107 | P195: 1757.80105 | Q195: 1754.279453 | R195: 1753.442627
B196: Larger Meters | C196: Volume | D196: [C-I-C] | E196: [C-I-C] | F196: [C-I-C] | G196: [C-I-C] | H196: [C-I-C] | I196: [C-I-C] | J196: [C-I-C] | K196: [C-I-C] | L196: [C-I-C] | M196: [C-I-C] | N196: [C-I-C] | O196: [C-I-C] | P196: [C-I-C] | Q196: [C-I-C] | R196: [C-I-C] | U196: 0.017 | V196: 0.017 | W196: 0.017 | X196: 0.017 | Y196: 0.017 | Z196: 0.01469507715 | AA196: 0.01469507715 | AB196: 0.01469507715 | AC196: 0.01469507715 | AD196: 0.01469507715
C197: Total direct expenditure | I197: 631.50291 | J197: 218.49556 | K197: 297.73766 | L197: 2080.337894 | M197: 2050.585783 | N197: 1285.910495 | O197: 1285.910495 | P197: 1285.910495 | Q197: 1285.910495 | R197: 1285.910495
C198: Total overhead expenditure | I198: 7.755635639 | J198: 1.994609879 | K198: -2.404985065 | L198: 14.6841744 | M198: 12.37780004 | N198: 14.26420873 | O198: 15.94671079 | P198: 15.3635733 | Q198: 14.04469032 | R198: 13.73128835
C199: Related party margin expenditure | I199: 7.755635639 | J199: 1.994609879 | K199: -2.404985065 | L199: 132.1575696 | M199: 111.4002004 | N199: 14.26420873 | O199: 15.94671079 | P199: 15.3635733 | Q199: 14.04469032 | R199: 13.73128835
C200: Total gross expenditure | D200: 0 | E200: 0 | F200: 0 | G200: 0 | H200: 0 | I200: =SUM(I197:I199) -> 647.0141813 | J200: =SUM(J197:J199) -> 222.4847798 | K200: 292.9276899 | L200: 2227.179638 | M200: 2174.363783 | N200: 1314.438912 | O200: 1317.803916 | P200: 1316.637641 | Q200: 1313.999875 | R200: 1313.373072
C201: Less contributions | I201: 0 | J201: 0 | K201: 0 | L201: 0 | M201: 0 | N201: 0 | O201: 0 | P201: 0 | Q201: 0 | R201: 0
C202: Total net expenditure | D202: 0 | E202: 0 | F202: 0 | G202: 0 | H202: 0 | I202: =SUM(I200:I201) -> 647.0141813 | J202: =SUM(J200:J201) -> 222.4847798 | K202: 292.9276899 | L202: 2227.179638 | M202: 2174.363783 | N202: 1314.438912 | O202: 1317.803916 | P202: 1316.637641 | Q202: 1313.999875 | R202: 1313.373072
C203: Unit cost | I203: 1654.767727 | J203: 2617.467997 | K203: 1723.104058 | L203: 4589.798525 | M203: 4646.916273 | N203: 1754.865597 | O203: 1759.358107 | P203: 1757.80105 | Q203: 1754.279453 | R203: 1753.442627
B204: Total number of new meters acquired for meter replacement | D204: =D156+D189+D198 ->  | I204: =+I156+I164+I172+I180+I188+I196 ->  | J204: =+J156+J164+J172+J180+J188+J196 ->  | V204: =#REF!+#REF!+#REF! ->  | W204: =#REF!+#REF!+#REF! ->  | X204: =#REF!+#REF!+#REF! ->  | Y204: =#REF!+#REF!+#REF! ->  | Z204: =#REF!+#REF!+#REF! ->  | AA204: =#REF!+#REF!+#REF! ->  | AB204: =#REF!+#REF!+#REF! ->  | AC204: =#REF!+#REF!+#REF! -> 
B205: Total cost of new meters acquired for meter replacement | D205: =D160+D193+D202 -> 0 | E205: 0 | F205: 0 | G205: 0 | H205: 0 | I205: =+I162+I170+I178+I186+I194+I202 -> 47517.85142 | J205: =+J162+J170+J178+J186+J194+J202 -> 13112.9631 | K205: 30666.68353 | L205: 51394.19069 | M205: 43660.17576 | N205: 112523.8356 | O205: 111855.5011 | P205: 112175.6759 | Q205: 62171.49776 | R205: 61967.15825 | V205: =#REF!+#REF!+#REF! ->  | W205: =#REF!+#REF!+#REF! ->  | X205: =#REF!+#REF!+#REF! ->  | Y205: =#REF!+#REF!+#REF! ->  | Z205: =#REF!+#REF!+#REF! ->  | AA205: =#REF!+#REF!+#REF! ->  | AB205: =#REF!+#REF!+#REF! ->  | AC205: =#REF!+#REF!+#REF! -> 
B206: Table 8.5.2 - Meters refurbished
B207: 602 | C207: Volume | D207: [C-I-C] | E207: [C-I-C] | F207: [C-I-C] | G207: [C-I-C] | H207: [C-I-C] | I207: [C-I-C] | J207: [C-I-C] | K207: [C-I-C] | L207: [C-I-C] | M207: [C-I-C] | N207: [C-I-C] | O207: [C-I-C] | P207: [C-I-C] | Q207: [C-I-C] | R207: [C-I-C] | U207: 0.3452221785 | V207: 0.513313446 | W207: 0.4385554002 | X207: 0.4173318574 | Y207: 0.1103778441 | Z207: 0.5366584662 | AA207: 0.5366584662 | AB207: 0.5366584662 | AC207: 0.5366584662 | AD207: 0.5386998342
C208: Direct internal labour expenditure | I208: 0 | J208: 0 | K208: 0 | L208: 0 | M208: 0 | N208: 0 | O208: 0 | P208: 0 | Q208: 0 | R208: 0
C209: Direct contractor expenditure | I209: 0 | J209: 0 | K209: 0 | L209: 0 | M209: 0 | N209: 0 | O209: 0 | P209: 0 | Q209: 0 | R209: 0
... 198 more rows

Sheet 9. Other capex
E1: =IF(dms_DataQuality="backcast",INDEX(dms_Worksheet_List,MATCH(dms_Model,dms_Model_List))&" BACKCAST",INDEX(dms_Worksheet_List,MATCH(dms_Model,dms_Model_List))) -> REGULATORY REPORTING STATEMENT
E2: =INDEX(dms_TradingNameFull_List,MATCH(dms_TradingName,dms_TradingName_List)) -> Australian Gas Networks Limited (reporting data for Albury)
E3: =IF(SUM(dms_SingleYear_Model)>0,CRY,CONCATENATE(FRCP_y1," to ",dms_MultiYear_FinalYear_Result)) -> 2018 to 2022 | K3: =CONCATENATE(LEFT(FRCP_y1,4),"-",LEFT(FRCP_y5,2),RIGHT(FRCP_y5,2)) -> 2018-2022
E4: 9. REGULATORS CAPITAL EXPENDITURE
E7: Instructions
E8: This template asks for information relating to regulatory capital expenditure
A9: HPS | B9: HP services | E9: =CONCATENATE("As set out in cl.6.1 of the ", dms_TradingName, " RIN, for tables 9.1 to 9.2, where the requested data is captured in the ", dms_TradingName, " capex model it is not required to be reentered in the RIN template tables. If the requested data has not been provided in the AGN RIN please enter into the tables. This may require the insertion of new lines in each table.") -> As set out in cl.6.1 of the AGN (Albury) RIN, for tables 9.1 to 9.2, where the requested data is captured in the AGN (Albury) capex model it is not required to be reentered in the RIN template tables. If the requested data has not been provided in the AGN RIN please enter into the tables. This may require the insertion of new lines in each table.
A10: MPM | B10: MP mains | E10: =CONCATENATE("Reported expenditure is to be entered EXCLUSIVE of any profit margins or management fees paid pursuant to arrangements or contracts between ", dms_TradingName," and any related parties. Include any related party margins or management fees in the separate 'Related party margin' line item.") -> Reported expenditure is to be entered EXCLUSIVE of any profit margins or management fees paid pursuant to arrangements or contracts between AGN (Albury) and any related parties. Include any related party margins or management fees in the separate 'Related party margin' line item.
A11: CM | B11: Contract meters | E11: =CONCATENATE("Subject to cl.6.1 of the ", dms_TradingName, " RIN, where linked/adjustable overhead expenditure and related party margin expenditure is not provided in the ", dms_TradingName, " capex model, overhead expenditure and related party margin expenditure should be linked to allocations derived in tabs '14. Overheads' and '15. Related party transactions'.") -> Subject to cl.6.1 of the AGN (Albury) RIN, where linked/adjustable overhead expenditure and related party margin expenditure is not provided in the AGN (Albury) capex model, overhead expenditure and related party margin expenditure should be linked to allocations derived in tabs '14. Overheads' and '15. Related party transactions'.
A12: TM | B12: Tariff meters | E12: Capital expenditure amounts entered should be GROSS of customer contributions. There is a separate line item for customer contributions from which net capital expenditure is derived.
A13: ERC | B13: Equity raising expenditure
A15: Internal identification code | B15: Asset category | C15: Percent allocation | E15: Table 9 - OTHER CAPITAL EXPENDITURE | Z15: REAL $ CONVERSION OF HISTORICAL DATA
A16: Internal identification code | B16: Asset category | C16: Percent allocation | E16: Table 9.1 - Other capital expenditure (actual / forecast )
G17: Previous access arrangement period | L17: Current access arrangement period | Q17: Next access arrangement period | V17: Supporting documentation (business case, costing spreadsheet, contracts) | Z17: Previous access arrangement period | AE17: Current access arrangement period
G18: $0's, nominal | O18: =CONCATENATE("$0's, real ",dms_DollarReal) -> $0's, real December 2017 | Z18: =CONCATENATE("$0's, real ",dms_DollarReal) -> $0's, real December 2017
G19: Actual | O19: Forecast | Z19: Actual
G20: =PRCP -> 2008 | H20: 2009 | I20: 2010 | J20: 2011 | K20: 2012 | L20: =CRCP_y1 -> 2013 | M20: =CRCP_y2 -> 2014 | N20: =CRCP_y3 -> 2015 | O20: =CRCP_y4 -> 2016 | P20: =CRCP_y5 -> 2017 | Q20: =FRCP -> 2018 | R20: 2019 | S20: 2020 | T20: 2021 | U20: 2022 | Z20: =PRCP -> 2008 | AA20: 2009 | AB20: 2010 | AC20: 2011 | AD20: 2012 | AE20: =CRCP_y1 -> 2013 | AF20: =CRCP_y2 -> 2014 | AG20: =CRCP_y3 -> 2015
E21: Gas extensions - other | F21: Direct expenditure
F22: Direct internal labour expenditure
F23: Direct contractor expenditure
F24: Other internal direct expenditure
F25: Total direct expenditure | G25: =SUM(G22:G24) -> 0 | H25: =SUM(H22:H24) -> 0 | I25: 0 | J25: 0 | K25: 0 | L25: 0 | M25: 0 | N25: 0 | O25: 0 | P25: 0 | Q25: 0 | R25: 0 | S25: 0 | T25: 0 | U25: 0 | AE25: =SUM(AE22:AE24) -> 0 | AF25: =SUM(AF22:AF24) -> 0 | AG25: =SUM(AG22:AG24) -> 0
F26: Total overhead expenditure
F27: Related party margin expenditure
F28: Total gross expenditure | G28: 245000 | H28: 449820 | I28: 131370 | J28: 292500 | K28: 449800 | L28: =SUM(L26:L27) -> 0 | M28: =SUM(M26:M27) -> 0 | N28: 0 | O28: 0 | P28: 0 | Q28: 0 | R28: 0 | S28: 0 | T28: 0 | U28: 0 | Z28: =SUM(Z26:Z27) -> 0 | AA28: 0 | AB28: 0 | AC28: 0 | AD28: 0 | AE28: 0 | AF28: 0 | AG28: 0
F29: Less customer contributions
F30: Total net expenditure | G30: =G28-G29 -> 245000 | H30: 449820 | I30: 131370 | J30: 292500 | K30: 449800 | L30: =L28-L29 -> 0 | M30: =M28-M29 -> 0 | N30: 0 | O30: =O28-O29 -> 0 | P30: 0 | Q30: =Q28-Q29 -> 0 | R30: =R28-R29 -> 0 | S30: =S28-S29 -> 0 | T30: =T28-T29 -> 0 | U30: =U28-U29 -> 0 | Z30: =Z28-Z29 -> 0 | AA30: 0 | AB30: 0 | AC30: 0 | AD30: 0 | AE30: 0 | AF30: 0 | AG30: 0
E31: Other - non demand | F31: Direct expenditure
F32: Direct internal labour expenditure
F33: Direct contractor expenditure
F34: Other internal direct expenditure
F35: Total direct expenditure | G35: =SUM(G32:G34) -> 0 | H35: =SUM(H32:H34) -> 0 | I35: 0 | J35: =SUM(J32:J34) -> 0 | K35: =SUM(K32:K34) -> 0 | L35: =SUM(L32:L34) -> 0 | M35: =SUM(M32:M34) -> 0 | N35: =SUM(N32:N34) -> 0 | O35: 0 | P35: 0 | Q35: 0 | R35: 0 | S35: 0 | T35: 0 | U35: 0 | AE35: =SUM(AE32:AE34) -> 0 | AF35: =SUM(AF32:AF34) -> 0 | AG35: =SUM(AG32:AG34) -> 0
F36: Total overhead expenditure
F37: Related party margin expenditure
F38: Total gross expenditure | G38: 0 | H38: 0 | I38: 0 | J38: 0 | K38: 1420 | L38: =SUM(L36:L37) -> 0 | M38: 0 | N38: 0 | O38: 0 | P38: 0 | Q38: 0 | R38: 0 | S38: 0 | T38: 0 | U38: 0 | Z38: =SUM(Z36:Z37) -> 0 | AA38: 0 | AB38: 0 | AC38: 0 | AD38: 0 | AE38: 0 | AF38: 0 | AG38: 0
F39: Less customer contributions
F40: Total net expenditure | G40: =G38-G39 -> 0 | H40: 0 | I40: 0 | J40: 0 | K40: 1420 | L40: 0 | M40: 0 | N40: 0 | O40: 0 | P40: 0 | Q40: 0 | R40: 0 | S40: 0 | T40: 0 | U40: 0 | Z40: =Z38-Z39 -> 0 | AA40: 0 | AB40: 0 | AC40: 0 | AD40: 0 | AE40: 0 | AF40: 0 | AG40: 0
E41: OTHER - NON RETIC CAPITAL | F41: Direct expenditure
F42: Direct internal labour expenditure | L42: 0 | M42: 0 | N42: 0 | O42: 0 | P42: 0 | Q42: 0 | R42: 0 | S42: 0 | T42: 0 | U42: 0
F43: Direct contractor expenditure | L43: 0 | M43: 0 | N43: 0 | O43: 0 | P43: 0 | Q43: 0 | R43: 0 | S43: 0 | T43: 0 | U43: 0
F44: Other internal direct expenditure | L44: 40785.21 | M44: 10919 | N44: 28919 | O44: 0 | P44: 0 | Q44: 0 | R44: 0 | S44: 0 | T44: 0 | U44: 0
F45: Total direct expenditure | G45: =SUM(G42:G44) -> 0 | H45: =SUM(H42:H44) -> 0 | I45: 0 | J45: 0 | K45: 0 | L45: 40785.21 | M45: 10919 | N45: =SUM(N42:N44) -> 28919 | O45: 0 | P45: 0 | Q45: 0 | R45: 0 | S45: 0 | T45: 0 | U45: 0 | AE45: =SUM(AE42:AE44) -> 0 | AF45: =SUM(AF42:AF44) -> 0 | AG45: =SUM(AG42:AG44) -> 0
F46: Total overhead expenditure | L46: 361.9085167 | M46: 57.43694569 | N46: -406.4280163 | O46: 0 | P46: 0 | Q46: 0 | R46: 0 | S46: 0 | T46: 0 | U46: 0
F47: Related party margin expenditure | L47: 3462.117802 | M47: 1061.580702 | N47: 2770.618956 | O47: 0 | P47: 0 | Q47: 0 | R47: 0 | S47: 0 | T47: 0 | U47: 0
F48: Total gross expenditure | G48: =SUM(G45:G47) -> 0 | H48: 0 | I48: 0 | J48: 0 | K48: 0 | L48: =SUM(L45:L47) -> 44609.23632 | M48: =SUM(M45:M47) -> 12038.01765 | N48: 31283.19094 | O48: 0 | P48: 0 | Q48: 0 | R48: 0 | S48: 0 | T48: 0 | U48: 0 | Z48: =SUM(Z46:Z47) -> 0 | AA48: 0 | AB48: 0 | AC48: 0 | AD48: 0 | AE48: 0 | AF48: 0 | AG48: 0
F49: Less customer contributions | L49: 0 | M49: 0 | N49: 0 | O49: 0 | P49: 0 | Q49: 0 | R49: 0 | S49: 0 | T49: 0 | U49: 0
F50: Total net expenditure | G50: =SUM(G48:G49) -> 0 | H50: 0 | I50: 0 | J50: 0 | K50: 0 | L50: =SUM(L48:L49) -> 44609.23632 | M50: =SUM(M48:M49) -> 12038.01765 | N50: 31283.19094 | O50: 0 | P50: 0 | Q50: 0 | R50: 0 | S50: 0 | T50: 0 | U50: 0 | Z50: =Z48-Z49 -> 0 | AA50: 0 | AB50: 0 | AC50: 0 | AD50: 0 | AE50: 0 | AF50: 0 | AG50: 0
E51: NETWORK - REGULATOR CAPEX Total | F51: Direct expenditure
F52: Direct internal labour expenditure | L52: 0 | M52: 0 | N52: 0 | O52: 0 | P52: 0 | Q52: 0 | R52: 0 | S52: 0 | T52: 0 | U52: 0
F53: Direct contractor expenditure | L53: 0 | M53: 0 | N53: 3770 | O53: 0 | P53: 0 | Q53: 0 | R53: 0 | S53: 0 | T53: 0 | U53: 0
F54: Other internal direct expenditure | L54: 0 | M54: 2789.07 | N54: 97.8 | O54: 0 | P54: 0 | Q54: 0 | R54: 0 | S54: 0 | T54: 0 | U54: 0
F55: Total direct expenditure | G55: =SUM(G52:G54) -> 0 | H55: =SUM(H52:H54) -> 0 | I55: 0 | J55: 0 | K55: 0 | L55: 0 | M55: 2789.07 | N55: 3867.8 | O55: 0 | P55: 0 | Q55: 0 | R55: 0 | S55: 0 | T55: 0 | U55: 0 | AE55: =SUM(AE52:AE54) -> 0 | AF55: =SUM(AF52:AF54) -> 0 | AG55: =SUM(AG52:AG54) -> 0
F56: Total overhead expenditure | L56: 0 | M56: 14.67127595 | N56: -54.3581134 | O56: 546.8697724 | P56: 689.1888077 | Q56: 0 | R56: 0 | S56: 0 | T56: 0 | U56: 0
F57: Related party margin expenditure | L57: 0 | M57: 271.1624588 | N57: 370.5591479 | O57: 4921.827952 | P57: 6202.699269 | Q57: 0 | R57: 0 | S57: 0 | T57: 0 | U57: 0
F58: Total gross expenditure | G58: =SUM(G55:G57) -> 0 | H58: 0 | I58: 0 | J58: 0 | K58: 0 | L58: =SUM(L55:L57) -> 0 | M58: =SUM(M55:M57) -> 3074.903735 | N58: 4184.001035 | O58: 5468.697724 | P58: 6891.888077 | Q58: 0 | R58: 0 | S58: 0 | T58: 0 | U58: 0 | Z58: =SUM(Z56:Z57) -> 0 | AA58: 0 | AB58: 0 | AC58: 0 | AD58: 0 | AE58: 0 | AF58: 0 | AG58: 0
F59: Less customer contributions | L59: 0 | M59: 0 | N59: 0 | O59: 0 | P59: 0 | Q59: 0 | R59: 0 | S59: 0 | T59: 0 | U59: 0
F60: Total net expenditure | G60: =SUM(G58:G59) -> 0 | H60: 0 | I60: 0 | J60: 0 | K60: 0 | L60: =SUM(L58:L59) -> 0 | M60: =SUM(M58:M59) -> 3074.903735 | N60: 4184.001035 | O60: 5468.697724 | P60: 6891.888077 | Q60: 0 | R60: 0 | S60: 0 | T60: 0 | U60: 0 | Z60: =Z58-Z59 -> 0 | AA60: 0 | AB60: 0 | AC60: 0 | AD60: 0 | AE60: 0 | AF60: 0 | AG60: 0
E61: Refurbishment of Sleeved Railway Casing Pipes | F61: Direct expenditure
F62: Direct internal labour expenditure | L62: 0 | M62: 0 | N62: 0 | O62: 0 | P62: 0 | Q62: 0 | R62: 0 | S62: 0 | T62: 0 | U62: 0
F63: Direct contractor expenditure | L63: 0 | M63: 0 | N63: 0 | O63: 0 | P63: 0 | Q63: 0 | R63: 0 | S63: 0 | T63: 0 | U63: 0
F64: Other internal direct expenditure | L64: 0 | M64: 0 | N64: 0 | O64: 0 | P64: 0 | Q64: 0 | R64: 0 | S64: 0 | T64: 0 | U64: 0
F65: Total direct expenditure | G65: =SUM(G62:G64) -> 0 | H65: =SUM(H62:H64) -> 0 | I65: 0 | J65: 0 | K65: 0 | L65: 0 | M65: 0 | N65: 0 | O65: 0 | P65: 0 | Q65: 0 | R65: 0 | S65: 0 | T65: 0 | U65: 0 | AE65: =SUM(AE62:AE64) -> 0 | AF65: =SUM(AF62:AF64) -> 0 | AG65: =SUM(AG62:AG64) -> 0
F66: Total overhead expenditure | L66: 0 | M66: 0 | N66: 0 | O66: 0 | P66: 0 | Q66: 0 | R66: 379.259357 | S66: 0 | T66: 0 | U66: 0
F67: Related party margin expenditure | L67: 0 | M67: 0 | N67: 0 | O67: 0 | P67: 0 | Q67: 0 | R67: 1166.366082 | S67: 0 | T67: 0 | U67: 0
F68: Total gross expenditure | G68: =SUM(G65:G67) -> 0 | H68: 0 | I68: 0 | J68: 0 | K68: 0 | L68: =SUM(L65:L67) -> 0 | M68: =SUM(M65:M67) -> 0 | N68: 0 | O68: 0 | P68: 0 | Q68: 0 | R68: 1545.625439 | S68: 0 | T68: 0 | U68: 0 | Z68: =SUM(Z65:Z67) -> 0 | AA68: =SUM(AA65:AA67) -> 0 | AB68: 0 | AC68: 0 | AD68: 0 | AE68: 0 | AF68: 0 | AG68: 0
F69: Less customer contributions | L69: 0 | M69: 0 | N69: 0 | O69: 0 | P69: 0 | Q69: 0 | R69: 0 | S69: 0 | T69: 0 | U69: 0
F70: Total net expenditure | G70: =SUM(G68:G69) -> 0 | H70: 0 | I70: 0 | J70: 0 | K70: 0 | L70: =SUM(L68:L69) -> 0 | M70: =SUM(M68:M69) -> 0 | N70: 0 | O70: 0 | P70: 0 | Q70: 0 | R70: 1545.625439 | S70: 0 | T70: 0 | U70: 0 | Z70: =Z68-Z69 -> 0 | AA70: 0 | AB70: 0 | AC70: 0 | AD70: 0 | AE70: 0 | AF70: 0 | AG70: 0
E71: Plant & Equipmnent Upgrade | F71: Direct expenditure
F72: Direct internal labour expenditure | L72: 0 | M72: 0 | N72: 0 | O72: 0 | P72: 0 | Q72: 0 | R72: 0 | S72: 0 | T72: 0 | U72: 0
F73: Direct contractor expenditure | L73: 0 | M73: 0 | N73: 0 | O73: 0 | P73: 0 | Q73: 0 | R73: 0 | S73: 0 | T73: 0 | U73: 0
F74: Other internal direct expenditure | L74: 0 | M74: 0 | N74: 0 | O74: 0 | P74: 0 | Q74: 0 | R74: 0 | S74: 0 | T74: 0 | U74: 0
F75: Total direct expenditure | G75: =SUM(G72:G74) -> 0 | H75: =SUM(H72:H74) -> 0 | I75: 0 | J75: 0 | K75: 0 | L75: 0 | M75: 0 | N75: 0 | O75: 0 | P75: 0 | Q75: 0 | R75: 0 | S75: 0 | T75: 0 | U75: 0 | AE75: =SUM(AE72:AE74) -> 0 | AF75: =SUM(AF72:AF74) -> 0 | AG75: =SUM(AG72:AG74) -> 0
F76: Total overhead expenditure | L76: 0 | M76: 0 | N76: 0 | O76: 0 | P76: 0 | Q76: 260.0874839 | R76: 290.765507 | S76: 280.1328275 | T76: 256.084879 | U76: 250.3704415
F77: Related party margin expenditure | L77: 0 | M77: 0 | N77: 0 | O77: 0 | P77: 0 | Q77: 1090.361151 | R77: 894.2139965 | S77: 983.3912895 | T77: 1182.881492 | U77: 1250.361808
F78: Total gross expenditure | G78: =SUM(G75:G77) -> 0 | H78: 0 | I78: 0 | J78: 0 | K78: 0 | L78: =SUM(L75:L77) -> 0 | M78: =SUM(M75:M77) -> 0 | N78: 0 | O78: 0 | P78: 0 | Q78: 1350.448634 | R78: 1184.979504 | S78: 1263.524117 | T78: 1438.966371 | U78: 1500.732249 | Z78: =SUM(Z75:Z77) -> 0 | AA78: =SUM(AA75:AA77) -> 0 | AB78: 0 | AC78: 0 | AD78: 0 | AE78: 0 | AF78: 0 | AG78: 0
F79: Less customer contributions | L79: 0 | M79: 0 | N79: 0 | O79: 0 | P79: 0 | Q79: 0 | R79: 0 | S79: 0 | T79: 0 | U79: 0
F80: Total net expenditure | G80: =SUM(G78:G79) -> 0 | H80: 0 | I80: 0 | J80: 0 | K80: 0 | L80: =SUM(L78:L79) -> 0 | M80: =SUM(M78:M79) -> 0 | N80: 0 | O80: 0 | P80: 0 | Q80: 1350.448634 | R80: 1184.979504 | S80: 1263.524117 | T80: 1438.966371 | U80: 1500.732249 | Z80: =Z78-Z79 -> 0 | AA80: 0 | AB80: 0 | AC80: 0 | AD80: 0 | AE80: 0 | AF80: 0 | AG80: 0
E81: Depot Office Refurbishment | F81: Direct expenditure
F82: Direct internal labour expenditure | L82: 0 | M82: 0 | N82: 0 | O82: 0 | P82: 0 | Q82: 0 | R82: 0 | S82: 0 | T82: 0 | U82: 0
F83: Direct contractor expenditure | L83: 0 | M83: 0 | N83: 0 | O83: 0 | P83: 0 | Q83: 0 | R83: 0 | S83: 0 | T83: 0 | U83: 0
F84: Other internal direct expenditure | L84: 0 | M84: 0 | N84: 0 | O84: 0 | P84: 0 | Q84: 0 | R84: 0 | S84: 0 | T84: 0 | U84: 0
F85: Total direct expenditure | G85: =SUM(G82:G84) -> 0 | H85: =SUM(H82:H84) -> 0 | I85: 0 | J85: 0 | K85: 0 | L85: 0 | M85: 0 | N85: 0 | O85: 0 | P85: 0 | Q85: 0 | R85: 0 | S85: 0 | T85: 0 | U85: 0 | AE85: =SUM(AE82:AE84) -> 0 | AF85: =SUM(AF82:AF84) -> 0 | AG85: =SUM(AG82:AG84) -> 0
F86: Total overhead expenditure | L86: 0 | M86: 0 | N86: 0 | O86: 0 | P86: 0 | Q86: 531.4831193 | R86: 0 | S86: 0 | T86: 0 | U86: 0
F87: Related party margin expenditure | L87: 0 | M87: 0 | N87: 0 | O87: 0 | P87: 0 | Q87: 2228.129308 | R87: 0 | S87: 0 | T87: 0 | U87: 0
F88: Total gross expenditure | G88: =SUM(G85:G87) -> 0 | H88: 0 | I88: 0 | J88: 0 | K88: 0 | L88: =SUM(L85:L87) -> 0 | M88: =SUM(M85:M87) -> 0 | N88: 0 | O88: 0 | P88: 0 | Q88: 2759.612427 | R88: 0 | S88: 0 | T88: 0 | U88: 0 | Z88: =SUM(Z85:Z87) -> 0 | AA88: =SUM(AA85:AA87) -> 0 | AB88: 0 | AC88: 0 | AD88: 0 | AE88: 0 | AF88: 0 | AG88: 0
F89: Less customer contributions | L89: 0 | M89: 0 | N89: 0 | O89: 0 | P89: 0 | Q89: 0 | R89: 0 | S89: 0 | T89: 0 | U89: 0
F90: Total net expenditure | G90: =SUM(G88:G89) -> 0 | H90: 0 | I90: 0 | J90: 0 | K90: 0 | L90: =SUM(L88:L89) -> 0 | M90: =SUM(M88:M89) -> 0 | N90: 0 | O90: 0 | P90: 0 | Q90: 2759.612427 | R90: 0 | S90: 0 | T90: 0 | U90: 0 | Z90: =Z88-Z89 -> 0 | AA90: 0 | AB90: 0 | AC90: 0 | AD90: 0 | AE90: 0 | AF90: 0 | AG90: 0
E91: CITY GATE & FIELD REGULATOR PIPEWORK REFURBISHMENT | F91: Direct expenditure
F92: Direct internal labour expenditure | L92: 0 | M92: 0 | N92: 0 | O92: 0 | P92: 0 | Q92: 0 | R92: 0 | S92: 0 | T92: 0 | U92: 0
F93: Direct contractor expenditure | L93: 0 | M93: 0 | N93: 0 | O93: 0 | P93: 0 | Q93: 0 | R93: 0 | S93: 0 | T93: 0 | U93: 0
F94: Other internal direct expenditure | L94: 0 | M94: 0 | N94: 0 | O94: 0 | P94: 0 | Q94: 0 | R94: 0 | S94: 0 | T94: 0 | U94: 0
F95: Total direct expenditure | G95: =SUM(G92:G94) -> 0 | H95: =SUM(H92:H94) -> 0 | I95: 0 | J95: 0 | K95: 0 | L95: 0 | M95: 0 | N95: 0 | O95: 0 | P95: 0 | Q95: 0 | R95: 0 | S95: 0 | T95: 0 | U95: 0 | AE95: =SUM(AE92:AE94) -> 0 | AF95: =SUM(AF92:AF94) -> 0 | AG95: =SUM(AG92:AG94) -> 0
F96: Total overhead expenditure | L96: 0 | M96: 0 | N96: 0 | O96: 0 | P96: 0 | Q96: 0 | R96: 0 | S96: 243.593763 | T96: 0 | U96: 0
F97: Related party margin expenditure | L97: 0 | M97: 0 | N97: 0 | O97: 0 | P97: 0 | Q97: 0 | R97: 0 | S97: 855.1228604 | T97: 0 | U97: 0
F98: Total gross expenditure | G98: =SUM(G95:G97) -> 0 | H98: 0 | I98: 0 | J98: 0 | K98: 0 | L98: =SUM(L95:L97) -> 0 | M98: =SUM(M95:M97) -> 0 | N98: 0 | O98: 0 | P98: 0 | Q98: 0 | R98: 0 | S98: 1098.716623 | T98: 0 | U98: 0 | Z98: =SUM(Z95:Z97) -> 0 | AA98: =SUM(AA95:AA97) -> 0 | AB98: 0 | AC98: 0 | AD98: 0 | AE98: 0 | AF98: 0 | AG98: 0
F99: Less customer contributions | L99: 0 | M99: 0 | N99: 0 | O99: 0 | P99: 0 | Q99: 0 | R99: 0 | S99: 0 | T99: 0 | U99: 0
F100: Total net expenditure | G100: =SUM(G98:G99) -> 0 | H100: 0 | I100: 0 | J100: 0 | K100: 0 | L100: =SUM(L98:L99) -> 0 | M100: =SUM(M98:M99) -> 0 | N100: 0 | O100: 0 | P100: 0 | Q100: 0 | R100: 0 | S100: 1098.716623 | T100: 0 | U100: 0 | Z100: =Z98-Z99 -> 0 | AA100: 0 | AB100: 0 | AC100: 0 | AD100: 0 | AE100: 0 | AF100: 0 | AG100: 0
E101: I&C METERSET REFURBISHMENT PROGRAM | F101: Direct expenditure
F102: Direct internal labour expenditure | L102: 0 | M102: 0 | N102: 0 | O102: 0 | P102: 0 | Q102: 0 | R102: 0 | S102: 0 | T102: 0 | U102: 0
F103: Direct contractor expenditure | L103: 0 | M103: 0 | N103: 0 | O103: 0 | P103: 0 | Q103: 0 | R103: 0 | S103: 0 | T103: 0 | U103: 0
F104: Other internal direct expenditure | L104: 0 | M104: 0 | N104: 0 | O104: 0 | P104: 0 | Q104: 0 | R104: 0 | S104: 0 | T104: 0 | U104: 0
F105: Total direct expenditure | G105: =SUM(G102:G104) -> 0 | H105: =SUM(H102:H104) -> 0 | I105: 0 | J105: 0 | K105: 0 | L105: 0 | M105: 0 | N105: 0 | O105: 0 | P105: 0 | Q105: 0 | R105: 0 | S105: 0 | T105: 0 | U105: 0 | AE105: =SUM(AE102:AE104) -> 0 | AF105: =SUM(AF102:AF104) -> 0 | AG105: =SUM(AG102:AG104) -> 0
F106: Total overhead expenditure | L106: 0 | M106: 0 | N106: 0 | O106: 0 | P106: 0 | Q106: 0 | R106: 632.0989283 | S106: 645.523472 | T106: 0 | U106: 0
F107: Related party margin expenditure | L107: 0 | M107: 0 | N107: 0 | O107: 0 | P107: 0 | Q107: 0 | R107: 1943.943471 | S107: 2266.07558 | T107: 0 | U107: 0
F108: Total gross expenditure | G108: =SUM(G105:G107) -> 0 | H108: 0 | I108: 0 | J108: 0 | K108: 0 | L108: =SUM(L105:L107) -> 0 | M108: =SUM(M105:M107) -> 0 | N108: 0 | O108: 0 | P108: 0 | Q108: 0 | R108: 2576.042399 | S108: 2911.599052 | T108: 0 | U108: 0 | Z108: =SUM(Z105:Z107) -> 0 | AA108: =SUM(AA105:AA107) -> 0 | AB108: 0 | AC108: 0 | AD108: 0 | AE108: 0 | AF108: 0 | AG108: 0
F109: Less customer contributions | L109: 0 | M109: 0 | N109: 0 | O109: 0 | P109: 0 | Q109: 0 | R109: 0 | S109: 0 | T109: 0 | U109: 0
F110: Total net expenditure | G110: =SUM(G108:G109) -> 0 | H110: 0 | I110: 0 | J110: 0 | K110: 0 | L110: =SUM(L108:L109) -> 0 | M110: =SUM(M108:M109) -> 0 | N110: 0 | O110: 0 | P110: 0 | Q110: 0 | R110: 2576.042399 | S110: 2911.599052 | T110: 0 | U110: 0 | Z110: =Z108-Z109 -> 0 | AA110: 0 | AB110: 0 | AC110: 0 | AD110: 0 | AE110: 0 | AF110: 0 | AG110: 0
E111: CITY GATE REFURBISHMENT VALVE REPLACEMENT | F111: Direct expenditure
F112: Direct internal labour expenditure | L112: 0 | M112: 0 | N112: 0 | O112: 0 | P112: 0 | Q112: 0 | R112: 0 | S112: 0 | T112: 0 | U112: 0
F113: Direct contractor expenditure | L113: 0 | M113: 0 | N113: 0 | O113: 0 | P113: 0 | Q113: 0 | R113: 0 | S113: 0 | T113: 0 | U113: 0
F114: Other internal direct expenditure | L114: 0 | M114: 0 | N114: 0 | O114: 0 | P114: 0 | Q114: 0 | R114: 0 | S114: 0 | T114: 0 | U114: 0
F115: Total direct expenditure | G115: =SUM(G112:G114) -> 0 | H115: =SUM(H112:H114) -> 0 | I115: 0 | J115: 0 | K115: 0 | L115: 0 | M115: 0 | N115: 0 | O115: 0 | P115: 0 | Q115: 0 | R115: 0 | S115: 0 | T115: 0 | U115: 0 | AE115: =SUM(AE112:AE114) -> 0 | AF115: =SUM(AF112:AF114) -> 0 | AG115: =SUM(AG112:AG114) -> 0
F116: Total overhead expenditure | L116: 0 | M116: 0 | N116: 0 | O116: 0 | P116: 0 | Q116: 0 | R116: 0 | S116: 85.25781705 | T116: 745.9863867 | U116: 0
F117: Related party margin expenditure | L117: 0 | M117: 0 | N117: 0 | O117: 0 | P117: 0 | Q117: 0 | R117: 0 | S117: 299.2930011 | T117: 3445.785216 | U117: 0
F118: Total gross expenditure | G118: =SUM(G115:G117) -> 0 | H118: 0 | I118: 0 | J118: 0 | K118: 0 | L118: =SUM(L115:L117) -> 0 | M118: =SUM(M115:M117) -> 0 | N118: 0 | O118: 0 | P118: 0 | Q118: 0 | R118: 0 | S118: 384.5508182 | T118: 4191.771603 | U118: 0 | Z118: =SUM(Z115:Z117) -> 0 | AA118: =SUM(AA115:AA117) -> 0 | AB118: 0 | AC118: 0 | AD118: 0 | AE118: 0 | AF118: 0 | AG118: 0
F119: Less customer contributions | L119: 0 | M119: 0 | N119: 0 | O119: 0 | P119: 0 | Q119: 0 | R119: 0 | S119: 0 | T119: 0 | U119: 0
F120: Total net expenditure | G120: =SUM(G118:G119) -> 0 | H120: 0 | I120: 0 | J120: 0 | K120: 0 | L120: =SUM(L118:L119) -> 0 | M120: =SUM(M118:M119) -> 0 | N120: 0 | O120: 0 | P120: 0 | Q120: 0 | R120: 0 | S120: 384.5508182 | T120: 4191.771603 | U120: 0 | Z120: =Z118-Z119 -> 0 | AA120: 0 | AB120: 0 | AC120: 0 | AD120: 0 | AE120: 0 | AF120: 0 | AG120: 0
E121: TOTALS | F121: Total direct expenditure | G121: =SUMIF($F$21:$F$120,"Total direct expenditure ",G$21:G$120) -> 0 | H121: 0 | I121: 0 | J121: 0 | K121: 0 | L121: =SUMIF($F$21:$F$120,"Total direct expenditure ",L$21:L$120) -> 40785.21 | M121: 13708.07 | N121: 32786.8 | O121: 0 | P121: 0 | Q121: 0 | R121: 0 | S121: 0 | T121: 0 | U121: 0 | Z121: =SUMIF($F$21:$F$120,"Total direct expenditure ",Z$21:Z$120) -> 0 | AA121: 0 | AB121: 0 | AC121: 0 | AD121: 0 | AE121: 0 | AF121: 0 | AG121: 0
F122: Total Overhead expenditure | G122: =SUMIF($F$21:$F$120,"Total overhead expenditure",G$21:G$120) -> 0 | H122: 0 | I122: 0 | J122: 0 | K122: 0 | L122: 361.9085167 | M122: 72.10822164 | N122: -460.7861297 | O122: 546.8697724 | P122: 689.1888077 | Q122: 791.5706032 | R122: 1302.123792 | S122: =SUMIF($F$21:$F$120,"Total overhead expenditure",S$21:S$120) -> 1254.50788 | T122: 1002.071266 | U122: 250.3704415 | Z122: =SUMIF($F$21:$F$120,"Total overhead expenditure",Z$21:Z$120) -> 0 | AA122: 0 | AB122: 0 | AC122: 0 | AD122: 0 | AE122: 0 | AF122: 0 | AG122: 0
F123: Related party margin expenditure | G123: =SUMIF($F$21:$F$120,"Related party margin expenditure",G$21:G$120) -> 0 | H123: 0 | I123: 0 | J123: 0 | K123: 0 | L123: 3462.117802 | M123: 1332.74316 | N123: 3141.178104 | O123: 4921.827952 | P123: 6202.699269 | Q123: 3318.490458 | R123: 4004.523549 | S123: 4403.882731 | T123: 4628.666708 | U123: 1250.361808 | Z123: =SUMIF($F$21:$F$120,"Related party margin expenditure",Z$21:Z$120) -> 0 | AA123: 0 | AB123: 0 | AC123: 0 | AD123: 0 | AE123: 0 | AF123: 0 | AG123: 0
F124: Total gross expenditure | G124: =SUMIF($F$21:$F$120,"Total gross expenditure",G$21:G$120) -> 245000 | H124: 449820 | I124: 131370 | J124: 292500 | K124: 451220 | L124: 44609.23632 | M124: 15112.92138 | N124: 35467.19197 | O124: 5468.697724 | P124: =SUMIF($F$21:$F$120,"Total gross expenditure",P$21:P$120) -> 6891.888077 | Q124: 4110.061061 | R124: 5306.647342 | S124: 5658.390611 | T124: 5630.737974 | U124: 1500.732249 | Z124: =SUMIF($F$21:$F$120,"Total gross expenditure",Z$21:Z$120) -> 0 | AA124: 0 | AB124: 0 | AC124: 0 | AD124: 0 | AE124: 0 | AF124: 0 | AG124: 0
F125: Less customer contributions | G125: =SUMIF($F$21:$F$120,"Less customer contributions",G$21:G$120) -> 0 | H125: 0 | I125: 0 | J125: 0 | K125: 0 | L125: 0 | M125: 0 | N125: 0 | O125: 0 | P125: 0 | Q125: 0 | R125: 0 | S125: 0 | T125: 0 | U125: 0 | Z125: =SUMIF($F$21:$F$120,"Less customer contributions",Z$21:Z$120) -> 0 | AA125: 0 | AB125: 0 | AC125: 0 | AD125: 0 | AE125: 0 | AF125: 0 | AG125: 0
F126: Total net expenditure | G126: =SUMIF($F$21:$F$120,"Total net expenditure",G$21:G$120) -> 245000 | H126: 449820 | I126: 131370 | J126: 292500 | K126: 451220 | L126: 44609.23632 | M126: 15112.92138 | N126: 35467.19197 | O126: 5468.697724 | P126: 6891.888077 | Q126: 4110.061061 | R126: 5306.647342 | S126: 5658.390611 | T126: 5630.737974 | U126: 1500.732249 | Z126: =SUMIF($F$21:$F$120,"Total net expenditure",Z$21:Z$120) -> 0 | AA126: 0 | AB126: 0 | AC126: 0 | AD126: 0 | AE126: 0 | AF126: 0 | AG126: 0
E127: Source(s) of data: | G127: 2008-2012 ESC Regulatory Accounting Statements - Statement 4b "Other- Non Demand and Gas Extensions - Other" - Total Cost | L127: 2013-2015 AER Annual Reporting Templates - Template 2 Capex - Other | O127: APA Forecast
L128: =+L126 -> 44609.23632 | M128: =+M126 -> 15112.92138 | N128: 35467.19197 | O128: 5468.697724 | P128: 6891.888077 | Q128: 4110.061061 | R128: 5306.647342 | S128: 5658.390611 | T128: 5630.737974 | U128: 1500.732249
E129: Table 9.2 - Other capital expenditure (approved) | Q129: Escalation
G130: Previous access arrangement period | L130: Current access arrangement period | Q130: 2013 | R130: 2014 | S130: 2015 | T130: 2016 | U130: 2017 | W130: check
G131: =CONCATENATE("$0's, real ",dms_DollarReal) -> $0's, real December 2017 | Q131: 0.01320702652 | R131: 0.02379175012 | S131: 0.02669593439 | T131: 0.01812727182 | U131: 0.01928977433 | V131: =SUM(Q131:U131) -> 0.1011117572 | W131: 0
G132: Approved | Q132: Overheads
G133: =PRCP -> 2008 | H133: 2009 | I133: 2010 | J133: 2011 | K133: 2012 | L133: =CRCP_y1 -> 2013 | M133: =CRCP_y2 -> 2014 | N133: =CRCP_y3 -> 2015 | O133: =CRCP_y4 -> 2016 | P133: =CRCP_y5 -> 2017 | Q133: 2013 | R133: 2014 | S133: 2015 | T133: 2016 | U133: 2017 | W133: check
E134: VA36 City Gate Lagging | F134: Direct expenditure | Q134: 0.6212356196 | R134: 0.6334134047 | S134: 0.5674423284 | T134: 0.3755592038 | U134: 0.3713490921 | V134: =SUM(Q134:U134) -> 2.568999649 | W134: 0
F135: Direct internal labour expenditure | Q135: =(Q131+Q134)*$M$195*1000 -> 723.8563247 | R135: =(R131+R134)*$M$195*1000 -> 749.8268139 | S135: =(S131+S134)*$M$195*1000 -> 677.8717382 | T135: =(T131+T134)*$M$195*1000 -> 449.169751 | U135: =(U131+U134)*$M$195*1000 -> 445.6926341 | V135: =SUM(Q135:U135) -> 3046.417262 | W135: =((V134+V131)*M195)-V135 -> -3043.370845
F136: Direct contractor expenditure | Q136: 2013 | R136: 2014 | S136: 2015 | T136: 2016 | U136: 2017
F137: Other internal direct expenditure | Q137: 0.02659185167 | R137: 0.02163416091 | S137: 0.02539280046 | T137: 0.04071503528 | U137: 0.04547901842
F138: Total direct expenditure | L138: 2289.217482 | M138: 2292.263593 | N138: 2295.870372 | O138: 2297.904057 | P138: 2301.233703
F139: Total overhead expenditure | L139: 510.4905227 | M139: 492.0366812 | N139: 499.5243837 | O139: 584.1445392 | P139: 536.1844786
F140: Related party margin expenditure
F141: Total gross expenditure | G141: =SUM(G138:G140) -> 0 | H141: =SUM(H138:H140) -> 0 | I141: 0 | J141: 0 | K141: 0 | L141: 2799.708005 | M141: =SUM(M138:M140) -> 2784.300275 | N141: 2795.394756 | O141: 2882.048596 | P141: 2837.418181
F142: Less customer contributions
F143: Total net expenditure | G143: =G141-G142 -> 0 | H143: =H141-H142 -> 0 | I143: 0 | J143: 0 | K143: 0 | L143: 2799.708005 | M143: 2784.300275 | N143: =N141-N142 -> 2795.394756 | O143: 2882.048596 | P143: 2837.418181
E144: TOTALS | F144: Total direct expenditure | G144: =0.03*1000000*G193 -> 38840.23669 | H144: =0.04*1000000*H193 -> 51786.98225 | I144: =0.03*1000000*I193 -> 38840.23669 | J144: =0.03*1000000*J193 -> 38840.23669 | K144: =0.02*1000000*K193 -> 25893.49112 | L144: =L138 -> 2289.217482 | M144: =M138 -> 2292.263593 | N144: 2295.870372 | O144: 2297.904057 | P144: 2301.233703 | Q144: =SUM(Q137:Q143) -> 0.02659185167 | R144: =SUM(R137:R143) -> 0.02163416091 | S144: =SUM(S137:S143) -> 0.02539280046 | T144: =SUM(T137:T143) -> 0.04071503528 | U144: =SUM(U137:U143) -> 0.04547901842
F145: Total Overhead expenditure | G145: =G139 -> 0 | H145: 0 | I145: 0 | J145: 0 | K145: 0 | L145: =L139 -> 510.4905227 | M145: =M139 -> 492.0366812 | N145: =N139 -> 499.5243837 | O145: 584.1445392 | P145: 536.1844786
F146: Related party margin expenditure | G146: =G140 -> 0 | H146: 0 | I146: 0 | J146: 0 | K146: 0 | L146: =L140 -> 0 | M146: =M140 -> 0 | N146: 0 | O146: 0 | P146: 0
F147: Total gross expenditure | G147: =SUM(G144:G146) -> 38840.23669 | H147: =SUM(H144:H146) -> 51786.98225 | I147: 38840.23669 | J147: 38840.23669 | K147: 25893.49112 | L147: =L141 -> 2799.708005 | M147: =M141 -> 2784.300275 | N147: =N141 -> 2795.394756 | O147: 2882.048596 | P147: 2837.418181
F148: Less customer contributions | G148: 0 | H148: 0 | I148: 0 | J148: 0 | K148: 0 | L148: =L142 -> 0 | M148: 0 | N148: 0 | O148: 0 | P148: 0
F149: Total net expenditure | G149: =G147-G148 -> 38840.23669 | H149: =H147-H148 -> 51786.98225 | I149: 38840.23669 | J149: 38840.23669 | K149: 25893.49112 | L149: 2799.708005 | M149: =M143 -> 2784.300275 | N149: 2795.394756 | O149: 2882.048596 | P149: 2837.418181
E150: Source(s) of data: | G150: Review of Gas Access Arrangements 2008 - 2012 - Variations to the Access Arrangements of Envestra (Victoria) and Envestra (Albury): ESC Appeal Panel Decisions E1 and E2 of 2008 - 25 March 2009, p23 | L150: Source: Envestra final submission capex file 2013 - 2017 'AER Final decision ENA - Sent to DNSP'
K154: check | L154: 0 | M154: 0 | N154: 0 | O154: 0 | P154: 0
G192: Convert $1 July 2006 to $31 December 2017 | L192: Conversion $2011 to $2017
G193: 1.294674556 | H193: 1.294674556 | I193: 1.294674556 | J193: 1.294674556 | K193: 1.294674556 | L193: 2010-09-01 | M193: 96.5
L194: 2016-09-01 | M194: ='4. Connections market expansn'!Z286 -> 110.1
M195: =M194/M193 -> 1.140932642

Sheet 12. IT
E1: =IF(dms_DataQuality="backcast",INDEX(dms_Worksheet_List,MATCH(dms_Model,dms_Model_List))&" BACKCAST",INDEX(dms_Worksheet_List,MATCH(dms_Model,dms_Model_List))) -> REGULATORY REPORTING STATEMENT
E2: =INDEX(dms_TradingNameFull_List,MATCH(dms_TradingName,dms_TradingName_List)) -> Australian Gas Networks Limited (reporting data for Albury)
E3: =IF(SUM(dms_SingleYear_Model)>0,CRY,CONCATENATE(FRCP_y1," to ",dms_MultiYear_FinalYear_Result)) -> 2018 to 2022 | K3: =CONCATENATE(LEFT(FRCP_y1,4),"-",LEFT(FRCP_y5,2),RIGHT(FRCP_y5,2)) -> 2018-2022 | AD3: =CONCATENATE(LEFT(FRCP_y1,4),"-",LEFT(FRCP_y5,2),RIGHT(FRCP_y5,2)) -> 2018-2022
E4: 12. IT CAPITAL EXPENDITURE
A6: Asset category | E6: Instructions
A7: HPM | B7: HP mains | E7: This template asks for information relating to IT capital expenditure
A8: MPS | B8: MP services | E8: =CONCATENATE("As set out in cl.6.1 of the ", dms_TradingName, " RIN, for tables 12.1 to 12.2, where the requested data is captured in the ", dms_TradingName, " capex model it is not required to be reentered in the RIN template tables. If the requested data has not been provided in the ", dms_TradingName, " RIN please enter into the tables. This may require the insertion of new lines in each table.") -> As set out in cl.6.1 of the AGN (Albury) RIN, for tables 12.1 to 12.2, where the requested data is captured in the AGN (Albury) capex model it is not required to be reentered in the RIN template tables. If the requested data has not been provided in the AGN (Albury) RIN please enter into the tables. This may require the insertion of new lines in each table.
A9: TRS | B9: TRS & DRS - valves & regulators | E9: Reported expenditure is to be entered EXCLUSIVE of any profit margins or management fees paid pursuant to arrangements or contracts with any related parties. Include any related party margins or management fees in the separate 'Related party margin' line item.
A10: RC | B10: Regulatory expenditure | E10: =CONCATENATE("Subject to cl.6.1 of the ", dms_TradingName, " RIN, where linked/adjustable overhead expenditure and related party margin expenditure is not provided in the ", dms_TradingName, " capex model, overhead expenditure and related party margin expenditure should be linked to allocations derived in tabs '14. Overheads' and '15. Related party transactions'.") -> Subject to cl.6.1 of the AGN (Albury) RIN, where linked/adjustable overhead expenditure and related party margin expenditure is not provided in the AGN (Albury) capex model, overhead expenditure and related party margin expenditure should be linked to allocations derived in tabs '14. Overheads' and '15. Related party transactions'.
A11: ITS | B11: IT System | E11: Capital expenditure amounts entered should be GROSS of customer contributions. There is a separate line item for customer contributions from which net capital expenditure is derived.
A14: Internal identification code | B14: Asset category | C14: Percent allocation | E14: Table 12 - IT CAPITAL EXPENDITURE | Z14: REAL $ CONVERSION OF HISTORICAL DATA
A15: Internal identification code | B15: Asset category | C15: Percent allocation | E15: Table 12.1 - IT Capex (actual/forecast)
G16: Previous access arrangement period | L16: Current access arrangement period | Q16: Next access arrangement period | V16: Supporting documentation (business case, costing spreadsheet, contracts) | Z16: Previous access arrangement period | AE16: Current access arrangement period
G17: $0's, nominal | O17: =CONCATENATE("$0's, real ",dms_DollarReal) -> $0's, real December 2017 | Z17: =CONCATENATE("$0's, real ",dms_DollarReal) -> $0's, real December 2017
G18: Actual | O18: Forecast | Z18: Actual
G19: =PRCP -> 2008 | H19: 2009 | I19: 2010 | J19: 2011 | K19: 2012 | L19: =CRCP_y1 -> 2013 | M19: =CRCP_y2 -> 2014 | N19: =CRCP_y3 -> 2015 | O19: =CRCP_y4 -> 2016 | P19: =CRCP_y5 -> 2017 | Q19: =FRCP -> 2018 | R19: 2019 | S19: 2020 | T19: 2021 | U19: 2022 | Z19: =PRCP -> 2008 | AA19: 2009 | AB19: 2010 | AC19: 2011 | AD19: 2012 | AE19: =CRCP_y1 -> 2013 | AF19: =CRCP_y2 -> 2014 | AG19: =CRCP_y3 -> 2015
E20: < insert sub-category >
E21: Applications Renewal | F21: Direct expenditure
F22: Direct internal labour expenditure | L22: 0 | M22: 0 | N22: 0 | O22: 0 | P22: 0 | Q22: 41738.91128 | R22: 18398.77307 | S22: 41738.91128 | T22: 18398.77307 | U22: 44808.80735
F23: Direct contractor expenditure | L23: 0 | M23: 0 | N23: 0 | O23: 0 | P23: 0 | Q23: 106684.0391 | R23: 87282.57071 | S23: 106684.0391 | T23: 87282.57071 | U23: 141634.1534
F24: Other internal direct expenditure | L24: 0 | M24: 0 | N24: 0 | O24: 0 | P24: 0 | Q24: 10806.44622 | R24: 9923.936948 | S24: 11445.14943 | T24: 10658.78903 | U24: 19373.99732
F25: Total direct expenditure | G25: =SUM(G22:G24) -> 0 | H25: 0 | I25: 0 | J25: 0 | K25: 0 | L25: 0 | M25: 0 | N25: 0 | O25: 5150.832326 | P25: 104496.6523 | Q25: =SUM(Q22:Q24) -> 159229.3966 | R25: =SUM(R22:R24) -> 115605.2807 | S25: 159868.0998 | T25: 116340.1328 | U25: 205816.9581 | AF25: =SUM(AF22:AF24) -> 0 | AG25: =SUM(AG22:AG24) -> 0
F26: Total overhead expenditure | L26: 0 | M26: 0 | N26: 0 | O26: 36.35742079 | P26: 630.7654519 | Q26: 1766.302217 | R26: 1433.627273 | S26: 1910.093897 | T26: 1270.672666 | U26: 2197.760651
F27: Related party margin expenditure | L27: 0 | M27: 0 | N27: 0 | O27: 327.2167871 | P27: 5676.889067 | Q27: 7404.84428 | R27: 4408.946528 | S27: 6705.28234 | T27: 5869.363258 | U27: 10975.72048
F28: Total gross expenditure | G28: =SUM(G25:G27) -> 0 | H28: =SUM(H25:H27) -> 0 | I28: 0 | J28: 1110 | K28: 1770 | L28: =SUM(L25:L27) -> 0 | M28: =SUM(M25:M27) -> 0 | N28: 0 | O28: 5514.406534 | P28: 110804.3069 | Q28: 168400.5431 | R28: 121447.8545 | S28: 168483.4761 | T28: 123480.1687 | U28: 218990.4392 | Z28: =SUM(Z26:Z27) -> 0 | AA28: 0 | AB28: 0 | AC28: 0 | AD28: 0 | AE28: 0 | AF28: 0 | AG28: 0
F29: Less customer contributions | L29: 0 | M29: 0 | N29: 0 | O29: 0 | P29: 0 | Q29: 0 | R29: 0 | S29: 0 | T29: 0 | U29: 0
F30: Total net expenditure | G30: =G28-G29 -> 0 | H30: =H28-H29 -> 0 | I30: 0 | J30: 1110 | K30: 1770 | L30: 0 | M30: 0 | N30: 0 | O30: 5514.406534 | P30: 110804.3069 | Q30: 168400.5431 | R30: =R28-R29 -> 121447.8545 | S30: 168483.4761 | T30: 123480.1687 | U30: 218990.4392 | Z30: =Z28-Z29 -> 0 | AA30: 0 | AB30: 0 | AC30: 0 | AD30: 0 | AE30: 0 | AF30: =AF28-AF29 -> 0 | AG30: =AG28-AG29 -> 0
E31: Business Intelligence | F31: Direct expenditure | L31: 0 | M31: 0 | N31: 0 | O31: 0 | P31: 0 | Q31: 0 | R31: 0 | S31: 0 | T31: 0 | U31: 0
F32: Direct internal labour expenditure | L32: 0 | M32: 0 | N32: 0 | O32: 0 | P32: 0 | Q32: 32236.69465 | R32: 50526.07107 | S32: 33683.90543 | T32: 4253.111325 | U32: 0
F33: Direct contractor expenditure | L33: 0 | M33: 0 | N33: 0 | O33: 0 | P33: 0 | Q33: 52400.08099 | R33: 96945.22485 | S33: 64630.92916 | T33: 0 | U33: 0
F34: Other internal direct expenditure | L34: 0 | M34: 0 | N34: 0 | O34: 0 | P34: 0 | Q34: 3128.209291 | R34: 25565.21674 | S34: 17042.84052 | T34: 0 | U34: 0
F35: Total direct expenditure | G35: =SUM(G32:G34) -> 0 | H35: 0 | I35: 0 | J35: 0 | K35: 0 | L35: =SUM(L32:L34) -> 0 | M35: =SUM(M32:M34) -> 0 | N35: 0 | O35: 0 | P35: 0 | Q35: =SUM(Q32:Q34) -> 87764.98493 | R35: 173036.5127 | S35: 115357.6751 | T35: 4253.111325 | U35: 0 | AF35: =SUM(AF32:AF34) -> 0 | AG35: =SUM(AG32:AG34) -> 0
F36: Total overhead expenditure | L36: 0 | M36: 0 | N36: 0 | O36: 0 | P36: 0 | Q36: 973.549924 | R36: 2145.843925 | S36: 1378.249967 | T36: 46.45240217 | U36: 0
F37: Related party margin expenditure | L37: 0 | M37: 0 | N37: 0 | O37: 0 | P37: 0 | Q37: 4081.39984 | R37: 6599.282326 | S37: 4838.272704 | T37: 214.5682596 | U37: 0
F38: Total gross expenditure | G38: =SUM(G35:G37) -> 0 | H38: =SUM(H35:H37) -> 0 | I38: 0 | J38: 0 | K38: 0 | L38: =SUM(L35:L37) -> 0 | M38: =SUM(M35:M37) -> 0 | N38: 0 | O38: 0 | P38: 0 | Q38: 92819.93469 | R38: 181781.6389 | S38: 121574.1978 | T38: 4514.131987 | U38: 0 | Z38: =SUM(Z36:Z37) -> 0 | AA38: 0 | AB38: 0 | AC38: 0 | AD38: 0 | AE38: 0 | AF38: 0 | AG38: 0
F39: Less customer contributions | L39: 0 | M39: 0 | N39: 0 | O39: 0 | P39: 0 | Q39: 0 | R39: 0 | S39: 0 | T39: 0 | U39: 0
F40: Total net expenditure | G40: =G38-G39 -> 0 | H40: =H38-H39 -> 0 | I40: 0 | J40: 0 | K40: 0 | L40: 0 | M40: 0 | N40: 0 | O40: 0 | P40: 0 | Q40: =Q38-Q39 -> 92819.93469 | R40: =R38-R39 -> 181781.6389 | S40: 121574.1978 | T40: 4514.131987 | U40: 0 | Z40: =Z38-Z39 -> 0 | AA40: 0 | AB40: 0 | AC40: 0 | AD40: 0 | AE40: 0 | AF40: =AF38-AF39 -> 0 | AG40: =AG38-AG39 -> 0
E41: Mobility Integration | F41: Direct expenditure | L41: 0 | M41: 0 | N41: 0 | O41: 0 | P41: 0 | Q41: 0 | R41: 0 | S41: 0 | T41: 0 | U41: 0
F42: Direct internal labour expenditure | L42: 0 | M42: 0 | N42: 0 | O42: 0 | P42: 0 | Q42: 42706.29472 | R42: 63124.7514 | S42: 65250.89842 | T42: 29179.52857 | U42: 0
F43: Direct contractor expenditure | L43: 0 | M43: 0 | N43: 0 | O43: 0 | P43: 0 | Q43: 41123.30832 | R43: 39403.60781 | S43: 39403.9606 | T43: 16886.90533 | U43: 0
F44: Other internal direct expenditure | L44: 0 | M44: 0 | N44: 0 | O44: 0 | P44: 0 | Q44: 4237.321515 | R44: 6239.333803 | S44: 6239.389665 | T44: 2674.847347 | U44: 0
F45: Total direct expenditure | G45: =SUM(G42:G44) -> 0 | H45: 0 | I45: 0 | J45: 0 | K45: 0 | L45: 0 | M45: 0 | N45: 0 | O45: 0 | P45: 41206.65861 | Q45: =SUM(Q42:Q44) -> 88066.92456 | R45: =SUM(R42:R44) -> 108767.693 | S45: 110894.2487 | T45: 48741.28124 | U45: 0 | AF45: =SUM(AF42:AF44) -> 0 | AG45: =SUM(AG42:AG44) -> 0
F46: Total overhead expenditure | L46: 0 | M46: 0 | N46: 0 | O46: 0 | P46: 248.7327207 | Q46: 976.8992472 | R46: 1348.839558 | S46: 1324.922633 | T46: 532.3513601 | U46: 0
F47: Related party margin expenditure | L47: 0 | M47: 0 | N47: 0 | O47: 0 | P47: 2238.594486 | Q47: 4095.441162 | R47: 4148.192212 | S47: 4651.069952 | T47: 2458.983809 | U47: 0
F48: Total gross expenditure | G48: =SUM(G45:G47) -> 0 | H48: =SUM(H45:H47) -> 0 | I48: 0 | J48: 0 | K48: 0 | L48: =SUM(L45:L47) -> 0 | M48: =SUM(M45:M47) -> 0 | N48: 0 | O48: 0 | P48: 43693.98581 | Q48: 93139.26497 | R48: 114264.7248 | S48: 116870.2413 | T48: 51732.61641 | U48: 0 | Z48: =SUM(Z46:Z47) -> 0 | AA48: 0 | AB48: 0 | AC48: 0 | AD48: 0 | AE48: 0 | AF48: 0 | AG48: 0
F49: Less customer contributions | L49: 0 | M49: 0 | N49: 0 | O49: 0 | P49: 0 | Q49: 0 | R49: 0 | S49: 0 | T49: 0 | U49: 0
F50: Total net expenditure | G50: =G48-G49 -> 0 | H50: =H48-H49 -> 0 | I50: 0 | J50: 0 | K50: 0 | L50: 0 | M50: 0 | N50: 0 | O50: 0 | P50: 43693.98581 | Q50: 93139.26497 | R50: 114264.7248 | S50: 116870.2413 | T50: 51732.61641 | U50: 0 | Z50: =Z48-Z49 -> 0 | AA50: 0 | AB50: 0 | AC50: 0 | AD50: 0 | AE50: 0 | AF50: =AF48-AF49 -> 0 | AG50: =AG48-AG49 -> 0
E51: Digital Capabilities | F51: Direct expenditure | L51: 0 | M51: 0 | N51: 0 | O51: 0 | P51: 0
F52: Direct internal labour expenditure | L52: 0 | M52: 0 | N52: 0 | O52: 0 | P52: 0 | Q52: 2524.503589 | R52: 2549.011359 | S52: 0 | T52: 0 | U52: 0
F53: Direct contractor expenditure | L53: 0 | M53: 0 | N53: 0 | O53: 0 | P53: 0 | Q53: 10103.81115 | R53: 10196.04543 | S53: 0 | T53: 0 | U53: 0
F54: Other internal direct expenditure | L54: 0 | M54: 0 | N54: 0 | O54: 0 | P54: 0 | Q54: 11706.62456 | R54: 8414.808581 | S54: 0 | T54: 0 | U54: 0
F55: Total direct expenditure | G55: =SUM(G52:G54) -> 0 | H55: 0 | I55: 0 | J55: 0 | K55: 0 | L55: 0 | M55: 0 | N55: 0 | O55: 11222.32442 | P55: 17061.58266 | Q55: =SUM(Q52:Q54) -> 24334.9393 | R55: 21159.86537 | S55: 0 | T55: 0 | U55: 0 | AF55: =SUM(AF52:AF54) -> 0 | AG55: =SUM(AG52:AG54) -> 0
F56: Total overhead expenditure | L56: 0 | M56: 0 | N56: 0 | O56: 79.21336697 | P56: 102.9875757 | Q56: 269.9247032 | R56: 262.4026548 | S56: 0 | T56: 0 | U56: 0
F57: Related party margin expenditure | L57: 0 | M57: 0 | N57: 0 | O57: 712.9203027 | P57: 926.8881814 | Q57: 1131.601589 | R57: 806.9874897 | S57: 0 | T57: 0 | U57: 0
F58: Total gross expenditure | G58: =SUM(G55:G57) -> 0 | H58: =SUM(H55:H57) -> 0 | I58: 0 | J58: 0 | K58: 0 | L58: 0 | M58: 0 | N58: 0 | O58: 792.1336697 | P58: 1029.875757 | Q58: =SUM(Q55:Q57) -> 25736.46559 | R58: 22229.25552 | S58: 0 | T58: 0 | U58: 0 | Z58: =SUM(Z56:Z57) -> 0 | AA58: 0 | AB58: 0 | AC58: 0 | AD58: 0 | AE58: 0 | AF58: 0 | AG58: 0
F59: Less customer contributions | L59: 0 | M59: 0 | N59: 0 | O59: 0 | P59: 0 | Q59: 0 | R59: 0 | S59: 0 | T59: 0 | U59: 0
F60: Total net expenditure | G60: =G58-G59 -> 0 | H60: =H58-H59 -> 0 | I60: 0 | J60: 0 | K60: 0 | L60: 0 | M60: 0 | N60: 0 | O60: 792.1336697 | P60: 1029.875757 | Q60: =Q58-Q59 -> 25736.46559 | R60: 22229.25552 | S60: 0 | T60: 0 | U60: 0 | Z60: =Z58-Z59 -> 0 | AA60: 0 | AB60: 0 | AC60: 0 | AD60: 0 | AE60: 0 | AF60: =AF58-AF59 -> 0 | AG60: =AG58-AG59 -> 0
E61: GIS Upgrade | F61: Direct expenditure | L61: 0 | M61: 0 | N61: 0 | O61: 0 | P61: 0 | Q61: 0 | R61: 0 | S61: 0 | T61: 0 | U61: 0
F62: Direct internal labour expenditure | L62: 0 | M62: 0 | N62: 0 | O62: 0 | P62: 0 | Q62: 0 | R62: 0 | S62: 0 | T62: 0 | U62: 0
F63: Direct contractor expenditure | L63: 0 | M63: 0 | N63: 0 | O63: 0 | P63: 0 | Q63: 0 | R63: 226015.0403 | S63: 102180.392 | T63: 0 | U63: 0
F64: Other internal direct expenditure | L64: 0 | M64: 0 | N64: 0 | O64: 0 | P64: 0 | Q64: 0 | R64: 49911.55458 | S64: 21390.02763 | T64: 7039.470846 | U64: 0
F65: Total direct expenditure | G65: =SUM(G62:G64) -> 0 | H65: 0 | I65: 0 | J65: 0 | K65: 0 | L65: 0 | M65: 0 | N65: 0 | O65: 0 | P65: 115127.9703 | Q65: =SUM(Q62:Q64) -> 0 | R65: =SUM(R62:R64) -> 275926.5949 | S65: 123570.4197 | T65: 7039.470846 | U65: 0 | AF65: =SUM(AF62:AF64) -> 0 | AG65: =SUM(AG62:AG64) -> 0
F66: Total overhead expenditure | L66: 0 | M66: 0 | N66: 0 | O66: 0 | P66: 694.9384938 | Q66: 0 | R66: 380121.0428 | S66: 168225.4075 | T66: 7039.470846 | U66: 0
F67: Related party margin expenditure | L67: 0 | M67: 0 | N67: 0 | O67: 0 | P67: 6254.446444 | Q67: 0 | R67: 4713.920882 | S67: 2009.893682 | T67: 76.88496862 | U67: 0
F68: Total gross expenditure | G68: =SUM(G65:G67) -> 0 | H68: =SUM(H65:H67) -> 0 | I68: 0 | J68: 0 | K68: 0 | L68: 0 | M68: 0 | N68: 0 | O68: 0 | P68: 6949.384938 | Q68: =SUM(Q65:Q67) -> 0 | R68: 660761.5586 | S68: 293805.7209 | T68: 14155.82666 | U68: 0 | Z68: =SUM(Z66:Z67) -> 0 | AA68: 0 | AB68: 0 | AC68: 0 | AD68: 0 | AE68: 0 | AF68: 0 | AG68: 0
F69: Less customer contributions | L69: 0 | M69: 0 | N69: 0 | O69: 0 | P69: 0 | Q69: 0 | R69: 19211.01194 | S69: 9065.517823 | T69: 432.0242754 | U69: 0
F70: Total net expenditure | G70: =G68-G69 -> 0 | H70: =H68-H69 -> 0 | I70: 0 | J70: 0 | K70: 0 | L70: 0 | M70: 0 | N70: 0 | O70: 0 | P70: 6949.384938 | Q70: 0 | R70: 641550.5467 | S70: 284740.2031 | T70: 13723.80238 | U70: 0 | Z70: =Z68-Z69 -> 0 | AA70: 0 | AB70: 0 | AC70: 0 | AD70: 0 | AE70: 0 | AF70: =AF68-AF69 -> 0 | AG70: =AG68-AG69 -> 0
E71: Webmethods | F71: Direct expenditure | L71: 0 | M71: 0 | N71: 0 | O71: 0 | P71: 0
F72: Direct internal labour expenditure | L72: 0 | M72: 0 | N72: 0 | O72: 0 | P72: 0 | Q72: 0 | R72: 0 | S72: 0 | T72: 0 | U72: 0
F73: Direct contractor expenditure | L73: 0 | M73: 0 | N73: 0 | O73: 0 | P73: 0 | Q73: 0 | R73: 0 | S73: 0 | T73: 0 | U73: 0
F74: Other internal direct expenditure | L74: 0 | M74: 0 | N74: 0 | O74: 0 | P74: 0 | Q74: 0 | R74: 0 | S74: 0 | T74: 0 | U74: 0
F75: Total direct expenditure | G75: =SUM(G72:G74) -> 0 | H75: 0 | I75: 0 | J75: 0 | K75: 0 | L75: 0 | M75: 0 | N75: 0 | O75: 24037.21752 | P75: 0 | Q75: 0 | R75: 0 | S75: 0 | T75: 0 | U75: 0 | AF75: =SUM(AF72:AF74) -> 0 | AG75: =SUM(AG72:AG74) -> 0
F76: Total overhead expenditure | L76: 0 | M76: 0 | N76: 0 | O76: 169.6679637 | P76: 0 | Q76: 0 | R76: 0 | S76: 0 | T76: 0 | U76: 0
F77: Related party margin expenditure | L77: 0 | M77: 0 | N77: 0 | O77: 1527.011673 | P77: 0 | Q77: 0 | R77: 0 | S77: 0 | T77: 0 | U77: 0
F78: Total gross expenditure | G78: =SUM(G75:G77) -> 0 | H78: =SUM(H75:H77) -> 0 | I78: 0 | J78: 0 | K78: 0 | L78: 0 | M78: 0 | N78: 0 | O78: 1696.679637 | P78: 0 | Q78: 0 | R78: 0 | S78: 0 | T78: 0 | U78: 0 | Z78: =SUM(Z76:Z77) -> 0 | AA78: 0 | AB78: 0 | AC78: 0 | AD78: 0 | AE78: 0 | AF78: 0 | AG78: 0
F79: Less customer contributions | L79: 0 | M79: 0 | N79: 0 | O79: 0 | P79: 0 | Q79: 0 | R79: 0 | S79: 0 | T79: 0 | U79: 0
F80: Total net expenditure | G80: =G78-G79 -> 0 | H80: =H78-H79 -> 0 | I80: 0 | J80: 0 | K80: 0 | L80: 0 | M80: 0 | N80: 0 | O80: 1696.679637 | P80: 0 | Q80: 0 | R80: 0 | S80: 0 | T80: 0 | U80: 0 | Z80: =Z78-Z79 -> 0 | AA80: 0 | AB80: 0 | AC80: 0 | AD80: 0 | AE80: 0 | AF80: =AF78-AF79 -> 0 | AG80: =AG78-AG79 -> 0
E81: Small Projects | F81: Direct expenditure
F82: Direct internal labour expenditure | L82: 0 | M82: 0 | N82: 0 | O82: 0 | P82: 0 | Q82: 0 | R82: 0 | S82: 0 | T82: 0 | U82: 0
F83: Direct contractor expenditure | L83: 0 | M83: 0 | N83: 0 | O83: 0 | P83: 0 | Q83: 0 | R83: 0 | S83: 0 | T83: 0 | U83: 0
F84: Other internal direct expenditure | L84: 0 | M84: 0 | N84: 0 | O84: 0 | P84: 0 | Q84: 0 | R84: 0 | S84: 0 | T84: 0 | U84: 0
F85: Total direct expenditure | G85: =SUM(G82:G84) -> 0 | H85: 0 | I85: 0 | J85: 0 | K85: 0 | L85: 0 | M85: 0 | N85: 0 | O85: 0 | P85: 0 | Q85: =SUM(Q82:Q84) -> 0 | R85: =SUM(R82:R84) -> 0 | S85: 0 | T85: 0 | U85: 0 | AF85: =SUM(AF82:AF84) -> 0 | AG85: =SUM(AG82:AG84) -> 0
F86: Total overhead expenditure | L86: 0 | M86: 0 | N86: 0 | O86: 0 | P86: 0 | Q86: 0 | R86: 0 | S86: 0 | T86: 0 | U86: 0
F87: Related party margin expenditure | L87: 0 | M87: 0 | N87: 0 | O87: 0 | P87: 0 | Q87: 0 | R87: 0 | S87: 0 | T87: 0 | U87: 0
F88: Total gross expenditure | G88: =SUM(G85:G87) -> 0 | H88: =SUM(H85:H87) -> 0 | I88: 0 | J88: 0 | K88: 0 | L88: 0 | M88: 0 | N88: 0 | O88: 0 | P88: 0 | Q88: =SUM(Q85:Q87) -> 0 | R88: 0 | S88: 0 | T88: 0 | U88: 0 | Z88: =SUM(Z86:Z87) -> 0 | AA88: 0 | AB88: 0 | AC88: 0 | AD88: 0 | AE88: 0 | AF88: 0 | AG88: 0
F89: Less customer contributions | L89: 0 | M89: 0 | N89: 0 | O89: 0 | P89: 0 | Q89: 0 | R89: 0 | S89: 0 | T89: 0 | U89: 0
F90: Total net expenditure | G90: =G88-G89 -> 0 | H90: =H88-H89 -> 0 | I90: 0 | J90: 0 | K90: 0 | L90: 0 | M90: 0 | N90: 0 | O90: 0 | P90: 0 | Q90: 0 | R90: 0 | S90: 0 | T90: 0 | U90: 0 | Z90: =Z88-Z89 -> 0 | AA90: 0 | AB90: 0 | AC90: 0 | AD90: 0 | AE90: 0 | AF90: =AF88-AF89 -> 0 | AG90: =AG88-AG89 -> 0
E91: Infrastructure Renewal | F91: Direct expenditure | L91: 0 | M91: 0 | N91: 0 | O91: 1696.679637 | P91: 0 | Q91: 0 | R91: 0 | S91: 0 | T91: 0 | U91: 0
F92: Direct internal labour expenditure | L92: 0 | M92: 0 | N92: 0 | O92: 0 | P92: 0 | Q92: 0 | R92: 0 | S92: 0 | T92: 0 | U92: 0
F93: Direct contractor expenditure | L93: 0 | M93: 0 | N93: 0 | O93: 0 | P93: 0 | Q93: 2990.916637 | R93: 1995.089054 | S93: 0 | T93: 0 | U93: 0
F94: Other internal direct expenditure | L94: 0 | M94: 0 | N94: 0 | O94: 0 | P94: 0 | Q94: 11970.53433 | R94: 7980.356217 | S94: 0 | T94: 0 | U94: 0
F95: Total direct expenditure | G95: =SUM(G92:G94) -> 0 | H95: 0 | I95: 0 | J95: 0 | K95: 0 | L95: =SUM(L92:L94) -> 0 | M95: =SUM(M92:M94) -> 0 | N95: 0 | O95: 0 | P95: 0 | Q95: =SUM(Q92:Q94) -> 14961.45096 | R95: 9975.445271 | S95: 0 | T95: 0 | U95: 0 | AF95: =SUM(AF92:AF94) -> 0 | AG95: =SUM(AG92:AG94) -> 0
F96: Total overhead expenditure | L96: 0 | M96: 0 | N96: 0 | O96: 0 | P96: 0 | Q96: 28829.2938 | R96: 16561.45019 | S96: 0 | T96: 0 | U96: 0
F97: Related party margin expenditure | L97: 0 | M97: 0 | N97: 0 | O97: 0 | P97: 0 | Q97: 319.7944694 | R97: 205.3802791 | S97: 0 | T97: 0 | U97: 0
F98: Total gross expenditure | G98: =SUM(G95:G97) -> 0 | H98: =SUM(H95:H97) -> 0 | I98: 0 | J98: 0 | K98: 0 | L98: =SUM(L95:L97) -> 0 | M98: =SUM(M95:M97) -> 0 | N98: 0 | O98: 0 | P98: 0 | Q98: 44110.53923 | R98: 26742.27574 | S98: 0 | T98: 0 | U98: 0 | Z98: =SUM(Z96:Z97) -> 0 | AA98: 0 | AB98: 0 | AC98: 0 | AD98: 0 | AE98: 0 | AF98: 0 | AG98: 0
F99: Less customer contributions | L99: 0 | M99: 0 | N99: 0 | O99: 0 | P99: 0 | Q99: 1660.464387 | R99: 837.0023793 | S99: 0 | T99: 0 | U99: 0
F100: Total net expenditure | G100: =G98-G99 -> 0 | H100: =H98-H99 -> 0 | I100: 0 | J100: 0 | K100: 0 | L100: 0 | M100: 0 | N100: 0 | O100: 0 | P100: 0 | Q100: 42450.07484 | R100: 25905.27336 | S100: 0 | T100: 0 | U100: 0 | Z100: =Z98-Z99 -> 0 | AA100: 0 | AB100: 0 | AC100: 0 | AD100: 0 | AE100: 0 | AF100: =AF98-AF99 -> 0 | AG100: =AG98-AG99 -> 0
E101: TOTALS | F101: Total direct expenditure | G101: =SUMIF($F$21:$F$100,"Total direct expenditure ",G$21:G$100) -> 0 | H101: 0 | I101: 0 | J101: 0 | K101: 0 | L101: 0 | M101: 0 | N101: 0 | O101: 40410.37427 | P101: 277892.8639 | Q101: 374357.6964 | R101: 704471.392 | S101: 509690.4433 | T101: 176373.9962 | U101: 205816.9581 | Z101: =SUMIF($F$21:$F$30,"Total direct expenditure ",Z$21:Z$30) -> 0 | AA101: 0 | AB101: 0 | AC101: 0 | AD101: 0 | AE101: 0 | AF101: 0 | AG101: 0
F102: Total overhead expenditure | G102: =SUMIF($F$21:$F$100,"Total overhead expenditure",G$21:G$100) -> 0 | H102: 0 | I102: 0 | J102: 0 | K102: 0 | L102: 0 | M102: 0 | N102: 0 | O102: 285.2387514 | P102: 1677.424242 | Q102: 32815.96989 | R102: 401873.2064 | S102: 172838.674 | T102: 8888.947274 | U102: 2197.760651 | Z102: =SUMIF($F$21:$F$30,"Total overhead expenditure",Z$21:Z$30) -> 0 | AA102: 0 | AB102: 0 | AC102: 0 | AD102: 0 | AE102: 0 | AF102: 0 | AG102: 0
F103: Related party margin expenditure | G103: =SUMIF($F$21:$F$100,"Related party margin expenditure",G$21:G$100) -> 0 | H103: 0 | I103: 0 | J103: 0 | K103: 0 | L103: 0 | M103: 0 | N103: 0 | O103: =SUMIF($F$21:$F$100,"Related party margin expenditure",O$21:O$100) -> 2567.148763 | P103: 15096.81818 | Q103: 17033.08134 | R103: 20882.70972 | S103: 18204.51868 | T103: 8619.800295 | U103: 10975.72048 | Z103: =SUMIF($F$21:$F$30,"Related party margin expenditure",Z$21:Z$30) -> 0 | AA103: 0 | AB103: 0 | AC103: 0 | AD103: 0 | AE103: 0 | AF103: 0 | AG103: 0
F104: Total gross expenditure | G104: =SUMIF($F$21:$F$100,"Total gross expenditure",G$21:G$100) -> 0 | H104: 0 | I104: 0 | J104: 1110 | K104: 1770 | L104: 0 | M104: 0 | N104: 0 | O104: 8003.21984 | P104: 162477.5534 | Q104: 424206.7476 | R104: 1127227.308 | S104: 700733.636 | T104: 193882.7438 | U104: 218990.4392 | Z104: =SUMIF($F$21:$F$30,"Total gross expenditure",Z$21:Z$30) -> 0 | AA104: 0 | AB104: 0 | AC104: 0 | AD104: 0 | AE104: 0 | AF104: 0 | AG104: 0
F105: Less customer contributions | G105: =SUMIF($F$21:$F$100,"Less customer contributions",G$21:G$100) -> 0 | H105: 0 | I105: 0 | J105: 0 | K105: 0 | L105: 0 | M105: 0 | N105: 0 | O105: 0 | P105: 0 | Q105: 1660.464387 | R105: 20048.01432 | S105: 9065.517823 | T105: 432.0242754 | U105: 0 | Z105: =SUMIF($F$21:$F$30,"Less customer contributions",Z$21:Z$30) -> 0 | AA105: 0 | AB105: 0 | AC105: 0 | AD105: 0 | AE105: 0 | AF105: 0 | AG105: 0
F106: Total net expenditure | G106: =SUMIF($F$21:$F$100,"Total net expenditure",G$21:G$100) -> 0 | H106: 0 | I106: 0 | J106: 1110 | K106: 1770 | L106: 0 | M106: 0 | N106: 0 | O106: 8003.21984 | P106: 162477.5534 | Q106: 422546.2832 | R106: =SUMIF($F$21:$F$100,"Total net expenditure",R$21:R$100) -> 1107179.294 | S106: 691668.1182 | T106: 193450.7195 | U106: 218990.4392 | Z106: =SUMIF($F$21:$F$30,"Total net expenditure",Z$21:Z$30) -> 0 | AA106: 0 | AB106: 0 | AC106: 0 | AD106: 0 | AE106: 0 | AF106: 0 | AG106: 0
E107: Source(s) of data: | G107: 2008-2012 ESC Regulatory Accounting Statements - Statement 4b "IT" - Total Cost | L107: 2013-2015 AER Annual Reporting Templates - Template 2 Capex - IT Capex | O107: Forecast data sourced from APA Data
L108: =+L106 -> 0 | M108: =+M106 -> 0 | N108: 0 | O108: 8003.21984 | P108: 162477.5534 | Q108: 422546.2832 | R108: 1107179.294 | S108: 691668.1182 | T108: 193450.7195 | U108: 218990.4392
E109: Table 12.2 - IT Capex (approved)
G110: Previous access arrangement period | L110: Current access arrangement period
G111: =CONCATENATE("$0's, real ",dms_DollarReal) -> $0's, real December 2017
G112: Approved
G113: =PRCP -> 2008 | H113: 2009 | I113: 2010 | J113: 2011 | K113: 2012 | L113: =CRCP_y1 -> 2013 | M113: =CRCP_y2 -> 2014 | N113: =CRCP_y3 -> 2015 | O113: =CRCP_y4 -> 2016 | P113: =CRCP_y5 -> 2017
E114: IT- ROAD MAP INITIATIVES | F114: Direct expenditure
F115: Direct internal labour | L115: 29073.90743 | M115: 59273.28744 | N115: 19912.9095 | O115: 0 | P115: 0
F116: Direct contractor expenditure | L116: 62136.50875 | M116: 126302.4678 | N116: 42347.56102 | O116: 0 | P116: 0
F117: Other internal direct expenditure | L117: 31749.87175 | M117: 64024.53477 | N117: 21254.04638 | O117: 0 | P117: 0
F118: Total direct expenditure | L118: =SUM(L115:L117) -> 122960.2879 | M118: =SUM(M115:M117) -> 249600.29 | N118: =SUM(N115:N117) -> 83514.5169 | O118: 0 | P118: 0
F119: Total overhead expenditure | L119: 25335.27954 | M119: 48906.20489 | N119: 19593.94493 | O119: 919.5387476 | P119: 4881.102358
F120: Related party margin
F121: Total gross expenditure | G121: =SUM(G118:G120) -> 0 | H121: 0 | I121: 0 | J121: 0 | K121: 0 | L121: =SUM(L118:L120) -> 148295.5675 | M121: =SUM(M118:M120) -> 298506.4949 | N121: =SUM(N118:N120) -> 103108.4618 | O121: =SUM(O118:O120) -> 919.5387476 | P121: =SUM(P118:P120) -> 4881.102358
F122: Less customer contributions
F123: Total net expenditure | G123: =G121-G122 -> 0 | H123: 0 | I123: 0 | J123: 0 | K123: 0 | L123: 148295.5675 | M123: =M121-M122 -> 298506.4949 | N123: =N121-N122 -> 103108.4618 | O123: 919.5387476 | P123: 4881.102358
E124: APPLICATIONS RENEWALS | F124: Direct expenditure
F125: Direct internal labour | L125: 480.5604534 | M125: 1700.463164 | N125: 2212.5455 | O125: 992.2037376 | P125: 4514.030904
F126: Direct contractor expenditure | L126: 1027.049731 | M126: 3623.431452 | N126: 4705.284558 | O126: 2099.602531 | P126: 9533.245294
F127: Other internal direct expenditure | L127: 524.7912686 | M127: 1836.76944 | N127: 2361.560709 | O127: 1049.582537 | P127: 4723.121417
F128: Total direct expenditure | L128: =SUM(L125:L127) -> 2032.401453 | M128: =SUM(M125:M127) -> 7160.664057 | N128: 9279.390766 | O128: 4141.388806 | P128: 18770.39762
F129: Total overhead expenditure | L129: 2298.922632 | M129: 4437.747809 | N129: 1777.954073 | O129: 83.43892296 | P129: 442.9111059
F130: Related party margin
F131: Total gross expenditure | G131: =SUM(G128:G130) -> 0 | H131: 0 | I131: 0 | J131: 0 | K131: 0 | L131: 4331.324085 | M131: =SUM(M128:M130) -> 11598.41187 | N131: =SUM(N128:N130) -> 11057.34484 | O131: =SUM(O128:O130) -> 4224.827729 | P131: =SUM(P128:P130) -> 19213.30872
F132: Less customer contributions
F133: Total net expenditure | G133: =G131-G132 -> 0 | H133: 0 | I133: 0 | J133: 0 | K133: 0 | L133: 4331.324085 | M133: =M131-M132 -> 11598.41187 | N133: =N131-N132 -> 11057.34484 | O133: 4224.827729 | P133: =P131-P132 -> 19213.30872
E134: IT INFRASTRUCTURE UPGARDE & RENEWALS | F134: Direct expenditure
F135: Direct internal labour | L135: 1201.401134 | M135: 971.6932368 | N135: 2458.383889 | O135: 0 | P135: 1253.897473
F136: Direct contractor expenditure | L136: 2567.624329 | M136: 2070.532259 | N136: 5228.093953 | O136: 0 | P136: 2648.123693
F137: Other internal direct expenditure | L137: 1311.978171 | M137: 1049.582537 | N137: 2623.956343 | O137: 0 | P137: 1311.978171
F138: Total direct expenditure | L138: =SUM(L135:L137) -> 5081.003634 | M138: =SUM(M135:M137) -> 4091.808033 | N138: 10310.43418 | O138: 0 | P138: 5213.999338
F139: Total overhead expenditure | L139: 1371.94865 | M139: 2648.354508 | N139: 1061.045577 | O139: 49.79459341 | P139: 264.3200278
F140: Related party margin
F141: Total gross expenditure | G141: =SUM(G138:G140) -> 0 | H141: 0 | I141: 0 | J141: 0 | K141: 0 | L141: =SUM(L138:L140) -> 6452.952284 | M141: =SUM(M138:M140) -> 6740.162541 | N141: =SUM(N138:N140) -> 11371.47976 | O141: =SUM(O138:O140) -> 49.79459341 | P141: =SUM(P138:P140) -> 5478.319365
F142: Less customer contributions
F143: Total net expenditure | G143: =G141-G142 -> 0 | H143: 0 | I143: 0 | J143: 0 | K143: 0 | L143: 6452.952284 | M143: =M141-M142 -> 6740.162541 | N143: 11371.47976 | O143: 49.79459341 | P143: 5478.319365
E144: IT Expenditure | F144: Direct expenditure
F145: Direct internal labour expenditure | L145: =L115+L125+L135 -> 30755.86902 | M145: =M115+M125+M135 -> 61945.44384 | N145: 24583.83889 | O145: 992.2037376 | P145: 5767.928378
F146: Direct contractor expenditure | L146: =L116+L126+L136 -> 65731.18281 | M146: =M116+M126+M136 -> 131996.4315 | N146: 52280.93953 | O146: 2099.602531 | P146: 12181.36899
F147: Other internal direct expenditure | L147: 33586.64119 | M147: =M117+M127+M137 -> 66910.88674 | N147: 26239.56343 | O147: 1049.582537 | P147: 6035.099589
F148: Total direct expenditure | G148: =0.01*1000000*G169 -> 12946.74556 | H148: =0.03*1000000*H169 -> 38840.23669 | I148: 0 | J148: 0 | K148: 0 | L148: =L118+L128+L138 -> 130073.693 | M148: =M118+M128+M138 -> 260852.7621 | N148: 103104.3418 | O148: 4141.388806 | P148: 23984.39695
F149: Total overhead expenditure | G149: 0 | H149: 0 | I149: 0 | J149: 0 | K149: 0 | L149: 29006.15082 | M149: =M119+M129+M139 -> 55992.3072 | N149: 22432.94458 | O149: 1052.772264 | P149: 5588.333492
F150: Related party margin | L150: 0 | M150: =M120+M130+M140 -> 0 | N150: 0 | O150: 0 | P150: 0
F151: Total gross expenditure | G151: =SUM(G148:G150) -> 12946.74556 | H151: 38840.23669 | I151: 0 | J151: 0 | K151: 0 | L151: =L121+L131+L141 -> 159079.8438 | M151: =M121+M131+M141 -> 316845.0693 | N151: =N121+N131+N141 -> 125537.2864 | O151: 5194.16107 | P151: 29572.73045
F152: Less customer contributions | G152: 0 | H152: 0 | I152: 0 | J152: 0 | K152: 0
F153: Total net expenditure | G153: =G151-G152 -> 12946.74556 | H153: 38840.23669 | I153: 0 | J153: 0 | K153: 0 | L153: 159079.8438 | M153: =M151-M152 -> 316845.0693 | N153: 125537.2864 | O153: 5194.16107 | P153: 29572.73045
E154: TOTALS | F154: Total direct expenditure | G154: =SUMIF($F$144:$F$153,"Total direct expenditure ",G$144:G$153) -> 12946.74556 | H154: =SUMIF($F$144:$F$153,"Total direct expenditure ",H$144:H$153) -> 38840.23669 | I154: 0 | J154: 0 | K154: 0 | L154: =SUMIF($F$144:$F$153,"Total direct expenditure ",L$144:L$153) -> 130073.693 | M154: 260852.7621 | N154: 103104.3418 | O154: 4141.388806 | P154: 23984.39695
F155: Total overhead expenditure | G155: =SUMIF($F$144:$F$153,"Total overhead expenditure",G$144:G$153) -> 0 | H155: 0 | I155: 0 | J155: 0 | K155: 0 | L155: 29006.15082 | M155: 55992.3072 | N155: 22432.94458 | O155: 1052.772264 | P155: 5588.333492
F156: Related party margin expenditure | G156: =SUMIF($F$144:$F$153,"Related party margin",G$144:G$153) -> 0 | H156: 0 | I156: 0 | J156: 0 | K156: 0 | L156: 0 | M156: 0 | N156: 0 | O156: 0 | P156: 0
F157: Total gross expenditure | G157: =SUMIF($F$144:$F$153,"Total gross expenditure",G$144:G$153) -> 12946.74556 | H157: 38840.23669 | I157: 0 | J157: 0 | K157: 0 | L157: =SUMIF($F$144:$F$153,"Total gross expenditure",L$144:L$153) -> 159079.8438 | M157: 316845.0693 | N157: 125537.2864 | O157: 5194.16107 | P157: 29572.73045
F158: Less customer contributions | G158: =SUMIF($F$144:$F$153,"Less customer contributions",G$144:G$153) -> 0 | H158: 0 | I158: 0 | J158: 0 | K158: 0 | L158: 0 | M158: 0 | N158: 0 | O158: 0 | P158: 0
F159: Total net expenditure | G159: =SUMIF($F$144:$F$153,"Total net expenditure",G$144:G$153) -> 12946.74556 | H159: 38840.23669 | I159: 0 | J159: 0 | K159: 0 | L159: 159079.8438 | M159: 316845.0693 | N159: 125537.2864 | O159: 5194.16107 | P159: 29572.73045
E160: Source(s) of data: | G160: Review of Gas Access Arrangements 2008 - 2012 - Variations to the Access Arrangements of Envestra (Victoria) and Envestra (Albury): ESC Appeal Panel Decisions E1 and E2 of 2008 - 25 March 2009, p23 | L160: Source: Envestra final submission capex file 2013 - 2017 'AER Final decision ENA - Sent to DNSP'
K163: check | L163: 0 | M163: 0 | N163: 0 | O163: 0 | P163: 0
G168: Convert $1 July 2006 to $31 December 2017 | L168: Conversion $2011 to $2017
G169: 1.294674556 | H169: 1.294674556 | I169: 1.294674556 | J169: 1.294674556 | K169: 1.294674556 | L169: 2010-09-01 | M169: 96.5
L170: 2016-09-01 | M170: ='4. Connections market expansn'!Z286 -> 110.1
M171: =M170/M169 -> 1.140932642

Sheet 14. Overheads
B1: =IF(dms_DataQuality="backcast",INDEX(dms_Worksheet_List,MATCH(dms_Model,dms_Model_List))&" BACKCAST",INDEX(dms_Worksheet_List,MATCH(dms_Model,dms_Model_List))) -> REGULATORY REPORTING STATEMENT
B2: =INDEX(dms_TradingNameFull_List,MATCH(dms_TradingName,dms_TradingName_List)) -> Australian Gas Networks Limited (reporting data for Albury)
B3: =IF(SUM(dms_SingleYear_Model)>0,CRY,CONCATENATE(FRCP_y1," to ",dms_MultiYear_FinalYear_Result)) -> 2018 to 2022 | H3: =CONCATENATE(LEFT(FRCP_y1,4),"-",LEFT(FRCP_y5,2),RIGHT(FRCP_y5,2)) -> 2018-2022 | I3: =CONCATENATE(LEFT(FRCP_y1,4),"-",LEFT(FRCP_y5,2),RIGHT(FRCP_y5,2)) -> 2018-2022
B4: 14. CAPITALISED OVERHEAD EXPENDITURE
B7: Instructions
B8: This template asks for information relating to capitalised overhead expenditure.
B9: For tables 14.1 to 14.5 enter the required details into the yellow cells. This may require the insertion of new lines in each table.
B10: Ensure all dependent links are correct.
B13: Table 14 - CAPITALISED OVERHEAD EXPENDITURE | U13: REAL $ CONVERSION OF HISTORICAL DATA
B14: Table 14.1 - Total overhead expenditure (actual/forecast)
C15: Previous access arrangement period | H15: Current access arrangement period | M15: Next access arrangement period | U15: Previous access arrangement period | Z15: Current access arrangement period
C16: $0's, nominal | K16: =CONCATENATE("$0's, real ",dms_DollarReal) -> $0's, real December 2017 | U16: =CONCATENATE("$0's, real ",dms_DollarReal) -> $0's, real December 2017
C17: Actual | K17: Forecast | U17: Actual
C18: =PRCP -> 2008 | D18: 2009 | E18: 2010 | F18: 2011 | G18: 2012 | H18: =CRCP_y1 -> 2013 | I18: =CRCP_y2 -> 2014 | J18: =CRCP_y3 -> 2015 | K18: =CRCP_y4 -> 2016 | L18: =CRCP_y5 -> 2017 | M18: =FRCP -> 2018 | N18: 2019 | O18: 2020 | P18: 2021 | Q18: 2022 | U18: =PRCP -> 2008 | V18: 2009 | W18: 2010 | X18: 2011 | Y18: 2012 | Z18: =CRCP_y1 -> 2013 | AA18: =CRCP_y2 -> 2014 | AB18: =CRCP_y3 -> 2015
B19: Table 14.1.1 - Network overhead expenditure
B20: Connections Market Expansion | K20: 89799.15277 | L20: 77921.26061 | M20: 79755.0897 | N20: 70700.59912 | O20: 76611.00386 | P20: 84879.9586 | Q20: 89622.77538
B21: Mains Augmentation | K21: 0 | L21: 0 | M21: 0 | N21: 0 | O21: 0 | P21: 0 | Q21: 0
B22: Mains Replacement | K22: 1564.390097 | L22: 1342.492512 | M22: 1023.156944 | N22: 895.2588533 | O22: 957.3422087 | P22: 1044.221428 | Q22: 1087.38703
B23: Telemetry | K23: 0 | L23: 0 | M23: 0 | N23: 0 | O23: 0 | P23: 5365.097085 | Q23: 0
B24: Meter Replacement | K24: 17966.55468 | L24: 17834.08412 | M24: 17299.93343 | N24: 15038.88838 | O24: 16002.506 | P24: 17739.72889 | Q24: 18422.04894
B25: Other | K25: 5292.510796 | L25: 6241.16464 | M25: 4181.601168 | N25: 5383.790619 | O25: 5757.139383 | P25: 5487.03111 | Q25: 1460.206565
B26: IT | K26: 2622.4666 | L26: 15466.62928 | M26: 22749.63504 | N26: 41801.09597 | O26: 30394.75234 | P26: 10548.15688 | Q26: 12817.74523
B27: Table 14.1.2 - Corporate overhead expenditure
B28: < Overhead expenditure item >
B29: < Overhead expenditure item >
B30: < Overhead expenditure item >
B31: < Overhead expenditure item >
B32: < Overhead expenditure item >
B33: < Overhead expenditure item >
B34: Total overhead expenditure | C34: 210000 | D34: 261095 | E34: 155805 | F34: 152050 | G34: 353680 | H34: 111858.901 | I34: 97361.9467 | J34: 93865.60257 | K34: =SUM(K20:K33) -> 117245.0749 | L34: =SUM(L20:L33) -> 118805.6312 | M34: =SUM(M20:M33) -> 125009.4163 | N34: =SUM(N20:N33) -> 133819.6329 | O34: =SUM(O20:O33) -> 129722.7438 | P34: 125064.194 | Q34: =SUM(Q20:Q33) -> 123410.1631 | U34: =SUM(U20:U33) -> 0 | V34: 0 | W34: 0 | X34: 0 | Y34: 0 | Z34: 0 | AA34: 0 | AB34: 0
B35: Source(s) of data: | C35: 2008-2012 ESC Regulatory Accounting Statements - Statement 4b - Overheads | H35: Annual Regulatory Accounting Statements - Template 2.4 | K35: AGN 2018 - 2022 Victoria and Albury Capex Model (Attachment 8.8)
B38: Table 14.2 - Capex/opex overhead apportionment (actual/forecast)
C39: Previous access arrangement period | H39: Current access arrangement period | M39: Next access arrangement period | U39: Previous access arrangement period | Z39: Current access arrangement period
C40: $0's, nominal | K40: =CONCATENATE("$0's, real ",dms_DollarReal) -> $0's, real December 2017 | U40: =CONCATENATE("$0's, real ",dms_DollarReal) -> $0's, real December 2017
C41: Actual | K41: Forecast | U41: Actual
C42: =PRCP -> 2008 | D42: 2009 | E42: 2010 | F42: 2011 | G42: 2012 | H42: =CRCP_y1 -> 2013 | I42: =CRCP_y2 -> 2014 | J42: =CRCP_y3 -> 2015 | K42: =CRCP_y4 -> 2016 | L42: =CRCP_y5 -> 2017 | M42: =FRCP -> 2018 | N42: 2019 | O42: 2020 | P42: 2021 | Q42: 2022 | U42: =PRCP -> 2008 | V42: 2009 | W42: 2010 | X42: 2011 | Y42: 2012 | Z42: =CRCP_y1 -> 2013 | AA42: =CRCP_y2 -> 2014 | AB42: =CRCP_y3 -> 2015
B43: Opex overheads
B44: Capex overheads | C44: =C45-C43 -> 210000 | D44: =D45-D43 -> 261095 | E44: =E45-E43 -> 155805 | F44: 152050 | G44: 353680 | H44: =H45-H43 -> 111858.901 | I44: 97361.9467 | J44: 93865.60257 | K44: 117245.0749 | L44: 118805.6312 | M44: 125009.4163 | N44: 133819.6329 | O44: 129722.7438 | P44: 125064.194 | Q44: =Q45-Q43 -> 123410.1631 | U44: =U45-U43 -> 0 | V44: =V45-V43 -> 0 | W44: 0 | X44: 0 | Y44: 0 | Z44: 0 | AA44: 0 | AB44: 0
B45: Total overheads | C45: =C34 -> 210000 | D45: =D34 -> 261095 | E45: =E34 -> 155805 | F45: 152050 | G45: 353680 | H45: =H34 -> 111858.901 | I45: =I34 -> 97361.9467 | J45: 93865.60257 | K45: 117245.0749 | L45: 118805.6312 | M45: 125009.4163 | N45: =N34 -> 133819.6329 | O45: 129722.7438 | P45: 125064.194 | Q45: 123410.1631 | U45: =U34 -> 0 | V45: 0 | W45: 0 | X45: 0 | Y45: 0 | Z45: 0 | AA45: =Z34 -> 0 | AB45: =AA34 -> 0
B46: Source(s) of data: | C46: 2008-2012 ESC Regulatory Accounting Statements - Statement 4b - Overheads (Including RPM) | H46: AGN 2018 - 2022 Victoria and Albury Capex Model | K46: Forecast data sourced from capex model submitted as Attachment 8.8 to the AAI.
